Workbook

Sheet Data (hidden)
A1: Financial Returns Data spreadsheet | K1: Ann Geometrics | AM1: Land Returns by State workbook | AP1: =SUM(AO2:CC2) -> 32 | AQ1: Total rate of return - Cap Gain plus rental income less taxes mixed time definition | AX1: By convention, use the ERS data of publication as the year for this sheet. | BE1: Select states in Ave 1 with logicals in AO2:CC2 | CC1: =SUM(AO2:CB2) -> 32 | CD1: NCREIF
A2: Return Matrix | B2: Stock Indexes | F2: MSCI equity Indexes | K2: REITS | O2: Interest Rates | Q2: Treasury Series | Z2: CDs | AB2: Corporate Bonds | AD2: Comm Paper | AE2: Municipal bonds | AF2: Mortgages | AG2: Commodity indexes | AJ2: Inflation Ref | AL2: US Return rates (cont) | AM2: States land returns - from Land return by state | AN2: States land returns - from Land return by state | AO2: 1 | AQ2: 1 | AR2: 1 | AS2: 1 | AU2: 1 | AV2: 1 | AW2: 1 | AX2: 1 | AY2: 1 | AZ2: 1 | BA2: 1 | BB2: 1 | BC2: 1 | BE2: 1 | BF2: 1 | BG2: 1 | BH2: 1 | BI2: 1 | BJ2: 1 | BM2: 1 | BN2: 1 | BO2: 1 | BP2: 1 | BQ2: 1 | BR2: 1 | BS2: 1 | BU2: 1 | BV2: 1 | BW2: 1 | BY2: 1 | BZ2: 1 | CB2: 1
A3: Year | B3: S&P500 | C3: Dow Jones | D3: NASDAQ | E3: NYSE | F3: EAFE | G3: EUROPE | H3: PACIFIC | I3: North America | J3: MSCIUSA | K3: All REITS | L3: Equity REITS | M3: Mortgage REITS | N3: Composite REITS | O3: BBALibor | P3: ED3M | Q3: TCM1Y | R3: TCM3Y | S3: TCM5Y | T3: TCM7Y | U3: TCM10Y | V3: TCM20Y | W3: TCM30Y | X3: TBSM3M | Y3: TBSM6M | Z3: CD3M | AA3: CD6M | AB3: AAA | AC3: BAA | AD3: CP3M | AE3: Muni20 | AF3: Mort30F | AG3: Reuters | AH3: CRB FI | AI3: CRBSpot | AJ3: CPI | AK3: PPI | AL3: Gold | AM3: US Ag 32 States | AN3: US Ave Farm (all) | AO3: Alabama | AP3: Arizona | AQ3: Arkansas | AR3: California | AS3: Colorado | AT3: Delaware | AU3: Florida | AV3: Georgia | AW3: Idaho | AX3: Illinois | AY3: Indiana | AZ3: Iowa | BA3: Kansas | BB3: Kentucky | BC3: Louisiana | BD3: Maryland | BE3: Michigan | BF3: Minnesota | BG3: Mississippi | BH3: Missouri | BI3: Montana | BJ3: Nebraska | BK3: New Jersey | BL3: New Mexico | BM3: New York | BN3: North Carolina | BO3: North Dakota | BP3: Ohio | BQ3: Oklahoma | BR3: Oregon | BS3: Pennsylvania | BT3: South Carolina | BU3: South Dakota | BV3: Tennessee | BW3: Texas | BX3: Utah | BY3: Virginia | BZ3: Washington | CA3: West Virginia | CB3: Wisconsin | CC3: Wyoming | CD3: NCREIF Total Farmland | CE3: NCREIF Cornbelt | CF3: NCREIF Permanent | CG3: NCREIF PacWest | CH3: NCREIF Delta | CI3: NCREIF Annual Cropland | CJ3: NCREIF Timber
A4: 1960 | B4: 0.04397472489 | C4: -0.09812544303 | Q4: 0.03626666667 | R4: 0.03980833333 | S4: 0.0409 | V4: 0.04059166667 | X4: 0.02883333333 | Y4: 0.03211666667 | AB4: 0.0441 | AC4: 0.05189166667 | AE4: 0.03515 | AG4: -0.06782663313 | AH4: -0.04465792688 | AI4: -0.02270479369 | AJ4: 0.01351371917 | AK4: 0.006329135052 | CK4: 1 | CL4: Texas | CM4: 40440.80827
A5: 1961 | B5: 0.2080587399 | C5: 0.1714656366 | Q5: 0.02980833333 | R5: 0.03535 | S5: 0.03750833333 | V5: 0.03923333333 | X5: 0.02354166667 | Y5: 0.02591666667 | AB5: 0.0435 | AC5: 0.05075 | AE5: 0.03453333333 | AG5: 0.01539431745 | AH5: 0.0569063775 | AI5: 0.04190700068 | AJ5: 0.006688988151 | AK5: -0.00315956029 | CK5: 2 | CL5: Kansas | CM5: 30461.36541
A6: 1962 | B6: -0.1256757365 | C6: -0.1143523249 | Q6: 0.03100833333 | R6: 0.03471666667 | S6: 0.03701666667 | V6: 0.03993333333 | X6: 0.02773333333 | Y6: 0.02899166667 | AB6: 0.04325 | AC6: 0.0502 | AE6: 0.03154166667 | AG6: 0.05404169642 | AH6: 0.0001947609316 | AI6: -0.05768849602 | AJ6: 0.01324522675 | AK6: 0 | CK6: 3 | CL6: North Dakota | CM6: 27685.83575
A7: 1963 | B7: 0.1730339751 | C7: 0.1570601069 | Q7: 0.03356666667 | R7: 0.03669166667 | S7: 0.03829166667 | V7: 0.0405 | X7: 0.03159166667 | Y7: 0.03258333333 | AB7: 0.04259166667 | AC7: 0.04855833333 | AE7: 0.0317 | AG7: 0.1122286745 | AH7: 0.06402110395 | AI7: 0.03131779955 | AJ7: 0.01631357549 | AK7: 0 | CK7: 4 | CL7: Iowa | CM7: 27556.00395
A8: 1964 | B8: 0.1219510016 | C8: 0.1359367543 | Q8: 0.03845833333 | R8: 0.04030833333 | S8: 0.04068333333 | V8: 0.0419 | X8: 0.03546666667 | Y8: 0.03681666667 | AB8: 0.04405833333 | AC8: 0.04828333333 | AE8: 0.03206666667 | AG8: -0.05812518129 | AH8: -0.05404185144 | AI8: 0.07138808221 | AJ8: 0.009661910912 | AK8: 0.00315956029 | CK8: 5 | CL8: Illinois | CM8: 24530.8934
A9: 1965 | B9: 0.08674585502 | C9: 0.1033793759 | Q9: 0.04144166667 | R9: 0.042175 | S9: 0.042475 | V9: 0.04266666667 | X9: 0.03949166667 | Y9: 0.04053333333 | Z9: 0.04344166667 | AA9: 0.04425833333 | AB9: 0.04493333333 | AC9: 0.04865833333 | AE9: 0.03260833333 | AG9: 0.007156053524 | AH9: 0.01568659617 | AI9: 0.06931179989 | AJ9: 0.01904819497 | AK9: 0.03411183451 | CK9: 6 | CL9: Minnesota | CM9: 23263.82951
A10: 1966 | B10: -0.1403084511 | C10: -0.2099991213 | Q10: 0.05203333333 | R10: 0.0523 | S10: 0.05104166667 | V10: 0.047675 | X10: 0.048625 | Y10: 0.05060833333 | Z10: 0.05483333333 | AA10: 0.05628333333 | AB10: 0.0513 | AC10: 0.05665 | AE10: 0.03808333333 | AG10: -0.08356012249 | AH10: -0.01761653983 | AI10: -0.06453852114 | AJ10: 0.03400636799 | AK10: 0.0151288816 | CK10: 7 | CL10: Nebraska | CM10: 22764.22928
A11: 1967 | B11: 0.183088929 | C11: 0.1414703947 | E11: 0.08817033208 | Q11: 0.04885 | R11: 0.05039166667 | S11: 0.051075 | V11: 0.05009166667 | X11: 0.04306666667 | Y11: 0.04620833333 | Z11: 0.05020833333 | AA11: 0.05211666667 | AB11: 0.05506666667 | AC11: 0.06228333333 | AE11: 0.039375 | AG11: 0.175958863 | AH11: -0.03869926119 | AI11: -0.065936323 | AJ11: 0.02994235662 | AK11: 0.01194044037 | CK11: 8 | CL11: South Dakota | CM11: 21066.36224
A12: 1968 | B12: 0.07381175923 | C12: 0.04186884446 | E12: 0.1222804728 | Q12: 0.05690833333 | R12: 0.05685 | S12: 0.05698333333 | V12: 0.05454166667 | X12: 0.05338333333 | Y12: 0.05471666667 | Z12: 0.05859166667 | AA12: 0.06003333333 | AB12: 0.06175 | AC12: 0.06935833333 | AE12: 0.04445 | AG12: 0.02124629183 | AH12: 0.01197619105 | AI12: 0.02511432848 | AJ12: 0.04611768209 | AK12: 0.02635584471 | AL12: 0.1549620389 | CK12: 9 | CL12: Missouri | CM12: 19084.58649
A13: 1969 | B13: -0.1206033 | C13: -0.1648026766 | E13: -0.2053851232 | F13: 0 | G13: 0 | H13: 0 | I13: 0 | J13: 0 | Q13: 0.071225 | R13: 0.07016666667 | S13: 0.06933333333 | T13: 0.07145 | U13: 0.06670833333 | V13: 0.06326666667 | X13: 0.06666666667 | Y13: 0.06860833333 | Z13: 0.07760833333 | AA13: 0.078925 | AB13: 0.07029166667 | AC13: 0.07813333333 | AE13: 0.05715 | AG13: 0.06441797385 | AH13: 0.03029054247 | AI13: 0.1309238292 | AJ13: 0.06012739797 | AK13: 0.04796405921 | AL13: -0.155814675 | AM13: 0.1266988022 | AN13: 0.1204177685 | AO13: 0.1899725684 | AP13: 0.05810385969 | AQ13: 0.1669479426 | AR13: 0.0176086967 | AS13: 0.08360148583 | AT13: 0.1005009296 | AU13: 0.05459896311 | AV13: 0.2541531317 | AW13: 0.07222971627 | AX13: 0.1041402374 | AY13: 0.07017407433 | AZ13: 0.1200139477 | BA13: 0.05777212829 | BB13: 0.1412912916 | BC13: 0.09936072212 | BD13: 0.09127345185 | BE13: 0.1223881969 | BF13: 0.1537262089 | BG13: 0.2022587173 | BH13: 0.1710399281 | BI13: 0.05939894788 | BJ13: 0.08003832105 | BK13: 0.1082805734 | BL13: 0.02105338495 | BM13: 0.1494640544 | BN13: 0.1412646304 | BO13: 0.1800346984 | BP13: 0.08752602897 | BQ13: 0.05333621426 | BR13: 0.1067753701 | BS13: 0.1357834581 | BT13: 0.1847404022 | BU13: 0.1161764827 | BV13: 0.1787056707 | BW13: 0.2348818392 | BX13: 0.05559691064 | BY13: 0.1159872686 | BZ13: 0.1460978469 | CA13: 0.1768251559 | CB13: 0.1876128813 | CC13: 0.0863921685 | CK13: 10 | CL13: Montana | CM13: 18118.376
A14: 1970 | B14: 0.0009771457267 | C14: 0.04697990714 | E14: 0.1018930352 | F14: -0.1384395561 | G14: -0.1290792885 | H14: -0.1470604966 | I14: 0.08508128846 | J14: 0.08624606279 | Q14: 0.068975 | R14: 0.07286666667 | S14: 0.07375833333 | T14: 0.07375 | U14: 0.07348333333 | V14: 0.068625 | X14: 0.06391666667 | Y14: 0.06508333333 | Z14: 0.07564166667 | AA14: 0.076575 | AB14: 0.0804 | AC14: 0.09105 | AE14: 0.063275 | AG14: -0.009995539832 | AH14: -0.01356609953 | AI14: -0.07873807605 | AJ14: 0.05420681784 | AK14: 0.02179922834 | AL14: 0.06254620512 | AM14: 0.1097488299 | AN14: 0.1060521362 | AO14: 0.1629785695 | AP14: 0.07155371343 | AQ14: 0.1379460701 | AR14: -0.004439200869 | AS14: 0.05943670442 | AT14: 0.1304695832 | AU14: 0.1223893818 | AV14: 0.1878689063 | AW14: 0.08808879088 | AX14: 0.05036906684 | AY14: 0.04107881972 | AZ14: 0.1015286195 | BA14: 0.001329176628 | BB14: 0.1542481344 | BC14: 0.1250935968 | BD14: 0.1208192947 | BE14: 0.07816165297 | BF14: 0.122905015 | BG14: 0.1724894191 | BH14: 0.1230470855 | BI14: 0.09175586703 | BJ14: 0.05860846403 | BK14: 0.1231372816 | BL14: 0.02015702558 | BM14: 0.1400400672 | BN14: 0.0577744593 | BO14: 0.1291692405 | BP14: 0.1088274974 | BQ14: 0.08145186932 | BR14: 0.09002449468 | BS14: 0.15981832 | BT14: 0.07374913209 | BU14: 0.08995562337 | BV14: 0.1379447897 | BW14: 0.1904775078 | BX14: 0.05359195193 | BY14: 0.1629791144 | BZ14: 0.1094989289 | CA14: 0.1341978507 | CB14: 0.1791165046 | CC14: 0.1084991961 | CK14: 11 | CL14: Oklahoma | CM14: 15229.30568
A15: 1971 | B15: 0.1024370931 | C15: 0.05935464673 | E15: 0.0919563903 | F15: 0.2322552845 | G15: 0.2074955937 | H15: 0.2888054356 | I15: 0.09267711453 | J15: 0.09537322782 | K15: 0 | L15: 0 | M15: 0 | N15: 0 | P15: 0.06594166667 | Q15: 0.0488 | R15: 0.05654166667 | S15: 0.059875 | T15: 0.06178333333 | U15: 0.06159166667 | V15: 0.0612 | X15: 0.043325 | Y15: 0.04511666667 | Z15: 0.05005 | AA15: 0.05216666667 | AB15: 0.07386666667 | AC15: 0.08563333333 | AE15: 0.05474166667 | AF15: 0.07545777778 | AG15: -0.01861976551 | AH15: 0.008742163496 | AI15: 0.01030454083 | AJ15: 0.03214120921 | AK15: 0.03963530686 | AL15: 0.1495614106 | AM15: 0.1091581117 | AN15: 0.1087877483 | AO15: 0.2064302027 | AP15: 0.1102564387 | AQ15: 0.06879618365 | AR15: -0.006600638893 | AS15: 0.108269054 | AT15: 0.1464208735 | AU15: 0.0693063227 | AV15: 0.1866748675 | AW15: 0.09586536053 | AX15: 0.06351478637 | AY15: 0.1025733888 | AZ15: 0.07533600795 | BA15: 0.03848629291 | BB15: 0.1415931358 | BC15: 0.147702301 | BD15: 0.09149423845 | BE15: 0.06691451526 | BF15: 0.09745739715 | BG15: 0.1046338441 | BH15: 0.1412147228 | BI15: 0.07136078949 | BJ15: 0.155010765 | BK15: 0.03905193036 | BL15: 0.06523376785 | BM15: 0.1032690553 | BN15: 0.1737196245 | BO15: 0.1029374472 | BP15: 0.097221239 | BQ15: 0.06656154789 | BR15: 0.1443779226 | BS15: 0.0743837646 | BT15: 0.1208929316 | BU15: 0.09059153813 | BV15: 0.1090196008 | BW15: 0.2072605551 | BX15: 0.1798117528 | BY15: 0.1444305989 | BZ15: 0.06700936374 | CA15: 0.1574391594 | CB15: 0.177738017 | CC15: 0.05663701397 | CK15: 12 | CL15: Indiana | CM15: 13026.85206
A16: 1972 | B16: 0.1452534864 | C16: 0.1361117497 | E16: 0.0837256575 | F16: 0.2872896395 | G16: 0.1107385514 | H16: 0.7046478912 | I16: 0.1327464016 | J16: 0.1248929092 | K16: 0.1060924044 | L16: 0.07705605628 | M16: 0.1148424983 | N16: 0.1060924044 | P16: 0.05424166667 | Q16: 0.0496 | R16: 0.05720833333 | S16: 0.05981666667 | T16: 0.06145 | U16: 0.0621 | V16: 0.0601 | X16: 0.040725 | Y16: 0.04484166667 | Z16: 0.04665833333 | AA16: 0.05015 | AB16: 0.07213333333 | AC16: 0.08155 | AE16: 0.052575 | AF16: 0.07383291667 | AG16: 0.3373225316 | AH16: 0.2733143591 | AI16: 0.2041383693 | AJ16: 0.03349595443 | AK16: 0.06275584503 | AL16: 0.3851747814 | AM16: 0.1387601366 | AN16: 0.1370486513 | AO16: 0.1258137356 | AP16: 0.1515131059 | AQ16: 0.2279538984 | AR16: 0.05821358806 | AS16: 0.1470698246 | AT16: 0.05687735264 | AU16: 0.07891390532 | AV16: 0.222452658 | AW16: 0.1224883401 | AX16: 0.1086404299 | AY16: 0.09677978639 | AZ16: 0.1327739195 | BA16: 0.09224858658 | BB16: 0.1788762742 | BC16: 0.1424294673 | BD16: 0.08146406381 | BE16: 0.1521057867 | BF16: 0.1161171884 | BG16: 0.1262187106 | BH16: 0.1908948803 | BI16: 0.09903159445 | BJ16: 0.2200311643 | BK16: 0.07795161799 | BL16: 0.08167080512 | BM16: 0.1710569851 | BN16: 0.1252077048 | BO16: 0.1220310821 | BP16: 0.1100384399 | BQ16: 0.07874477839 | BR16: 0.1573157986 | BS16: 0.09207565373 | BT16: 0.1826706932 | BU16: 0.1006295744 | BV16: 0.1643964397 | BW16: 0.2302342934 | BX16: 0.1720955702 | BY16: 0.1681288087 | BZ16: 0.1265286524 | CA16: 0.2079797567 | CB16: 0.1548824223 | CC16: 0.1664473641 | CK16: 13 | CL16: Colorado | CM16: 12043.7689
A17: 1973 | B17: -0.1907431965 | C17: -0.1812632934 | E17: -0.1948548814 | F17: -0.184137987 | G17: -0.1175843605 | H17: -0.2571773019 | I17: -0.1935672134 | J17: -0.2074681675 | K17: -0.317683107 | L17: -0.1686453658 | M17: -0.450331187 | N17: -0.317683107 | P17: 0.0925 | Q17: 0.07311666667 | R17: 0.06955 | S17: 0.06866666667 | T17: 0.06858333333 | U17: 0.068425 | V17: 0.07116666667 | X17: 0.07031666667 | Y17: 0.07199166667 | Z17: 0.08415833333 | AA17: 0.08310833333 | AB17: 0.07440833333 | AC17: 0.08240833333 | AE17: 0.05189166667 | AF17: 0.08042916667 | AG17: 0.6019983172 | AH17: 0.3893935544 | AI17: 0.4481091499 | AJ17: 0.08347572216 | AK17: 0.1426141072 | AL17: 0.5129862561 | AM17: 0.1796312919 | AN17: 0.1706871132 | AO17: 0.2014573165 | AP17: 0.08509041731 | AQ17: 0.2063862866 | AR17: 0.04076725849 | AS17: 0.1959697465 | AT17: 0.1632745062 | AU17: 0.1552557762 | AV17: 0.2066613283 | AW17: 0.1468402868 | AX17: 0.1368658079 | AY17: 0.1900765741 | AZ17: 0.194949487 | BA17: 0.1567438058 | BB17: 0.1791042922 | BC17: 0.1143811675 | BD17: 0.1561521693 | BE17: 0.2235713691 | BF17: 0.1813060684 | BG17: 0.2134800474 | BH17: 0.2016648702 | BI17: 0.1340814757 | BJ17: 0.2627835419 | BK17: 0.08823043345 | BL17: 0.1303028212 | BM17: 0.1421496444 | BN17: 0.2019969458 | BO17: 0.1830165392 | BP17: 0.1901384617 | BQ17: 0.1367403672 | BR17: 0.1422100678 | BS17: 0.1799867166 | BT17: 0.1259757231 | BU17: 0.1557284305 | BV17: 0.2004279684 | BW17: 0.240212152 | BX17: 0.1078904366 | BY17: 0.1732047476 | BZ17: 0.2044198196 | CA17: 0.2238060166 | CB17: 0.2556229741 | CC17: 0.1692477767 | CK17: 14 | CL17: Ohio | CM17: 11529.91965
A18: 1974 | B18: -0.3526557928 | C18: -0.3227230267 | E18: -0.2329297932 | F18: -0.2956802201 | G18: -0.3127417421 | H18: -0.2663611359 | I18: -0.3546484354 | J18: -0.3690625293 | K18: -0.5487291122 | L18: -0.2408370031 | M18: -0.6037613313 | N18: -0.5487291122 | P18: 0.110175 | Q18: 0.08181666667 | R18: 0.078225 | S18: 0.07801666667 | T18: 0.07714166667 | U18: 0.075575 | V18: 0.08051666667 | X18: 0.0783 | Y18: 0.07935833333 | Z18: 0.1024416667 | AA18: 0.09975 | AB18: 0.08565833333 | AC18: 0.09496666667 | AE18: 0.06173333333 | AF18: 0.09187041667 | AG18: -0.1576360406 | AH18: 0.01631680205 | AI18: 0.009181026074 | AJ18: 0.1163389921 | AK18: 0.189678395 | AL18: 0.5429704151 | AM18: 0.2703518931 | AN18: 0.2627679223 | AO18: 0.2849165517 | AP18: 0.2182620763 | AQ18: 0.2671413507 | AR18: 0.1246986275 | AS18: 0.2749012313 | AT18: 0.2636837566 | AU18: 0.2807845983 | AV18: 0.3309408292 | AW18: 0.2627221455 | AX18: 0.2967047909 | AY18: 0.2523479103 | AZ18: 0.3281221653 | BA18: 0.2632115026 | BB18: 0.2419417787 | BC18: 0.2149479055 | BD18: 0.1665564775 | BE18: 0.2041514911 | BF18: 0.3095265529 | BG18: 0.3306915824 | BH18: 0.3521593361 | BI18: 0.2584028394 | BJ18: 0.3622585602 | BK18: 0.1714635486 | BL18: 0.2627388122 | BM18: 0.2675886059 | BN18: 0.2281863144 | BO18: 0.3888734632 | BP18: 0.2662665734 | BQ18: 0.1992118401 | BR18: 0.1754356347 | BS18: 0.2528043071 | BT18: 0.2671235911 | BU18: 0.3168996388 | BV18: 0.2524817177 | BW18: 0.3371788685 | BX18: 0.2034627018 | BY18: 0.2903316678 | BZ18: 0.1895974244 | CA18: 0.2934135539 | CB18: 0.2458327726 | CC18: 0.2755197165 | CK18: 15 | CL18: Wisconsin | CM18: 10779.01053
A19: 1975 | B19: 0.2742092819 | C19: 0.3244843141 | E19: 0.2692384649 | F19: 0.2715765755 | G19: 0.3125535246 | H19: 0.205686935 | I19: 0.2465628191 | J19: 0.2662312285 | K19: 0.3099571676 | L19: 0.1764668843 | M19: 0.3420646763 | N19: 0.3099571676 | P19: 0.070175 | Q19: 0.06758333333 | R19: 0.0749 | S19: 0.07765833333 | T19: 0.07895 | U19: 0.079875 | V19: 0.08191666667 | X19: 0.05775 | Y19: 0.06088333333 | Z19: 0.06436666667 | AA19: 0.06889166667 | AB19: 0.08825833333 | AC19: 0.1061 | AE19: 0.07050833333 | AF19: 0.09040541667 | AG19: 0.0007661204886 | AH19: -0.06535624953 | AI19: -0.0990207592 | AJ19: 0.06706423058 | AK19: 0.04103139668 | AL19: -0.2766987364 | AM19: 0.1870623565 | AN19: 0.1742220482 | AO19: 0.1629268733 | AP19: 0.0372239432 | AQ19: 0.1150097587 | AR19: 0.1497372173 | AS19: 0.1018160092 | AT19: 0.2108298913 | AU19: 0.1284886802 | AV19: 0.190869103 | AW19: 0.2040634183 | AX19: 0.2214929493 | AY19: 0.2750290151 | AZ19: 0.2727700604 | BA19: 0.1814380305 | BB19: 0.179687587 | BC19: 0.1508050814 | BD19: 0.09542798697 | BE19: 0.1037516818 | BF19: 0.3221954289 | BG19: 0.2050514866 | BH19: 0.1178131383 | BI19: 0.1795649147 | BJ19: 0.2928237296 | BK19: 0.1356832518 | BL19: 0.06408899274 | BM19: 0.1765126312 | BN19: 0.1165726614 | BO19: 0.3904883309 | BP19: 0.1724167174 | BQ19: 0.1553701049 | BR19: 0.1090346412 | BS19: 0.1861212717 | BT19: 0.1576260082 | BU19: 0.2758963597 | BV19: 0.1835347577 | BW19: 0.1270715145 | BX19: 0.1069061001 | BY19: 0.1518819006 | BZ19: 0.197560056 | CA19: 0.1807849758 | CB19: 0.1882002971 | CC19: 0.1685374186 | CK19: 16 | CL19: California | CM19: 10655.108
A20: 1976 | B20: 0.1752001291 | C20: 0.1643883682 | E20: 0.03541166189 | F20: -0.003589133916 | G20: -0.1147640679 | H20: 0.1683777116 | I20: 0.1475152382 | J20: 0.1713480082 | K20: 0.3985998253 | L20: 0.38925884 | M20: 0.4168248235 | N20: 0.3985998253 | P20: 0.05575 | Q20: 0.05874166667 | R20: 0.06770833333 | S20: 0.07179166667 | T20: 0.07423333333 | U20: 0.07611666667 | V20: 0.07863333333 | X20: 0.04974166667 | Y20: 0.052525 | Z20: 0.05268333333 | AA20: 0.05624166667 | AB20: 0.08434166667 | AC20: 0.09746666667 | AE20: 0.06641666667 | AF20: 0.08864333333 | AG20: 0.28887265 | AH20: 0.06927206462 | AI20: 0.06973608966 | AJ20: 0.04750233399 | AK20: 0.04583453634 | AL20: -0.03926718237 | AM20: 0.2111286837 | AN20: 0.2048960305 | AO20: 0.2172571094 | AP20: 0.1230038929 | AQ20: 0.2042662427 | AR20: 0.09960155916 | AS20: 0.1834649833 | AT20: 0.1665762785 | AU20: 0.1213254084 | AV20: 0.1439562764 | AW20: 0.1675446644 | AX20: 0.28610106 | AY20: 0.2839144025 | AZ20: 0.3213233247 | BA20: 0.2877282241 | BB20: 0.2527676622 | BC20: 0.1698566535 | BD20: 0.2041487536 | BE20: 0.1410524939 | BF20: 0.2901498048 | BG20: 0.1669129949 | BH20: 0.2227467192 | BI20: 0.2056282927 | BJ20: 0.3770025405 | BK20: 0.154461899 | BL20: 0.09567908046 | BM20: 0.1215163642 | BN20: 0.1774739839 | BO20: 0.2811764145 | BP20: 0.234330757 | BQ20: 0.1506125806 | BR20: 0.206047329 | BS20: 0.1300237778 | BT20: 0.1464288457 | BU20: 0.1974455276 | BV20: 0.1831545811 | BW20: 0.25115462 | BX20: 0.2010013994 | BY20: 0.1731741214 | BZ20: 0.2950571098 | CA20: 0.3148569512 | CB20: 0.2123502946 | CC20: 0.2384622706 | CK20: 17 | CL20: Arkansas | CM20: 9645.228594
A21: 1977 | B21: -0.1221897157 | C21: -0.1895738287 | E21: -0.1158649975 | F21: 0.1363951932 | G21: 0.1624555896 | H21: 0.1008632386 | I21: -0.1200760887 | J21: -0.1301444733 | K21: 0.1745958342 | L21: 0.2023221386 | M21: 0.1640251064 | N21: 0.1745958342 | P21: 0.06008333333 | Q21: 0.06088333333 | R21: 0.06685833333 | S21: 0.0699 | T21: 0.0723 | U21: 0.07419166667 | V21: 0.07670833333 | W21: 0.07749090909 | X21: 0.05269166667 | Y21: 0.055275 | Z21: 0.05640833333 | AA21: 0.05919166667 | AB21: 0.08024166667 | AC21: 0.08969166667 | AE21: 0.056825 | AF21: 0.08841666667 | AG21: -0.09873905014 | AH21: -0.02172925 | AI21: 0.05445816697 | AJ21: 0.0648606342 | AK21: 0.0575139062 | AL21: 0.1797623976 | AM21: 0.2268338158 | AN21: 0.2073877787 | AO21: 0.1787409466 | AP21: 0.1520170417 | AQ21: 0.1984186429 | AR21: 0.08000686008 | AS21: 0.1873763164 | AT21: 0.1452039859 | AU21: 0.1408595241 | AV21: 0.2078860452 | AW21: 0.2002495423 | AX21: 0.3677833975 | AY21: 0.3588473643 | AZ21: 0.377984589 | BA21: 0.2708975502 | BB21: 0.2546561987 | BC21: 0.2085799962 | BD21: 0.07380672044 | BE21: 0.2886964786 | BF21: 0.3105388436 | BG21: 0.2070663414 | BH21: 0.2616122874 | BI21: 0.1852310299 | BJ21: 0.2664294245 | BK21: 0.05295855606 | BL21: 0.1590612802 | BM21: 0.10068348 | BN21: 0.1633632524 | BO21: 0.2271792726 | BP21: 0.3101051305 | BQ21: 0.1506170196 | BR21: 0.1962780712 | BS21: 0.2099789724 | BT21: 0.1985519863 | BU21: 0.2500124463 | BV21: 0.2136290767 | BW21: 0.2004971018 | BX21: 0.1903898513 | BY21: 0.1523987362 | BZ21: 0.2715130129 | CA21: 0.1210611431 | CB21: 0.2605651537 | CC21: 0.151166256 | CK21: 18 | CL21: Kentucky | CM21: 8352.847159
A22: 1978 | B22: 0.01056439928 | C22: -0.03202816237 | E22: 0.1250111434 | F22: 0.2539749632 | G22: 0.1624740613 | H22: 0.3720107078 | I22: 0.05906774693 | J22: 0.004049219051 | K22: -0.01654129523 | L22: 0.09835575791 | M22: -0.10502056 | N22: -0.01654129523 | P22: 0.087325 | Q22: 0.0834 | R22: 0.08289166667 | S22: 0.083175 | T22: 0.08356666667 | U22: 0.0841 | V22: 0.08484166667 | W22: 0.08485 | X22: 0.07188333333 | Y22: 0.07583333333 | Z22: 0.08221666667 | AA22: 0.08614166667 | AB22: 0.08725 | AC22: 0.09488333333 | AE22: 0.06024166667 | AF22: 0.09632458333 | AG22: 0.05122293379 | AH22: 0.1277734596 | AI22: 0.1604295061 | AJ22: 0.08634019098 | AK22: 0.0936609216 | AL22: 0.2588456761 | AM22: 0.1758968978 | AN22: 0.1640936688 | AO22: 0.1604805662 | AP22: 0.1392066454 | AQ22: 0.1811591147 | AR22: 0.2081352796 | AS22: 0.0958865693 | AT22: 0.1079517401 | AU22: 0.1463677326 | AV22: 0.2206048192 | AW22: 0.1646121459 | AX22: 0.1559494007 | AY22: 0.1915095434 | AZ22: 0.117712128 | BA22: 0.1504544484 | BB22: 0.2042422861 | BC22: 0.2555268703 | BD22: 0.1703921111 | BE22: 0.1550437761 | BF22: 0.1903270103 | BG22: 0.2787472426 | BH22: 0.2297618474 | BI22: 0.1413192733 | BJ22: 0.1014093738 | BK22: 0.07998553469 | BL22: 0.1018465703 | BM22: 0.06046345217 | BN22: 0.1303053923 | BO22: 0.1601220166 | BP22: 0.1575020938 | BQ22: 0.1509621089 | BR22: 0.2378310083 | BS22: 0.1326152323 | BT22: 0.1281693637 | BU22: 0.2225393788 | BV22: 0.2242860108 | BW22: 0.2209274666 | BX22: 0.1415935877 | BY22: 0.1430891631 | BZ22: 0.1895948926 | CA22: 0.09862239888 | CB22: 0.2492130843 | CC22: 0.1313717423 | CK22: 19 | CL22: Michigan | CM22: 8059.588332
A23: 1979 | B23: 0.1160821484 | C23: 0.04101079657 | E23: 0.1585567842 | F23: 0.01797297956 | G23: 0.08050026888 | H23: -0.05967192106 | I23: 0.16424108 | J23: 0.0783914563 | K23: 0.2664025584 | L23: 0.3064367636 | M23: 0.1532612333 | N23: 0.2664025584 | P23: 0.1196333333 | Q23: 0.10665 | R23: 0.09715 | S23: 0.09518333333 | T23: 0.09478333333 | U23: 0.094425 | V23: 0.09330833333 | W23: 0.092925 | X23: 0.1006916667 | Y23: 0.100575 | Z23: 0.11225 | AA23: 0.1143833333 | AB23: 0.09629166667 | AC23: 0.1069 | AE23: 0.06516666667 | AF23: 0.1119175 | AG23: 0.1285390048 | AH23: 0.2125427453 | AI23: 0.1385626618 | AJ23: 0.1248155285 | AK23: 0.1373069248 | AL23: 0.9022499553 | AM23: 0.2156190569 | AN23: 0.2150693385 | AO23: 0.2474550378 | AP23: 0.2863817407 | AQ23: 0.2977599939 | AR23: 0.2840471606 | AS23: 0.1970119946 | AT23: 0.135426245 | AU23: 0.1747653055 | AV23: 0.1848028206 | AW23: 0.1668798189 | AX23: 0.1781689994 | AY23: 0.2105028685 | AZ23: 0.209422174 | BA23: 0.2781800373 | BB23: 0.2376598368 | BC23: 0.2484277244 | BD23: 0.150965671 | BE23: 0.1407639469 | BF23: 0.2289752686 | BG23: 0.2490742312 | BH23: 0.1980918469 | BI23: 0.1345825126 | BJ23: 0.3405340098 | BK23: 0.1284005913 | BL23: 0.2431620282 | BM23: 0.1497610565 | BN23: 0.2705547099 | BO23: 0.2135834735 | BP23: 0.2385247111 | BQ23: 0.1472512378 | BR23: 0.2447347143 | BS23: 0.1492785749 | BT23: 0.2122346128 | BU23: 0.1824283544 | BV23: 0.201956796 | BW23: 0.2329601904 | BX23: 0.2756140598 | BY23: 0.2170284635 | BZ23: 0.2116004634 | CA23: 0.2757215938 | CB23: 0.2330414863 | CC23: 0.2101265161 | CK23: 20 | CL23: Washington | CM23: 7982.799953
A24: 1980 | B24: 0.2293131037 | C24: 0.1392382206 | E24: 0.1239813056 | F24: 0.1740642491 | G24: 0.07266921708 | H24: 0.2874969512 | I24: 0.2009861458 | J24: 0.2076573278 | K24: 0.2470120763 | L24: 0.2180837879 | M24: 0.1552742204 | N24: 0.2470120763 | P24: 0.1404 | Q24: 0.1204833333 | R24: 0.1154833333 | S24: 0.1147833333 | T24: 0.114325 | U24: 0.1146 | V24: 0.1138666667 | W24: 0.1129833333 | X24: 0.1143416667 | Y24: 0.1136416667 | Z24: 0.1306666667 | AA24: 0.129925 | AB24: 0.1193833333 | AC24: 0.1366833333 | AE24: 0.08594166667 | AF24: 0.137695 | AG24: 0.006912334945 | AH24: 0.09158939577 | AI24: -0.01401073707 | AJ24: 0.1179278897 | AK24: 0.1175165466 | AL24: 0.1413740932 | AM24: 0.2035646988 | AN24: 0.2051007111 | AO24: 0.2491800636 | AP24: 0.3250391014 | AQ24: 0.2306217986 | AR24: 0.2067863628 | AS24: 0.2162408826 | AT24: 0.2099584546 | AU24: 0.1966816721 | AV24: 0.1914367975 | AW24: 0.2162843057 | AX24: 0.1377062284 | AY24: 0.2089910806 | AZ24: 0.2237830069 | BA24: 0.2444107514 | BB24: 0.1762376503 | BC24: 0.2700703308 | BD24: 0.2346673426 | BE24: 0.1668141264 | BF24: 0.2407726008 | BG24: 0.2433661034 | BH24: 0.2858144467 | BI24: 0.2086785533 | BJ24: 0.2787462097 | BK24: 0.09121188403 | BL24: 0.256695995 | BM24: 0.110404962 | BN24: 0.1788462035 | BO24: 0.2183600899 | BP24: 0.1966943598 | BQ24: 0.2001981845 | BR24: 0.2004888823 | BS24: 0.1563851472 | BT24: 0.188951133 | BU24: 0.1907310502 | BV24: 0.1705484778 | BW24: 0.2179848636 | BX24: 0.2961710293 | BY24: 0.1340144902 | BZ24: 0.1348642506 | CA24: 0.1445401874 | CB24: 0.2119264272 | CC24: 0.1478236663 | CK24: 21 | CL24: Tennessee | CM24: 7084.127212
A25: 1981 | B25: -0.102369511 | C25: -0.09686740825 | E25: -0.06796465658 | F25: -0.04970149596 | G25: -0.1718788895 | H25: 0.05858800665 | I25: -0.1064424741 | J25: -0.09763248195 | K25: 0.08227683944 | L25: 0.05827654452 | M25: 0.06831957114 | N25: 0.08227683944 | P25: 0.1678833333 | Q25: 0.1477833333 | R25: 0.1443916667 | S25: 0.1423583333 | T25: 0.1406083333 | U25: 0.1391083333 | V25: 0.1371833333 | W25: 0.1344166667 | X25: 0.14025 | Y25: 0.1379916667 | Z25: 0.1591083333 | AA25: 0.157725 | AB25: 0.1417083333 | AC25: 0.1604416667 | AE25: 0.1132666667 | AF25: 0.16634625 | AG25: -0.05940674143 | AH25: -0.190850532 | AI25: -0.1257512053 | AJ25: 0.08546518418 | AK25: 0.05193274874 | AL25: -0.3945037842 | AM25: 0.1563509658 | AN25: 0.1416531532 | AO25: 0.1971966982 | AP25: 0.1035573797 | AQ25: 0.1884026582 | AR25: 0.2203404877 | AS25: 0.1471811227 | AT25: 0.1006073664 | AU25: 0.1359776388 | AV25: 0.1253480561 | AW25: 0.1434964825 | AX25: 0.1128602057 | AY25: 0.1350195889 | AZ25: 0.1338452255 | BA25: 0.138613364 | BB25: 0.1090417721 | BC25: 0.1832455083 | BD25: 0.1390204045 | BE25: 0.1798730392 | BF25: 0.2150885462 | BG25: 0.2834871866 | BH25: 0.1577591079 | BI25: 0.09348178149 | BJ25: 0.2218678076 | BK25: 0.03564097401 | BL25: 0.03640871095 | BM25: 0.1087818506 | BN25: 0.1269769466 | BO25: 0.1354959876 | BP25: 0.1000819949 | BQ25: 0.1222815471 | BR25: 0.1773992422 | BS25: 0.08406316955 | BT25: 0.1133959649 | BU25: 0.1764380545 | BV25: 0.1318734923 | BW25: 0.1640042277 | BX25: 0.08227253893 | BY25: 0.118465332 | BZ25: 0.249045353 | CA25: 0.04570366764 | CB25: 0.1861974305 | CC25: 0.147941367 | CK25: 22 | CL25: Idaho | CM25: 6408.178301
A26: 1982 | B26: 0.137684324 | C26: 0.1789826555 | E26: 0.1880950222 | F26: -0.04738906566 | G26: 0.0002331274052 | H26: -0.0880768795 | I26: 0.1225994307 | J26: 0.1408956448 | K26: 0.2749308599 | L26: 0.1955741978 | M26: 0.3963790202 | N26: 0.2749308599 | P26: 0.1312083333 | Q26: 0.12275 | R26: 0.1292166667 | S26: 0.1300583333 | T26: 0.1305666667 | U26: 0.1300166667 | V26: 0.1291666667 | W26: 0.1276166667 | X26: 0.1061416667 | Y26: 0.1106583333 | Z26: 0.1227083333 | AA26: 0.1257166667 | AB26: 0.137875 | AC26: 0.1611333333 | AE26: 0.1165916667 | AF26: 0.1609020833 | AG26: -0.02122477548 | AH26: -0.08555019602 | AI26: -0.09475033655 | AJ26: 0.03758271115 | AK26: 0.01706012275 | AL26: 0.1392696145 | AM26: 0.05193282515 | AN26: 0.04909368703 | AO26: 0.016044351 | AP26: 0.08329304748 | AQ26: 0.08661923242 | AR26: 0.1171608928 | AS26: 0.07128876105 | AT26: -0.04358858145 | AU26: -0.01890186043 | AV26: -0.003742743504 | AW26: 0.1201483494 | AX26: -0.02785859109 | AY26: -0.06564888375 | AZ26: 0.0003825288853 | BA26: 0.09753550811 | BB26: 0.07612206058 | BC26: 0.009574505423 | BD26: -0.04354128069 | BE26: 0.0270350187 | BF26: 0.04474298098 | BG26: 0.00194637595 | BH26: 0.02304819085 | BI26: 0.1046883573 | BJ26: 0.08812298501 | BK26: 0.05021934693 | BL26: 0.01452024005 | BM26: 0.09727653278 | BN26: 0.002961962909 | BO26: 0.1044483889 | BP26: -0.06736782745 | BQ26: 0.1339694147 | BR26: 0.1012872494 | BS26: -0.01816092998 | BT26: 0.04187849035 | BU26: 0.1169045081 | BV26: 0.01551810729 | BW26: 0.221912936 | BX26: 0.05287735875 | BY26: 0.01573938362 | BZ26: 0.1237451636 | CA26: 0.08917412616 | CB26: 0.0453074954 | CC26: 0.1061580157 | CK26: 23 | CL26: Mississippi | CM26: 6063.434162
A27: 1983 | B27: 0.1593177075 | C27: 0.1845487292 | E27: 0.1188527451 | F27: 0.1899067955 | G27: 0.1597957222 | H27: 0.2151499621 | I27: 0.1616373812 | J27: 0.1536500487 | K27: 0.2268874719 | L27: 0.2672465556 | M27: 0.1561192329 | N27: 0.2268874719 | P27: 0.09560833333 | Q27: 0.095725 | R27: 0.1044666667 | S27: 0.1079583333 | T27: 0.1102 | U27: 0.11105 | V27: 0.113425 | W27: 0.1117833333 | X27: 0.08610833333 | Y27: 0.087325 | Z27: 0.09066666667 | AA27: 0.09270833333 | AB27: 0.1204166667 | AC27: 0.1355416667 | AE27: 0.09505833333 | AF27: 0.13226875 | AG27: 0.2234092883 | AH27: 0.1708601133 | AI27: 0.200190849 | AJ27: 0.03720891784 | AK27: 0.01775194546 | AL27: -0.1779973674 | AM27: 0.01362636676 | AN27: 0.007602777249 | AO27: -0.01971112314 | AP27: -0.0119713935 | AQ27: -0.06932264276 | AR27: 0.03352291596 | AS27: 0.03873708097 | AT27: 0.05352114459 | AU27: 0.04765078551 | AV27: 0.04887257618 | AW27: 0.008567708464 | AX27: -0.04276376435 | AY27: -0.05807273458 | AZ27: -0.05225474981 | BA27: 0.04142037725 | BB27: 0.04252573139 | BC27: -0.006967940824 | BD27: -0.09286463693 | BE27: -0.006226628254 | BF27: -0.03309755161 | BG27: -0.03763307586 | BH27: -0.02356007765 | BI27: -0.01771087488 | BJ27: 0.04423369834 | BK27: -0.008397784746 | BL27: -0.09235230529 | BM27: 0.02824322102 | BN27: 0.04518448761 | BO27: 0.02684542995 | BP27: -0.02602677716 | BQ27: 0.0352744374 | BR27: 0.04679826635 | BS27: 0.02048913083 | BT27: -6.978639406e-05 | BU27: 0.05548251922 | BV27: 0.0133099283 | BW27: 0.08534408692 | BX27: -0.03619796715 | BY27: 0.05769834146 | BZ27: 0.08506072894 | CA27: -0.01435148888 | CB27: 0.02413022509 | CC27: 0.07835434923 | CK27: 24 | CL27: Louisiana | CM27: 5337.786908
A28: 1984 | B28: 0.01390876503 | C28: -0.03805819194 | E28: 0.09529105746 | F28: 0.04898313685 | G28: -0.02807249013 | H28: 0.110348996 | I28: 0.001187413557 | J28: 0.01004969659 | K28: 0.1381547347 | L28: 0.1900191517 | M28: 0.07012755509 | N28: 0.1381547347 | P28: 0.107325 | Q28: 0.108875 | R28: 0.118925 | S28: 0.1224083333 | T28: 0.1240333333 | U28: 0.1243833333 | V28: 0.1247666667 | W28: 0.1239166667 | X28: 0.095225 | Y28: 0.09755833333 | Z28: 0.10365 | AA28: 0.1067583333 | AB28: 0.1270916667 | AC28: 0.1419 | AE28: 0.1010083333 | AF28: 0.13869375 | AG28: -0.03449683083 | AH28: -0.128193667 | AI28: -0.07704743796 | AJ28: 0.03872700789 | AK28: 0.01166193975 | AL28: -0.2153938463 | AM28: 0.07585053086 | AN28: 0.07440967659 | AO28: 0.03700526158 | AP28: 0.1919688323 | AQ28: 0.0462000613 | AR28: 0.07522005986 | AS28: 0.1460589476 | AT28: 0.04052759879 | AU28: 0.06105780193 | AV28: 0.03445066912 | AW28: 0.08413552702 | AX28: 0.05989293163 | AY28: 0.07896242486 | AZ28: -0.03425320195 | BA28: 0.08080444047 | BB28: 0.03157110104 | BC28: 0.09538399903 | BD28: 0.07593279245 | BE28: 0.06043889463 | BF28: 0.02456703082 | BG28: 0.1136881339 | BH28: 0.09418481401 | BI28: 0.1751062746 | BJ28: 0.01654801752 | BK28: -0.05505058225 | BL28: 0.1505392368 | BM28: 0.07254851614 | BN28: 0.1123666782 | BO28: 0.07878252633 | BP28: 0.04555607718 | BQ28: 0.09831095902 | BR28: 0.121388213 | BS28: 0.0632182494 | BT28: 0.01426442349 | BU28: 0.09646587405 | BV28: 0.05059492521 | BW28: 0.1835413894 | BX28: 0.04901944549 | BY28: 0.02974853719 | BZ28: 0.1485057273 | CA28: 0.04724641076 | CB28: 0.04516612617 | CC28: 0.1091315949 | CK28: 25 | CL28: Oregon | CM28: 5310.741662
A29: 1985 | B29: 0.2337543615 | C29: 0.2441818289 | D29: 0.2737243297 | E29: 0.1631062356 | F29: 0.4250651192 | G29: 0.5498970064 | H29: 0.3181310461 | I29: 0.2320549024 | J29: 0.2408953112 | K29: 0.05751321001 | L29: 0.1747626707 | M29: -0.05344782244 | N29: 0.05751321001 | P29: 0.08279166667 | Q29: 0.08425833333 | R29: 0.096425 | S29: 0.1012916667 | T29: 0.1050916667 | U29: 0.1062333333 | V29: 0.1097166667 | W29: 0.1078916667 | X29: 0.07479166667 | Y29: 0.07651666667 | Z29: 0.080475 | AA29: 0.08245833333 | AB29: 0.1137333333 | AC29: 0.12715 | AE29: 0.09104166667 | AF29: 0.1242325 | AG29: -0.07520868773 | AH29: -0.06265114147 | AI29: -0.08306047584 | AJ29: 0.03728297604 | AK29: 0.00096571712 | AL29: 0.05827502809 | AM29: -0.05847636421 | AN29: -0.05063820459 | AO29: 0.006196643653 | AP29: 0.06644667137 | AQ29: -0.001629915246 | AR29: -0.02966888935 | AS29: 0.06903831721 | AT29: -0.1027861445 | AU29: -0.001955020087 | AV29: 0.002304285286 | AW29: 0.01133923647 | AX29: -0.2216646981 | AY29: -0.140137892 | AZ29: -0.2465124553 | BA29: -0.09897410515 | BB29: -0.03462563641 | BC29: 0.02176429232 | BD29: 0.008132790917 | BE29: -0.08840284372 | BF29: -0.1688753401 | BG29: -0.05047357897 | BH29: -0.1625779859 | BI29: 0.02969199787 | BJ29: -0.1796626203 | BK29: -0.0001342380755 | BL29: 0.0220068543 | BM29: 0.0004120769261 | BN29: -0.04240892986 | BO29: -0.1104490745 | BP29: -0.1571652523 | BQ29: -0.1190999976 | BR29: -0.02978223999 | BS29: -0.09354191531 | BT29: 0.004633137757 | BU29: -0.1632810987 | BV29: -0.04203703694 | BW29: 0.1752644839 | BX29: -0.06753772384 | BY29: 0.01914503448 | BZ29: 0.07712851829 | CA29: -0.1137686569 | CB29: -0.1006020151 | CC29: -0.02191542481 | CK29: 26 | CL29: North Carolina | CM29: 5198.76697
A30: 1986 | B30: 0.1364556909 | C30: 0.2036227748 | D30: 0.07098124936 | E30: 0.2454776263 | F30: 0.511622832 | G30: 0.3383512775 | H30: 0.6514721589 | I30: 0.1237890001 | J30: 0.1258797111 | K30: 0.1754299391 | L30: 0.175277856 | M30: 0.1757534503 | N30: 0.1754299391 | O30: 0.06770833333 | P30: 0.067075 | Q30: 0.064625 | R30: 0.07064166667 | S30: 0.07310833333 | T30: 0.07553333333 | U30: 0.076825 | V30: 0.0785 | W30: 0.07798333333 | X30: 0.05978333333 | Y30: 0.0603 | Z30: 0.06518333333 | AA30: 0.065075 | AB30: 0.09020833333 | AC30: 0.1039083333 | AE30: 0.07318333333 | AF30: 0.1017783333 | AG30: -0.07820885423 | AH30: -0.09266729609 | AI30: -0.03600156557 | AJ30: 0.01091912578 | AK30: -0.03837165286 | AL30: 0.1735881005 | AM30: -0.03070606621 | AN30: -0.02445803511 | AO30: 0.04711454891 | AP30: 0.03699430598 | AQ30: -0.08714805779 | AR30: -0.02317096687 | AS30: -0.0639834699 | AT30: 0.08936485503 | AU30: -0.004271779578 | AV30: 0.0006536193442 | AW30: -0.06476154001 | AX30: -0.04584552257 | AY30: -0.07729461981 | AZ30: -0.134724616 | BA30: -0.04851217315 | BB30: 0.03338050371 | BC30: -0.126871104 | BD30: -0.05954549857 | BE30: -0.05446283301 | BF30: -0.189134419 | BG30: -0.04328391761 | BH30: 0.01649700523 | BI30: 0.1062388099 | BJ30: -0.03925720948 | BK30: 0.01822031712 | BL30: -0.06001529877 | BM30: 0.05231852593 | BN30: -0.03089498077 | BO30: -0.03774606535 | BP30: -0.01207852238 | BQ30: -0.06547195477 | BR30: 0.0290978124 | BS30: -0.05393412516 | BT30: 0.002337912465 | BU30: -0.01738813521 | BV30: 0.0314039225 | BW30: -0.1033900386 | BX30: -0.03262580401 | BY30: 0.08738585168 | BZ30: 0.001091061851 | CA30: 0.04070791369 | CB30: -0.06414972902 | CC30: -0.05562402373 | CK30: 27 | CL30: Pennsylvania | CM30: 5124.547013
A31: 1987 | B31: 0.02007221196 | C31: 0.02232282116 | D31: -0.05389203274 | E31: -0.07984940375 | F31: 0.2085141386 | G31: 0.01416095664 | H31: 0.3282277306 | I31: 0.01305819932 | J31: 0.006077451319 | K31: -0.1128166539 | L31: -0.03707729207 | M31: -0.1703955315 | N31: -0.1128166539 | O31: 0.07223958333 | P31: 0.07060833333 | Q31: 0.06764166667 | R31: 0.07668333333 | S31: 0.07935 | T31: 0.082175 | U31: 0.08384166667 | V31: 0.08620290847 | W31: 0.0858 | X31: 0.05775 | Y31: 0.0603 | Z31: 0.06860833333 | AA31: 0.069975 | AB31: 0.09375833333 | AC31: 0.1057583333 | AE31: 0.07639166667 | AF31: 0.1019441667 | AG31: 0.06421783946 | AH31: 0.1063501248 | AI31: 0.1229812564 | AJ31: 0.04338883312 | AK31: 0.04414645235 | AL31: 0.2193550335 | AM31: 0.001830744648 | AN31: 0.01474660018 | AO31: 0.01729663985 | AP31: 0.1996099374 | AQ31: -0.00939067105 | AR31: -0.06198479917 | AS31: 0.1398759134 | AT31: 0.02955278119 | AU31: 0.07774340741 | AV31: 0.07559231113 | AW31: -0.03755598223 | AX31: -0.01100603618 | AY31: -0.03199866371 | AZ31: -0.01636191389 | BA31: 0.02322794419 | BB31: -0.01868934208 | BC31: -0.2159583204 | BD31: 0.01367836889 | BE31: -0.06299671917 | BF31: -0.09749484085 | BG31: -0.07619069182 | BH31: 0.003330536683 | BI31: -0.02509537382 | BJ31: 0.07020920854 | BK31: 0.2203732239 | BL31: 0.0392733704 | BM31: 0.1547569719 | BN31: 0.02724964609 | BO31: -0.02123453339 | BP31: 0.01557428615 | BQ31: -0.01406717146 | BR31: 0.04760577879 | BS31: 0.1587755228 | BT31: -0.06148461103 | BU31: -0.04808662565 | BV31: 0.0340448124 | BW31: -0.02657334922 | BX31: -0.01615805831 | BY31: 0.007844119178 | BZ31: -0.001408209974 | CA31: 0.05893621833 | CB31: -0.01845002569 | CC31: 0.06224554806 | CJ31: 0.2651116041 | CK31: 28 | CL31: Georgia | CM31: 5044.659304
A32: 1988 | B32: 0.1169012411 | C32: 0.1120125731 | D32: 0.1432420339 | E32: 0.1450608968 | F32: 0.2363505605 | G32: 0.1198711512 | H32: 0.2941768217 | I32: 0.1117252748 | J32: 0.1100571975 | K32: 0.1075568111 | L32: 0.1265042596 | M32: 0.07048869455 | N32: 0.1075568111 | O32: 0.08044270833 | P32: 0.078525 | Q32: 0.076525 | R32: 0.08256666667 | S32: 0.08471666667 | T32: 0.08708333333 | U32: 0.08845833333 | V32: 0.09021896238 | W32: 0.08959166667 | X32: 0.066675 | Y32: 0.06913333333 | Z32: 0.077275 | AA32: 0.079025 | AB32: 0.0971 | AC32: 0.1083 | AE32: 0.0768 | AF32: 0.1033425 | AG32: 0.1248093306 | AH32: 0.07973500773 | AI32: 0.09643266642 | AJ32: 0.04324539886 | AK32: 0.04503575291 | AL32: -0.165524767 | AM32: 0.115909579 | AN32: 0.1094001542 | AO32: 0.05869601228 | AP32: 0.05923709623 | AQ32: 0.1191249502 | AR32: 0.06033145931 | AS32: 0.1299705127 | AT32: 0.07769525385 | AU32: 0.1426389619 | AV32: 0.07481535515 | AW32: 0.1451482209 | AX32: 0.1504424098 | AY32: 0.1450982601 | AZ32: 0.2659551153 | BA32: 0.2068240416 | BB32: 0.06942078612 | BC32: 0.07024256435 | BD32: 0.1364564962 | BE32: 0.07615425908 | BF32: 0.2418572771 | BG32: 0.07622168181 | BH32: 0.1368332981 | BI32: 0.1499075669 | BJ32: 0.2334473583 | BK32: 0.0664147899 | BL32: 0.2084539661 | BM32: 0.05675921136 | BN32: 0.0269119273 | BO32: 0.124863694 | BP32: 0.1371260326 | BQ32: 0.07840933791 | BR32: 0.09351724205 | BS32: 0.04024674471 | BT32: 0.125677125 | BU32: 0.1850660887 | BV32: 0.1043360995 | BW32: 0.05454052653 | BX32: -0.01938898922 | BY32: 0.06448183505 | BZ32: 0.07591604581 | CA32: 0.1020542821 | CB32: 0.113801651 | CC32: 0.01969977269 | CJ32: 0.3012322579 | CK32: 29 | CL32: New York | CM32: 4494.422
A33: 1989 | B33: 0.240987148 | C33: 0.2386820735 | D33: 0.1760090687 | E33: 0.08547917512 | F33: 0.0881971791 | G33: 0.2263484862 | H33: 0.01927991262 | I33: 0.234899728 | J33: 0.2383494926 | K33: -0.01830215168 | L33: 0.08472912909 | M33: -0.173214429 | N33: -0.01830215168 | O33: 0.0925525 | P33: 0.09161666667 | Q33: 0.08535 | R33: 0.085575 | S33: 0.08504166667 | T33: 0.08520833333 | U33: 0.08498333333 | V33: 0.08483640651 | W33: 0.08449166667 | X33: 0.08111666667 | Y33: 0.08030833333 | Z33: 0.09085 | AA33: 0.09080833333 | AB33: 0.092575 | AC33: 0.101775 | AE33: 0.0723 | AF33: 0.1032316667 | AG33: -0.09368367859 | AH33: -0.09097934192 | AI33: -0.08721920906 | AJ33: 0.04542549004 | AK33: 0.03603993648 | AL33: -0.02880832219 | AM33: 0.1217619694 | AN33: 0.1216543352 | AO33: 0.09474128037 | AP33: 0.1252941863 | AQ33: 0.1191723255 | AR33: 0.147650691 | AS33: 0.1509431675 | AT33: 0.168737357 | AU33: 0.08267372269 | AV33: 0.1511893797 | AW33: 0.1472901402 | AX33: 0.1518153931 | AY33: 0.133018234 | AZ33: 0.2218353878 | BA33: 0.1552748636 | BB33: 0.07277643541 | BC33: 0.08082636329 | BD33: 0.131844756 | BE33: 0.03896448374 | BF33: 0.1352467421 | BG33: 0.09247861027 | BH33: 0.1471356612 | BI33: 0.151295937 | BJ33: 0.2177967406 | BK33: 0.2239137589 | BL33: 0.08750652792 | BM33: 0.07873261986 | BN33: 0.1020008603 | BO33: 0.0687519602 | BP33: 0.1275397696 | BQ33: 0.1438480972 | BR33: 0.08365461668 | BS33: 0.2171652272 | BT33: 0.1585005164 | BU33: 0.07585390834 | BV33: 0.07110350653 | BW33: 0.03082709278 | BX33: 0.04353442661 | BY33: 0.1773955008 | BZ33: 0.1467314762 | CA33: 0.1003038166 | CB33: 0.08065282748 | CC33: 0.05180937582 | CJ33: 0.3735473077 | CK33: 30 | CL33: Virginia | CM33: 4167.674
A34: 1990 | B34: -0.06784146088 | C34: -0.04437416992 | D34: -0.1961368669 | E34: 0.0330061393 | F34: -0.2837642962 | G34: -0.06678301827 | H34: -0.4300922633 | I34: -0.06601134468 | J34: -0.05755845693 | K34: -0.1904956778 | L34: -0.1666655379 | M34: -0.2029481289 | N34: -0.1904956778 | O34: 0.08293083333 | P34: 0.08164166667 | Q34: 0.078825 | R34: 0.08254166667 | S34: 0.0837 | T34: 0.08516666667 | U34: 0.0855 | V34: 0.08663037273 | W34: 0.08608333333 | X34: 0.07493333333 | Y34: 0.07453333333 | Z34: 0.081475 | AA34: 0.08170833333 | AB34: 0.09321666667 | AC34: 0.10355 | AE34: 0.07274166667 | AF34: 0.1012883333 | AG34: -0.0552986402 | AH34: -0.03221879756 | AI34: -0.009523330703 | AJ34: 0.05927090472 | AK34: 0.0492114829 | AL34: -0.03160303778 | AM34: 0.09318403099 | AN34: 0.08434622888 | AO34: 0.09034110404 | AP34: 0.09425188217 | AQ34: 0.05896247044 | AR34: 0.1134735124 | AS34: 0.1368119126 | AT34: 0.1057484423 | AU34: 0.1231375067 | AV34: 0.07517724204 | AW34: 0.2027128294 | AX34: 0.06685822245 | AY34: 0.0632269649 | AZ34: 0.07523935137 | BA34: 0.1570622923 | BB34: 0.1114715159 | BC34: 0.01641090345 | BD34: 0.02638172994 | BE34: 0.04314125516 | BF34: 0.1470093094 | BG34: 0.07757609616 | BH34: 0.1058752126 | BI34: 0.2618383474 | BJ34: 0.1291486997 | BK34: 0.1072247273 | BL34: 0.05259905975 | BM34: -0.01249853071 | BN34: 0.0135669075 | BO34: 0.0740116722 | BP34: 0.02814723354 | BQ34: 0.03150627541 | BR34: 0.1605064879 | BS34: 0.007507043165 | BT34: 0.04670899664 | BU34: 0.1419300544 | BV34: 0.06207821949 | BW34: 0.03840012049 | BX34: -0.0214833029 | BY34: 0.195273083 | BZ34: 0.1807940663 | CA34: -0.06841639656 | CB34: 0.005191610598 | CC34: 0.133291254 | CJ34: 0.1105940798 | CK34: 31 | CL34: Alabama | CM34: 3736.775
A35: 1991 | B35: 0.2335429268 | C35: 0.1849632657 | D35: 0.4501789311 | E35: 0.1871597705 | F35: 0.09700483399 | G35: 0.09500817374 | H35: 0.09816196661 | I35: 0.2291876438 | J35: 0.2403260269 | K35: 0.3051221699 | L35: 0.305248353 | M35: 0.2763722502 | N35: 0.3051221699 | O35: 0.05918166667 | P35: 0.05861666667 | Q35: 0.05858333333 | R35: 0.068125 | S35: 0.0737 | T35: 0.07675 | U35: 0.07858333333 | V35: 0.08106622699 | W35: 0.08135833333 | X35: 0.05375 | Y35: 0.05440833333 | Z35: 0.05835 | AA35: 0.0591 | AB35: 0.08769166667 | AC35: 0.09801666667 | AE35: 0.0692 | AF35: 0.0924775 | AG35: -0.06371349827 | AH35: -0.06763349608 | AI35: -0.08018476505 | AJ35: 0.03018263711 | AK35: -0.02387155127 | AL35: -0.08946247414 | AM35: 0.08683239126 | AN35: 0.08999667472 | AO35: 0.005460499868 | AP35: 0.2073431912 | AQ35: 0.1245631218 | AR35: 0.1322913901 | AS35: 0.2749973112 | AT35: 0.009607687321 | AU35: 0.0516259264 | AV35: 0.04348219776 | AW35: 0.09027887582 | AX35: 0.09400612026 | AY35: 0.0865802112 | AZ35: 0.1215110671 | BA35: 0.1057259201 | BB35: 0.02440599464 | BC35: 0.05141252476 | BD35: -0.05008901824 | BE35: 0.1013422047 | BF35: 0.1468197082 | BG35: 0.09592712204 | BH35: 0.1101997802 | BI35: 0.1082648023 | BJ35: 0.08865991082 | BK35: 0.1453193696 | BL35: 0.1796065895 | BM35: 0.09695996627 | BN35: 0.04089771419 | BO35: 0.1167568611 | BP35: 0.08446945613 | BQ35: 0.05829897142 | BR35: 0.1228017756 | BS35: 0.01477728243 | BT35: 0.1174757984 | BU35: 0.08705265424 | BV35: 0.06295177818 | BW35: 0.04825708455 | BX35: 0.09228203531 | BY35: -0.09117318047 | BZ35: 0.1623931643 | CA35: 0.08447764654 | CB35: 0.1166383032 | CC35: 0.1252038438 | CD35: 0.08878665131 | CE35: 0.1419747062 | CF35: 0.06208700881 | CG35: 0.07705377401 | CH35: 0.07098926486 | CI35: 0.0670044355 | CJ35: 0.2027096566 | CK35: 32 | CL35: Florida | CM35: 3715.768797
A36: 1992 | B36: 0.04367485858 | C36: 0.04090277894 | D36: 0.1436975888 | E36: 0.06718783242 | F36: -0.1495142943 | G36: -0.0763404131 | H36: -0.2146822495 | I36: 0.02923427431 | J36: 0.04080046742 | K36: 0.1148936007 | L36: 0.1361870054 | M36: 0.01900201948 | N36: 0.1148936007 | O36: 0.03845083333 | P36: 0.03706666667 | Q36: 0.03889166667 | R36: 0.05306666667 | S36: 0.06188333333 | T36: 0.06630833333 | U36: 0.0701 | V36: 0.07491394987 | W36: 0.07666666667 | X36: 0.03431666667 | Y36: 0.03546666667 | Z36: 0.03681666667 | AA36: 0.03764166667 | AB36: 0.0814 | AC36: 0.08976666667 | AE36: 0.06441666667 | AF36: 0.08399041667 | AG36: 0.05965669757 | AH36: -0.02589960754 | AI36: -0.01254477814 | AJ36: 0.02859379937 | AK36: 0.01456128512 | AL36: -0.05905075127 | AM36: 0.07586861039 | AN36: 0.07647299203 | AO36: 0.111256114 | AP36: 0.1667367565 | AQ36: 0.03038169919 | AR36: 0.07300967554 | AS36: 0.04534033762 | AT36: -0.03849173955 | AU36: -0.01315230287 | AV36: -0.03486727604 | AW36: 0.1555436365 | AX36: 0.1066756882 | AY36: 0.08077499256 | AZ36: 0.09182396641 | BA36: 0.1322582155 | BB36: 0.07400573552 | BC36: 0.06111392657 | BD36: 0.07237161294 | BE36: 0.04439587535 | BF36: 0.06471833494 | BG36: 0.04533827229 | BH36: 0.08793754899 | BI36: 0.1421469482 | BJ36: 0.1042377644 | BK36: 0.05668068514 | BL36: 0.07501814366 | BM36: 0.06095529567 | BN36: 0.07296403878 | BO36: 0.01348843772 | BP36: 0.0978615124 | BQ36: 0.09059534534 | BR36: 0.1437802852 | BS36: 0.07734360532 | BT36: 0.05490502318 | BU36: 0.03804135371 | BV36: 0.06484336161 | BW36: 0.05191765154 | BX36: 0.1059615549 | BY36: 0.1150587337 | BZ36: 0.122629565 | CA36: 0.2023173919 | CB36: 0.07537719355 | CC36: 0.01209771229 | CD36: 0.06339257009 | CE36: 0.06644341952 | CF36: 0.05312074476 | CG36: 0.07701336942 | CH36: 0.07622635506 | CI36: 0.06175745188 | CJ36: 0.3731705828
A37: 1993 | B37: 0.06817394897 | C37: 0.1285928298 | D37: 0.137585502 | E37: 0.09901359516 | F37: 0.266152781 | G37: 0.2339642123 | H37: 0.2954271677 | I37: 0.0720577057 | J37: 0.06781452986 | K37: 0.1701406604 | L37: 0.1794384859 | M37: 0.1358316096 | N37: 0.1701406604 | O37: 0.03325666667 | P37: 0.03179166667 | Q37: 0.03434166667 | R37: 0.04443333333 | S37: 0.051475 | T37: 0.05545 | U37: 0.05873333333 | V37: 0.06283333333 | W37: 0.06598333333 | X37: 0.029975 | Y37: 0.031225 | Z37: 0.03174166667 | AA37: 0.0328 | AB37: 0.07219166667 | AC37: 0.0793 | AE37: 0.055975 | AF37: 0.07326583333 | AG37: -0.01957289052 | AH37: 0.1098827272 | AI37: 0.04231872739 | AJ37: 0.02711323541 | AK37: 0.008467451099 | AL37: 0.1627817367 | AM37: 0.1014640208 | AN37: 0.09762368612 | AO37: 0.09895263584 | AP37: 0.120514499 | AQ37: 0.1365519683 | AR37: 0.06255318975 | AS37: 0.1945256438 | AT37: 0.1176332228 | AU37: 0.02705712533 | AV37: 0.1292290582 | AW37: 0.1031392647 | AX37: 0.06192326717 | AY37: 0.1051848492 | AZ37: 0.1227000221 | BA37: 0.1199518163 | BB37: 0.128888012 | BC37: 0.09848842852 | BD37: 0.1554755914 | BE37: 0.04563282487 | BF37: 0.08930658819 | BG37: 0.08725496295 | BH37: 0.1295399074 | BI37: 0.1841148201 | BJ37: 0.100423098 | BK37: 0.03363933664 | BL37: -0.02334732689 | BM37: 0.1001283391 | BN37: 0.1010133577 | BO37: 0.127310898 | BP37: 0.07950898924 | BQ37: 0.1059314232 | BR37: 0.2064956275 | BS37: 0.001111499118 | BT37: 0.008782335066 | BU37: 0.02087717048 | BV37: 0.128975169 | BW37: 0.09914244535 | BX37: 0.1319936455 | BY37: 0.0135180821 | BZ37: 0.1271834268 | CA37: 0.02927383812 | CB37: 0.1102347537 | CC37: 0.1817573255 | CD37: 0.08494684638 | CE37: 0.08306914933 | CF37: 0.1074497629 | CG37: 0.1152839133 | CH37: 0.07963736305 | CI37: 0.06160898577 | CJ37: 0.2236472512
A38: 1994 | B38: -0.01551256099 | C38: 0.0211643928 | D38: -0.03249978593 | E38: -0.04271977157 | F38: 0.06053188721 | G38: 0.001183844714 | H38: 0.1119269305 | I38: -0.01104700834 | J38: -0.008588896538 | K38: 0.008023156968 | L38: 0.0312148619 | M38: -0.2784222883 | N38: 0.008023156968 | O38: 0.04855583333 | P38: 0.046225 | Q38: 0.0531 | R38: 0.06264166667 | S38: 0.06683333333 | T38: 0.06901666667 | U38: 0.0708 | V38: 0.07486666667 | W38: 0.0737 | X38: 0.04246666667 | Y38: 0.046325 | Z38: 0.04629166667 | AA38: 0.04955833333 | AB38: 0.079625 | AC38: 0.086225 | AE38: 0.0618 | AF38: 0.08354833333 | AG38: 0.2978881487 | AH38: 0.04463425817 | AI38: 0.1528693601 | AJ38: 0.02639747185 | AK38: 0.02744454992 | AL38: -0.02193636348 | AM38: 0.1161700623 | AN38: 0.1360517734 | AO38: 0.1484066851 | AP38: 0.9860788503 | AQ38: 0.1090261443 | AR38: 0.04245977152 | AS38: 0.2327523299 | AT38: 0.06729982994 | AU38: 0.02866533514 | AV38: 0.04852517338 | AW38: 0.2456832691 | AX38: 0.1280253507 | AY38: 0.1235369058 | AZ38: 0.1225912045 | BA38: 0.2000447924 | BB38: 0.1000921764 | BC38: 0.07809094278 | BD38: 0.0627913601 | BE38: 0.09403345559 | BF38: 0.06011322781 | BG38: 0.1318002175 | BH38: 0.1362534398 | BI38: 0.2317073403 | BJ38: 0.1717871961 | BK38: 0.00326482464 | BL38: 0.09126160013 | BM38: 0.03851559836 | BN38: 0.04374550361 | BO38: 0.1248623952 | BP38: 0.1046953263 | BQ38: 0.1205909193 | BR38: 0.2346701462 | BS38: 0.05230216088 | BT38: 0.07544022666 | BU38: 0.1148362051 | BV38: 0.03535274108 | BW38: 0.09850921454 | BX38: 0.3645808144 | BY38: -0.007878204375 | BZ38: 0.2409406761 | CA38: 0.05029343616 | CB38: 0.08270435299 | CC38: 0.1596697755 | CD38: 0.09348446472 | CE38: 0.1340410459 | CF38: 0.06844583872 | CG38: 0.08261531162 | CH38: 0.08081432451 | CI38: 0.06025255305 | CJ38: 0.1544922284
A39: 1995 | B39: 0.2934950483 | C39: 0.2885749035 | D39: 0.3358888288 | E39: 0.2841329128 | F39: 0.09002666213 | G39: 0.172890405 | H39: 0.01743520013 | I39: 0.2900595836 | J39: 0.298160075 | K39: 0.1681296247 | L39: 0.1420799787 | M39: 0.4911393894 | N39: 0.1681296247 | O39: 0.06038166667 | P39: 0.05924166667 | Q39: 0.05948333333 | R39: 0.06263333333 | S39: 0.06390833333 | T39: 0.06503333333 | U39: 0.0658 | V39: 0.06960833333 | W39: 0.06884166667 | X39: 0.0549 | Y39: 0.05565833333 | Z39: 0.05916666667 | AA39: 0.05980833333 | AB39: 0.0759 | AC39: 0.08200833333 | AE39: 0.05953333333 | AF39: 0.07952833333 | AG39: -0.06919678276 | AH39: 0.02726191091 | AI39: 0.01085077072 | AJ39: 0.0250672756 | AK39: 0.03069707911 | AL39: 0.009737175278 | AM39: 0.1104374618 | AN39: 0.09990734575 | AO39: 0.1484668187 | AP39: 0.06082757773 | AQ39: 0.1276981453 | AR39: 0.03964053956 | AS39: 0.1480184244 | AT39: 0.05918077172 | AU39: 0.02472934736 | AV39: 0.1213469634 | AW39: 0.1469055877 | AX39: 0.129823571 | AY39: 0.1227105934 | AZ39: 0.1128591458 | BA39: 0.1138051381 | BB39: 0.1267271175 | BC39: 0.1359825995 | BD39: 0.02668460625 | BE39: 0.1185408572 | BF39: 0.09937011704 | BG39: 0.1321179325 | BH39: 0.117178941 | BI39: 0.1163352974 | BJ39: 0.1274003665 | BK39: 0.006394035697 | BL39: 0.05215983158 | BM39: 0.02364456454 | BN39: 0.098801248 | BO39: 0.126186365 | BP39: 0.1448631137 | BQ39: 0.09938967454 | BR39: 0.1902734546 | BS39: 0.028737637 | BT39: 0.1293896717 | BU39: 0.1140172658 | BV39: 0.09380062121 | BW39: 0.05708601259 | BX39: 0.05057903418 | BY39: 0.09618428378 | BZ39: 0.1522610801 | CA39: 0.07710569701 | CB39: 0.09909595385 | CC39: 0.09988117182 | CD39: 0.09657465022 | CE39: 0.1402882076 | CF39: 0.07807334064 | CG39: 0.1022487604 | CH39: 0.07461694722 | CI39: 0.05381556719 | CJ39: 0.1384090796
A40: 1996 | B40: 0.1845163658 | C40: 0.2312286578 | D40: 0.2046236686 | E40: 0.1919407735 | F40: 0.04303610858 | G40: 0.1697332824 | H40: -0.09910360539 | I40: 0.195606579 | J40: 0.1935534959 | K40: 0.3056709338 | L40: 0.3020779551 | M40: 0.4112071345 | N40: 0.3056709338 | O40: 0.05532333333 | P40: 0.05384166667 | Q40: 0.055125 | R40: 0.0599 | S40: 0.06176666667 | T40: 0.06339166667 | U40: 0.06438333333 | V40: 0.068225 | W40: 0.06700833333 | X40: 0.05005833333 | Y40: 0.05080833333 | Z40: 0.0539 | AA40: 0.05465 | AB40: 0.0737 | AC40: 0.08054166667 | AE40: 0.057575 | AF40: 0.07804291667 | AG40: -0.113080174 | AH40: -0.01478930827 | AI40: -0.003048571612 | AJ40: 0.03268474217 | AK40: 0.02668918226 | AL40: -0.04695077162 | AM40: 0.09720975229 | AN40: 0.08724473971 | AO40: 0.07794675728 | AP40: 0.07182800589 | AQ40: 0.09533501464 | AR40: 0.1138350364 | AS40: 0.1349241848 | AT40: 0.0656659307 | AU40: 0.02165908952 | AV40: 0.1069245997 | AW40: 0.1370762507 | AX40: 0.08791482691 | AY40: 0.1177549507 | AZ40: 0.1306445329 | BA40: 0.07908305213 | BB40: 0.08011763623 | BC40: 0.1334974673 | BD40: 0.01430016674 | BE40: 0.09014528256 | BF40: 0.139626036 | BG40: 0.1060750351 | BH40: 0.1242563401 | BI40: 0.07426548793 | BJ40: 0.1217965831 | BK40: 0.01317336541 | BL40: 0.01228270923 | BM40: -0.004338010778 | BN40: 0.0989515019 | BO40: 0.09765494278 | BP40: 0.06974313165 | BQ40: 0.04357362747 | BR40: 0.1492057927 | BS40: 0.03576727272 | BT40: 0.03352141471 | BU40: 0.08812143898 | BV40: 0.1567287404 | BW40: 0.06411418359 | BX40: 0.06662919641 | BY40: 0.08377459083 | BZ40: 0.1444621307 | CA40: 0.0831422973 | CB40: 0.1100745664 | CC40: 0.1057791683 | CD40: 0.09802888754 | CE40: 0.1384175729 | CF40: 0.07906426788 | CG40: 0.09324856968 | CH40: 0.08420698001 | CI40: 0.05694400553 | CJ40: 0.107327546
A41: 1997 | B41: 0.2700895857 | C41: 0.2040963107 | D41: 0.1958581751 | E41: 0.2146686508 | F41: 0.0023757783 | G41: 0.1953755577 | H41: -0.3052019989 | I41: 0.2668838185 | J41: 0.2755871283 | K41: 0.1727837401 | L41: 0.1844874706 | M41: 0.0375194603 | N41: 0.1727837401 | O41: 0.057915 | P41: 0.05605 | Q41: 0.0563 | R41: 0.06101666667 | S41: 0.062225 | T41: 0.06324166667 | U41: 0.063525 | V41: 0.06684166667 | W41: 0.06605833333 | X41: 0.05060833333 | Y41: 0.05176666667 | Z41: 0.05615833333 | AA41: 0.05724166667 | AB41: 0.07261666667 | AC41: 0.078625 | AD41: 0.07261666667 | AE41: 0.055225 | AF41: 0.07595791667 | AG41: -0.06414969299 | AH41: -0.04467943113 | AI41: -0.05862078461 | AJ41: 0.01688067593 | AK41: -0.01797625585 | AL41: -0.240903581 | AM41: 0.08433908364 | AN41: 0.07632544107 | AO41: 0.05697834612 | AP41: 0.07331386722 | AQ41: 0.1275168202 | AR41: 0.07669376362 | AS41: 0.1196350622 | AT41: 0.031163475 | AU41: 0.02629000875 | AV41: 0.08141738623 | AW41: 0.1256732986 | AX41: 0.08545764449 | AY41: 0.1164259172 | AZ41: 0.1550925271 | BA41: 0.06915658421 | BB41: 0.08105905966 | BC41: 0.0565996002 | BD41: 0.02508872057 | BE41: 0.1023454666 | BF41: 0.1137952867 | BG41: 0.1341218433 | BH41: 0.1119206728 | BI41: 0.03827083562 | BJ41: 0.08889214111 | BK41: -0.0006953753706 | BL41: 0.01204723577 | BM41: 0.00376174287 | BN41: 0.06845645676 | BO41: 0.08978845088 | BP41: 0.06778109644 | BQ41: 0.08467535674 | BR41: 0.08432997658 | BS41: 0.01860618436 | BT41: 0.04732717121 | BU41: 0.1127472009 | BV41: 0.1022151523 | BW41: 0.05820613861 | BX41: 0.07663442564 | BY41: 0.03759336739 | BZ41: 0.1349335364 | CA41: 0.08744159034 | CB41: 0.06841375141 | CC41: 0.07817129697 | CD41: 0.08797283927 | CE41: 0.1392574843 | CF41: 0.05288839329 | CG41: 0.07894614114 | CH41: 0.08803908387 | CI41: 0.05708539701 | CJ41: 0.1890990653
A42: 1998 | B42: 0.2364039638 | C42: 0.1492701251 | D42: 0.3338305761 | E42: 0.1620181523 | F42: 0.1674663222 | G42: 0.2352928695 | H42: 0.01149869332 | I42: 0.2398881584 | J42: 0.2530103193 | K42: -0.2085343985 | L42: -0.192398505 | M42: -0.3455720702 | N42: -0.2085343985 | O42: 0.0561475 | P42: 0.05445833333 | Q42: 0.05051666667 | R42: 0.051375 | S42: 0.0515 | T42: 0.05279166667 | U42: 0.05264166667 | V42: 0.05718333333 | W42: 0.05578333333 | X42: 0.04776666667 | Y42: 0.04828333333 | Z42: 0.05466666667 | AA42: 0.05444166667 | AB42: 0.06531666667 | AC42: 0.07220833333 | AD42: 0.06531666667 | AE42: 0.05090833333 | AF42: 0.06946291667 | AG42: -0.1682687417 | AH42: -0.1809085728 | AI42: -0.1445820464 | AJ42: 0.01599050062 | AK42: -0.03205402629 | AL42: -0.008304545997 | AM42: 0.09313791788 | AN42: 0.0828715876 | AO42: 0.08290183878 | AP42: 0.1041910012 | AQ42: 0.137202288 | AR42: 0.08117286206 | AS42: 0.1115033974 | AT42: 0.04847073202 | AU42: 0.02158313188 | AV42: 0.09016035503 | AW42: 0.1201620067 | AX42: 0.1144527933 | AY42: 0.1369532938 | AZ42: 0.113372554 | BA42: 0.06953683898 | BB42: 0.1085098071 | BC42: 0.06500788646 | BD42: 0.02220751545 | BE42: 0.1152950625 | BF42: 0.118134279 | BG42: 0.1278396499 | BH42: 0.1049419488 | BI42: 0.05135250141 | BJ42: 0.112226642 | BK42: -0.01403829248 | BL42: 0.007274510455 | BM42: 0.03870702755 | BN42: 0.05642938441 | BO42: 0.09749284894 | BP42: 0.1041091383 | BQ42: 0.1068628705 | BR42: 0.0484334018 | BS42: 0.04338586422 | BT42: 0.07113843507 | BU42: 0.1340682453 | BV42: 0.1177621356 | BW42: 0.09937845383 | BX42: 0.05710202618 | BY42: 0.03603501381 | BZ42: 0.1212991929 | CA42: 0.0534547587 | CB42: 0.09414065771 | CC42: 0.067521033 | CD42: 0.07238492756 | CE42: 0.04083780486 | CF42: 0.06217969528 | CG42: 0.1037120971 | CH42: 0.0984601964 | CI42: 0.05427292591 | CJ42: 0.05877224504
A43: 1999 | B43: 0.1783641094 | C43: 0.2249118637 | D43: 0.6183443513 | E43: 0.03484394474 | F43: 0.2252707639 | G43: 0.1320933411 | H43: 0.4457478642 | I43: 0.1980890406 | J43: 0.1894374042 | K43: -0.06695151034 | L43: -0.04730109056 | M43: -0.4037286313 | N43: -0.06695151034 | O43: 0.0548 | P43: 0.05304166667 | Q43: 0.050775 | R43: 0.05485 | S43: 0.05540833333 | T43: 0.05776666667 | U43: 0.05636666667 | V43: 0.0619 | W43: 0.05865833333 | X43: 0.04638333333 | Y43: 0.04745 | Z43: 0.0533 | AA43: 0.054575 | AB43: 0.07041666667 | AC43: 0.07870833333 | AD43: 0.07041666667 | AE43: 0.054275 | AF43: 0.074285 | AG43: -0.08972821877 | AH43: 0.07026807522 | AI43: -0.03447051337 | AJ43: 0.02649161545 | AK43: 0.03990952623 | AL43: 0.008476826125 | AM43: 0.0991784873 | AN43: 0.09317864562 | AO43: 0.06157495748 | AP43: 0.1135987445 | AQ43: 0.1189195809 | AR43: 0.1113751207 | AS43: 0.08161773732 | AT43: 0.1017306517 | AU43: 0.05113983054 | AV43: 0.1051514151 | AW43: 0.1271374106 | AX43: 0.08121933739 | AY43: 0.09106760949 | AZ43: 0.08554588026 | BA43: 0.08571575553 | BB43: 0.1047420861 | BC43: 0.09722049076 | BD43: 0.0478551746 | BE43: 0.1485422068 | BF43: 0.1179708495 | BG43: 0.1224227973 | BH43: 0.1173572119 | BI43: 0.1005941902 | BJ43: 0.1139778448 | BK43: 0.04116418582 | BL43: 0.01168997915 | BM43: 0.05587367009 | BN43: 0.09000781877 | BO43: 0.06820543291 | BP43: 0.09720336185 | BQ43: 0.06497124692 | BR43: 0.09233340107 | BS43: 0.08752675997 | BT43: 0.09143578236 | BU43: 0.09866435421 | BV43: 0.1011339755 | BW43: 0.103663207 | BX43: 0.07827783004 | BY43: 0.09444791158 | BZ43: 0.1083440104 | CA43: 0.06840008295 | CB43: 0.1880441308 | CC43: 0.09246044543 | CD43: 0.06950553136 | CE43: 0.01402520681 | CF43: 0.07724241996 | CG43: 0.1120291771 | CH43: 0.08080824594 | CI43: 0.05385483446 | CJ43: 0.1092403775
A44: 2000 | B44: -0.1069082312 | C44: -0.06366042438 | D44: -0.4990447971 | E44: 0.06523317794 | F44: -0.1649442731 | G44: -0.1015757944 | H44: -0.3066839313 | I44: -0.1367969362 | J44: -0.1456727552 | K44: 0.2302400099 | L44: 0.2340073134 | M44: 0.1480799163 | N44: 0.2302400099 | O44: 0.06528166667 | P44: 0.064475 | Q44: 0.06108333333 | R44: 0.06216666667 | S44: 0.061525 | T44: 0.061975 | U44: 0.06029166667 | V44: 0.0623 | W44: 0.059425 | X44: 0.05816666667 | Y44: 0.05898333333 | Z44: 0.06455833333 | AA44: 0.06583333333 | AB44: 0.076225 | AC44: 0.08364166667 | AD44: 0.076225 | AE44: 0.05709166667 | AF44: 0.08061625 | AG44: 0.03283985624 | AH44: 0.1049070639 | AI44: -0.01444932506 | AJ44: 0.03330719802 | AK44: 0.06365785177 | AL44: -0.05597352558 | AM44: 0.09848204316 | AN44: 0.09405203474 | AO44: 0.06614945749 | AP44: 0.1015319684 | AQ44: 0.1157789594 | AR44: 0.1172855169 | AS44: 0.0862595615 | AT44: 0.0974494256 | AU44: 0.06601060361 | AV44: 0.09697379409 | AW44: 0.1144464554 | AX44: 0.0603973312 | AY44: 0.07892503964 | AZ44: 0.07343630038 | BA44: 0.0874736709 | BB44: 0.1005566174 | BC44: 0.07640157936 | BD44: 0.09704847364 | BE44: 0.1223707311 | BF44: 0.1132965073 | BG44: 0.1263702822 | BH44: 0.1120627439 | BI44: 0.1065938407 | BJ44: 0.1168712988 | BK44: 0.03966856804 | BL44: 0.04239114477 | BM44: 0.07625837468 | BN44: 0.103866947 | BO44: 0.08310201945 | BP44: 0.08659995306 | BQ44: 0.06189106742 | BR44: 0.1021605983 | BS44: 0.07783708851 | BT44: 0.07434951743 | BU44: 0.1167759045 | BV44: 0.09887583958 | BW44: 0.09049753533 | BX44: 0.07113810004 | BY44: 0.08314959252 | BZ44: 0.1457592984 | CA44: 0.06382057896 | CB44: 0.1869908711 | CC44: 0.1173102666 | CD44: 0.0697951975 | CE44: 0.0566058521 | CF44: 0.046693533 | CG44: 0.1088823683 | CH44: 0.09972951664 | CI44: 0.05366487601 | CJ44: 0.04407603529
A45: 2001 | B45: -0.1397528534 | C45: -0.07369563312 | D45: -0.2363941751 | E45: -0.1373017225 | F45: -0.2563265516 | G45: -0.2386432036 | H45: -0.3039470367 | I45: -0.1461321849 | J45: -0.1418756111 | K45: 0.1441178489 | L45: 0.1304395681 | M45: 0.5729152724 | N45: 0.1441178489 | O45: 0.03629666667 | P45: 0.03685 | Q45: 0.03480833333 | R45: 0.04080833333 | S45: 0.04550833333 | T45: 0.04876666667 | U45: 0.050175 | V45: 0.05630833333 | W45: 0.05493333333 | X45: 0.03388333333 | Y45: 0.03334166667 | Z45: 0.03686666667 | AA45: 0.03640833333 | AB45: 0.070825 | AC45: 0.079475 | AD45: 0.070825 | AE45: 0.051525 | AF45: 0.06971041667 | AG45: -0.1718582978 | AH45: -0.1783702811 | AI45: -0.05454354643 | AJ45: 0.01539808011 | AK45: -0.06131318481 | AL45: 0.007441725966 | AM45: 0.09387817952 | AN45: 0.09015643215 | AO45: 0.06485714578 | AP45: 0.1103636277 | AQ45: 0.1019238016 | AR45: 0.1137920276 | AS45: 0.1005215309 | AT45: 0.09039630252 | AU45: 0.04318664263 | AV45: 0.1079995504 | AW45: 0.09915274198 | AX45: 0.05554007876 | AY45: 0.07613281369 | AZ45: 0.07826704544 | BA45: 0.08102492069 | BB45: 0.09389072341 | BC45: 0.102104887 | BD45: 0.06366534157 | BE45: 0.1069640068 | BF45: 0.1090391173 | BG45: 0.1119621917 | BH45: 0.09972316942 | BI45: 0.1035273717 | BJ45: 0.09923739998 | BK45: 0.06270118627 | BL45: 0.04060007201 | BM45: 0.07235051887 | BN45: 0.1041981654 | BO45: 0.08322629226 | BP45: 0.08274956914 | BQ45: 0.06182464466 | BR45: 0.09823301775 | BS45: 0.07311671784 | BT45: 0.07167789283 | BU45: 0.1220940763 | BV45: 0.07025133305 | BW45: 0.09971773252 | BX45: 0.09909799322 | BY45: 0.07760628471 | BZ45: 0.1469237601 | CA45: 0.06082479983 | CB45: 0.1629624652 | CC45: 0.09298475758 | CD45: 0.02013451435 | CE45: 0.03576113766 | CF45: -0.03504572517 | CG45: -0.01970064216 | CH45: 0.07084984115 | CI45: 0.05275578828 | CJ45: -0.05245781754
A46: 2002 | B46: -0.2661289198 | C46: -0.1834801312 | D46: -0.3787212384 | E46: -0.2282325269 | F46: -0.1925734154 | G46: -0.2244776083 | H46: -0.1101586237 | I46: -0.2694394462 | J46: -0.2740370471 | K46: 0.0508411128 | L46: 0.03749604559 | M46: 0.2706031581 | N46: 0.0508411128 | O46: 0.01787 | P46: 0.01725833333 | Q46: 0.02001666667 | R46: 0.031 | S46: 0.03815 | T46: 0.04304166667 | U46: 0.04610833333 | V46: 0.0543 | W46: 0.05425 | X46: 0.01604166667 | Y46: 0.01675833333 | Z46: 0.01725833333 | AA46: 0.01805833333 | AB46: 0.06491666667 | AC46: 0.07801666667 | AD46: 0.06491666667 | AE46: 0.050375 | AF46: 0.06536708333 | AG46: 0.1499708743 | AH46: 0.2073114164 | AI46: 0.1413800491 | AJ46: 0.02349101308 | AK46: 0.03678575682 | AL46: 0.2276901618 | AM46: 0.09102037088 | AN46: 0.08792090132 | AO46: 0.05640662919 | AP46: 0.1363312363 | AQ46: 0.09890793962 | AR46: 0.1092373204 | AS46: 0.09665347175 | AT46: 0.09718214135 | AU46: 0.04998800176 | AV46: 0.09959935898 | AW46: 0.08703831927 | AX46: 0.06810623902 | AY46: 0.08120735867 | AZ46: 0.08751253915 | BA46: 0.07917911043 | BB46: 0.07564941468 | BC46: 0.09061571144 | BD46: 0.06091480881 | BE46: 0.0988262889 | BF46: 0.1175242137 | BG46: 0.09701401418 | BH46: 0.1014505027 | BI46: 0.09807892273 | BJ46: 0.09733412831 | BK46: 0.05975777163 | BL46: 0.03875494095 | BM46: 0.07177175274 | BN46: 0.09224930435 | BO46: 0.08325357127 | BP46: 0.07447730014 | BQ46: 0.07456129638 | BR46: 0.09832120063 | BS46: 0.08467227691 | BT46: 0.06785530456 | BU46: 0.1171418499 | BV46: 0.06756375981 | BW46: 0.08614723958 | BX46: 0.08362881734 | BY46: 0.07204504744 | BZ46: 0.1779853285 | CA46: 0.05792546073 | CB46: 0.1221324556 | CC46: 0.08975460409 | CD46: 0.06863155298 | CE46: 0.0878706202 | CF46: 0.0626510237 | CG46: 0.08309818152 | CH46: 0.06531469975 | CI46: 0.05294605287 | CJ46: 0.01882273899
A47: 2003 | B47: 0.2341261887 | C47: 0.2257183868 | D47: 0.4058169717 | E47: 0.2968909665 | F47: 0.3021959792 | G47: 0.2985513708 | H47: 0.3100316178 | I47: 0.2450820691 | J47: 0.2372902662 | K47: 0.3254571111 | L47: 0.3157862295 | M47: 0.4535549991 | N47: 0.3254571111 | O47: 0.01215566667 | P47: 0.01141666667 | Q47: 0.01244166667 | R47: 0.02106666667 | S47: 0.02968333333 | T47: 0.035225 | U47: 0.04015 | V47: 0.049575 | W47: 0.05427409055 | X47: 0.01010833333 | Y47: 0.01054166667 | Z47: 0.01150833333 | AA47: 0.011675 | AB47: 0.05666666667 | AC47: 0.06765833333 | AD47: 0.05666666667 | AE47: 0.04748333333 | AF47: 0.05819541667 | AG47: 0.1946654156 | AH47: 0.08485928178 | AI47: 0.1490563596 | AJ47: 0.01862047227 | AK47: 0.04846763554 | AL47: 0.1813850585 | AM47: 0.08832315218 | AN47: 0.0843883276 | AO47: 0.05359210136 | AP47: 0.09051846224 | AQ47: 0.1038737787 | AR47: 0.102382427 | AS47: 0.09482660872 | AT47: 0.08999550986 | AU47: 0.06845897335 | AV47: 0.09208937345 | AW47: 0.08450049853 | AX47: 0.07476149286 | AY47: 0.07880744513 | AZ47: 0.09630800945 | BA47: 0.08040051401 | BB47: 0.06763300956 | BC47: 0.08763423081 | BD47: 0.04588817771 | BE47: 0.09862590383 | BF47: 0.1126143089 | BG47: 0.1012685486 | BH47: 0.1035490882 | BI47: 0.09427000384 | BJ47: 0.08660518924 | BK47: 0.0560273765 | BL47: 0.03732472427 | BM47: 0.06883878656 | BN47: 0.08101116553 | BO47: 0.0914055336 | BP47: 0.07361688106 | BQ47: 0.07220195592 | BR47: 0.09645881835 | BS47: 0.06404462525 | BT47: 0.08916281869 | BU47: 0.1227609968 | BV47: 0.06520954966 | BW47: 0.06844662766 | BX47: 0.07513135219 | BY47: 0.07452103859 | BZ47: 0.1752885652 | CA47: 0.06231909288 | CB47: 0.09033481987 | CC47: 0.08721304782 | CD47: 0.09682254546 | CE47: 0.107057179 | CF47: 0.106047386 | CG47: 0.09711394813 | CH47: 0.08314830439 | CI47: 0.05110741708 | CJ47: 0.07664897013
A48: 2004 | B48: 0.08611762807 | C48: 0.0309947196 | D48: 0.08210072988 | E48: 0.07894751803 | F48: 0.1620439453 | G48: 0.1642429224 | H48: 0.1586004278 | I48: 0.08946573175 | J48: 0.08436217852 | K48: 0.265509358 | L48: 0.274425818 | M48: 0.169177508 | N48: 0.265509358 | O48: 0.01672108333 | P48: 0.01545 | Q48: 0.01886666667 | R48: 0.0278 | S48: 0.03429166667 | T48: 0.03868333333 | U48: 0.04274166667 | V48: 0.05046666667 | W48: 0.04998156405 | X48: 0.01371666667 | Y48: 0.01575 | Z48: 0.01563333333 | AA48: 0.01735833333 | AB48: 0.05628333333 | AC48: 0.06393333333 | AD48: 0.05628333333 | AE48: 0.046775 | AF48: 0.058385 | AG48: -0.05702848729 | AH48: 0.1062219096 | AI48: 0.03257594439 | AJ48: 0.03203690963 | AK48: 0.07390313807 | AL48: 0.04543834976 | AM48: 0.09362816729 | AN48: 0.1032886718 | AO48: 0.06686222525 | AP48: 0.08702407985 | AQ48: 0.1584355973 | AR48: 0.1030574824 | AS48: 0.101073943 | AT48: 0.4306960003 | AU48: 0.01215584031 | AV48: 0.07897905445 | AW48: 0.09203706918 | AX48: 0.0929556227 | AY48: 0.1011417206 | AZ48: 0.1373710604 | BA48: 0.0735148375 | BB48: 0.07062415699 | BC48: 0.0808976454 | BD48: 0.3068082131 | BE48: 0.09656232704 | BF48: 0.1562392299 | BG48: 0.09208965624 | BH48: 0.1014382719 | BI48: 0.0697178214 | BJ48: 0.1106473472 | BK48: 0.1704388094 | BL48: -0.001928583916 | BM48: 0.0555640235 | BN48: 0.06091506075 | BO48: 0.1445420776 | BP48: 0.08179192337 | BQ48: 0.1002942824 | BR48: 0.1069552347 | BS48: 0.03016663752 | BT48: 0.05519085497 | BU48: 0.1176726342 | BV48: 0.05313648581 | BW48: 0.06276559289 | BX48: 0.009856928396 | BY48: 0.1471221319 | BZ48: 0.1456528239 | CA48: 0.08015960549 | CB48: 0.09372153553 | CC48: 0.1004882834 | CD48: 0.2049517255 | CE48: 0.2156615169 | CF48: 0.2351059567 | CG48: 0.2608012016 | CH48: 0.1248726815 | CI48: 0.05017164641 | CJ48: 0.1119974279
A49: 2005 | B49: 0.02956873588 | C49: -0.006093827795 | D49: 0.01364168015 | E49: 0.134010979 | F49: 0.1031389509 | G49: 0.06336534875 | H49: 0.1871956609 | I49: 0.04875696239 | J49: 0.03728533284 | K49: 0.07962564873 | L49: 0.1147815133 | M49: -0.2638043792 | N49: 0.07962564873 | O49: 0.0363465 | P49: 0.03501666667 | Q49: 0.03618333333 | R49: 0.03925 | S49: 0.04045833333 | T49: 0.04151666667 | U49: 0.0429 | V49: 0.04645833333 | W49: 0.04220031533 | X49: 0.03146666667 | Y49: 0.033925 | Z49: 0.03511666667 | AA49: 0.03723333333 | AB49: 0.05235 | AC49: 0.06064166667 | AD49: 0.05235 | AE49: 0.043975 | AF49: 0.05864875 | AG49: 0.1325178539 | AH49: 0.21216416 | AI49: 0.03455328314 | AJ49: 0.03358621032 | AK49: 0.08178246148 | AL49: 0.1635514541 | AM49: 0.1925291028 | AN49: 0.1999038169 | AO49: 0.120045562 | AP49: 0.393361119 | AQ49: 0.1698877689 | AR49: 0.3220645277 | AS49: 0.2255237041 | AT49: 0.3381245545 | AU49: 0.4975448381 | AV49: 0.3165999879 | AW49: 0.2760122159 | AX49: 0.260329322 | AY49: 0.1180819363 | AZ49: 0.2229032955 | BA49: 0.1898718562 | BB49: 0.2396782061 | BC49: 0.1338896792 | BD49: 0.2973881812 | BE49: 0.07296476441 | BF49: 0.1798723114 | BG49: 0.1610765409 | BH49: 0.1540785423 | BI49: 0.2203048383 | BJ49: 0.1741195185 | BK49: 0.1442389879 | BL49: 0.23642813 | BM49: 0.08421844986 | BN49: 0.1732319156 | BO49: 0.1633061768 | BP49: 0.09601443965 | BQ49: 0.2126502622 | BR49: 0.1423412488 | BS49: 0.1201842495 | BT49: 0.1129361994 | BU49: 0.2345977058 | BV49: 0.143785361 | BW49: 0.1987508425 | BX49: 0.1742459009 | BY49: 0.2106238224 | BZ49: 0.1844220978 | CA49: 0.2425827839 | CB49: 0.1419553021 | CC49: 0.09581934699 | CD49: 0.3389902735 | CE49: 0.2026256 | CF49: 0.4314822004 | CG49: 0.5569666026 | CH49: 0.1240408711 | CI49: 0.04550450069 | CJ49: 0.1934822937
A50: 2006 | B50: 0.1276843566 | C50: 0.1508983709 | D50: 0.09094673963 | E50: 0.13246247 | F50: 0.2108393485 | G50: 0.2640777397 | H50: 0.09924928917 | I50: 0.125266242 | J50: 0.1238479365 | K50: 0.2952882036 | L50: 0.3005539143 | M50: 0.1766725596 | N50: 0.2928138216 | O50: 0.05228558333 | P50: 0.05185 | Q50: 0.049325 | R50: 0.04769166667 | S50: 0.04745 | T50: 0.04755 | U50: 0.04791666667 | V50: 0.049925 | W50: 0.04898181818 | X50: 0.04726666667 | Y50: 0.048025 | Z50: 0.05153333333 | AA50: 0.05233333333 | AB50: 0.055875 | AC50: 0.06479166667 | AD50: 0.055875 | AE50: 0.04400833333 | AF50: 0.06410833333 | AG50: 0.2170840894 | AH50: 0.1178210216 | AI50: 0.1779870977 | AJ50: 0.0250891233 | AK50: 0.01582504114 | AL50: 0.208613549 | AM50: 0.1412397789 | AN50: 0.1471383059 | AO50: 0.03903609579 | AP50: 0.2856190066 | AQ50: 0.1233784424 | AR50: 0.09286470691 | AS50: 0.1723761339 | AT50: 0.2068527648 | AU50: 0.09075170804 | AV50: 0.2045338333 | AW50: 0.327702459 | AX50: 0.1425630878 | AY50: 0.1084757691 | AZ50: 0.133557175 | BA50: 0.114917358 | BB50: 0.1105885031 | BC50: 0.08920138059 | BD50: 0.1175712374 | BE50: 0.108198613 | BF50: 0.162977386 | BG50: 0.1155011955 | BH50: 0.1224748886 | BI50: 0.4388689671 | BJ50: 0.1769205431 | BK50: 0.1390397715 | BL50: 0.2150808597 | BM50: 0.06870924869 | BN50: 0.07135717553 | BO50: 0.1821628665 | BP50: 0.1043157931 | BQ50: 0.1024228185 | BR50: 0.1081885162 | BS50: 0.09738325564 | BT50: 0.083902049 | BU50: 0.1849317997 | BV50: 0.0822840149 | BW50: 0.193043457 | BX50: 0.2098921808 | BY50: 0.1584447285 | BZ50: 0.1686397483 | CA50: 0.05765850903 | CB50: 0.1229012545 | CC50: 0.1973812409 | CD50: 0.2114882169 | CE50: 0.1020205281 | CF50: 0.2736747373 | CG50: 0.2461501939 | CH50: 0.2293604016 | CI50: 0.0423010932 | CJ50: 0.136786313
A51: 2007 | B51: 0.03468716042 | C51: 0.06233912756 | D51: 0.09360028473 | E51: -0.01398979109 | F51: 0.08271191577 | G51: 0.1039702758 | H51: 0.03458739349 | I51: 0.05522751749 | J51: 0.04005360839 | K51: -0.1963955745 | L51: -0.1706903814 | M51: -0.550762668 | N51: -0.1964016502 | O51: 0.05297283333 | P51: 0.053175 | Q51: 0.04521666667 | R51: 0.043375 | S51: 0.04425 | T51: 0.04504166667 | U51: 0.04629166667 | V51: 0.04908333333 | W51: 0.04834166667 | X51: 0.04353333333 | Y51: 0.0443 | Z51: 0.05268333333 | AA51: 0.05226666667 | AB51: 0.05555833333 | AC51: 0.064825 | AD51: 0.05555833333 | AE51: 0.04395833333 | AF51: 0.06340458333 | AG51: 0.1515963197 | AH51: 0.1869786622 | AI51: 0.1318050517 | AJ51: 0.04000183668 | AK51: 0.07557342649 | AL51: 0.2770442031 | AM51: 0.1349366208 | AN51: 0.1286289467 | AO51: 0.06156053099 | AP51: 0.06276790772 | AQ51: 0.1536017026 | AR51: 0.135644438 | AS51: 0.1261915358 | AT51: 0.03399300221 | AU51: 0.0519906114 | AV51: 0.145617661 | AW51: 0.1489850598 | AX51: 0.1423570517 | AY51: 0.1401399416 | AZ51: 0.181682332 | BA51: 0.1602218908 | BB51: 0.05030789726 | BC51: 0.1273971805 | BD51: 0.01590742004 | BE51: 0.1253990127 | BF51: 0.175859983 | BG51: 0.1425207611 | BH51: 0.1567368146 | BI51: 0.1676464244 | BJ51: 0.1483342542 | BK51: 0.08339112904 | BL51: 0.1128348793 | BM51: 0.08183475446 | BN51: 0.07302492826 | BO51: 0.1653031299 | BP51: 0.09753043571 | BQ51: 0.1314726621 | BR51: 0.1926445685 | BS51: 0.1280857726 | BT51: 0.1093455364 | BU51: 0.1649375795 | BV51: 0.1068882218 | BW51: 0.1651252061 | BX51: 0.1548027916 | BY51: 0.1058769665 | BZ51: 0.188001462 | CA51: 0.1453960983 | CB51: 0.1750510955 | CC51: 0.2373761856 | CD51: 0.159034605 | CE51: 0.1856240631 | CF51: 0.1502425931 | CG51: 0.1282036879 | CH51: 0.1551110199 | CI51: 0.04282389614 | CJ51: 0.1843367976
A52: 2008 | B52: -0.4858909696 | C52: -0.4130502566 | D52: -0.5198763162 | E52: -0.563296342 | F52: -0.5993938687 | G52: -0.6577551738 | H52: -0.4766637863 | I52: -0.4982826999 | J52: -0.4873725423 | K52: -0.4673788701 | L52: -0.4736524612 | M52: -0.3755579533 | N52: -0.4754556675 | O52: 0.02910616667 | P52: 0.03299166667 | Q52: 0.018225 | R52: 0.02235833333 | S52: 0.02798333333 | T52: 0.0317 | U52: 0.03666666667 | V52: 0.043625 | W52: 0.04279166667 | X52: 0.01365 | Y52: 0.01618333333 | Z52: 0.02965 | AA52: 0.03135833333 | AB52: 0.05631666667 | AC52: 0.07446666667 | AD52: 0.05631666667 | AE52: 0.04860833333 | AF52: 0.06036125 | AG52: -0.3951517038 | AH52: -0.2710177975 | AI52: -0.2715890724 | AJ52: 0.000913711445 | AK52: -0.04407007832 | AL52: 0.0422722168 | AM52: 0.09793195375 | AN52: 0.08773847614 | AO52: 0.05847602818 | AP52: 0.08872764683 | AQ52: 0.1192617854 | AR52: 0.1016004995 | AS52: 0.04314592431 | AT52: -0.03251038318 | AU52: 0.0380225885 | AV52: -0.0009873536832 | AW52: 0.03906764747 | AX52: 0.1531312993 | AY52: 0.145711808 | AZ52: 0.1932471063 | BA52: 0.07827659766 | BB52: 0.06086796676 | BC52: 0.0857580212 | BD52: -0.0563144686 | BE52: 0.05256285555 | BF52: 0.1298141924 | BG52: 0.09325872162 | BH52: 0.08719445913 | BI52: 0.1079584383 | BJ52: 0.2028424253 | BK52: -0.02963848572 | BL52: 0.1109162682 | BM52: 0.07855046015 | BN52: 0.03550511546 | BO52: 0.2127082572 | BP52: 0.1022769964 | BQ52: 0.08584667036 | BR52: 0.1380972976 | BS52: 0.02962083531 | BT52: 0.05459015539 | BU52: 0.2177510764 | BV52: 0.07552415817 | BW52: 0.1328445877 | BX52: 0.08046769768 | BY52: 0.02407040078 | BZ52: 0.1382506773 | CA52: 0.08825402999 | CB52: 0.07356497603 | CC52: 0.1589625412 | CD52: 0.1583671479 | CE52: 0.1765374964 | CF52: 0.1604647258 | CG52: 0.1250230578 | CH52: 0.1397243267 | CI52: 0.0418830584 | CJ52: 0.09521301256
A53: 2009 | B53: 0.2106913288 | C53: 0.1724341295 | D53: 0.3638619808 | E53: 0.2813191986 | F53: 0.2448835032 | G53: 0.2718591752 | H53: 0.1918440457 | I53: 0.2333553154 | J53: 0.2167487111 | K53: 0.2425334316 | L53: 0.2467836276 | M53: 0.2201781402 | N53: 0.2453035899 | O53: 0.006921416667 | P53: 0.01036666667 | Q53: 0.004708333333 | R53: 0.01426666667 | S53: 0.02190833333 | T53: 0.02805833333 | U53: 0.03256666667 | V53: 0.041075 | W53: 0.04069166667 | X53: 0.0015 | Y53: 0.002791666667 | Z53: 0.005558333333 | AA53: 0.00875 | AB53: 0.05313333333 | AC53: 0.07295833333 | AD53: 0.05313333333 | AE53: 0.04620833333 | AF53: 0.05041375 | AG53: 0.2846184443 | AH53: 0.2883841892 | AI53: 0.2901149998 | AJ53: 0.02684961265 | AK53: 0.04126660017 | AL53: 0.2234309489 | AM53: -0.01204992466 | AN53: -0.01961093742 | AO53: -0.005778895283 | AP53: 0.01512778441 | AQ53: 0.00792701965 | AR53: 0.04567712498 | AS53: -0.001776233627 | AT53: -0.1385372524 | AU53: -0.0524950717 | AV53: -0.04986063991 | AW53: -0.08228174081 | AX53: 0.008825164236 | AY53: -0.00459877496 | AZ53: -0.005683112931 | BA53: 0.02872517143 | BB53: 0.009125486598 | BC53: -0.00165183594 | BD53: -0.07506067015 | BE53: -0.04332275733 | BF53: -0.01752985461 | BG53: 0.01037736232 | BH53: -0.02914437757 | BI53: -0.2188965496 | BJ53: 0.04077107802 | BK53: -0.1060603146 | BL53: -0.04095006715 | BM53: 0.02744759934 | BN53: -0.04508786848 | BO53: 0.04475816369 | BP53: -0.03259424682 | BQ53: 0.02282230552 | BR53: -0.01577209914 | BS53: 0.001567723292 | BT53: 0.003800019338 | BU53: 7.3630215e-06 | BV53: -0.03802089162 | BW53: 0.00588813117 | BX53: -0.01089348459 | BY53: -0.04583461638 | BZ53: 0.07324700192 | CA53: -0.05177645381 | CB53: -0.02243471767 | CC53: -0.01410040611 | CD53: 0.06324636054 | CE53: 0.05843522164 | CF53: 0.06050059416 | CG53: 0.05585754038 | CH53: 0.09478543603 | CI53: 0.04296364892 | CJ53: -0.04759994559
A54: 2010 | B54: 0.1202904579 | C54: 0.1045651323 | D54: 0.1562367608 | E54: 0.1675191113 | F54: 0.04788091114 | G54: 0.01014858915 | H54: 0.1229043746 | I54: 0.1279486367 | J54: 0.1238201651 | K54: 0.2435748292 | L54: 0.2464456724 | M54: 0.2037277839 | N54: 0.2434466506 | O54: 0.00343225 | P54: 0.00455 | Q54: 0.003183333333 | R54: 0.01105 | S54: 0.019275 | T54: 0.02616666667 | U54: 0.03214166667 | V54: 0.0403 | W54: 0.04250833333 | X54: 0.001366666667 | Y54: 0.001941666667 | Z54: 0.003116666667 | AA54: 0.004408333333 | AB54: 0.04943333333 | AC54: 0.06038333333 | AD54: 0.04943333333 | AE54: 0.04293333333 | AF54: 0.04690583333 | AJ54: 0.01484647887 | AK54: 0.06309868665 | AL54: 0.2565116274 | AM54: 0.04983252086 | AN54: 0.03658558114 | AO54: 0.0381684992 | AP54: 0.005113231623 | AQ54: 0.06702932663 | AR54: 0.03590480587 | AS54: 0.02445602929 | AT54: -0.08525900489 | AU54: -0.02878807798 | AV54: -0.04708008486 | AW54: 0.00687353761 | AX54: 0.09034601934 | AY54: 0.07937301123 | AZ54: 0.1749280978 | BA54: 0.0837533348 | BB54: 0.02282071382 | BC54: 0.07729251619 | BD54: -0.05042297853 | BE54: -0.03225688778 | BF54: 0.05949306716 | BG54: 0.06894620858 | BH54: 0.08341207869 | BI54: 0.03592928551 | BJ54: 0.1526209796 | BK54: -0.05535076235 | BL54: 0.005146118963 | BM54: 0.004218779343 | BN54: -0.009547950536 | BO54: 0.1141880361 | BP54: 0.03107638117 | BQ54: 0.06502555935 | BR54: 0.08909509633 | BS54: -0.01226513984 | BT54: 0.01675514457 | BU54: 0.1131492355 | BV54: 0.07924349781 | BW54: 0.06369602639 | BX54: 0.02168516885 | BY54: -0.04783255295 | BZ54: 0.1062950008 | CA54: -0.005529619722 | CB54: 0.005076237324 | CC54: 0.0532308608 | CD54: 0.08805988217 | CE54: 0.1432093934 | CF54: 0.08374981526 | CG54: 0.1195612445 | CH54: 0.09516228572 | CI54: 0.04323989066 | CJ54: -0.001582431461
A55: 2011 | B55: -3.180610996e-05 | C55: 0.05380983802 | D55: -0.0181518177 | E55: -0.03764206429 | F55: -0.1603963996 | G55: -0.1486970834 | H55: -0.1771640465 | I55: -0.01573650529 | J55: -0.001124695514 | K55: 0.07024855524 | L55: 0.07958461651 | M55: -0.02445303551 | N55: 0.07050238837 | O55: 0.003370333333 | P55: 0.004125 | Q55: 0.001816666667 | R55: 0.0075 | S55: 0.015225 | T55: 0.021625 | U55: 0.02785833333 | V55: 0.03620833333 | W55: 0.03910833333 | X55: 0.000525 | Y55: 0.0009583333333 | Z55: 0.003033333333 | AA55: 0.004216666667 | AB55: 0.04639166667 | AC55: 0.05664166667 | AD55: 0.04639166667 | AE55: 0.0451 | AF55: 0.04455833333 | AJ55: 0.02919387008 | AK55: 0.05187298927 | AL55: 0.08552800531 | AM55: 0.08691062109 | AN55: 0.0739394692 | AO55: 0.03388526517 | AP55: 0.001578019225 | AQ55: 0.05672554823 | AR55: 0.02497811754 | AS55: 0.06112875325 | AT55: 0.008412889122 | AU55: 0.0162738592 | AV55: -0.02242544897 | AW55: 0.02706336348 | AX55: 0.1623840614 | AY55: 0.2204057422 | AZ55: 0.2485974706 | BA55: 0.1874798469 | BB55: 0.01896474982 | BC55: 0.1038433236 | BD55: -0.01050808903 | BE55: 0.05027864626 | BF55: 0.1344179564 | BG55: 0.09506538309 | BH55: 0.09804108828 | BI55: 0.04746067972 | BJ55: 0.2635536722 | BK55: -0.02713418672 | BL55: 0.05805095121 | BM55: 0.02363873005 | BN55: 0.06476114268 | BO55: 0.1682016024 | BP55: 0.09882107174 | BQ55: 0.07117902774 | BR55: 0.09278196257 | BS55: 0.004457460317 | BT55: 0.02004742249 | BU55: 0.1804641545 | BV55: 0.03420403577 | BW55: 0.06213674425 | BX55: 0.01406597091 | BY55: -0.02785111714 | BZ55: 0.0992744877 | CA55: 0.1092303114 | CB55: 0.08094849401 | CC55: 0.07663507382 | CD55: 0.1515721657 | CE55: 0.2487472327 | CF55: 0.1552669005 | CG55: 0.1612434709 | CH55: 0.1702141891 | CI55: 0.04290475169 | CJ55: 0.01575403663
A56: 2012 | B56: 0.1258014103 | C56: 0.07005394968 | D56: 0.1476043114 | E56: 0.1264117782 | F56: 0.1271101622 | G56: 0.1410693759 | H56: 0.1040679221 | I56: 0.1213771642 | J56: 0.1268362505 | K56: 0.1835263827 | L56: 0.1798251929 | M56: 0.1813791152 | N56: 0.1800472884 | O56: 0.004303166667 | P56: 0.00415 | Q56: 0.00175 | R56: 0.003816666667 | S56: 0.007608333333 | T56: 0.01219166667 | U56: 0.018025 | V56: 0.02544166667 | W56: 0.02920833333 | X56: 0.0008583333333 | Y56: 0.001341666667 | Z56: 0.002825 | AA56: 0.004366666667 | AB56: 0.03673333333 | AC56: 0.04935 | AD56: 0.03673333333 | AE56: 0.03729166667 | AF56: 0.03655916667 | AJ56: 0.01726040219 | AK56: 0.008472515172 | AL56: 0.0793893264 | AM56: 0.1091284425 | AN56: 0.09130877452 | AO56: 0.0379755555 | AP56: 0.03601947418 | AQ56: 0.1110400865 | AR56: 0.05390004952 | AS56: 0.1060217313 | AT56: 0.01017719868 | AU56: 0.01717576378 | AV56: -0.07570275359 | AW56: 0.08821101987 | AX56: 0.171540793 | AY56: 0.1669009521 | AZ56: 0.2190450218 | BA56: 0.2268142534 | BB56: 0.06901043985 | BC56: 0.1193173797 | BD56: -0.007722420968 | BE56: 0.09945439804 | BF56: 0.2034835036 | BG56: 0.0633353635 | BH56: 0.1436909701 | BI56: 0.09888723654 | BJ56: 0.3095016791 | BK56: -0.04165562385 | BL56: 0.1468002586 | BM56: 0.08373984561 | BN56: 0.01062269396 | BO56: 0.2593918394 | BP56: 0.129455388 | BQ56: 0.1056562497 | BR56: 0.08045514475 | BS56: 0.04896020866 | BT56: 0.02136880024 | BU56: 0.2352100864 | BV56: 0.02719875189 | BW56: 0.03083992033 | BX56: 0.01937372705 | BY56: -0.01394890063 | BZ56: 0.1845421171 | CA56: -0.01783582241 | CB56: 0.08038337032 | CC56: 0.08502400486 | CD56: 0.1857541377 | CE56: 0.2481702505 | CF56: 0.2079515273 | CG56: 0.1697771399 | CH56: 0.2104496118 | CI56: 0.04391814984 | CJ56: 0.07751873128
A57: 2013 | B57: 0.2592922065 | C57: 0.2350674711 | D57: 0.3244005576 | E57: 0.1138881747 | F57: 0.1775241456 | G57: 0.1962240254 | H57: 0.1419068042 | I57: 0.2436670245 | J57: 0.2612203944 | K57: 0.03158208459 | L57: 0.02815719316 | M57: -0.01979506878 | N57: 0.02313555626 | O57: 0.002673916667 | P57: 0.002816666667 | Q57: 0.001316666667 | R57: 0.005433333333 | S57: 0.011725 | T57: 0.017375 | U57: 0.02350833333 | V57: 0.03119166667 | W57: 0.03448333333 | X57: 0.0005833333333 | Y57: 0.0008833333333 | Z57: 0.001858733006 | AA57: 0.002024350322 | AB57: 0.04235 | AC57: 0.05101666667 | AD57: 0.04235 | AE57: 0.04270833333 | AF57: 0.03981916667 | AJ57: 0.01490571205 | AK57: 0.002478316014 | AL57: -0.3192459 | AM57: 0.09372438613 | AN57: 0.08086146292 | AO57: 0.06287927809 | AP57: 0.06410937329 | AQ57: 0.06692019916 | AR57: 0.02564245687 | AS57: 0.1262457503 | AT57: 0.01135300983 | AU57: 0.01771339845 | AV57: 0.03945145446 | AW57: 0.08098898609 | AX57: 0.1621368933 | AY57: 0.1168428504 | AZ57: 0.1936889797 | BA57: 0.173549563 | BB57: 0.1016326711 | BC57: 0.09250837227 | BD57: 0.03448269953 | BE57: 0.1225866675 | BF57: 0.1745405512 | BG57: 0.04655444195 | BH57: 0.0817600484 | BI57: 0.07091075176 | BJ57: 0.1795250825 | BK57: 0.03849535037 | BL57: 0.03133821884 | BM57: -0.01032996266 | BN57: 0.01664263051 | BO57: 0.3205915891 | BP57: 0.1162604779 | BQ57: 0.07722580947 | BR57: 0.05059676063 | BS57: 0.02949045619 | BT57: 0.004091015793 | BU57: 0.2707846835 | BV57: 0.03835226352 | BW57: 0.01341576024 | BX57: 0.06990108842 | BY57: 0.01970459694 | BZ57: 0.09832816773 | CA57: 0.001855421931 | CB57: 0.02203872667 | CC57: 0.06051344542 | CD57: 0.2091050861 | CE57: 0.130499186 | CF57: 0.297708231 | CG57: 0.3205009107 | CH57: 0.1540152782 | CI57: 0.04118358651 | CJ57: 0.09680380742
A58: 2014 | B58: 0.1078731002 | C58: 0.07249800366 | D58: 0.1257083308 | E58: 0.055568837 | F58: -0.07629244031 | G58: -0.08977471027 | H58: -0.05325062182 | I58: 0.09773230167 | J58: 0.1052683387 | K58: 0.2401765677 | L58: 0.247075621 | M58: 0.1645181886 | N58: 0.2408167829 | O58: 0.002337666667 | P58: 0.0025 | Q58: 0.001208333333 | R58: 0.008958333333 | S58: 0.01640833333 | T58: 0.021425 | U58: 0.02540833333 | V58: 0.03074166667 | W58: 0.0334 | X58: 0.000325 | Y58: 0.0006416666667 | Z58: 0.001858733006 | AA58: 0.002024350322 | AB58: 0.041625 | AC58: 0.04854166667 | AD58: 0.041625 | AE58: 0.042325 | AF58: 0.04172833333 | AJ58: 0.007536462089 | AK58: -0.02202291209 | AL58: 0.001244555232 | AM58: 0.09676932791 | AN58: 0.08736575207 | AO58: 0.06988620441 | AP58: 0.07076170821 | AQ58: 0.08389036869 | AR58: 0.0898327867 | AS58: 0.109936123 | AT58: 0.006048127337 | AU58: 0.02903697152 | AV58: 0.03081526665 | AW58: 0.1178004018 | AX58: 0.07918852053 | AY58: 0.08998883003 | AZ58: 0.1043558658 | BA58: 0.1856503509 | BB58: 0.09750370026 | BC58: 0.07470387568 | BD58: 0.0232867773 | BE58: 0.1150133584 | BF58: 0.1384602531 | BG58: 0.08568452189 | BH58: 0.09929076002 | BI58: 0.1132883177 | BJ58: 0.1345885859 | BK58: 0.01252447733 | BL58: 0.113787377 | BM58: 0.05972859039 | BN58: 0.05910417374 | BO58: 0.1732785306 | BP58: 0.1198921396 | BQ58: 0.08524935755 | BR58: 0.09782229747 | BS58: 0.0554492033 | BT58: 0.04416274515 | BU58: 0.2228797687 | BV58: 0.03947711265 | BW58: 0.09421116474 | BX58: 0.1040384491 | BY58: 0.02403280582 | BZ58: 0.1376799091 | CA58: 0.02153770402 | CB58: 0.07889837673 | CC58: 0.08922997644 | CD58: 0.1263134728 | CE58: 0.02748570854 | CF58: 0.2112160903 | CG58: 0.2298452763 | CH58: 0.05896963135 | CI58: 0.03773238644 | CJ58: 0.104801872
A59: 2015 | B59: -0.007292541897 | C59: -0.02258604758 | D59: 0.05571539155 | E59: -0.08975014471 | F59: -0.03357929126 | G59: -0.05463221207 | H59: 0.004351626384 | I59: -0.02401948906 | J59: -0.007679316714 | K59: 0.02263850318 | L59: 0.02786057406 | M59: -0.09295000906 | N59: 0.02029836105 | O59: 0.003005922619 | P59: 0.002058333333 | Q59: 0.003216666667 | R59: 0.01025833333 | S59: 0.01529166667 | T59: 0.01889166667 | U59: 0.02135833333 | V59: 0.02546666667 | W59: 0.02840833333 | X59: 0.000525 | Y59: 0.001633333333 | AB59: 0.03886666667 | AC59: 0.04999166667 | AD59: 0.03886666667 | AE59: 0.036575 | AF59: 0.03849 | AJ59: 0.007268716617 | AK59: -0.07403011782 | AL59: -0.1290401902 | AM59: 0.06062109729 | AN59: 0.05468898431 | AO59: 0.04412703617 | AP59: 0.01508132556 | AQ59: 0.1021198196 | AR59: 0.08547857039 | AS59: 0.115469296 | AT59: 0.006526401661 | AU59: 0.04727201486 | AV59: 0.02083484163 | AW59: 0.1005099386 | AX59: 0.02112772629 | AY59: 0.03771211481 | AZ59: -0.05226610051 | BA59: 0.01803159566 | BB59: 0.08291384145 | BC59: 0.07682524969 | BD59: 0.04423883664 | BE59: 0.06837924526 | BF59: 0.02775765136 | BG59: 0.08712746952 | BH59: 0.08905157601 | BI59: 0.06323077018 | BJ59: 0.003766994366 | BK59: 0.01941845318 | BL59: 0.05325712796 | BM59: 0.1279297822 | BN59: 0.01956267871 | BO59: 0.0710227509 | BP59: 0.06994268652 | BQ59: 0.06906122712 | BR59: 0.08697628547 | BS59: 0.004875889502 | BT59: 0.03388279056 | BU59: 0.1362484731 | BV59: 0.04400159492 | BW59: 0.04540464423 | BX59: 0.04624845252 | BY59: 0.02205162701 | BZ59: 0.1303203801 | CA59: 0.02903087117 | CB59: 0.07300744211 | CD59: 0.1035403063 | CE59: 0.001432849464 | CF59: 0.1699728033 | CG59: 0.1846970734 | CH59: 0.03192650993 | CI59: 0.03724034067 | CJ59: 0.04973244683
A60: 2016 | B60: 0.09107409028 | C60: 0.1258836246 | D60: 0.07234928522 | E60: 0.1527980959 | F60: -0.0189872421 | G60: -0.034455413 | H60: 0.01481298904 | I60: 0.0938576405 | J60: 0.0881459505 | K60: 0.08876887159 | L60: 0.08277028418 | M60: 0.2057915059 | N60: 0.08961122226 | O60: 0.004961240543 | P60: 0.0071 | Q60: 0.006141666667 | R60: 0.01005833333 | S60: 0.01338333333 | T60: 0.01636666667 | U60: 0.01841666667 | V60: 0.02225 | W60: 0.025975 | X60: 0.003175 | Y60: 0.004558333333 | AB60: 0.03665833333 | AC60: 0.047175 | AD60: 0.03665833333 | AE60: 0.03144444444 | AF60: 0.03647708333 | AJ60: 0.02053394935 | AK60: 0.02529055966 | AL60: 0.07792144633 | AM60: 0.03001401758 | AN60: 0.0303996836 | AO60: 0.05561222714 | AP60: 0.01365069673 | AQ60: 0.02877988489 | AR60: 0.05491706844 | AS60: 0.03099081117 | AT60: 0.03339356317 | AU60: 0.01575050058 | AV60: 0.06856607023 | AW60: 0.06799119182 | AX60: 0.01057087443 | AY60: 0.009877023449 | AZ60: -0.01090971534 | BA60: -0.04628934235 | BB60: 0.08099498652 | BC60: 0.06070427142 | BD60: 0.03725430621 | BE60: 0.006922303157 | BF60: 0.03621245269 | BG60: 0.0716484402 | BH60: 0.02885162714 | BI60: 0.03985851475 | BJ60: -0.007055632788 | BK60: -0.003157814273 | BL60: 0.09569464303 | BM60: 0.01379008519 | BN60: 0.01205144514 | BO60: -0.03613153483 | BP60: 0.02643998856 | BQ60: 0.05385857553 | BR60: 0.08818366751 | BS60: 0.02268821775 | BT60: 0.03068796629 | BU60: -0.008969671682 | BV60: 0.043946533 | BW60: 0.006714704767 | BX60: 0.03105325733 | BY60: 0.01496555541 | BZ60: 0.1019801073 | CA60: 0.006310724806 | CB60: 0.01693733132 | CC60: 0.04105112188 | CD60: 0.07088558576 | CE60: -0.04556242316 | CF60: 0.1012873675 | CG60: 0.1093617917 | CH60: 0.02766277757 | CI60: 0.03589970484 | CJ60: 0.0259
A61: 2017 | B61: 0.1774762111 | C61: 0.2237898445 | D61: 0.2487444834 | E61: 0.1748991197 | F61: 0.1970531689 | G61: 0.1999214289 | H61: 0.1953095076 | I61: 0.175307534 | J61: 0.1781441418 | K61: 0.08862684194 | L61: 0.08318153528 | M61: 0.1805598342 | N61: 0.08887130053 | O61: 0.01113025085 | P61: 0 | Q61: 0.01200833333 | R61: 0.015775 | S61: 0.0191 | T61: 0.02159166667 | U61: 0.0233 | V61: 0.026525 | W61: 0.02895 | X61: 0.009308333333 | Y61: 0.01049166667 | AB61: 0.03743333333 | AC61: 0.0444 | AD61: 0.03743333333 | AE61: 0 | AF61: 0.03991 | AJ61: 0.02087149188 | AK61: 0.04213887413 | AL61: 0.1192267574 | AM61: 0.04736658687 | AN61: 0.04541973953 | AO61: 0.04696860621 | AP61: 0.08599371545 | AQ61: 0.07112117373 | AR61: 0.1269505624 | AS61: 0.05638339863 | AT61: 0.006699938981 | AU61: 0.07468402753 | AV61: 0.07300611064 | AW61: 0.09290801419 | AX61: 0.009424628174 | AY61: -0.01049631034 | AZ61: 0.02645323626 | BA61: 0.01514475098 | BB61: 0.0695828253 | BC61: 0.05969669531 | BD61: 0.02947392149 | BE61: 0.02851872483 | BF61: 0.04520711694 | BG61: 0.06272878263 | BH61: 0.0002011363317 | BI61: 0.049217445 | BJ61: 0.01189101716 | BK61: 0.004421438276 | BL61: 0.08403717818 | BM61: 0.02350768484 | BN61: 0.02172880742 | BO61: 0.02371202445 | BP61: 0.02647750576 | BQ61: 0.0525353639 | BR61: 0.0973435267 | BS61: 0.03903457679 | BT61: 0.03338815535 | BU61: -0.008302578257 | BV61: 0.04086558168 | BW61: 0.06056898407 | BX61: 0.04658613232 | BY61: 0.03485755544 | BZ61: 0.09637611169 | CA61: 0.01824509305 | CB61: 0.0974336936 | CC61: 0.03763296756 | CD61: 0.06192520868 | CE61: 0.02132600146 | CF61: 0.08135619572 | CG61: 0.08037399787 | CH61: 0.04114748313 | CI61: 0.03624732088 | CJ61: 0.0363
A62: 2018 | B62: -0.06440259512 | C62: -0.05794985951 | D62: -0.0396117802 | E62: -0.08334037647 | F62: -0.1759705638 | G62: -0.1895611648 | H62: -0.1540246246 | I62: -0.07319764345 | J62: -0.06537463392 | K62: -0.04187017339 | L62: -0.04128608075 | M62: -0.02555545637 | N62: -0.04014593766 | O62: 0.02021688827 | P62: 0 | Q62: 0.02331666667 | R62: 0.026275 | S62: 0.02748333333 | T62: 0.02850833333 | U62: 0.0291 | V62: 0.03018333333 | W62: 0.031125 | X62: 0.01939166667 | Y62: 0.02095833333 | AB62: 0.0393 | AC62: 0.048 | AD62: 0.0393 | AE62: 0 | AF62: 0.04539041667 | AJ62: 0.01892144357 | AK62: 0.02366080678 | AL62: -0.009338589268 | AM62: 0.04270353678 | AN62: 0.04048988404 | AO62: 0.0396008594 | AP62: 0.03499892935 | AQ62: 0.05211647046 | AR62: 0.06393021799 | AS62: 0.04289261062 | AT62: 0.0308434292 | AU62: 0.01846720921 | AV62: 0.01455478679 | AW62: 0.08825406448 | AX62: 0.04620481502 | AY62: 0.02785392039 | AZ62: 0.01929012275 | BA62: 0.004873121335 | BB62: 0.05491500867 | BC62: 0.05480393024 | BD62: 0.0414325111 | BE62: 0.02494045109 | BF62: 0.02462390676 | BG62: 0.06468374561 | BH62: 0.113635982 | BI62: 0.02748826477 | BJ62: 0.01225640729 | BK62: 0.004121064082 | BM62: 0.02959596464 | BN62: 0.02743821108 | BO62: 0.01288093124 | BP62: 0.05033807405 | BQ62: 0.04602151978 | BR62: 0.0752025412 | BS62: 0.03875982901 | BT62: 0.03629914851 | BU62: 0.02067327035 | BV62: 0.04226070236 | BW62: 0.08417964079 | BX62: 0.04953340125 | BY62: 0.01535323808 | BZ62: 0.09828034352 | CA62: 0.0153638172 | CB62: 0.03014301598 | CD62: 0.06737786409 | CE62: 0.02644774255 | CF62: 0.08234928511 | CG62: 0.08663889154 | CH62: 0.06996658588 | CI62: 0.03513206474 | CJ62: 0.0321
A63: 2019 | B63: 0.2536965791 | C63: 0.2016206836 | D63: 0.3017746106 | E63: 0.101585572 | F63: -0.1759705638 | G63: -0.1895611648 | H63: 0.1476793135 | I63: 0.2533517984 | J63: 0.2551980387 | K63: 0.2473958714 | L63: 0.252025406 | M63: 0.1933510884 | N63: 0.2484814029 | O63: 0.02021688827 | P63: 0 | Q63: 0.02053333333 | R63: 0.01940833333 | S63: 0.019575 | T63: 0.02049166667 | U63: 0.02144166667 | V63: 0.02403333333 | W63: 0.025825 | X63: 0.02060833333 | Y63: 0.02053333333 | AB63: 0.033875 | AC63: 0.04375 | AD63: 0.033875 | AE63: 0 | AF63: 0.0393375 | AJ63: 0.02259411707 | AK63: -0.01000008333 | AL63: 0.1691718862 | AM63: 0.04434696988 | AN63: 0.04388369422 | AO63: 0.05512460337 | AP63: 0.03714770865 | AQ63: 0.08243018621 | AR63: 0.09467056208 | AS63: 0.03766254034 | AT63: 0.07391013139 | AU63: 0.01902066015 | AV63: 0.02257856298 | AW63: 0.08023771111 | AX63: 0.03003585108 | AY63: 0.02733842346 | AZ63: 0.01958688207 | BA63: 0.08175509315 | BB63: 0.04390692627 | BC63: 0.05503320541 | BD63: 0.03473460882 | BE63: 0.02194414722 | BF63: 0.02713142635 | BG63: 0.05667440493 | BH63: 0.03889641739 | BI63: 0.02747942504 | BJ63: 0.07235141121 | BK63: -0.003225297805 | BL63: 0.05879219326 | BM63: 0.0147365039 | BN63: 0.02343049627 | BO63: 0.0498255426 | BP63: 0.03387208647 | BQ63: 0.05590055489 | BR63: 0.07059295064 | BS63: 0.03914911681 | BT63: 0.04104276872 | BU63: 0.0353870128 | BV63: 0.04008947385 | BW63: 0.05183606556 | BX63: 0.06307260891 | BY63: 0.01449808981 | BZ63: 0.06187387061 | CA63: 0.02212337491 | CB63: 0.03405283205 | CC63: 0.05253033015 | CD63: 0.04367502476 | CE63: 0.02904477504 | CF63: 0.05986407701 | CG63: 0.06238822045 | CH63: 0.03045912063 | CI63: 0.03373005433 | CJ63: 0.021
A64: 2020 | B64: 0.150649613 | C64: 0.06995983531 | D64: 0.3621429469 | E64: 0.09473043271 | F64: 0.1691946517 | G64: 0.1825928691 | H64: 0.08858175058 | I64: 0.1687305134 | J64: 0.1758362775 | K64: -0.06039306296 | L64: -0.05257379013 | M64: -0.2078544832 | N64: -0.06161633032 | O64: 0.02225676459 | Q64: 0.003791666667 | R64: 0.004283333333 | S64: 0.0054 | T64: 0.007266666667 | U64: 0.008941666667 | V64: 0.01353333333 | W64: 0.01561666667 | X64: 0.00365 | Y64: 0.003716666667 | AB64: 0.02476666667 | AC64: 0.036025 | AD64: 0.02476666667 | AF64: 0.03113666667 | AJ64: 0.01258710013 | AK64: -0.004028202829 | AL64: 0.220055772 | AM64: 0.02883864333 | AN64: 0.02883507993 | AO64: 0.03249998207 | AP64: 0.04813058942 | AQ64: 0.04403599154 | AR64: 0.02851342813 | AS64: 0.03889793676 | AT64: 0.01086293127 | AU64: 0.005156258597 | AV64: 0.04125546967 | AW64: 0.07352115819 | AX64: 0.0465098704 | AY64: 0.03050195262 | AZ64: 0.01464363198 | BA64: -0.00555304921 | BB64: 0.05455956558 | BC64: 0.0419285758 | BD64: 0.0117126063 | BE64: 0.02036980013 | BF64: 0.02936445444 | BG64: 0.04254378685 | BH64: 0.03255109391 | BI64: 0.03044633428 | BJ64: 0.01728496706 | BK64: 0.003654195162 | BL64: 0.05209418595 | BM64: -0.02217905504 | BN64: 0.01206781264 | BO64: 0.02140529247 | BP64: 0.02896256698 | BQ64: 0.02853692286 | BR64: 0.05592337279 | BS64: 0.0239759225 | BT64: 0.04344671806 | BU64: 0.008004779982 | BV64: 0.04880007629 | BW64: 0.04079317295 | BX64: 0.03060520624 | BY64: 0.002223236417 | BZ64: 0.05031384496 | CA64: 0.01713757205 | CB64: 0.004977431986 | CC64: 0.04175768616 | CD64: 0.03082974718 | CE64: 0.01273002664 | CF64: 0.04204050055 | CG64: 0.04361617359 | CH64: 0.025733704 | CI64: 0.04111536185 | CJ64: 0.021
CK65: Prelim - replace when available

Sheet Farmland Correlation Periods
AI1: Enter Holding period length
AI2: 3 | AJ2: =IF(AI2=1,"(year)","(years)") -> (years)
AI4: US Ag (32 states) -- correlation with…. | AR4: ="Rolling Geometric "&AI2& " year returns" -> Rolling Geometric 3 year returns | AV4: US Ag (32 states) -- correlation with…. | BC4: ="Non-overlapping "&AI2& " year returns" -> Non-overlapping 3 year returns
AI6: Graph Summary Data | AZ6: Graph Summary Data
C7: =MATCH(C$13,Data!$A$3:$CC$3,0) -> 39 | AJ7: 1 | AK7: 2 | AL7: 3 | AM7: 4 | AN7: 5 | AO7: 6 | AP7: 7 | AQ7: 8 | AR7: 9 | AS7: 10 | AT7: 11 | AU7: 12 | AV7: 13 | AW7: 14 | BA7: 1 | BB7: 2 | BC7: 3 | BD7: 4 | BE7: 5 | BF7: 6 | BG7: 7 | BH7: 8 | BI7: 9 | BJ7: 10 | BK7: 11 | BL7: 12 | BM7: 13 | BN7: 14
AJ8: =RANK(AJ68,$AJ$68:$AW$68) -> 7 | AK8: 4 | AL8: 2 | AM8: 3 | AN8: 5 | AO8: 13 | AP8: 14 | AQ8: 10 | AR8: 11 | AS8: 1 | AT8: 9 | AU8: 8 | AV8: 6 | AW8: 12 | BA8: =RANK(BA68,$BA$68:$BN$68) -> 6 | BB8: 7 | BC8: 2 | BD8: 3 | BE8: 4 | BF8: 13 | BG8: 14 | BH8: 10 | BI8: 11 | BJ8: 1 | BK8: 9 | BL8: 8 | BM8: 5 | BN8: 12
AJ9: =OFFSET($AI$67,0,MATCH(AJ7,$AJ$8:$AW$8,0)) -> US Ave Farm (all) | AK9: PPI | AL9: CPI | AM9: Gold | AN9: TBSM3M | AO9: TCM10Y | AP9: AAA | AQ9: Mort30F | AR9: BAA | AS9: Equity REITS | AT9: Composite REITS | AU9: EAFE | AV9: S&P500 | AW9: Dow Jones | BA9: =OFFSET($AZ$67,0,MATCH(BA7,$BA$8:$BN$8,0)) -> US Ave Farm (all) | BB9: PPI | BC9: CPI | BD9: TBSM3M | BE9: TCM10Y | BF9: AAA | BG9: Gold | BH9: Mort30F | BI9: BAA | BJ9: Equity REITS | BK9: Composite REITS | BL9: EAFE | BM9: S&P500 | BN9: Dow Jones
AJ10: =OFFSET($AI$68,0,MATCH(AJ7,$AJ$8:$AW$8,0)) -> 0.9954434022 | AK10: 0.7580859288 | AL10: 0.7148816254 | AM10: 0.3797075987 | AN10: 0.2894178114 | AO10: 0.175861324 | AP10: 0.125556404 | AQ10: 0.122475465 | AR10: 0.1058840296 | AS10: 0.003070708688 | AT10: -0.1080388058 | AU10: -0.1540619784 | AV10: -0.2820718227 | AW10: -0.4295342289 | BA10: =OFFSET($AZ$68,0,MATCH(BA7,$BA$8:$BN$8,0)) -> 0.9964564965 | BB10: =OFFSET($AZ$68,0,MATCH(BB7,$BA$8:$BN$8,0)) -> 0.7415567118 | BC10: 0.7119624463 | BD10: 0.3569535922 | BE10: 0.2403665817 | BF10: 0.1932414604 | BG10: 0.178998441 | BH10: 0.1738328632 | BI10: 0.1732821754 | BJ10: -0.1035890731 | BK10: -0.1897318172 | BL10: -0.3185194862 | BM10: -0.4021007493 | BN10: -0.5543942139
C11: These are only place asset displayed are changeable | AJ11: Time Interval for Holding period.
S12: Simple ave rolling | AI12: Geometric | AZ12: ="Nonoverlapping "&AI2&" year holding periods" -> Nonoverlapping 3 year holding periods
C13: US Ag 32 States | D13: AAA | E13: Gold | F13: PPI | G13: CPI | H13: TBSM3M | I13: S&P500 | J13: Dow Jones | K13: Equity REITS | L13: Composite REITS | M13: US Ave Farm (all) | N13: BAA | O13: Mort30F | P13: TCM10Y | Q13: EAFE | S13: =C13 -> US Ag 32 States | T13: =D13 -> AAA | U13: Gold | V13: PPI | W13: CPI | X13: TBSM3M | Y13: S&P500 | Z13: Dow Jones | AA13: Equity REITS | AB13: Composite REITS | AC13: US Ave Farm (all) | AD13: BAA | AE13: Mort30F | AF13: TCM10Y | AG13: EAFE | AI13: =C13 -> US Ag 32 States | AJ13: =D13 -> AAA | AK13: Gold | AL13: PPI | AM13: CPI | AN13: TBSM3M | AO13: S&P500 | AP13: Dow Jones | AQ13: Equity REITS | AR13: Composite REITS | AS13: US Ave Farm (all) | AT13: BAA | AU13: Mort30F | AV13: TCM10Y | AW13: EAFE | AZ13: =C13 -> US Ag 32 States | BA13: =D13 -> AAA | BB13: Gold | BC13: PPI | BD13: CPI | BE13: TBSM3M | BF13: S&P500 | BG13: Dow Jones | BH13: Equity REITS | BI13: Composite REITS | BJ13: US Ave Farm (all) | BK13: BAA | BL13: Mort30F | BM13: TCM10Y | BN13: EAFE
B14: 1970 | C14: =VLOOKUP($B14,retdat,MATCH(C$13,Data!$A$3:$CC$3,0),0) -> 0.1097488299 | D14: =VLOOKUP($B14,retdat,MATCH(D$13,Data!$A$3:$CC$3,0),0) -> 0.0804 | E14: =VLOOKUP($B14,retdat,MATCH(E$13,Data!$A$3:$CC$3,0),0) -> 0.06254620512 | F14: =VLOOKUP($B14,retdat,MATCH(F$13,Data!$A$3:$CC$3,0),0) -> 0.02179922834 | G14: =VLOOKUP($B14,retdat,MATCH(G$13,Data!$A$3:$CC$3,0),0) -> 0.05420681784 | H14: =VLOOKUP($B14,retdat,MATCH(H$13,Data!$A$3:$CC$3,0),0) -> 0.06391666667 | I14: =VLOOKUP($B14,retdat,MATCH(I$13,Data!$A$3:$CC$3,0),0) -> 0.0009771457267 | J14: =VLOOKUP($B14,retdat,MATCH(J$13,Data!$A$3:$CC$3,0),0) -> 0.04697990714 | K14: =VLOOKUP($B14,retdat,MATCH(K$13,Data!$A$3:$CC$3,0),0) -> 0 | L14: =VLOOKUP($B14,retdat,MATCH(L$13,Data!$A$3:$CC$3,0),0) -> 0 | M14: =VLOOKUP($B14,retdat,MATCH(M$13,Data!$A$3:$CC$3,0),0) -> 0.1060521362 | N14: =VLOOKUP($B14,retdat,MATCH(N$13,Data!$A$3:$CC$3,0),0) -> 0.09105 | O14: =VLOOKUP($B14,retdat,MATCH(O$13,Data!$A$3:$CC$3,0),0) -> 0 | P14: =VLOOKUP($B14,retdat,MATCH(P$13,Data!$A$3:$CC$3,0),0) -> 0.07348333333 | Q14: =VLOOKUP($B14,retdat,MATCH(Q$13,Data!$A$3:$CC$3,0),0) -> -0.1384395561 | AY14: 1 | AZ14: =IF(TRUNC($AY14/$AI$2)-$AY14/$AI$2 = 0,AI14,"") ->  | BA14: =IF(TRUNC($AY14/$AI$2)-$AY14/$AI$2 = 0,AJ14,"") ->  | BB14: =IF(TRUNC($AY14/$AI$2)-$AY14/$AI$2 = 0,AK14,"") ->  | BC14: =IF(TRUNC($AY14/$AI$2)-$AY14/$AI$2 = 0,AL14,"") ->  | BD14: =IF(TRUNC($AY14/$AI$2)-$AY14/$AI$2 = 0,AM14,"") ->  | BE14: =IF(TRUNC($AY14/$AI$2)-$AY14/$AI$2 = 0,AN14,"") ->  | BF14: =IF(TRUNC($AY14/$AI$2)-$AY14/$AI$2 = 0,AO14,"") ->  | BG14: =IF(TRUNC($AY14/$AI$2)-$AY14/$AI$2 = 0,AP14,"") ->  | BH14: =IF(TRUNC($AY14/$AI$2)-$AY14/$AI$2 = 0,AQ14,"") ->  | BI14: =IF(TRUNC($AY14/$AI$2)-$AY14/$AI$2 = 0,AR14,"") ->  | BJ14: =IF(TRUNC($AY14/$AI$2)-$AY14/$AI$2 = 0,AS14,"") ->  | BK14: =IF(TRUNC($AY14/$AI$2)-$AY14/$AI$2 = 0,AT14,"") ->  | BL14: =IF(TRUNC($AY14/$AI$2)-$AY14/$AI$2 = 0,AU14,"") ->  | BM14: =IF(TRUNC($AY14/$AI$2)-$AY14/$AI$2 = 0,AV14,"") ->  | BN14: =IF(TRUNC($AY14/$AI$2)-$AY14/$AI$2 = 0,AW14,"") -> 
B15: 1971 | C15: =VLOOKUP($B15,retdat,MATCH(C$13,Data!$A$3:$CC$3,0),0) -> 0.1091581117 | D15: =VLOOKUP($B15,retdat,MATCH(D$13,Data!$A$3:$CC$3,0),0) -> 0.07386666667 | E15: =VLOOKUP($B15,retdat,MATCH(E$13,Data!$A$3:$CC$3,0),0) -> 0.1495614106 | F15: =VLOOKUP($B15,retdat,MATCH(F$13,Data!$A$3:$CC$3,0),0) -> 0.03963530686 | G15: =VLOOKUP($B15,retdat,MATCH(G$13,Data!$A$3:$CC$3,0),0) -> 0.03214120921 | H15: =VLOOKUP($B15,retdat,MATCH(H$13,Data!$A$3:$CC$3,0),0) -> 0.043325 | I15: =VLOOKUP($B15,retdat,MATCH(I$13,Data!$A$3:$CC$3,0),0) -> 0.1024370931 | J15: =VLOOKUP($B15,retdat,MATCH(J$13,Data!$A$3:$CC$3,0),0) -> 0.05935464673 | K15: =VLOOKUP($B15,retdat,MATCH(K$13,Data!$A$3:$CC$3,0),0) -> 0 | L15: =VLOOKUP($B15,retdat,MATCH(L$13,Data!$A$3:$CC$3,0),0) -> 0 | M15: =VLOOKUP($B15,retdat,MATCH(M$13,Data!$A$3:$CC$3,0),0) -> 0.1087877483 | N15: =VLOOKUP($B15,retdat,MATCH(N$13,Data!$A$3:$CC$3,0),0) -> 0.08563333333 | O15: =VLOOKUP($B15,retdat,MATCH(O$13,Data!$A$3:$CC$3,0),0) -> 0.07545777778 | P15: =VLOOKUP($B15,retdat,MATCH(P$13,Data!$A$3:$CC$3,0),0) -> 0.06159166667 | Q15: =VLOOKUP($B15,retdat,MATCH(Q$13,Data!$A$3:$CC$3,0),0) -> 0.2322552845 | AY15: 2
B16: 1972 | C16: =VLOOKUP($B16,retdat,MATCH(C$13,Data!$A$3:$CC$3,0),0) -> 0.1387601366 | D16: =VLOOKUP($B16,retdat,MATCH(D$13,Data!$A$3:$CC$3,0),0) -> 0.07213333333 | E16: =VLOOKUP($B16,retdat,MATCH(E$13,Data!$A$3:$CC$3,0),0) -> 0.3851747814 | F16: =VLOOKUP($B16,retdat,MATCH(F$13,Data!$A$3:$CC$3,0),0) -> 0.06275584503 | G16: =VLOOKUP($B16,retdat,MATCH(G$13,Data!$A$3:$CC$3,0),0) -> 0.03349595443 | H16: =VLOOKUP($B16,retdat,MATCH(H$13,Data!$A$3:$CC$3,0),0) -> 0.040725 | I16: =VLOOKUP($B16,retdat,MATCH(I$13,Data!$A$3:$CC$3,0),0) -> 0.1452534864 | J16: =VLOOKUP($B16,retdat,MATCH(J$13,Data!$A$3:$CC$3,0),0) -> 0.1361117497 | K16: =VLOOKUP($B16,retdat,MATCH(K$13,Data!$A$3:$CC$3,0),0) -> 0.07705605628 | L16: =VLOOKUP($B16,retdat,MATCH(L$13,Data!$A$3:$CC$3,0),0) -> 0.1060924044 | M16: =VLOOKUP($B16,retdat,MATCH(M$13,Data!$A$3:$CC$3,0),0) -> 0.1370486513 | N16: =VLOOKUP($B16,retdat,MATCH(N$13,Data!$A$3:$CC$3,0),0) -> 0.08155 | O16: =VLOOKUP($B16,retdat,MATCH(O$13,Data!$A$3:$CC$3,0),0) -> 0.07383291667 | P16: =VLOOKUP($B16,retdat,MATCH(P$13,Data!$A$3:$CC$3,0),0) -> 0.0621 | Q16: =VLOOKUP($B16,retdat,MATCH(Q$13,Data!$A$3:$CC$3,0),0) -> 0.2872896395 | S16: =AVERAGE(C14:C16) -> 0.1192223594 | T16: =AVERAGE(D14:D16) -> 0.07546666667 | U16: 0.1990941324 | V16: 0.04139679341 | W16: 0.03994799383 | X16: 0.04932222222 | Y16: 0.08288924171 | Z16: 0.08081543452 | AA16: 0.02568535209 | AB16: 0.0353641348 | AC16: 0.1172961786 | AD16: 0.08607777778 | AE16: 0.04976356481 | AF16: 0.065725 | AG16: 0.1270351226 | AI16: =GEOMEAN(C87:OFFSET(C87,$AI$2-1,0))-1 -> 0.1191375571 | AJ16: =GEOMEAN(D87:OFFSET(D87,$AI$2-1,0))-1 -> 0.07546078392 | AK16: =GEOMEAN(E87:OFFSET(E87,$AI$2-1,0))-1 -> 0.1915936836 | AL16: =GEOMEAN(F87:OFFSET(F87,$AI$2-1,0))-1 -> 0.04126202739 | AM16: =GEOMEAN(G87:OFFSET(G87,$AI$2-1,0))-1 -> 0.03989918981 | AN16: =GEOMEAN(H87:OFFSET(H87,$AI$2-1,0))-1 -> 0.04927116416 | AO16: =GEOMEAN(I87:OFFSET(I87,$AI$2-1,0))-1 -> 0.0811680433 | AP16: =GEOMEAN(J87:OFFSET(J87,$AI$2-1,0))-1 -> 0.0801073584 | AQ16: =GEOMEAN(K87:OFFSET(K87,$AI$2-1,0))-1 -> 0.02505248394 | AR16: =GEOMEAN(L87:OFFSET(L87,$AI$2-1,0))-1 -> 0.03418238599 | AS16: =GEOMEAN(M87:OFFSET(M87,$AI$2-1,0))-1 -> 0.1172088181 | AT16: =GEOMEAN(N87:OFFSET(N87,$AI$2-1,0))-1 -> 0.08607081033 | AU16: =GEOMEAN(O87:OFFSET(O87,$AI$2-1,0))-1 -> 0.04916394892 | AV16: =GEOMEAN(P87:OFFSET(P87,$AI$2-1,0))-1 -> 0.06571089382 | AW16: =GEOMEAN(Q87:OFFSET(Q87,$AI$2-1,0))-1 -> 0.109739143 | AY16: 3 | AZ16: 0.1191375571 | BA16: 0.07546078392 | BB16: 0.1915936836 | BC16: 0.04126202739 | BD16: 0.03989918981 | BE16: 0.04927116416 | BF16: 0.0811680433 | BG16: 0.0801073584 | BH16: 0.02505248394 | BI16: 0.03418238599 | BJ16: 0.1172088181 | BK16: 0.08607081033 | BL16: 0.04916394892 | BM16: 0.06571089382 | BN16: 0.109739143
B17: 1973 | C17: =VLOOKUP($B17,retdat,MATCH(C$13,Data!$A$3:$CC$3,0),0) -> 0.1796312919 | D17: =VLOOKUP($B17,retdat,MATCH(D$13,Data!$A$3:$CC$3,0),0) -> 0.07440833333 | E17: =VLOOKUP($B17,retdat,MATCH(E$13,Data!$A$3:$CC$3,0),0) -> 0.5129862561 | F17: =VLOOKUP($B17,retdat,MATCH(F$13,Data!$A$3:$CC$3,0),0) -> 0.1426141072 | G17: =VLOOKUP($B17,retdat,MATCH(G$13,Data!$A$3:$CC$3,0),0) -> 0.08347572216 | H17: =VLOOKUP($B17,retdat,MATCH(H$13,Data!$A$3:$CC$3,0),0) -> 0.07031666667 | I17: =VLOOKUP($B17,retdat,MATCH(I$13,Data!$A$3:$CC$3,0),0) -> -0.1907431965 | J17: =VLOOKUP($B17,retdat,MATCH(J$13,Data!$A$3:$CC$3,0),0) -> -0.1812632934 | K17: =VLOOKUP($B17,retdat,MATCH(K$13,Data!$A$3:$CC$3,0),0) -> -0.1686453658 | L17: =VLOOKUP($B17,retdat,MATCH(L$13,Data!$A$3:$CC$3,0),0) -> -0.317683107 | M17: =VLOOKUP($B17,retdat,MATCH(M$13,Data!$A$3:$CC$3,0),0) -> 0.1706871132 | N17: =VLOOKUP($B17,retdat,MATCH(N$13,Data!$A$3:$CC$3,0),0) -> 0.08240833333 | O17: =VLOOKUP($B17,retdat,MATCH(O$13,Data!$A$3:$CC$3,0),0) -> 0.08042916667 | P17: =VLOOKUP($B17,retdat,MATCH(P$13,Data!$A$3:$CC$3,0),0) -> 0.068425 | Q17: =VLOOKUP($B17,retdat,MATCH(Q$13,Data!$A$3:$CC$3,0),0) -> -0.184137987 | S17: =AVERAGE(C15:C17) -> 0.1425165134 | T17: =AVERAGE(D15:D17) -> 0.07346944444 | U17: 0.349240816 | V17: 0.0816684197 | W17: 0.04970429527 | X17: 0.05145555556 | Y17: 0.01898246098 | Z17: 0.004734367668 | AA17: -0.03052976983 | AB17: -0.0705302342 | AC17: 0.1388411709 | AD17: 0.08319722222 | AE17: 0.07657328704 | AF17: 0.06403888889 | AG17: 0.1118023123 | AI17: =GEOMEAN(C88:OFFSET(C88,$AI$2-1,0))-1 -> 0.142152251 | AJ17: =GEOMEAN(D88:OFFSET(D88,$AI$2-1,0))-1 -> 0.07346900577 | AK17: =GEOMEAN(E88:OFFSET(E88,$AI$2-1,0))-1 -> 0.3405733408 | AL17: =GEOMEAN(F88:OFFSET(F88,$AI$2-1,0))-1 -> 0.08078182979 | AM17: =GEOMEAN(G88:OFFSET(G88,$AI$2-1,0))-1 -> 0.04943536261 | AN17: =GEOMEAN(H88:OFFSET(H88,$AI$2-1,0))-1 -> 0.05137092601 | AO17: =GEOMEAN(I88:OFFSET(I88,$AI$2-1,0))-1 -> 0.007195862427 | AP17: =GEOMEAN(J88:OFFSET(J88,$AI$2-1,0))-1 -> -0.00489502773 | AQ17: =GEOMEAN(K88:OFFSET(K88,$AI$2-1,0))-1 -> -0.03615275641 | AR17: =GEOMEAN(L88:OFFSET(L88,$AI$2-1,0))-1 -> -0.08954354793 | AS17: =GEOMEAN(M88:OFFSET(M88,$AI$2-1,0))-1 -> 0.1385604696 | AT17: =GEOMEAN(N88:OFFSET(N88,$AI$2-1,0))-1 -> 0.08319579674 | AU17: =GEOMEAN(O88:OFFSET(O88,$AI$2-1,0))-1 -> 0.07656963347 | AV17: =GEOMEAN(P88:OFFSET(P88,$AI$2-1,0))-1 -> 0.06403435472 | AW17: =GEOMEAN(Q88:OFFSET(Q88,$AI$2-1,0))-1 -> 0.0897609092 | AY17: 4
B18: 1974 | C18: =VLOOKUP($B18,retdat,MATCH(C$13,Data!$A$3:$CC$3,0),0) -> 0.2703518931 | D18: =VLOOKUP($B18,retdat,MATCH(D$13,Data!$A$3:$CC$3,0),0) -> 0.08565833333 | E18: =VLOOKUP($B18,retdat,MATCH(E$13,Data!$A$3:$CC$3,0),0) -> 0.5429704151 | F18: =VLOOKUP($B18,retdat,MATCH(F$13,Data!$A$3:$CC$3,0),0) -> 0.189678395 | G18: =VLOOKUP($B18,retdat,MATCH(G$13,Data!$A$3:$CC$3,0),0) -> 0.1163389921 | H18: =VLOOKUP($B18,retdat,MATCH(H$13,Data!$A$3:$CC$3,0),0) -> 0.0783 | I18: =VLOOKUP($B18,retdat,MATCH(I$13,Data!$A$3:$CC$3,0),0) -> -0.3526557928 | J18: =VLOOKUP($B18,retdat,MATCH(J$13,Data!$A$3:$CC$3,0),0) -> -0.3227230267 | K18: =VLOOKUP($B18,retdat,MATCH(K$13,Data!$A$3:$CC$3,0),0) -> -0.2408370031 | L18: =VLOOKUP($B18,retdat,MATCH(L$13,Data!$A$3:$CC$3,0),0) -> -0.5487291122 | M18: =VLOOKUP($B18,retdat,MATCH(M$13,Data!$A$3:$CC$3,0),0) -> 0.2627679223 | N18: =VLOOKUP($B18,retdat,MATCH(N$13,Data!$A$3:$CC$3,0),0) -> 0.09496666667 | O18: =VLOOKUP($B18,retdat,MATCH(O$13,Data!$A$3:$CC$3,0),0) -> 0.09187041667 | P18: =VLOOKUP($B18,retdat,MATCH(P$13,Data!$A$3:$CC$3,0),0) -> 0.075575 | Q18: =VLOOKUP($B18,retdat,MATCH(Q$13,Data!$A$3:$CC$3,0),0) -> -0.2956802201 | S18: 0.1962477739 | T18: 0.0774 | U18: 0.4803771508 | V18: 0.1316827824 | W18: 0.07777022289 | X18: 0.06311388889 | Y18: -0.1327151676 | Z18: -0.1226248568 | AA18: -0.1108087709 | AB18: -0.2534399383 | AC18: 0.1901678956 | AD18: 0.08630833333 | AE18: 0.08204416667 | AF18: 0.0687 | AG18: -0.06417618919 | AI18: =GEOMEAN(C89:OFFSET(C89,$AI$2-1,0))-1 -> 0.1949989577 | AJ18: =GEOMEAN(D89:OFFSET(D89,$AI$2-1,0))-1 -> 0.07738381165 | AK18: =GEOMEAN(E89:OFFSET(E89,$AI$2-1,0))-1 -> 0.4787646245 | AL18: =GEOMEAN(F89:OFFSET(F89,$AI$2-1,0))-1 -> 0.1304574481 | AM18: =GEOMEAN(G89:OFFSET(G89,$AI$2-1,0))-1 -> 0.07722895872 | AN18: =GEOMEAN(H89:OFFSET(H89,$AI$2-1,0))-1 -> 0.06299028045 | AO18: =GEOMEAN(I89:OFFSET(I89,$AI$2-1,0))-1 -> -0.1565854622 | AP18: =GEOMEAN(J89:OFFSET(J89,$AI$2-1,0))-1 -> -0.1427439849 | AQ18: =GEOMEAN(K89:OFFSET(K89,$AI$2-1,0))-1 -> -0.1207347957 | AR18: =GEOMEAN(L89:OFFSET(L89,$AI$2-1,0))-1 -> -0.3016524448 | AS18: =GEOMEAN(M89:OFFSET(M89,$AI$2-1,0))-1 -> 0.1889980492 | AT18: =GEOMEAN(N89:OFFSET(N89,$AI$2-1,0))-1 -> 0.08629106929 | AU18: =GEOMEAN(O89:OFFSET(O89,$AI$2-1,0))-1 -> 0.08201854369 | AV18: =GEOMEAN(P89:OFFSET(P89,$AI$2-1,0))-1 -> 0.06868582716 | AW18: =GEOMEAN(Q89:OFFSET(Q89,$AI$2-1,0))-1 -> -0.09561304255 | AY18: 5
B19: 1975 | C19: =VLOOKUP($B19,retdat,MATCH(C$13,Data!$A$3:$CC$3,0),0) -> 0.1870623565 | D19: =VLOOKUP($B19,retdat,MATCH(D$13,Data!$A$3:$CC$3,0),0) -> 0.08825833333 | E19: =VLOOKUP($B19,retdat,MATCH(E$13,Data!$A$3:$CC$3,0),0) -> -0.2766987364 | F19: =VLOOKUP($B19,retdat,MATCH(F$13,Data!$A$3:$CC$3,0),0) -> 0.04103139668 | G19: =VLOOKUP($B19,retdat,MATCH(G$13,Data!$A$3:$CC$3,0),0) -> 0.06706423058 | H19: =VLOOKUP($B19,retdat,MATCH(H$13,Data!$A$3:$CC$3,0),0) -> 0.05775 | I19: =VLOOKUP($B19,retdat,MATCH(I$13,Data!$A$3:$CC$3,0),0) -> 0.2742092819 | J19: =VLOOKUP($B19,retdat,MATCH(J$13,Data!$A$3:$CC$3,0),0) -> 0.3244843141 | K19: =VLOOKUP($B19,retdat,MATCH(K$13,Data!$A$3:$CC$3,0),0) -> 0.1764668843 | L19: =VLOOKUP($B19,retdat,MATCH(L$13,Data!$A$3:$CC$3,0),0) -> 0.3099571676 | M19: =VLOOKUP($B19,retdat,MATCH(M$13,Data!$A$3:$CC$3,0),0) -> 0.1742220482 | N19: =VLOOKUP($B19,retdat,MATCH(N$13,Data!$A$3:$CC$3,0),0) -> 0.1061 | O19: =VLOOKUP($B19,retdat,MATCH(O$13,Data!$A$3:$CC$3,0),0) -> 0.09040541667 | P19: =VLOOKUP($B19,retdat,MATCH(P$13,Data!$A$3:$CC$3,0),0) -> 0.079875 | Q19: =VLOOKUP($B19,retdat,MATCH(Q$13,Data!$A$3:$CC$3,0),0) -> 0.2715765755 | S19: 0.2123485138 | T19: 0.082775 | U19: 0.2597526449 | V19: 0.1244412996 | W19: 0.08895964827 | X19: 0.06878888889 | Y19: -0.08972990245 | Z19: -0.05983400202 | AA19: -0.0776718282 | AB19: -0.1854850172 | AC19: 0.2025590279 | AD19: 0.09449166667 | AE19: 0.08756833333 | AF19: 0.074625 | AG19: -0.06941387719 | AI19: =GEOMEAN(C90:OFFSET(C90,$AI$2-1,0))-1 -> 0.2116614357 | AJ19: =GEOMEAN(D90:OFFSET(D90,$AI$2-1,0))-1 -> 0.08275827943 | AK19: =GEOMEAN(E90:OFFSET(E90,$AI$2-1,0))-1 -> 0.1907957297 | AL19: =GEOMEAN(F90:OFFSET(F90,$AI$2-1,0))-1 -> 0.122701565 | AM19: =GEOMEAN(G90:OFFSET(G90,$AI$2-1,0))-1 -> 0.08876783001 | AN19: =GEOMEAN(H90:OFFSET(H90,$AI$2-1,0))-1 -> 0.06875536819 | AO19: =GEOMEAN(I90:OFFSET(I90,$AI$2-1,0))-1 -> -0.1260482361 | AP19: =GEOMEAN(J90:OFFSET(J90,$AI$2-1,0))-1 -> -0.09776612198 | AQ19: =GEOMEAN(K90:OFFSET(K90,$AI$2-1,0))-1 -> -0.09447519064 | AR19: =GEOMEAN(L90:OFFSET(L90,$AI$2-1,0))-1 -> -0.2611433629 | AS19: =GEOMEAN(M90:OFFSET(M90,$AI$2-1,0))-1 -> 0.2018166134 | AT19: =GEOMEAN(N90:OFFSET(N90,$AI$2-1,0))-1 -> 0.09444885856 | AU19: =GEOMEAN(O90:OFFSET(O90,$AI$2-1,0))-1 -> 0.08755642822 | AV19: =GEOMEAN(P90:OFFSET(P90,$AI$2-1,0))-1 -> 0.07461461449 | AW19: =GEOMEAN(Q90:OFFSET(Q90,$AI$2-1,0))-1 -> -0.09930786125 | AY19: 6 | AZ19: 0.2116614357 | BA19: 0.08275827943 | BB19: 0.1907957297 | BC19: 0.122701565 | BD19: 0.08876783001 | BE19: 0.06875536819 | BF19: -0.1260482361 | BG19: -0.09776612198 | BH19: -0.09447519064 | BI19: -0.2611433629 | BJ19: 0.2018166134 | BK19: 0.09444885856 | BL19: 0.08755642822 | BM19: 0.07461461449 | BN19: -0.09930786125
B20: 1976 | C20: =VLOOKUP($B20,retdat,MATCH(C$13,Data!$A$3:$CC$3,0),0) -> 0.2111286837 | D20: =VLOOKUP($B20,retdat,MATCH(D$13,Data!$A$3:$CC$3,0),0) -> 0.08434166667 | E20: =VLOOKUP($B20,retdat,MATCH(E$13,Data!$A$3:$CC$3,0),0) -> -0.03926718237 | F20: =VLOOKUP($B20,retdat,MATCH(F$13,Data!$A$3:$CC$3,0),0) -> 0.04583453634 | G20: =VLOOKUP($B20,retdat,MATCH(G$13,Data!$A$3:$CC$3,0),0) -> 0.04750233399 | H20: =VLOOKUP($B20,retdat,MATCH(H$13,Data!$A$3:$CC$3,0),0) -> 0.04974166667 | I20: =VLOOKUP($B20,retdat,MATCH(I$13,Data!$A$3:$CC$3,0),0) -> 0.1752001291 | J20: =VLOOKUP($B20,retdat,MATCH(J$13,Data!$A$3:$CC$3,0),0) -> 0.1643883682 | K20: =VLOOKUP($B20,retdat,MATCH(K$13,Data!$A$3:$CC$3,0),0) -> 0.38925884 | L20: =VLOOKUP($B20,retdat,MATCH(L$13,Data!$A$3:$CC$3,0),0) -> 0.3985998253 | M20: =VLOOKUP($B20,retdat,MATCH(M$13,Data!$A$3:$CC$3,0),0) -> 0.2048960305 | N20: =VLOOKUP($B20,retdat,MATCH(N$13,Data!$A$3:$CC$3,0),0) -> 0.09746666667 | O20: =VLOOKUP($B20,retdat,MATCH(O$13,Data!$A$3:$CC$3,0),0) -> 0.08864333333 | P20: =VLOOKUP($B20,retdat,MATCH(P$13,Data!$A$3:$CC$3,0),0) -> 0.07611666667 | Q20: =VLOOKUP($B20,retdat,MATCH(Q$13,Data!$A$3:$CC$3,0),0) -> -0.003589133916 | S20: 0.2228476444 | T20: 0.08608611111 | U20: 0.07566816542 | V20: 0.09218144268 | W20: 0.07696851888 | X20: 0.06193055556 | Y20: 0.03225120608 | Z20: 0.05538321854 | AA20: 0.1082962404 | AB20: 0.05327596023 | AC20: 0.2139620003 | AD20: 0.09951111111 | AE20: 0.09030638889 | AF20: 0.07718888889 | AG20: -0.009230926168 | AI20: =GEOMEAN(C91:OFFSET(C91,$AI$2-1,0))-1 -> 0.2223510615 | AJ20: =GEOMEAN(D91:OFFSET(D91,$AI$2-1,0))-1 -> 0.08608489241 | AK20: =GEOMEAN(E91:OFFSET(E91,$AI$2-1,0))-1 -> 0.02351249667 | AL20: =GEOMEAN(F91:OFFSET(F91,$AI$2-1,0))-1 -> 0.09006432678 | AM20: =GEOMEAN(G91:OFFSET(G91,$AI$2-1,0))-1 -> 0.07658225834 | AN20: =GEOMEAN(H91:OFFSET(H91,$AI$2-1,0))-1 -> 0.06186268209 | AO20: =GEOMEAN(I91:OFFSET(I91,$AI$2-1,0))-1 -> -0.01031735715 | AP20: =GEOMEAN(J91:OFFSET(J91,$AI$2-1,0))-1 -> 0.01462056971 | AQ20: =GEOMEAN(K91:OFFSET(K91,$AI$2-1,0))-1 -> 0.07456486366 | AR20: =GEOMEAN(L91:OFFSET(L91,$AI$2-1,0))-1 -> -0.06143873311 | AS20: =GEOMEAN(M91:OFFSET(M91,$AI$2-1,0))-1 -> 0.2134105926 | AT20: =GEOMEAN(N91:OFFSET(N91,$AI$2-1,0))-1 -> 0.09950078312 | AU20: =GEOMEAN(O91:OFFSET(O91,$AI$2-1,0))-1 -> 0.09030559061 | AV20: =GEOMEAN(P91:OFFSET(P91,$AI$2-1,0))-1 -> 0.07718719298 | AW20: =GEOMEAN(Q91:OFFSET(Q91,$AI$2-1,0))-1 -> -0.03724240578 | AY20: 7
B21: 1977 | C21: =VLOOKUP($B21,retdat,MATCH(C$13,Data!$A$3:$CC$3,0),0) -> 0.2268338158 | D21: =VLOOKUP($B21,retdat,MATCH(D$13,Data!$A$3:$CC$3,0),0) -> 0.08024166667 | E21: =VLOOKUP($B21,retdat,MATCH(E$13,Data!$A$3:$CC$3,0),0) -> 0.1797623976 | F21: =VLOOKUP($B21,retdat,MATCH(F$13,Data!$A$3:$CC$3,0),0) -> 0.0575139062 | G21: =VLOOKUP($B21,retdat,MATCH(G$13,Data!$A$3:$CC$3,0),0) -> 0.0648606342 | H21: =VLOOKUP($B21,retdat,MATCH(H$13,Data!$A$3:$CC$3,0),0) -> 0.05269166667 | I21: =VLOOKUP($B21,retdat,MATCH(I$13,Data!$A$3:$CC$3,0),0) -> -0.1221897157 | J21: =VLOOKUP($B21,retdat,MATCH(J$13,Data!$A$3:$CC$3,0),0) -> -0.1895738287 | K21: =VLOOKUP($B21,retdat,MATCH(K$13,Data!$A$3:$CC$3,0),0) -> 0.2023221386 | L21: =VLOOKUP($B21,retdat,MATCH(L$13,Data!$A$3:$CC$3,0),0) -> 0.1745958342 | M21: =VLOOKUP($B21,retdat,MATCH(M$13,Data!$A$3:$CC$3,0),0) -> 0.2073877787 | N21: =VLOOKUP($B21,retdat,MATCH(N$13,Data!$A$3:$CC$3,0),0) -> 0.08969166667 | O21: =VLOOKUP($B21,retdat,MATCH(O$13,Data!$A$3:$CC$3,0),0) -> 0.08841666667 | P21: =VLOOKUP($B21,retdat,MATCH(P$13,Data!$A$3:$CC$3,0),0) -> 0.07419166667 | Q21: =VLOOKUP($B21,retdat,MATCH(Q$13,Data!$A$3:$CC$3,0),0) -> 0.1363951932 | S21: 0.2083416187 | T21: 0.08428055556 | U21: -0.04540117373 | V21: 0.04812661307 | W21: 0.05980906626 | X21: 0.05339444444 | Y21: 0.1090732318 | Z21: 0.09976628454 | AA21: 0.2560159543 | AB21: 0.2943842757 | AC21: 0.1955019525 | AD21: 0.09775277778 | AE21: 0.08915513889 | AF21: 0.07672777778 | AG21: 0.1347942116 | AI21: =GEOMEAN(C92:OFFSET(C92,$AI$2-1,0))-1 -> 0.2082306642 | AJ21: =GEOMEAN(D92:OFFSET(D92,$AI$2-1,0))-1 -> 0.0842756151 | AK21: =GEOMEAN(E92:OFFSET(E92,$AI$2-1,0))-1 -> -0.06407984502 | AL21: =GEOMEAN(F92:OFFSET(F92,$AI$2-1,0))-1 -> 0.04810380591 | AM21: =GEOMEAN(G92:OFFSET(G92,$AI$2-1,0))-1 -> 0.05977282223 | AN21: =GEOMEAN(H92:OFFSET(H92,$AI$2-1,0))-1 -> 0.05338925701 | AO21: =GEOMEAN(I92:OFFSET(I92,$AI$2-1,0))-1 -> 0.09542946846 | AP21: =GEOMEAN(J92:OFFSET(J92,$AI$2-1,0))-1 -> 0.07717445342 | AQ21: =GEOMEAN(K92:OFFSET(K92,$AI$2-1,0))-1 -> 0.2525485636 | AR21: =GEOMEAN(L92:OFFSET(L92,$AI$2-1,0))-1 -> 0.2910597461 | AS21: =GEOMEAN(M92:OFFSET(M92,$AI$2-1,0))-1 -> 0.1954062624 | AT21: =GEOMEAN(N92:OFFSET(N92,$AI$2-1,0))-1 -> 0.09773232586 | AU21: =GEOMEAN(O92:OFFSET(O92,$AI$2-1,0))-1 -> 0.08915477628 | AV21: =GEOMEAN(P92:OFFSET(P92,$AI$2-1,0))-1 -> 0.07672519258 | AW21: =GEOMEAN(Q92:OFFSET(Q92,$AI$2-1,0))-1 -> 0.129198053 | AY21: 8
B22: 1978 | C22: =VLOOKUP($B22,retdat,MATCH(C$13,Data!$A$3:$CC$3,0),0) -> 0.1758968978 | D22: =VLOOKUP($B22,retdat,MATCH(D$13,Data!$A$3:$CC$3,0),0) -> 0.08725 | E22: =VLOOKUP($B22,retdat,MATCH(E$13,Data!$A$3:$CC$3,0),0) -> 0.2588456761 | F22: =VLOOKUP($B22,retdat,MATCH(F$13,Data!$A$3:$CC$3,0),0) -> 0.0936609216 | G22: =VLOOKUP($B22,retdat,MATCH(G$13,Data!$A$3:$CC$3,0),0) -> 0.08634019098 | H22: =VLOOKUP($B22,retdat,MATCH(H$13,Data!$A$3:$CC$3,0),0) -> 0.07188333333 | I22: =VLOOKUP($B22,retdat,MATCH(I$13,Data!$A$3:$CC$3,0),0) -> 0.01056439928 | J22: =VLOOKUP($B22,retdat,MATCH(J$13,Data!$A$3:$CC$3,0),0) -> -0.03202816237 | K22: =VLOOKUP($B22,retdat,MATCH(K$13,Data!$A$3:$CC$3,0),0) -> 0.09835575791 | L22: =VLOOKUP($B22,retdat,MATCH(L$13,Data!$A$3:$CC$3,0),0) -> -0.01654129523 | M22: =VLOOKUP($B22,retdat,MATCH(M$13,Data!$A$3:$CC$3,0),0) -> 0.1640936688 | N22: =VLOOKUP($B22,retdat,MATCH(N$13,Data!$A$3:$CC$3,0),0) -> 0.09488333333 | O22: =VLOOKUP($B22,retdat,MATCH(O$13,Data!$A$3:$CC$3,0),0) -> 0.09632458333 | P22: =VLOOKUP($B22,retdat,MATCH(P$13,Data!$A$3:$CC$3,0),0) -> 0.0841 | Q22: =VLOOKUP($B22,retdat,MATCH(Q$13,Data!$A$3:$CC$3,0),0) -> 0.2539749632 | S22: 0.2046197991 | T22: 0.08394444444 | U22: 0.1331136304 | V22: 0.06566978805 | W22: 0.06623438639 | X22: 0.05810555556 | Y22: 0.02119160422 | Z22: -0.0190712076 | AA22: 0.2299789122 | AB22: 0.1855514548 | AC22: 0.192125826 | AD22: 0.09401388889 | AE22: 0.09112819444 | AF22: 0.07813611111 | AG22: 0.1289270075 | AI22: =GEOMEAN(C93:OFFSET(C93,$AI$2-1,0))-1 -> 0.2044305356 | AJ22: =GEOMEAN(D93:OFFSET(D93,$AI$2-1,0))-1 -> 0.08394063058 | AK22: =GEOMEAN(E93:OFFSET(E93,$AI$2-1,0))-1 -> 0.1257878471 | AL22: =GEOMEAN(F93:OFFSET(F93,$AI$2-1,0))-1 -> 0.0654766099 | AM22: =GEOMEAN(G93:OFFSET(G93,$AI$2-1,0))-1 -> 0.0661161926 | AN22: =GEOMEAN(H93:OFFSET(H93,$AI$2-1,0))-1 -> 0.05806020326 | AO22: =GEOMEAN(I93:OFFSET(I93,$AI$2-1,0))-1 -> 0.01397091225 | AP22: =GEOMEAN(J93:OFFSET(J93,$AI$2-1,0))-1 -> -0.02973280966 | AQ22: =GEOMEAN(K93:OFFSET(K93,$AI$2-1,0))-1 -> 0.2241905273 | AR22: =GEOMEAN(L93:OFFSET(L93,$AI$2-1,0))-1 -> 0.1733998226 | AS22: =GEOMEAN(M93:OFFSET(M93,$AI$2-1,0))-1 -> 0.1919592972 | AT22: =GEOMEAN(N93:OFFSET(N93,$AI$2-1,0))-1 -> 0.09400910786 | AU22: =GEOMEAN(O93:OFFSET(O93,$AI$2-1,0))-1 -> 0.09112201347 | AV22: =GEOMEAN(P93:OFFSET(P93,$AI$2-1,0))-1 -> 0.07812759068 | AW22: =GEOMEAN(Q93:OFFSET(Q93,$AI$2-1,0))-1 -> 0.1239635728 | AY22: 9 | AZ22: 0.2044305356 | BA22: 0.08394063058 | BB22: 0.1257878471 | BC22: 0.0654766099 | BD22: 0.0661161926 | BE22: 0.05806020326 | BF22: 0.01397091225 | BG22: -0.02973280966 | BH22: 0.2241905273 | BI22: 0.1733998226 | BJ22: 0.1919592972 | BK22: 0.09400910786 | BL22: 0.09112201347 | BM22: 0.07812759068 | BN22: 0.1239635728
B23: 1979 | C23: =VLOOKUP($B23,retdat,MATCH(C$13,Data!$A$3:$CC$3,0),0) -> 0.2156190569 | D23: =VLOOKUP($B23,retdat,MATCH(D$13,Data!$A$3:$CC$3,0),0) -> 0.09629166667 | E23: =VLOOKUP($B23,retdat,MATCH(E$13,Data!$A$3:$CC$3,0),0) -> 0.9022499553 | F23: =VLOOKUP($B23,retdat,MATCH(F$13,Data!$A$3:$CC$3,0),0) -> 0.1373069248 | G23: =VLOOKUP($B23,retdat,MATCH(G$13,Data!$A$3:$CC$3,0),0) -> 0.1248155285 | H23: =VLOOKUP($B23,retdat,MATCH(H$13,Data!$A$3:$CC$3,0),0) -> 0.1006916667 | I23: =VLOOKUP($B23,retdat,MATCH(I$13,Data!$A$3:$CC$3,0),0) -> 0.1160821484 | J23: =VLOOKUP($B23,retdat,MATCH(J$13,Data!$A$3:$CC$3,0),0) -> 0.04101079657 | K23: =VLOOKUP($B23,retdat,MATCH(K$13,Data!$A$3:$CC$3,0),0) -> 0.3064367636 | L23: =VLOOKUP($B23,retdat,MATCH(L$13,Data!$A$3:$CC$3,0),0) -> 0.2664025584 | M23: =VLOOKUP($B23,retdat,MATCH(M$13,Data!$A$3:$CC$3,0),0) -> 0.2150693385 | N23: =VLOOKUP($B23,retdat,MATCH(N$13,Data!$A$3:$CC$3,0),0) -> 0.1069 | O23: =VLOOKUP($B23,retdat,MATCH(O$13,Data!$A$3:$CC$3,0),0) -> 0.1119175 | P23: =VLOOKUP($B23,retdat,MATCH(P$13,Data!$A$3:$CC$3,0),0) -> 0.094425 | Q23: =VLOOKUP($B23,retdat,MATCH(Q$13,Data!$A$3:$CC$3,0),0) -> 0.01797297956 | S23: 0.2061165901 | T23: 0.08792777778 | U23: 0.4469526763 | V23: 0.09616058421 | W23: 0.09200545121 | X23: 0.07508888889 | Y23: 0.00148561063 | Z23: -0.06019706483 | AA23: 0.2023715534 | AB23: 0.1414856991 | AC23: 0.1955169287 | AD23: 0.09715833333 | AE23: 0.09888625 | AF23: 0.08423888889 | AG23: 0.1361143786 | AI23: =GEOMEAN(C94:OFFSET(C94,$AI$2-1,0))-1 -> 0.2059172128 | AJ23: =GEOMEAN(D94:OFFSET(D94,$AI$2-1,0))-1 -> 0.08790795223 | AK23: =GEOMEAN(E94:OFFSET(E94,$AI$2-1,0))-1 -> 0.4136596918 | AL23: =GEOMEAN(F94:OFFSET(F94,$AI$2-1,0))-1 -> 0.09567601536 | AM23: =GEOMEAN(G94:OFFSET(G94,$AI$2-1,0))-1 -> 0.0917251309 | AN23: =GEOMEAN(H94:OFFSET(H94,$AI$2-1,0))-1 -> 0.07490840936 | AO23: =GEOMEAN(I94:OFFSET(I94,$AI$2-1,0))-1 -> -0.003324903234 | AP23: =GEOMEAN(J94:OFFSET(J94,$AI$2-1,0))-1 -> -0.06528946476 | AQ23: =GEOMEAN(K94:OFFSET(K94,$AI$2-1,0))-1 -> 0.1993633015 | AR23: =GEOMEAN(L94:OFFSET(L94,$AI$2-1,0))-1 -> 0.1351993176 | AS23: =GEOMEAN(M94:OFFSET(M94,$AI$2-1,0))-1 -> 0.1953045928 | AT23: =GEOMEAN(N94:OFFSET(N94,$AI$2-1,0))-1 -> 0.09713470737 | AU23: =GEOMEAN(O94:OFFSET(O94,$AI$2-1,0))-1 -> 0.09884296937 | AV23: =GEOMEAN(P94:OFFSET(P94,$AI$2-1,0))-1 -> 0.08420742249 | AW23: =GEOMEAN(Q94:OFFSET(Q94,$AI$2-1,0))-1 -> 0.1320132269 | AY23: 10
B24: 1980 | C24: =VLOOKUP($B24,retdat,MATCH(C$13,Data!$A$3:$CC$3,0),0) -> 0.2035646988 | D24: =VLOOKUP($B24,retdat,MATCH(D$13,Data!$A$3:$CC$3,0),0) -> 0.1193833333 | E24: =VLOOKUP($B24,retdat,MATCH(E$13,Data!$A$3:$CC$3,0),0) -> 0.1413740932 | F24: =VLOOKUP($B24,retdat,MATCH(F$13,Data!$A$3:$CC$3,0),0) -> 0.1175165466 | G24: =VLOOKUP($B24,retdat,MATCH(G$13,Data!$A$3:$CC$3,0),0) -> 0.1179278897 | H24: =VLOOKUP($B24,retdat,MATCH(H$13,Data!$A$3:$CC$3,0),0) -> 0.1143416667 | I24: =VLOOKUP($B24,retdat,MATCH(I$13,Data!$A$3:$CC$3,0),0) -> 0.2293131037 | J24: =VLOOKUP($B24,retdat,MATCH(J$13,Data!$A$3:$CC$3,0),0) -> 0.1392382206 | K24: =VLOOKUP($B24,retdat,MATCH(K$13,Data!$A$3:$CC$3,0),0) -> 0.2180837879 | L24: =VLOOKUP($B24,retdat,MATCH(L$13,Data!$A$3:$CC$3,0),0) -> 0.2470120763 | M24: =VLOOKUP($B24,retdat,MATCH(M$13,Data!$A$3:$CC$3,0),0) -> 0.2051007111 | N24: =VLOOKUP($B24,retdat,MATCH(N$13,Data!$A$3:$CC$3,0),0) -> 0.1366833333 | O24: =VLOOKUP($B24,retdat,MATCH(O$13,Data!$A$3:$CC$3,0),0) -> 0.137695 | P24: =VLOOKUP($B24,retdat,MATCH(P$13,Data!$A$3:$CC$3,0),0) -> 0.1146 | Q24: =VLOOKUP($B24,retdat,MATCH(Q$13,Data!$A$3:$CC$3,0),0) -> 0.1740642491 | S24: 0.1983602178 | T24: 0.100975 | U24: 0.4341565749 | V24: 0.1161614644 | W24: 0.1096945364 | X24: 0.09563888889 | Y24: 0.1186532171 | Z24: 0.04940695161 | AA24: 0.2076254365 | AB24: 0.1656244465 | AC24: 0.1947545728 | AD24: 0.1128222222 | AE24: 0.1153123611 | AF24: 0.09770833333 | AG24: 0.1486707306 | AI24: =GEOMEAN(C95:OFFSET(C95,$AI$2-1,0))-1 -> 0.1982443646 | AJ24: =GEOMEAN(D95:OFFSET(D95,$AI$2-1,0))-1 -> 0.1008921844 | AK24: =GEOMEAN(E95:OFFSET(E95,$AI$2-1,0))-1 -> 0.3981572809 | AL24: =GEOMEAN(F95:OFFSET(F95,$AI$2-1,0))-1 -> 0.1160186357 | AM24: =GEOMEAN(G95:OFFSET(G95,$AI$2-1,0))-1 -> 0.1095672949 | AN24: =GEOMEAN(H95:OFFSET(H95,$AI$2-1,0))-1 -> 0.09549530866 | AO24: =GEOMEAN(I95:OFFSET(I95,$AI$2-1,0))-1 -> 0.1150839267 | AP24: =GEOMEAN(J95:OFFSET(J95,$AI$2-1,0))-1 -> 0.0470743017 | AQ24: =GEOMEAN(K95:OFFSET(K95,$AI$2-1,0))-1 -> 0.2045815187 | AR24: =GEOMEAN(L95:OFFSET(L95,$AI$2-1,0))-1 -> 0.1580647854 | AS24: =GEOMEAN(M95:OFFSET(M95,$AI$2-1,0))-1 -> 0.1945493893 | AT24: =GEOMEAN(N95:OFFSET(N95,$AI$2-1,0))-1 -> 0.1126841667 | AU24: =GEOMEAN(O95:OFFSET(O95,$AI$2-1,0))-1 -> 0.1151822694 | AV24: =GEOMEAN(P95:OFFSET(P95,$AI$2-1,0))-1 -> 0.09763546149 | AW24: =GEOMEAN(Q95:OFFSET(Q95,$AI$2-1,0))-1 -> 0.1443854477 | AY24: 11
B25: 1981 | C25: =VLOOKUP($B25,retdat,MATCH(C$13,Data!$A$3:$CC$3,0),0) -> 0.1563509658 | D25: =VLOOKUP($B25,retdat,MATCH(D$13,Data!$A$3:$CC$3,0),0) -> 0.1417083333 | E25: =VLOOKUP($B25,retdat,MATCH(E$13,Data!$A$3:$CC$3,0),0) -> -0.3945037842 | F25: =VLOOKUP($B25,retdat,MATCH(F$13,Data!$A$3:$CC$3,0),0) -> 0.05193274874 | G25: =VLOOKUP($B25,retdat,MATCH(G$13,Data!$A$3:$CC$3,0),0) -> 0.08546518418 | H25: =VLOOKUP($B25,retdat,MATCH(H$13,Data!$A$3:$CC$3,0),0) -> 0.14025 | I25: =VLOOKUP($B25,retdat,MATCH(I$13,Data!$A$3:$CC$3,0),0) -> -0.102369511 | J25: =VLOOKUP($B25,retdat,MATCH(J$13,Data!$A$3:$CC$3,0),0) -> -0.09686740825 | K25: =VLOOKUP($B25,retdat,MATCH(K$13,Data!$A$3:$CC$3,0),0) -> 0.05827654452 | L25: =VLOOKUP($B25,retdat,MATCH(L$13,Data!$A$3:$CC$3,0),0) -> 0.08227683944 | M25: =VLOOKUP($B25,retdat,MATCH(M$13,Data!$A$3:$CC$3,0),0) -> 0.1416531532 | N25: =VLOOKUP($B25,retdat,MATCH(N$13,Data!$A$3:$CC$3,0),0) -> 0.1604416667 | O25: =VLOOKUP($B25,retdat,MATCH(O$13,Data!$A$3:$CC$3,0),0) -> 0.16634625 | P25: =VLOOKUP($B25,retdat,MATCH(P$13,Data!$A$3:$CC$3,0),0) -> 0.1391083333 | Q25: =VLOOKUP($B25,retdat,MATCH(Q$13,Data!$A$3:$CC$3,0),0) -> -0.04970149596 | S25: 0.1918449072 | T25: 0.1191277778 | U25: 0.2163734215 | V25: 0.1022520734 | W25: 0.1094028675 | X25: 0.1184277778 | Y25: 0.08100858038 | Z25: 0.02779386965 | AA25: 0.1942656987 | AB25: 0.1985638247 | AC25: 0.1872744009 | AD25: 0.134675 | AE25: 0.1386529167 | AF25: 0.1160444444 | AG25: 0.04744524422 | AI25: =GEOMEAN(C96:OFFSET(C96,$AI$2-1,0))-1 -> 0.191568104 | AJ25: =GEOMEAN(D96:OFFSET(D96,$AI$2-1,0))-1 -> 0.1189741147 | AK25: =GEOMEAN(E96:OFFSET(E96,$AI$2-1,0))-1 -> 0.09547467534 | AL25: =GEOMEAN(F96:OFFSET(F96,$AI$2-1,0))-1 -> 0.1016404497 | AM25: =GEOMEAN(G96:OFFSET(G96,$AI$2-1,0))-1 -> 0.1092693097 | AN25: =GEOMEAN(H96:OFFSET(H96,$AI$2-1,0))-1 -> 0.1183078574 | AO25: =GEOMEAN(I96:OFFSET(I96,$AI$2-1,0))-1 -> 0.07189461564 | AP25: =GEOMEAN(J96:OFFSET(J96,$AI$2-1,0))-1 -> 0.02315264636 | AQ25: =GEOMEAN(K96:OFFSET(K96,$AI$2-1,0))-1 -> 0.1897477959 | AR25: =GEOMEAN(L96:OFFSET(L96,$AI$2-1,0))-1 -> 0.1956211835 | AS25: =GEOMEAN(M96:OFFSET(M96,$AI$2-1,0))-1 -> 0.1868236583 | AT25: =GEOMEAN(N96:OFFSET(N96,$AI$2-1,0))-1 -> 0.1344631614 | AU25: =GEOMEAN(O96:OFFSET(O96,$AI$2-1,0))-1 -> 0.1384360438 | AV25: =GEOMEAN(P96:OFFSET(P96,$AI$2-1,0))-1 -> 0.1158950667 | AW25: =GEOMEAN(Q96:OFFSET(Q96,$AI$2-1,0))-1 -> 0.04334847744 | AY25: 12 | AZ25: 0.191568104 | BA25: 0.1189741147 | BB25: 0.09547467534 | BC25: 0.1016404497 | BD25: 0.1092693097 | BE25: 0.1183078574 | BF25: 0.07189461564 | BG25: 0.02315264636 | BH25: 0.1897477959 | BI25: 0.1956211835 | BJ25: 0.1868236583 | BK25: 0.1344631614 | BL25: 0.1384360438 | BM25: 0.1158950667 | BN25: 0.04334847744
B26: 1982 | C26: =VLOOKUP($B26,retdat,MATCH(C$13,Data!$A$3:$CC$3,0),0) -> 0.05193282515 | D26: =VLOOKUP($B26,retdat,MATCH(D$13,Data!$A$3:$CC$3,0),0) -> 0.137875 | E26: =VLOOKUP($B26,retdat,MATCH(E$13,Data!$A$3:$CC$3,0),0) -> 0.1392696145 | F26: =VLOOKUP($B26,retdat,MATCH(F$13,Data!$A$3:$CC$3,0),0) -> 0.01706012275 | G26: =VLOOKUP($B26,retdat,MATCH(G$13,Data!$A$3:$CC$3,0),0) -> 0.03758271115 | H26: =VLOOKUP($B26,retdat,MATCH(H$13,Data!$A$3:$CC$3,0),0) -> 0.1061416667 | I26: =VLOOKUP($B26,retdat,MATCH(I$13,Data!$A$3:$CC$3,0),0) -> 0.137684324 | J26: =VLOOKUP($B26,retdat,MATCH(J$13,Data!$A$3:$CC$3,0),0) -> 0.1789826555 | K26: =VLOOKUP($B26,retdat,MATCH(K$13,Data!$A$3:$CC$3,0),0) -> 0.1955741978 | L26: =VLOOKUP($B26,retdat,MATCH(L$13,Data!$A$3:$CC$3,0),0) -> 0.2749308599 | M26: =VLOOKUP($B26,retdat,MATCH(M$13,Data!$A$3:$CC$3,0),0) -> 0.04909368703 | N26: =VLOOKUP($B26,retdat,MATCH(N$13,Data!$A$3:$CC$3,0),0) -> 0.1611333333 | O26: =VLOOKUP($B26,retdat,MATCH(O$13,Data!$A$3:$CC$3,0),0) -> 0.1609020833 | P26: =VLOOKUP($B26,retdat,MATCH(P$13,Data!$A$3:$CC$3,0),0) -> 0.1300166667 | Q26: =VLOOKUP($B26,retdat,MATCH(Q$13,Data!$A$3:$CC$3,0),0) -> -0.04738906566 | S26: 0.1372828299 | T26: 0.1329888889 | U26: -0.03795335882 | V26: 0.06216980604 | W26: 0.08032526168 | X26: 0.1202444444 | Y26: 0.08820930558 | Z26: 0.0737844893 | AA26: 0.1573115101 | AB26: 0.2014065919 | AC26: 0.1319491838 | AD26: 0.1527527778 | AE26: 0.1549811111 | AF26: 0.1279083333 | AG26: 0.02565789581 | AI26: =GEOMEAN(C97:OFFSET(C97,$AI$2-1,0))-1 -> 0.1354875374 | AJ26: =GEOMEAN(D97:OFFSET(D97,$AI$2-1,0))-1 -> 0.1329468102 | AK26: =GEOMEAN(E97:OFFSET(E97,$AI$2-1,0))-1 -> -0.07660258842 | AL26: =GEOMEAN(F97:OFFSET(F97,$AI$2-1,0))-1 -> 0.06136033916 | AM26: =GEOMEAN(G97:OFFSET(G97,$AI$2-1,0))-1 -> 0.07981860321 | AN26: =GEOMEAN(H97:OFFSET(H97,$AI$2-1,0))-1 -> 0.1201505612 | AO26: =GEOMEAN(I97:OFFSET(I97,$AI$2-1,0))-1 -> 0.07876610772 | AP26: =GEOMEAN(J97:OFFSET(J97,$AI$2-1,0))-1 -> 0.06649254995 | AQ26: =GEOMEAN(K97:OFFSET(K97,$AI$2-1,0))-1 -> 0.1550947832 | AR26: =GEOMEAN(L97:OFFSET(L97,$AI$2-1,0))-1 -> 0.1982990614 | AS26: =GEOMEAN(M97:OFFSET(M97,$AI$2-1,0))-1 -> 0.1301183645 | AT26: =GEOMEAN(N97:OFFSET(N97,$AI$2-1,0))-1 -> 0.1526964784 | AU26: =GEOMEAN(O97:OFFSET(O97,$AI$2-1,0))-1 -> 0.1549139996 | AV26: =GEOMEAN(P97:OFFSET(P97,$AI$2-1,0))-1 -> 0.1278628854 | AW26: =GEOMEAN(Q97:OFFSET(Q97,$AI$2-1,0))-1 -> 0.02052227963 | AY26: 13
B27: 1983 | C27: =VLOOKUP($B27,retdat,MATCH(C$13,Data!$A$3:$CC$3,0),0) -> 0.01362636676 | D27: =VLOOKUP($B27,retdat,MATCH(D$13,Data!$A$3:$CC$3,0),0) -> 0.1204166667 | E27: =VLOOKUP($B27,retdat,MATCH(E$13,Data!$A$3:$CC$3,0),0) -> -0.1779973674 | F27: =VLOOKUP($B27,retdat,MATCH(F$13,Data!$A$3:$CC$3,0),0) -> 0.01775194546 | G27: =VLOOKUP($B27,retdat,MATCH(G$13,Data!$A$3:$CC$3,0),0) -> 0.03720891784 | H27: =VLOOKUP($B27,retdat,MATCH(H$13,Data!$A$3:$CC$3,0),0) -> 0.08610833333 | I27: =VLOOKUP($B27,retdat,MATCH(I$13,Data!$A$3:$CC$3,0),0) -> 0.1593177075 | J27: =VLOOKUP($B27,retdat,MATCH(J$13,Data!$A$3:$CC$3,0),0) -> 0.1845487292 | K27: =VLOOKUP($B27,retdat,MATCH(K$13,Data!$A$3:$CC$3,0),0) -> 0.2672465556 | L27: =VLOOKUP($B27,retdat,MATCH(L$13,Data!$A$3:$CC$3,0),0) -> 0.2268874719 | M27: =VLOOKUP($B27,retdat,MATCH(M$13,Data!$A$3:$CC$3,0),0) -> 0.007602777249 | N27: =VLOOKUP($B27,retdat,MATCH(N$13,Data!$A$3:$CC$3,0),0) -> 0.1355416667 | O27: =VLOOKUP($B27,retdat,MATCH(O$13,Data!$A$3:$CC$3,0),0) -> 0.13226875 | P27: =VLOOKUP($B27,retdat,MATCH(P$13,Data!$A$3:$CC$3,0),0) -> 0.11105 | Q27: =VLOOKUP($B27,retdat,MATCH(Q$13,Data!$A$3:$CC$3,0),0) -> 0.1899067955 | S27: 0.07397005258 | T27: 0.1333333333 | U27: -0.1444105124 | V27: 0.02891493898 | W27: 0.05341893772 | X27: 0.1108333333 | Y27: 0.06487750684 | Z27: 0.08888799216 | AA27: 0.1736990993 | AB27: 0.1946983904 | AC27: 0.06611653915 | AD27: 0.1523722222 | AE27: 0.1531723611 | AF27: 0.126725 | AG27: 0.03093874461 | AI27: =GEOMEAN(C98:OFFSET(C98,$AI$2-1,0))-1 -> 0.0723054779 | AJ27: =GEOMEAN(D98:OFFSET(D98,$AI$2-1,0))-1 -> 0.1332953211 | AK27: =GEOMEAN(E98:OFFSET(E98,$AI$2-1,0))-1 -> -0.1723048977 | AL27: =GEOMEAN(F98:OFFSET(F98,$AI$2-1,0))-1 -> 0.02878711083 | AM27: =GEOMEAN(G98:OFFSET(G98,$AI$2-1,0))-1 -> 0.05317762133 | AN27: =GEOMEAN(H98:OFFSET(H98,$AI$2-1,0))-1 -> 0.1106093521 | AO27: =GEOMEAN(I98:OFFSET(I98,$AI$2-1,0))-1 -> 0.05789024626 | AP27: =GEOMEAN(J98:OFFSET(J98,$AI$2-1,0))-1 -> 0.08044820948 | AQ27: =GEOMEAN(K98:OFFSET(K98,$AI$2-1,0))-1 -> 0.1704304393 | AR27: =GEOMEAN(L98:OFFSET(L98,$AI$2-1,0))-1 -> 0.1918179168 | AS27: =GEOMEAN(M98:OFFSET(M98,$AI$2-1,0))-1 -> 0.06466408343 | AT27: =GEOMEAN(N98:OFFSET(N98,$AI$2-1,0))-1 -> 0.1523104325 | AU27: =GEOMEAN(O98:OFFSET(O98,$AI$2-1,0))-1 -> 0.1530749473 | AV27: =GEOMEAN(P98:OFFSET(P98,$AI$2-1,0))-1 -> 0.1266641978 | AW27: =GEOMEAN(Q98:OFFSET(Q98,$AI$2-1,0))-1 -> 0.02509201562 | AY27: 14
B28: 1984 | C28: =VLOOKUP($B28,retdat,MATCH(C$13,Data!$A$3:$CC$3,0),0) -> 0.07585053086 | D28: =VLOOKUP($B28,retdat,MATCH(D$13,Data!$A$3:$CC$3,0),0) -> 0.1270916667 | E28: =VLOOKUP($B28,retdat,MATCH(E$13,Data!$A$3:$CC$3,0),0) -> -0.2153938463 | F28: =VLOOKUP($B28,retdat,MATCH(F$13,Data!$A$3:$CC$3,0),0) -> 0.01166193975 | G28: =VLOOKUP($B28,retdat,MATCH(G$13,Data!$A$3:$CC$3,0),0) -> 0.03872700789 | H28: =VLOOKUP($B28,retdat,MATCH(H$13,Data!$A$3:$CC$3,0),0) -> 0.095225 | I28: =VLOOKUP($B28,retdat,MATCH(I$13,Data!$A$3:$CC$3,0),0) -> 0.01390876503 | J28: =VLOOKUP($B28,retdat,MATCH(J$13,Data!$A$3:$CC$3,0),0) -> -0.03805819194 | K28: =VLOOKUP($B28,retdat,MATCH(K$13,Data!$A$3:$CC$3,0),0) -> 0.1900191517 | L28: =VLOOKUP($B28,retdat,MATCH(L$13,Data!$A$3:$CC$3,0),0) -> 0.1381547347 | M28: =VLOOKUP($B28,retdat,MATCH(M$13,Data!$A$3:$CC$3,0),0) -> 0.07440967659 | N28: =VLOOKUP($B28,retdat,MATCH(N$13,Data!$A$3:$CC$3,0),0) -> 0.1419 | O28: =VLOOKUP($B28,retdat,MATCH(O$13,Data!$A$3:$CC$3,0),0) -> 0.13869375 | P28: =VLOOKUP($B28,retdat,MATCH(P$13,Data!$A$3:$CC$3,0),0) -> 0.1243833333 | Q28: =VLOOKUP($B28,retdat,MATCH(Q$13,Data!$A$3:$CC$3,0),0) -> 0.04898313685 | S28: 0.04713657426 | T28: 0.1284611111 | U28: -0.08470719973 | V28: 0.01549133598 | W28: 0.03783954562 | X28: 0.095825 | Y28: 0.1036369322 | Z28: 0.1084910643 | AA28: 0.2176133017 | AB28: 0.2133243555 | AC28: 0.04370204696 | AD28: 0.1461916667 | AE28: 0.1439548611 | AF28: 0.1218166667 | AG28: 0.06383362222 | AI28: =GEOMEAN(C99:OFFSET(C99,$AI$2-1,0))-1 -> 0.04682145465 | AJ28: =GEOMEAN(D99:OFFSET(D99,$AI$2-1,0))-1 -> 0.1284382143 | AK28: =GEOMEAN(E99:OFFSET(E99,$AI$2-1,0))-1 -> -0.09763174005 | AL28: =GEOMEAN(F99:OFFSET(F99,$AI$2-1,0))-1 -> 0.01548768216 | AM28: =GEOMEAN(G99:OFFSET(G99,$AI$2-1,0))-1 -> 0.03783934473 | AN28: =GEOMEAN(H99:OFFSET(H99,$AI$2-1,0))-1 -> 0.09579441375 | AO28: =GEOMEAN(I99:OFFSET(I99,$AI$2-1,0))-1 -> 0.101727966 | AP28: =GEOMEAN(J99:OFFSET(J99,$AI$2-1,0))-1 -> 0.1034086458 | AQ28: =GEOMEAN(K99:OFFSET(K99,$AI$2-1,0))-1 -> 0.217111973 | AR28: =GEOMEAN(L99:OFFSET(L99,$AI$2-1,0))-1 -> 0.2119858744 | AS28: =GEOMEAN(M99:OFFSET(M99,$AI$2-1,0))-1 -> 0.04333677045 | AT28: =GEOMEAN(N99:OFFSET(N99,$AI$2-1,0))-1 -> 0.1461402037 | AU28: =GEOMEAN(O99:OFFSET(O99,$AI$2-1,0))-1 -> 0.1438893491 | AV28: =GEOMEAN(P99:OFFSET(P99,$AI$2-1,0))-1 -> 0.1217884152 | AW28: =GEOMEAN(Q99:OFFSET(Q99,$AI$2-1,0))-1 -> 0.05941391075 | AY28: 15 | AZ28: 0.04682145465 | BA28: 0.1284382143 | BB28: -0.09763174005 | BC28: 0.01548768216 | BD28: 0.03783934473 | BE28: 0.09579441375 | BF28: 0.101727966 | BG28: 0.1034086458 | BH28: 0.217111973 | BI28: 0.2119858744 | BJ28: 0.04333677045 | BK28: 0.1461402037 | BL28: 0.1438893491 | BM28: 0.1217884152 | BN28: 0.05941391075
B29: 1985 | C29: =VLOOKUP($B29,retdat,MATCH(C$13,Data!$A$3:$CC$3,0),0) -> -0.05847636421 | D29: =VLOOKUP($B29,retdat,MATCH(D$13,Data!$A$3:$CC$3,0),0) -> 0.1137333333 | E29: =VLOOKUP($B29,retdat,MATCH(E$13,Data!$A$3:$CC$3,0),0) -> 0.05827502809 | F29: =VLOOKUP($B29,retdat,MATCH(F$13,Data!$A$3:$CC$3,0),0) -> 0.00096571712 | G29: =VLOOKUP($B29,retdat,MATCH(G$13,Data!$A$3:$CC$3,0),0) -> 0.03728297604 | H29: =VLOOKUP($B29,retdat,MATCH(H$13,Data!$A$3:$CC$3,0),0) -> 0.07479166667 | I29: =VLOOKUP($B29,retdat,MATCH(I$13,Data!$A$3:$CC$3,0),0) -> 0.2337543615 | J29: =VLOOKUP($B29,retdat,MATCH(J$13,Data!$A$3:$CC$3,0),0) -> 0.2441818289 | K29: =VLOOKUP($B29,retdat,MATCH(K$13,Data!$A$3:$CC$3,0),0) -> 0.1747626707 | L29: =VLOOKUP($B29,retdat,MATCH(L$13,Data!$A$3:$CC$3,0),0) -> 0.05751321001 | M29: =VLOOKUP($B29,retdat,MATCH(M$13,Data!$A$3:$CC$3,0),0) -> -0.05063820459 | N29: =VLOOKUP($B29,retdat,MATCH(N$13,Data!$A$3:$CC$3,0),0) -> 0.12715 | O29: =VLOOKUP($B29,retdat,MATCH(O$13,Data!$A$3:$CC$3,0),0) -> 0.1242325 | P29: =VLOOKUP($B29,retdat,MATCH(P$13,Data!$A$3:$CC$3,0),0) -> 0.1062333333 | Q29: =VLOOKUP($B29,retdat,MATCH(Q$13,Data!$A$3:$CC$3,0),0) -> 0.4250651192 | S29: 0.01033351114 | T29: 0.1204138889 | U29: -0.1117053952 | V29: 0.01012653411 | W29: 0.03773963392 | X29: 0.085375 | Y29: 0.135660278 | Z29: 0.1302241221 | AA29: 0.210676126 | AB29: 0.1408518055 | AC29: 0.01045808308 | AD29: 0.1348638889 | AE29: 0.1317316667 | AF29: 0.1138888889 | AG29: 0.2213183505 | AI29: =GEOMEAN(C100:OFFSET(C100,$AI$2-1,0))-1 -> 0.008835496636 | AJ29: =GEOMEAN(D100:OFFSET(D100,$AI$2-1,0))-1 -> 0.1204006164 | AK29: =GEOMEAN(E100:OFFSET(E100,$AI$2-1,0))-1 -> -0.1195436657 | AL29: =GEOMEAN(F100:OFFSET(F100,$AI$2-1,0))-1 -> 0.01010266899 | AM29: =GEOMEAN(G100:OFFSET(G100,$AI$2-1,0))-1 -> 0.03773939869 | AN29: =GEOMEAN(H100:OFFSET(H100,$AI$2-1,0))-1 -> 0.08534279695 | AO29: =GEOMEAN(I100:OFFSET(I100,$AI$2-1,0))-1 -> 0.131905098 | AP29: =GEOMEAN(J100:OFFSET(J100,$AI$2-1,0))-1 -> 0.123384762 | AQ29: =GEOMEAN(K100:OFFSET(K100,$AI$2-1,0))-1 -> 0.2100084487 | AR29: =GEOMEAN(L100:OFFSET(L100,$AI$2-1,0))-1 -> 0.1387558318 | AS29: =GEOMEAN(M100:OFFSET(M100,$AI$2-1,0))-1 -> 0.009168468604 | AT29: =GEOMEAN(N100:OFFSET(N100,$AI$2-1,0))-1 -> 0.1348478023 | AU29: =GEOMEAN(O100:OFFSET(O100,$AI$2-1,0))-1 -> 0.1317161966 | AV29: =GEOMEAN(P100:OFFSET(P100,$AI$2-1,0))-1 -> 0.1138624956 | AW29: =GEOMEAN(Q100:OFFSET(Q100,$AI$2-1,0))-1 -> 0.21163568 | AY29: 16
B30: 1986 | C30: =VLOOKUP($B30,retdat,MATCH(C$13,Data!$A$3:$CC$3,0),0) -> -0.03070606621 | D30: =VLOOKUP($B30,retdat,MATCH(D$13,Data!$A$3:$CC$3,0),0) -> 0.09020833333 | E30: =VLOOKUP($B30,retdat,MATCH(E$13,Data!$A$3:$CC$3,0),0) -> 0.1735881005 | F30: =VLOOKUP($B30,retdat,MATCH(F$13,Data!$A$3:$CC$3,0),0) -> -0.03837165286 | G30: =VLOOKUP($B30,retdat,MATCH(G$13,Data!$A$3:$CC$3,0),0) -> 0.01091912578 | H30: =VLOOKUP($B30,retdat,MATCH(H$13,Data!$A$3:$CC$3,0),0) -> 0.05978333333 | I30: =VLOOKUP($B30,retdat,MATCH(I$13,Data!$A$3:$CC$3,0),0) -> 0.1364556909 | J30: =VLOOKUP($B30,retdat,MATCH(J$13,Data!$A$3:$CC$3,0),0) -> 0.2036227748 | K30: =VLOOKUP($B30,retdat,MATCH(K$13,Data!$A$3:$CC$3,0),0) -> 0.175277856 | L30: =VLOOKUP($B30,retdat,MATCH(L$13,Data!$A$3:$CC$3,0),0) -> 0.1754299391 | M30: =VLOOKUP($B30,retdat,MATCH(M$13,Data!$A$3:$CC$3,0),0) -> -0.02445803511 | N30: =VLOOKUP($B30,retdat,MATCH(N$13,Data!$A$3:$CC$3,0),0) -> 0.1039083333 | O30: =VLOOKUP($B30,retdat,MATCH(O$13,Data!$A$3:$CC$3,0),0) -> 0.1017783333 | P30: =VLOOKUP($B30,retdat,MATCH(P$13,Data!$A$3:$CC$3,0),0) -> 0.076825 | Q30: =VLOOKUP($B30,retdat,MATCH(Q$13,Data!$A$3:$CC$3,0),0) -> 0.511622832 | S30: -0.004443966517 | T30: 0.1103444444 | U30: 0.005489760772 | V30: -0.008581331997 | W30: 0.0289763699 | X30: 0.0766 | Y30: 0.1280396058 | Z30: 0.1365821372 | AA30: 0.1800198928 | AB30: 0.1236992946 | AC30: -0.00022885437 | AD30: 0.1243194444 | AE30: 0.1215681944 | AF30: 0.1024805556 | AG30: 0.3285570293 | AI30: =GEOMEAN(C101:OFFSET(C101,$AI$2-1,0))-1 -> -0.006091922662 | AJ30: =GEOMEAN(D101:OFFSET(D101,$AI$2-1,0))-1 -> 0.1102394407 | AK30: =GEOMEAN(E101:OFFSET(E101,$AI$2-1,0))-1 -> -0.008585380987 | AL30: =GEOMEAN(F101:OFFSET(F101,$AI$2-1,0))-1 -> -0.008816743193 | AM30: =GEOMEAN(G101:OFFSET(G101,$AI$2-1,0))-1 -> 0.02889651389 | AN30: =GEOMEAN(H101:OFFSET(H101,$AI$2-1,0))-1 -> 0.07650216635 | AO30: =GEOMEAN(I101:OFFSET(I101,$AI$2-1,0))-1 -> 0.1244151678 | AP30: =GEOMEAN(J101:OFFSET(J101,$AI$2-1,0))-1 -> 0.1293824043 | AQ30: =GEOMEAN(K101:OFFSET(K101,$AI$2-1,0))-1 -> 0.1799987504 | AR30: =GEOMEAN(L101:OFFSET(L101,$AI$2-1,0))-1 -> 0.1226075351 | AS30: =GEOMEAN(M101:OFFSET(M101,$AI$2-1,0))-1 -> -0.001650650425 | AT30: =GEOMEAN(N101:OFFSET(N101,$AI$2-1,0))-1 -> 0.1242104037 | AU30: =GEOMEAN(O101:OFFSET(O101,$AI$2-1,0))-1 -> 0.1214651103 | AV30: =GEOMEAN(P101:OFFSET(P101,$AI$2-1,0))-1 -> 0.1023057934 | AW30: =GEOMEAN(Q101:OFFSET(Q101,$AI$2-1,0))-1 -> 0.3122468933 | AY30: 17
B31: 1987 | C31: =VLOOKUP($B31,retdat,MATCH(C$13,Data!$A$3:$CC$3,0),0) -> 0.001830744648 | D31: =VLOOKUP($B31,retdat,MATCH(D$13,Data!$A$3:$CC$3,0),0) -> 0.09375833333 | E31: =VLOOKUP($B31,retdat,MATCH(E$13,Data!$A$3:$CC$3,0),0) -> 0.2193550335 | F31: =VLOOKUP($B31,retdat,MATCH(F$13,Data!$A$3:$CC$3,0),0) -> 0.04414645235 | G31: =VLOOKUP($B31,retdat,MATCH(G$13,Data!$A$3:$CC$3,0),0) -> 0.04338883312 | H31: =VLOOKUP($B31,retdat,MATCH(H$13,Data!$A$3:$CC$3,0),0) -> 0.05775 | I31: =VLOOKUP($B31,retdat,MATCH(I$13,Data!$A$3:$CC$3,0),0) -> 0.02007221196 | J31: =VLOOKUP($B31,retdat,MATCH(J$13,Data!$A$3:$CC$3,0),0) -> 0.02232282116 | K31: =VLOOKUP($B31,retdat,MATCH(K$13,Data!$A$3:$CC$3,0),0) -> -0.03707729207 | L31: =VLOOKUP($B31,retdat,MATCH(L$13,Data!$A$3:$CC$3,0),0) -> -0.1128166539 | M31: =VLOOKUP($B31,retdat,MATCH(M$13,Data!$A$3:$CC$3,0),0) -> 0.01474660018 | N31: =VLOOKUP($B31,retdat,MATCH(N$13,Data!$A$3:$CC$3,0),0) -> 0.1057583333 | O31: =VLOOKUP($B31,retdat,MATCH(O$13,Data!$A$3:$CC$3,0),0) -> 0.1019441667 | P31: =VLOOKUP($B31,retdat,MATCH(P$13,Data!$A$3:$CC$3,0),0) -> 0.08384166667 | Q31: =VLOOKUP($B31,retdat,MATCH(Q$13,Data!$A$3:$CC$3,0),0) -> 0.2085141386 | S31: -0.02911722859 | T31: 0.09923333333 | U31: 0.150406054 | V31: 0.002246838871 | W31: 0.03053031164 | X31: 0.06410833333 | Y31: 0.1300940881 | Z31: 0.1567091416 | AA31: 0.1043210782 | AB31: 0.04004216506 | AC31: -0.02011654651 | AD31: 0.1122722222 | AE31: 0.1093183333 | AF31: 0.08896666667 | AG31: 0.3817340299 | AI31: =GEOMEAN(C102:OFFSET(C102,$AI$2-1,0))-1 -> -0.02942963705 | AJ31: =GEOMEAN(D102:OFFSET(D102,$AI$2-1,0))-1 -> 0.09918475602 | AK31: =GEOMEAN(E102:OFFSET(E102,$AI$2-1,0))-1 -> 0.1483690354 | AL31: =GEOMEAN(F102:OFFSET(F102,$AI$2-1,0))-1 -> 0.001680668834 | AM31: =GEOMEAN(G102:OFFSET(G102,$AI$2-1,0))-1 -> 0.03043345218 | AN31: =GEOMEAN(H102:OFFSET(H102,$AI$2-1,0))-1 -> 0.06408128097 | AO31: =GEOMEAN(I102:OFFSET(I102,$AI$2-1,0))-1 -> 0.1266889679 | AP31: =GEOMEAN(J102:OFFSET(J102,$AI$2-1,0))-1 -> 0.1525349452 | AQ31: =GEOMEAN(K102:OFFSET(K102,$AI$2-1,0))-1 -> 0.09958137059 | AR31: =GEOMEAN(L102:OFFSET(L102,$AI$2-1,0))-1 -> 0.03315459141 | AS31: =GEOMEAN(M102:OFFSET(M102,$AI$2-1,0))-1 -> -0.02048346731 | AT31: =GEOMEAN(N102:OFFSET(N102,$AI$2-1,0))-1 -> 0.1122224306 | AU31: =GEOMEAN(O102:OFFSET(O102,$AI$2-1,0))-1 -> 0.1092684255 | AV31: =GEOMEAN(P102:OFFSET(P102,$AI$2-1,0))-1 -> 0.08889475121 | AW31: =GEOMEAN(Q102:OFFSET(Q102,$AI$2-1,0))-1 -> 0.3756563681 | AY31: 18 | AZ31: -0.02942963705 | BA31: 0.09918475602 | BB31: 0.1483690354 | BC31: 0.001680668834 | BD31: 0.03043345218 | BE31: 0.06408128097 | BF31: 0.1266889679 | BG31: 0.1525349452 | BH31: 0.09958137059 | BI31: 0.03315459141 | BJ31: -0.02048346731 | BK31: 0.1122224306 | BL31: 0.1092684255 | BM31: 0.08889475121 | BN31: 0.3756563681
B32: 1988 | C32: =VLOOKUP($B32,retdat,MATCH(C$13,Data!$A$3:$CC$3,0),0) -> 0.115909579 | D32: =VLOOKUP($B32,retdat,MATCH(D$13,Data!$A$3:$CC$3,0),0) -> 0.0971 | E32: =VLOOKUP($B32,retdat,MATCH(E$13,Data!$A$3:$CC$3,0),0) -> -0.165524767 | F32: =VLOOKUP($B32,retdat,MATCH(F$13,Data!$A$3:$CC$3,0),0) -> 0.04503575291 | G32: =VLOOKUP($B32,retdat,MATCH(G$13,Data!$A$3:$CC$3,0),0) -> 0.04324539886 | H32: =VLOOKUP($B32,retdat,MATCH(H$13,Data!$A$3:$CC$3,0),0) -> 0.066675 | I32: =VLOOKUP($B32,retdat,MATCH(I$13,Data!$A$3:$CC$3,0),0) -> 0.1169012411 | J32: =VLOOKUP($B32,retdat,MATCH(J$13,Data!$A$3:$CC$3,0),0) -> 0.1120125731 | K32: =VLOOKUP($B32,retdat,MATCH(K$13,Data!$A$3:$CC$3,0),0) -> 0.1265042596 | L32: =VLOOKUP($B32,retdat,MATCH(L$13,Data!$A$3:$CC$3,0),0) -> 0.1075568111 | M32: =VLOOKUP($B32,retdat,MATCH(M$13,Data!$A$3:$CC$3,0),0) -> 0.1094001542 | N32: =VLOOKUP($B32,retdat,MATCH(N$13,Data!$A$3:$CC$3,0),0) -> 0.1083 | O32: =VLOOKUP($B32,retdat,MATCH(O$13,Data!$A$3:$CC$3,0),0) -> 0.1033425 | P32: =VLOOKUP($B32,retdat,MATCH(P$13,Data!$A$3:$CC$3,0),0) -> 0.08845833333 | Q32: =VLOOKUP($B32,retdat,MATCH(Q$13,Data!$A$3:$CC$3,0),0) -> 0.2363505605 | S32: 0.02901141914 | T32: =AVERAGE(D30:D32) -> 0.09368888889 | U32: =AVERAGE(E30:E32) -> 0.07580612233 | V32: =AVERAGE(F30:F32) -> 0.0169368508 | W32: =AVERAGE(G30:G32) -> 0.03251778592 | X32: =AVERAGE(H30:H32) -> 0.06140277778 | Y32: =AVERAGE(I30:I32) -> 0.09114304797 | Z32: =AVERAGE(J30:J32) -> 0.112652723 | AA32: =AVERAGE(K30:K32) -> 0.0882349412 | AB32: =AVERAGE(L30:L32) -> 0.05672336543 | AC32: =AVERAGE(M30:M32) -> 0.03322957308 | AD32: =AVERAGE(N30:N32) -> 0.1059888889 | AE32: =AVERAGE(O30:O32) -> 0.102355 | AF32: =AVERAGE(P30:P32) -> 0.08304166667 | AG32: =AVERAGE(Q30:Q32) -> 0.318829177 | AI32: =GEOMEAN(C103:OFFSET(C103,$AI$2-1,0))-1 -> 0.02713206031 | AJ32: =GEOMEAN(D103:OFFSET(D103,$AI$2-1,0))-1 -> 0.09368526867 | AK32: =GEOMEAN(E103:OFFSET(E103,$AI$2-1,0))-1 -> 0.06092929459 | AL32: =GEOMEAN(F103:OFFSET(F103,$AI$2-1,0))-1 -> 0.01617055799 | AM32: =GEOMEAN(G103:OFFSET(G103,$AI$2-1,0))-1 -> 0.0324040316 | AN32: =GEOMEAN(H103:OFFSET(H103,$AI$2-1,0))-1 -> 0.06139591528 | AO32: =GEOMEAN(I103:OFFSET(I103,$AI$2-1,0))-1 -> 0.08993198977 | AP32: =GEOMEAN(J103:OFFSET(J103,$AI$2-1,0))-1 -> 0.1101867762 | AQ32: =GEOMEAN(K103:OFFSET(K103,$AI$2-1,0))-1 -> 0.08431368771 | AR32: =GEOMEAN(L103:OFFSET(L103,$AI$2-1,0))-1 -> 0.0492010433 | AS32: =GEOMEAN(M103:OFFSET(M103,$AI$2-1,0))-1 -> 0.03172493703 | AT32: =GEOMEAN(N103:OFFSET(N103,$AI$2-1,0))-1 -> 0.105987424 | AU32: =GEOMEAN(O103:OFFSET(O103,$AI$2-1,0))-1 -> 0.1023547768 | AV32: =GEOMEAN(P103:OFFSET(P103,$AI$2-1,0))-1 -> 0.08303109803 | AW32: =GEOMEAN(Q103:OFFSET(Q103,$AI$2-1,0))-1 -> 0.3120355511 | AY32: 19
B33: 1989 | C33: =VLOOKUP($B33,retdat,MATCH(C$13,Data!$A$3:$CC$3,0),0) -> 0.1217619694 | D33: =VLOOKUP($B33,retdat,MATCH(D$13,Data!$A$3:$CC$3,0),0) -> 0.092575 | E33: =VLOOKUP($B33,retdat,MATCH(E$13,Data!$A$3:$CC$3,0),0) -> -0.02880832219 | F33: =VLOOKUP($B33,retdat,MATCH(F$13,Data!$A$3:$CC$3,0),0) -> 0.03603993648 | G33: =VLOOKUP($B33,retdat,MATCH(G$13,Data!$A$3:$CC$3,0),0) -> 0.04542549004 | H33: =VLOOKUP($B33,retdat,MATCH(H$13,Data!$A$3:$CC$3,0),0) -> 0.08111666667 | I33: =VLOOKUP($B33,retdat,MATCH(I$13,Data!$A$3:$CC$3,0),0) -> 0.240987148 | J33: =VLOOKUP($B33,retdat,MATCH(J$13,Data!$A$3:$CC$3,0),0) -> 0.2386820735 | K33: =VLOOKUP($B33,retdat,MATCH(K$13,Data!$A$3:$CC$3,0),0) -> 0.08472912909 | L33: =VLOOKUP($B33,retdat,MATCH(L$13,Data!$A$3:$CC$3,0),0) -> -0.01830215168 | M33: =VLOOKUP($B33,retdat,MATCH(M$13,Data!$A$3:$CC$3,0),0) -> 0.1216543352 | N33: =VLOOKUP($B33,retdat,MATCH(N$13,Data!$A$3:$CC$3,0),0) -> 0.101775 | O33: =VLOOKUP($B33,retdat,MATCH(O$13,Data!$A$3:$CC$3,0),0) -> 0.1032316667 | P33: =VLOOKUP($B33,retdat,MATCH(P$13,Data!$A$3:$CC$3,0),0) -> 0.08498333333 | Q33: =VLOOKUP($B33,retdat,MATCH(Q$13,Data!$A$3:$CC$3,0),0) -> 0.0881971791 | S33: 0.07983409769 | T33: 0.09447777778 | U33: 0.008340648095 | V33: 0.04174071391 | W33: 0.04401990734 | X33: 0.06851388889 | Y33: 0.125986867 | Z33: 0.1243391559 | AA33: 0.05805203222 | AB33: -0.007853998161 | AC33: 0.08193369652 | AD33: 0.1052777778 | AE33: 0.1028394444 | AF33: 0.08576111111 | AG33: 0.1776872927 | AI33: =GEOMEAN(C104:OFFSET(C104,$AI$2-1,0))-1 -> 0.07838711742 | AJ33: =GEOMEAN(D104:OFFSET(D104,$AI$2-1,0))-1 -> 0.09447610153 | AK33: =GEOMEAN(E104:OFFSET(E104,$AI$2-1,0))-1 -> -0.003946055442 | AL33: =GEOMEAN(F104:OFFSET(F104,$AI$2-1,0))-1 -> 0.04173283754 | AM33: =GEOMEAN(G104:OFFSET(G104,$AI$2-1,0))-1 -> 0.04401943282 | AN33: =GEOMEAN(H104:OFFSET(H104,$AI$2-1,0))-1 -> 0.0684705862 | AO33: =GEOMEAN(I104:OFFSET(I104,$AI$2-1,0))-1 -> 0.1223741563 | AP33: =GEOMEAN(J104:OFFSET(J104,$AI$2-1,0))-1 -> 0.1208630052 | AQ33: =GEOMEAN(K104:OFFSET(K104,$AI$2-1,0))-1 -> 0.05571945082 | AR33: =GEOMEAN(L104:OFFSET(L104,$AI$2-1,0))-1 -> -0.01193448041 | AS33: =GEOMEAN(M104:OFFSET(M104,$AI$2-1,0))-1 -> 0.08085712231 | AT33: =GEOMEAN(N104:OFFSET(N104,$AI$2-1,0))-1 -> 0.1052745141 | AU33: =GEOMEAN(O104:OFFSET(O104,$AI$2-1,0))-1 -> 0.1028392618 | AV33: =GEOMEAN(P104:OFFSET(P104,$AI$2-1,0))-1 -> 0.08575933712 | AW33: =GEOMEAN(Q104:OFFSET(Q104,$AI$2-1,0))-1 -> 0.1758907855 | AY33: 20
B34: 1990 | C34: =VLOOKUP($B34,retdat,MATCH(C$13,Data!$A$3:$CC$3,0),0) -> 0.09318403099 | D34: =VLOOKUP($B34,retdat,MATCH(D$13,Data!$A$3:$CC$3,0),0) -> 0.09321666667 | E34: =VLOOKUP($B34,retdat,MATCH(E$13,Data!$A$3:$CC$3,0),0) -> -0.03160303778 | F34: =VLOOKUP($B34,retdat,MATCH(F$13,Data!$A$3:$CC$3,0),0) -> 0.0492114829 | G34: =VLOOKUP($B34,retdat,MATCH(G$13,Data!$A$3:$CC$3,0),0) -> 0.05927090472 | H34: =VLOOKUP($B34,retdat,MATCH(H$13,Data!$A$3:$CC$3,0),0) -> 0.07493333333 | I34: =VLOOKUP($B34,retdat,MATCH(I$13,Data!$A$3:$CC$3,0),0) -> -0.06784146088 | J34: =VLOOKUP($B34,retdat,MATCH(J$13,Data!$A$3:$CC$3,0),0) -> -0.04437416992 | K34: =VLOOKUP($B34,retdat,MATCH(K$13,Data!$A$3:$CC$3,0),0) -> -0.1666655379 | L34: =VLOOKUP($B34,retdat,MATCH(L$13,Data!$A$3:$CC$3,0),0) -> -0.1904956778 | M34: =VLOOKUP($B34,retdat,MATCH(M$13,Data!$A$3:$CC$3,0),0) -> 0.08434622888 | N34: =VLOOKUP($B34,retdat,MATCH(N$13,Data!$A$3:$CC$3,0),0) -> 0.10355 | O34: =VLOOKUP($B34,retdat,MATCH(O$13,Data!$A$3:$CC$3,0),0) -> 0.1012883333 | P34: =VLOOKUP($B34,retdat,MATCH(P$13,Data!$A$3:$CC$3,0),0) -> 0.0855 | Q34: =VLOOKUP($B34,retdat,MATCH(Q$13,Data!$A$3:$CC$3,0),0) -> -0.2837642962 | S34: 0.1102851931 | T34: 0.09429722222 | U34: -0.07531204232 | V34: 0.04342905743 | W34: 0.04931393121 | X34: 0.07424166667 | Y34: 0.09668230939 | Z34: 0.1021068255 | AA34: 0.01485595028 | AB34: -0.03374700613 | AC34: 0.1051335728 | AD34: 0.1045416667 | AE34: 0.1026208333 | AF34: 0.08631388889 | AG34: 0.01359448113 | AI34: =GEOMEAN(C105:OFFSET(C105,$AI$2-1,0))-1 -> 0.1102164696 | AJ34: =GEOMEAN(D105:OFFSET(D105,$AI$2-1,0))-1 -> 0.09429539766 | AK34: =GEOMEAN(E105:OFFSET(E105,$AI$2-1,0))-1 -> -0.07759013137 | AL34: =GEOMEAN(F105:OFFSET(F105,$AI$2-1,0))-1 -> 0.04341456198 | AM34: =GEOMEAN(G105:OFFSET(G105,$AI$2-1,0))-1 -> 0.04929000383 | AN34: =GEOMEAN(H105:OFFSET(H105,$AI$2-1,0))-1 -> 0.0742253657 | AO34: =GEOMEAN(I105:OFFSET(I105,$AI$2-1,0))-1 -> 0.08915731649 | AP34: =GEOMEAN(J105:OFFSET(J105,$AI$2-1,0))-1 -> 0.09593755669 | AQ34: =GEOMEAN(K105:OFFSET(K105,$AI$2-1,0))-1 -> 0.006061418214 | AR34: =GEOMEAN(L105:OFFSET(L105,$AI$2-1,0))-1 -> -0.04165692772 | AS34: =GEOMEAN(M105:OFFSET(M105,$AI$2-1,0))-1 -> 0.1050240873 | AT34: =GEOMEAN(N105:OFFSET(N105,$AI$2-1,0))-1 -> 0.1045382347 | AU34: =GEOMEAN(O105:OFFSET(O105,$AI$2-1,0))-1 -> 0.1026204297 | AV34: =GEOMEAN(P105:OFFSET(P105,$AI$2-1,0))-1 -> 0.08631281075 | AW34: =GEOMEAN(Q105:OFFSET(Q105,$AI$2-1,0))-1 -> -0.01227723362 | AY34: 21 | AZ34: 0.1102164696 | BA34: 0.09429539766 | BB34: -0.07759013137 | BC34: 0.04341456198 | BD34: 0.04929000383 | BE34: 0.0742253657 | BF34: 0.08915731649 | BG34: 0.09593755669 | BH34: 0.006061418214 | BI34: -0.04165692772 | BJ34: 0.1050240873 | BK34: 0.1045382347 | BL34: 0.1026204297 | BM34: 0.08631281075 | BN34: -0.01227723362
B35: 1991 | C35: =VLOOKUP($B35,retdat,MATCH(C$13,Data!$A$3:$CC$3,0),0) -> 0.08683239126 | D35: =VLOOKUP($B35,retdat,MATCH(D$13,Data!$A$3:$CC$3,0),0) -> 0.08769166667 | E35: =VLOOKUP($B35,retdat,MATCH(E$13,Data!$A$3:$CC$3,0),0) -> -0.08946247414 | F35: =VLOOKUP($B35,retdat,MATCH(F$13,Data!$A$3:$CC$3,0),0) -> -0.02387155127 | G35: =VLOOKUP($B35,retdat,MATCH(G$13,Data!$A$3:$CC$3,0),0) -> 0.03018263711 | H35: =VLOOKUP($B35,retdat,MATCH(H$13,Data!$A$3:$CC$3,0),0) -> 0.05375 | I35: =VLOOKUP($B35,retdat,MATCH(I$13,Data!$A$3:$CC$3,0),0) -> 0.2335429268 | J35: =VLOOKUP($B35,retdat,MATCH(J$13,Data!$A$3:$CC$3,0),0) -> 0.1849632657 | K35: =VLOOKUP($B35,retdat,MATCH(K$13,Data!$A$3:$CC$3,0),0) -> 0.305248353 | L35: =VLOOKUP($B35,retdat,MATCH(L$13,Data!$A$3:$CC$3,0),0) -> 0.3051221699 | M35: =VLOOKUP($B35,retdat,MATCH(M$13,Data!$A$3:$CC$3,0),0) -> 0.08999667472 | N35: =VLOOKUP($B35,retdat,MATCH(N$13,Data!$A$3:$CC$3,0),0) -> 0.09801666667 | O35: =VLOOKUP($B35,retdat,MATCH(O$13,Data!$A$3:$CC$3,0),0) -> 0.0924775 | P35: =VLOOKUP($B35,retdat,MATCH(P$13,Data!$A$3:$CC$3,0),0) -> 0.07858333333 | Q35: =VLOOKUP($B35,retdat,MATCH(Q$13,Data!$A$3:$CC$3,0),0) -> 0.09700483399 | S35: 0.1005927972 | T35: 0.09116111111 | U35: -0.04995794471 | V35: 0.02045995604 | W35: 0.04495967729 | X35: 0.06993333333 | Y35: 0.1355628713 | Z35: 0.1264237231 | AA35: 0.07443731475 | AB35: 0.03210811346 | AC35: 0.09866574627 | AD35: 0.1011138889 | AE35: 0.09899916667 | AF35: 0.08302222222 | AG35: -0.03285409436 | AI35: =GEOMEAN(C106:OFFSET(C106,$AI$2-1,0))-1 -> 0.1004885328 | AJ35: =GEOMEAN(D106:OFFSET(D106,$AI$2-1,0))-1 -> 0.09115831898 | AK35: =GEOMEAN(E106:OFFSET(E106,$AI$2-1,0))-1 -> -0.05037514471 | AL35: =GEOMEAN(F106:OFFSET(F106,$AI$2-1,0))-1 -> 0.01995771487 | AM35: =GEOMEAN(G106:OFFSET(G106,$AI$2-1,0))-1 -> 0.04489211407 | AN35: =GEOMEAN(H106:OFFSET(H106,$AI$2-1,0))-1 -> 0.06986889261 | AO35: =GEOMEAN(I106:OFFSET(I106,$AI$2-1,0))-1 -> 0.1258238495 | AP35: =GEOMEAN(J106:OFFSET(J106,$AI$2-1,0))-1 -> 0.119397175 | AQ35: =GEOMEAN(K106:OFFSET(K106,$AI$2-1,0))-1 -> 0.05668270586 | AR35: =GEOMEAN(L106:OFFSET(L106,$AI$2-1,0))-1 -> 0.01223820761 | AS35: =GEOMEAN(M106:OFFSET(M106,$AI$2-1,0))-1 -> 0.09854384525 | AT35: =GEOMEAN(N106:OFFSET(N106,$AI$2-1,0))-1 -> 0.1011114711 | AU35: =GEOMEAN(O106:OFFSET(O106,$AI$2-1,0))-1 -> 0.09898918758 | AV35: =GEOMEAN(P106:OFFSET(P106,$AI$2-1,0))-1 -> 0.08301764721 | AW35: =GEOMEAN(Q106:OFFSET(Q106,$AI$2-1,0))-1 -> -0.05087364146 | AY35: 22
B36: 1992 | C36: =VLOOKUP($B36,retdat,MATCH(C$13,Data!$A$3:$CC$3,0),0) -> 0.07586861039 | D36: =VLOOKUP($B36,retdat,MATCH(D$13,Data!$A$3:$CC$3,0),0) -> 0.0814 | E36: =VLOOKUP($B36,retdat,MATCH(E$13,Data!$A$3:$CC$3,0),0) -> -0.05905075127 | F36: =VLOOKUP($B36,retdat,MATCH(F$13,Data!$A$3:$CC$3,0),0) -> 0.01456128512 | G36: =VLOOKUP($B36,retdat,MATCH(G$13,Data!$A$3:$CC$3,0),0) -> 0.02859379937 | H36: =VLOOKUP($B36,retdat,MATCH(H$13,Data!$A$3:$CC$3,0),0) -> 0.03431666667 | I36: =VLOOKUP($B36,retdat,MATCH(I$13,Data!$A$3:$CC$3,0),0) -> 0.04367485858 | J36: =VLOOKUP($B36,retdat,MATCH(J$13,Data!$A$3:$CC$3,0),0) -> 0.04090277894 | K36: =VLOOKUP($B36,retdat,MATCH(K$13,Data!$A$3:$CC$3,0),0) -> 0.1361870054 | L36: =VLOOKUP($B36,retdat,MATCH(L$13,Data!$A$3:$CC$3,0),0) -> 0.1148936007 | M36: =VLOOKUP($B36,retdat,MATCH(M$13,Data!$A$3:$CC$3,0),0) -> 0.07647299203 | N36: =VLOOKUP($B36,retdat,MATCH(N$13,Data!$A$3:$CC$3,0),0) -> 0.08976666667 | O36: =VLOOKUP($B36,retdat,MATCH(O$13,Data!$A$3:$CC$3,0),0) -> 0.08399041667 | P36: =VLOOKUP($B36,retdat,MATCH(P$13,Data!$A$3:$CC$3,0),0) -> 0.0701 | Q36: =VLOOKUP($B36,retdat,MATCH(Q$13,Data!$A$3:$CC$3,0),0) -> -0.1495142943 | S36: 0.08529501088 | T36: 0.08743611111 | U36: -0.0600387544 | V36: 0.01330040558 | W36: 0.03934911373 | X36: 0.05433333333 | Y36: 0.06979210818 | Z36: 0.06049729157 | AA36: 0.09158994017 | AB36: 0.07650669758 | AC36: 0.08360529855 | AD36: 0.09711111111 | AE36: 0.09258541667 | AF36: 0.07806111111 | AG36: -0.1120912522 | AI36: =GEOMEAN(C107:OFFSET(C107,$AI$2-1,0))-1 -> 0.08527141188 | AJ36: =GEOMEAN(D107:OFFSET(D107,$AI$2-1,0))-1 -> 0.08742539296 | AK36: =GEOMEAN(E107:OFFSET(E107,$AI$2-1,0))-1 -> -0.06033621545 | AL36: =GEOMEAN(F107:OFFSET(F107,$AI$2-1,0))-1 -> 0.01286002364 | AM36: =GEOMEAN(G107:OFFSET(G107,$AI$2-1,0))-1 -> 0.03925404563 | AN36: =GEOMEAN(H107:OFFSET(H107,$AI$2-1,0))-1 -> 0.05420291712 | AO36: =GEOMEAN(I107:OFFSET(I107,$AI$2-1,0))-1 -> 0.06268142751 | AP36: =GEOMEAN(J107:OFFSET(J107,$AI$2-1,0))-1 -> 0.05633331861 | AQ36: =GEOMEAN(K107:OFFSET(K107,$AI$2-1,0))-1 -> 0.07313437035 | AR36: =GEOMEAN(L107:OFFSET(L107,$AI$2-1,0))-1 -> 0.05609078671 | AS36: =GEOMEAN(M107:OFFSET(M107,$AI$2-1,0))-1 -> 0.08359109719 | AT36: =GEOMEAN(N107:OFFSET(N107,$AI$2-1,0))-1 -> 0.09709648185 | AU36: =GEOMEAN(O107:OFFSET(O107,$AI$2-1,0))-1 -> 0.09256259392 | AV36: =GEOMEAN(P107:OFFSET(P107,$AI$2-1,0))-1 -> 0.07804270639 | AW36: =GEOMEAN(Q107:OFFSET(Q107,$AI$2-1,0))-1 -> -0.1257334906 | AY36: 23
B37: 1993 | C37: =VLOOKUP($B37,retdat,MATCH(C$13,Data!$A$3:$CC$3,0),0) -> 0.1014640208 | D37: =VLOOKUP($B37,retdat,MATCH(D$13,Data!$A$3:$CC$3,0),0) -> 0.07219166667 | E37: =VLOOKUP($B37,retdat,MATCH(E$13,Data!$A$3:$CC$3,0),0) -> 0.1627817367 | F37: =VLOOKUP($B37,retdat,MATCH(F$13,Data!$A$3:$CC$3,0),0) -> 0.008467451099 | G37: =VLOOKUP($B37,retdat,MATCH(G$13,Data!$A$3:$CC$3,0),0) -> 0.02711323541 | H37: =VLOOKUP($B37,retdat,MATCH(H$13,Data!$A$3:$CC$3,0),0) -> 0.029975 | I37: =VLOOKUP($B37,retdat,MATCH(I$13,Data!$A$3:$CC$3,0),0) -> 0.06817394897 | J37: =VLOOKUP($B37,retdat,MATCH(J$13,Data!$A$3:$CC$3,0),0) -> 0.1285928298 | K37: =VLOOKUP($B37,retdat,MATCH(K$13,Data!$A$3:$CC$3,0),0) -> 0.1794384859 | L37: =VLOOKUP($B37,retdat,MATCH(L$13,Data!$A$3:$CC$3,0),0) -> 0.1701406604 | M37: =VLOOKUP($B37,retdat,MATCH(M$13,Data!$A$3:$CC$3,0),0) -> 0.09762368612 | N37: =VLOOKUP($B37,retdat,MATCH(N$13,Data!$A$3:$CC$3,0),0) -> 0.0793 | O37: =VLOOKUP($B37,retdat,MATCH(O$13,Data!$A$3:$CC$3,0),0) -> 0.07326583333 | P37: =VLOOKUP($B37,retdat,MATCH(P$13,Data!$A$3:$CC$3,0),0) -> 0.05873333333 | Q37: =VLOOKUP($B37,retdat,MATCH(Q$13,Data!$A$3:$CC$3,0),0) -> 0.266152781 | S37: 0.08805500747 | T37: 0.08042777778 | U37: 0.004756170414 | V37: -0.0002809383507 | W37: 0.02862989063 | X37: 0.03934722222 | Y37: 0.1151305781 | Z37: 0.1181529581 | AA37: 0.2069579481 | AB37: 0.1967188103 | AC37: 0.08803111763 | AD37: 0.08902777778 | AE37: 0.08324458333 | AF37: 0.06913888889 | AG37: 0.07121444023 | AI37: =GEOMEAN(C108:OFFSET(C108,$AI$2-1,0))-1 -> 0.08800454238 | AJ37: =GEOMEAN(D108:OFFSET(D108,$AI$2-1,0))-1 -> 0.08040901166 | AK37: =GEOMEAN(E108:OFFSET(E108,$AI$2-1,0))-1 -> -0.001256229304 | AL37: =GEOMEAN(F108:OFFSET(F108,$AI$2-1,0))-1 -> -0.000424244301 | AM37: =GEOMEAN(G108:OFFSET(G108,$AI$2-1,0))-1 -> 0.02862912709 | AN37: =GEOMEAN(H108:OFFSET(H108,$AI$2-1,0))-1 -> 0.03929602116 | AO37: =GEOMEAN(I108:OFFSET(I108,$AI$2-1,0))-1 -> 0.1120402082 | AP37: =GEOMEAN(J108:OFFSET(J108,$AI$2-1,0))-1 -> 0.1165652667 | AQ37: =GEOMEAN(K108:OFFSET(K108,$AI$2-1,0))-1 -> 0.2048678672 | AR37: =GEOMEAN(L108:OFFSET(L108,$AI$2-1,0))-1 -> 0.1941005181 | AS37: =GEOMEAN(M108:OFFSET(M108,$AI$2-1,0))-1 -> 0.08799590431 | AT37: =GEOMEAN(N108:OFFSET(N108,$AI$2-1,0))-1 -> 0.08900082732 | AU37: =GEOMEAN(O108:OFFSET(O108,$AI$2-1,0))-1 -> 0.08321604096 | AV37: =GEOMEAN(P108:OFFSET(P108,$AI$2-1,0))-1 -> 0.06910793262 | AW37: =GEOMEAN(Q108:OFFSET(Q108,$AI$2-1,0))-1 -> 0.05711091664 | AY37: 24 | AZ37: 0.08800454238 | BA37: 0.08040901166 | BB37: -0.001256229304 | BC37: -0.000424244301 | BD37: 0.02862912709 | BE37: 0.03929602116 | BF37: 0.1120402082 | BG37: 0.1165652667 | BH37: 0.2048678672 | BI37: 0.1941005181 | BJ37: 0.08799590431 | BK37: 0.08900082732 | BL37: 0.08321604096 | BM37: 0.06910793262 | BN37: 0.05711091664
B38: 1994 | C38: =VLOOKUP($B38,retdat,MATCH(C$13,Data!$A$3:$CC$3,0),0) -> 0.1161700623 | D38: =VLOOKUP($B38,retdat,MATCH(D$13,Data!$A$3:$CC$3,0),0) -> 0.079625 | E38: =VLOOKUP($B38,retdat,MATCH(E$13,Data!$A$3:$CC$3,0),0) -> -0.02193636348 | F38: =VLOOKUP($B38,retdat,MATCH(F$13,Data!$A$3:$CC$3,0),0) -> 0.02744454992 | G38: =VLOOKUP($B38,retdat,MATCH(G$13,Data!$A$3:$CC$3,0),0) -> 0.02639747185 | H38: =VLOOKUP($B38,retdat,MATCH(H$13,Data!$A$3:$CC$3,0),0) -> 0.04246666667 | I38: =VLOOKUP($B38,retdat,MATCH(I$13,Data!$A$3:$CC$3,0),0) -> -0.01551256099 | J38: =VLOOKUP($B38,retdat,MATCH(J$13,Data!$A$3:$CC$3,0),0) -> 0.0211643928 | K38: =VLOOKUP($B38,retdat,MATCH(K$13,Data!$A$3:$CC$3,0),0) -> 0.0312148619 | L38: =VLOOKUP($B38,retdat,MATCH(L$13,Data!$A$3:$CC$3,0),0) -> 0.008023156968 | M38: =VLOOKUP($B38,retdat,MATCH(M$13,Data!$A$3:$CC$3,0),0) -> 0.1360517734 | N38: =VLOOKUP($B38,retdat,MATCH(N$13,Data!$A$3:$CC$3,0),0) -> 0.086225 | O38: =VLOOKUP($B38,retdat,MATCH(O$13,Data!$A$3:$CC$3,0),0) -> 0.08354833333 | P38: =VLOOKUP($B38,retdat,MATCH(P$13,Data!$A$3:$CC$3,0),0) -> 0.0708 | Q38: =VLOOKUP($B38,retdat,MATCH(Q$13,Data!$A$3:$CC$3,0),0) -> 0.06053188721 | S38: 0.09783423114 | T38: 0.07773888889 | U38: 0.02726487397 | V38: 0.01682442871 | W38: 0.02736816888 | X38: 0.03558611111 | Y38: 0.03211208219 | Z38: 0.06355333385 | AA38: 0.1156134511 | AB38: 0.097685806 | AC38: 0.1033828172 | AD38: 0.08509722222 | AE38: 0.08026819444 | AF38: 0.06654444444 | AG38: 0.0590567913 | AI38: =GEOMEAN(C109:OFFSET(C109,$AI$2-1,0))-1 -> 0.09770752316 | AJ38: =GEOMEAN(D109:OFFSET(D109,$AI$2-1,0))-1 -> 0.07773149621 | AK38: =GEOMEAN(E109:OFFSET(E109,$AI$2-1,0))-1 -> 0.02284659733 | AL38: =GEOMEAN(F109:OFFSET(F109,$AI$2-1,0))-1 -> 0.01679371898 | AM38: =GEOMEAN(G109:OFFSET(G109,$AI$2-1,0))-1 -> 0.02736776188 | AN38: =GEOMEAN(H109:OFFSET(H109,$AI$2-1,0))-1 -> 0.03557318052 | AO38: =GEOMEAN(I109:OFFSET(I109,$AI$2-1,0))-1 -> 0.03150766866 | AP38: =GEOMEAN(J109:OFFSET(J109,$AI$2-1,0))-1 -> 0.06254591479 | AQ38: =GEOMEAN(K109:OFFSET(K109,$AI$2-1,0))-1 -> 0.1138449978 | AR38: =GEOMEAN(L109:OFFSET(L109,$AI$2-1,0))-1 -> 0.09558816993 | AS38: =GEOMEAN(M109:OFFSET(M109,$AI$2-1,0))-1 -> 0.1031085332 | AT38: =GEOMEAN(N109:OFFSET(N109,$AI$2-1,0))-1 -> 0.08508850717 | AU38: =GEOMEAN(O109:OFFSET(O109,$AI$2-1,0))-1 -> 0.0802568074 | AV38: =GEOMEAN(P109:OFFSET(P109,$AI$2-1,0))-1 -> 0.06653006966 | AW38: =GEOMEAN(Q109:OFFSET(Q109,$AI$2-1,0))-1 -> 0.04526310445 | AY38: 25
B39: 1995 | C39: =VLOOKUP($B39,retdat,MATCH(C$13,Data!$A$3:$CC$3,0),0) -> 0.1104374618 | D39: =VLOOKUP($B39,retdat,MATCH(D$13,Data!$A$3:$CC$3,0),0) -> 0.0759 | E39: =VLOOKUP($B39,retdat,MATCH(E$13,Data!$A$3:$CC$3,0),0) -> 0.009737175278 | F39: =VLOOKUP($B39,retdat,MATCH(F$13,Data!$A$3:$CC$3,0),0) -> 0.03069707911 | G39: =VLOOKUP($B39,retdat,MATCH(G$13,Data!$A$3:$CC$3,0),0) -> 0.0250672756 | H39: =VLOOKUP($B39,retdat,MATCH(H$13,Data!$A$3:$CC$3,0),0) -> 0.0549 | I39: =VLOOKUP($B39,retdat,MATCH(I$13,Data!$A$3:$CC$3,0),0) -> 0.2934950483 | J39: =VLOOKUP($B39,retdat,MATCH(J$13,Data!$A$3:$CC$3,0),0) -> 0.2885749035 | K39: =VLOOKUP($B39,retdat,MATCH(K$13,Data!$A$3:$CC$3,0),0) -> 0.1420799787 | L39: =VLOOKUP($B39,retdat,MATCH(L$13,Data!$A$3:$CC$3,0),0) -> 0.1681296247 | M39: =VLOOKUP($B39,retdat,MATCH(M$13,Data!$A$3:$CC$3,0),0) -> 0.09990734575 | N39: =VLOOKUP($B39,retdat,MATCH(N$13,Data!$A$3:$CC$3,0),0) -> 0.08200833333 | O39: =VLOOKUP($B39,retdat,MATCH(O$13,Data!$A$3:$CC$3,0),0) -> 0.07952833333 | P39: =VLOOKUP($B39,retdat,MATCH(P$13,Data!$A$3:$CC$3,0),0) -> 0.0658 | Q39: =VLOOKUP($B39,retdat,MATCH(Q$13,Data!$A$3:$CC$3,0),0) -> 0.09002666213 | S39: 0.1093571816 | T39: 0.07590555556 | U39: 0.05019418282 | V39: 0.02220302671 | W39: 0.02619266095 | X39: 0.04244722222 | Y39: 0.1153854788 | Z39: 0.1461107087 | AA39: 0.1175777755 | AB39: 0.1154311473 | AC39: 0.1111942684 | AD39: 0.08251111111 | AE39: 0.07878083333 | AF39: 0.06511111111 | AG39: 0.1389037768 | AI39: =GEOMEAN(C110:OFFSET(C110,$AI$2-1,0))-1 -> 0.1093406569 | AJ39: =GEOMEAN(D110:OFFSET(D110,$AI$2-1,0))-1 -> 0.07590127587 | AK39: =GEOMEAN(E110:OFFSET(E110,$AI$2-1,0))-1 -> 0.04718775056 | AL39: =GEOMEAN(F110:OFFSET(F110,$AI$2-1,0))-1 -> 0.022155825 | AM39: =GEOMEAN(G110:OFFSET(G110,$AI$2-1,0))-1 -> 0.02619231074 | AN39: =GEOMEAN(H110:OFFSET(H110,$AI$2-1,0))-1 -> 0.0423975556 | AO39: =GEOMEAN(I110:OFFSET(I110,$AI$2-1,0))-1 -> 0.1079980021 | AP39: =GEOMEAN(J110:OFFSET(J110,$AI$2-1,0))-1 -> 0.1408998931 | AQ39: =GEOMEAN(K110:OFFSET(K110,$AI$2-1,0))-1 -> 0.115767376 | AR39: =GEOMEAN(L110:OFFSET(L110,$AI$2-1,0))-1 -> 0.1127558153 | AS39: =GEOMEAN(M110:OFFSET(M110,$AI$2-1,0))-1 -> 0.1110558719 | AT39: =GEOMEAN(N110:OFFSET(N110,$AI$2-1,0))-1 -> 0.08250736273 | AU39: =GEOMEAN(O110:OFFSET(O110,$AI$2-1,0))-1 -> 0.07877253077 | AV39: =GEOMEAN(P110:OFFSET(P110,$AI$2-1,0))-1 -> 0.06509960029 | AW39: =GEOMEAN(Q110:OFFSET(Q110,$AI$2-1,0))-1 -> 0.1354002576 | AY39: 26
B40: 1996 | C40: =VLOOKUP($B40,retdat,MATCH(C$13,Data!$A$3:$CC$3,0),0) -> 0.09720975229 | D40: =VLOOKUP($B40,retdat,MATCH(D$13,Data!$A$3:$CC$3,0),0) -> 0.0737 | E40: =VLOOKUP($B40,retdat,MATCH(E$13,Data!$A$3:$CC$3,0),0) -> -0.04695077162 | F40: =VLOOKUP($B40,retdat,MATCH(F$13,Data!$A$3:$CC$3,0),0) -> 0.02668918226 | G40: =VLOOKUP($B40,retdat,MATCH(G$13,Data!$A$3:$CC$3,0),0) -> 0.03268474217 | H40: =VLOOKUP($B40,retdat,MATCH(H$13,Data!$A$3:$CC$3,0),0) -> 0.05005833333 | I40: =VLOOKUP($B40,retdat,MATCH(I$13,Data!$A$3:$CC$3,0),0) -> 0.1845163658 | J40: =VLOOKUP($B40,retdat,MATCH(J$13,Data!$A$3:$CC$3,0),0) -> 0.2312286578 | K40: =VLOOKUP($B40,retdat,MATCH(K$13,Data!$A$3:$CC$3,0),0) -> 0.3020779551 | L40: =VLOOKUP($B40,retdat,MATCH(L$13,Data!$A$3:$CC$3,0),0) -> 0.3056709338 | M40: =VLOOKUP($B40,retdat,MATCH(M$13,Data!$A$3:$CC$3,0),0) -> 0.08724473971 | N40: =VLOOKUP($B40,retdat,MATCH(N$13,Data!$A$3:$CC$3,0),0) -> 0.08054166667 | O40: =VLOOKUP($B40,retdat,MATCH(O$13,Data!$A$3:$CC$3,0),0) -> 0.07804291667 | P40: =VLOOKUP($B40,retdat,MATCH(P$13,Data!$A$3:$CC$3,0),0) -> 0.06438333333 | Q40: =VLOOKUP($B40,retdat,MATCH(Q$13,Data!$A$3:$CC$3,0),0) -> 0.04303610858 | S40: 0.1079390921 | T40: 0.07640833333 | U40: -0.01971665327 | V40: 0.0282769371 | W40: 0.02804982988 | X40: 0.04914166667 | Y40: 0.1541662844 | Z40: 0.1803226514 | AA40: 0.1584575986 | AB40: 0.1606079052 | AC40: 0.1077346196 | AD40: 0.082925 | AE40: 0.08037319444 | AF40: 0.06699444444 | AG40: 0.06453155264 | AI40: =GEOMEAN(C111:OFFSET(C111,$AI$2-1,0))-1 -> 0.1079105839 | AJ40: =GEOMEAN(D111:OFFSET(D111,$AI$2-1,0))-1 -> 0.07640555678 | AK40: =GEOMEAN(E111:OFFSET(E111,$AI$2-1,0))-1 -> -0.01999054852 | AL40: =GEOMEAN(F111:OFFSET(F111,$AI$2-1,0))-1 -> 0.02827546786 | AM40: =GEOMEAN(G111:OFFSET(G111,$AI$2-1,0))-1 -> 0.02804446955 | AN40: =GEOMEAN(H111:OFFSET(H111,$AI$2-1,0))-1 -> 0.04912917671 | AO40: =GEOMEAN(I111:OFFSET(I111,$AI$2-1,0))-1 -> 0.1468466187 | AP40: =GEOMEAN(J111:OFFSET(J111,$AI$2-1,0))-1 -> 0.1744864635 | AQ40: =GEOMEAN(K111:OFFSET(K111,$AI$2-1,0))-1 -> 0.1531723552 | AR40: =GEOMEAN(L111:OFFSET(L111,$AI$2-1,0))-1 -> 0.1541575436 | AS40: =GEOMEAN(M111:OFFSET(M111,$AI$2-1,0))-1 -> 0.1075427891 | AT40: =GEOMEAN(N111:OFFSET(N111,$AI$2-1,0))-1 -> 0.08292232249 | AU40: =GEOMEAN(O111:OFFSET(O111,$AI$2-1,0))-1 -> 0.08037069315 | AV40: =GEOMEAN(P111:OFFSET(P111,$AI$2-1,0))-1 -> 0.06699089793 | AW40: =GEOMEAN(Q111:OFFSET(Q111,$AI$2-1,0))-1 -> 0.06435555664 | AY40: 27 | AZ40: 0.1079105839 | BA40: 0.07640555678 | BB40: -0.01999054852 | BC40: 0.02827546786 | BD40: 0.02804446955 | BE40: 0.04912917671 | BF40: 0.1468466187 | BG40: 0.1744864635 | BH40: 0.1531723552 | BI40: 0.1541575436 | BJ40: 0.1075427891 | BK40: 0.08292232249 | BL40: 0.08037069315 | BM40: 0.06699089793 | BN40: 0.06435555664
B41: 1997 | C41: =VLOOKUP($B41,retdat,MATCH(C$13,Data!$A$3:$CC$3,0),0) -> 0.08433908364 | D41: =VLOOKUP($B41,retdat,MATCH(D$13,Data!$A$3:$CC$3,0),0) -> 0.07261666667 | E41: =VLOOKUP($B41,retdat,MATCH(E$13,Data!$A$3:$CC$3,0),0) -> -0.240903581 | F41: =VLOOKUP($B41,retdat,MATCH(F$13,Data!$A$3:$CC$3,0),0) -> -0.01797625585 | G41: =VLOOKUP($B41,retdat,MATCH(G$13,Data!$A$3:$CC$3,0),0) -> 0.01688067593 | H41: =VLOOKUP($B41,retdat,MATCH(H$13,Data!$A$3:$CC$3,0),0) -> 0.05060833333 | I41: =VLOOKUP($B41,retdat,MATCH(I$13,Data!$A$3:$CC$3,0),0) -> 0.2700895857 | J41: =VLOOKUP($B41,retdat,MATCH(J$13,Data!$A$3:$CC$3,0),0) -> 0.2040963107 | K41: =VLOOKUP($B41,retdat,MATCH(K$13,Data!$A$3:$CC$3,0),0) -> 0.1844874706 | L41: =VLOOKUP($B41,retdat,MATCH(L$13,Data!$A$3:$CC$3,0),0) -> 0.1727837401 | M41: =VLOOKUP($B41,retdat,MATCH(M$13,Data!$A$3:$CC$3,0),0) -> 0.07632544107 | N41: =VLOOKUP($B41,retdat,MATCH(N$13,Data!$A$3:$CC$3,0),0) -> 0.078625 | O41: =VLOOKUP($B41,retdat,MATCH(O$13,Data!$A$3:$CC$3,0),0) -> 0.07595791667 | P41: =VLOOKUP($B41,retdat,MATCH(P$13,Data!$A$3:$CC$3,0),0) -> 0.063525 | Q41: =VLOOKUP($B41,retdat,MATCH(Q$13,Data!$A$3:$CC$3,0),0) -> 0.0023757783 | S41: 0.09732876591 | T41: 0.07407222222 | U41: -0.09270572577 | V41: 0.01313666851 | W41: 0.02487756457 | X41: 0.05185555556 | Y41: 0.2493669999 | Z41: 0.2412999573 | AA41: 0.2095484681 | AB41: 0.2155280995 | AC41: 0.08782584217 | AD41: 0.08039166667 | AE41: 0.07784305556 | AF41: 0.06456944444 | AG41: 0.045146183 | AI41: =GEOMEAN(C112:OFFSET(C112,$AI$2-1,0))-1 -> 0.09727703984 | AJ41: =GEOMEAN(D112:OFFSET(D112,$AI$2-1,0))-1 -> 0.07407135386 | AK41: =GEOMEAN(E112:OFFSET(E112,$AI$2-1,0))-1 -> -0.0993828608 | AL41: =GEOMEAN(F112:OFFSET(F112,$AI$2-1,0))-1 -> 0.01289401896 | AM41: =GEOMEAN(G112:OFFSET(G112,$AI$2-1,0))-1 -> 0.02485724282 | AN41: =GEOMEAN(H112:OFFSET(H112,$AI$2-1,0))-1 -> 0.05185333071 | AO41: =GEOMEAN(I112:OFFSET(I112,$AI$2-1,0))-1 -> 0.2484756134 | AP41: =GEOMEAN(J112:OFFSET(J112,$AI$2-1,0))-1 -> 0.2408040527 | AQ41: =GEOMEAN(K112:OFFSET(K112,$AI$2-1,0))-1 -> 0.2076877427 | AR41: =GEOMEAN(L112:OFFSET(L112,$AI$2-1,0))-1 -> 0.2138943876 | AS41: =GEOMEAN(M112:OFFSET(M112,$AI$2-1,0))-1 -> 0.0877831849 | AT41: =GEOMEAN(N112:OFFSET(N112,$AI$2-1,0))-1 -> 0.08039077841 | AU41: =GEOMEAN(O112:OFFSET(O112,$AI$2-1,0))-1 -> 0.07784206051 | AV41: =GEOMEAN(P112:OFFSET(P112,$AI$2-1,0))-1 -> 0.06456903124 | AW41: =GEOMEAN(Q112:OFFSET(Q112,$AI$2-1,0))-1 -> 0.0445334268 | AY41: 28
B42: 1998 | C42: =VLOOKUP($B42,retdat,MATCH(C$13,Data!$A$3:$CC$3,0),0) -> 0.09313791788 | D42: =VLOOKUP($B42,retdat,MATCH(D$13,Data!$A$3:$CC$3,0),0) -> 0.06531666667 | E42: =VLOOKUP($B42,retdat,MATCH(E$13,Data!$A$3:$CC$3,0),0) -> -0.008304545997 | F42: =VLOOKUP($B42,retdat,MATCH(F$13,Data!$A$3:$CC$3,0),0) -> -0.03205402629 | G42: =VLOOKUP($B42,retdat,MATCH(G$13,Data!$A$3:$CC$3,0),0) -> 0.01599050062 | H42: =VLOOKUP($B42,retdat,MATCH(H$13,Data!$A$3:$CC$3,0),0) -> 0.04776666667 | I42: =VLOOKUP($B42,retdat,MATCH(I$13,Data!$A$3:$CC$3,0),0) -> 0.2364039638 | J42: =VLOOKUP($B42,retdat,MATCH(J$13,Data!$A$3:$CC$3,0),0) -> 0.1492701251 | K42: =VLOOKUP($B42,retdat,MATCH(K$13,Data!$A$3:$CC$3,0),0) -> -0.192398505 | L42: =VLOOKUP($B42,retdat,MATCH(L$13,Data!$A$3:$CC$3,0),0) -> -0.2085343985 | M42: =VLOOKUP($B42,retdat,MATCH(M$13,Data!$A$3:$CC$3,0),0) -> 0.0828715876 | N42: =VLOOKUP($B42,retdat,MATCH(N$13,Data!$A$3:$CC$3,0),0) -> 0.07220833333 | O42: =VLOOKUP($B42,retdat,MATCH(O$13,Data!$A$3:$CC$3,0),0) -> 0.06946291667 | P42: =VLOOKUP($B42,retdat,MATCH(P$13,Data!$A$3:$CC$3,0),0) -> 0.05264166667 | Q42: =VLOOKUP($B42,retdat,MATCH(Q$13,Data!$A$3:$CC$3,0),0) -> 0.1674663222 | S42: 0.09156225127 | T42: 0.07054444444 | U42: -0.09871963286 | V42: -0.007780366628 | W42: 0.02185197291 | X42: 0.04947777778 | Y42: 0.2303366385 | Z42: 0.1948650312 | AA42: 0.09805564023 | AB42: 0.08997342514 | AC42: 0.08214725612 | AD42: 0.077125 | AE42: 0.07448791667 | AF42: 0.06018333333 | AG42: 0.07095940304 | AI42: =GEOMEAN(C113:OFFSET(C113,$AI$2-1,0))-1 -> 0.09154901794 | AJ42: =GEOMEAN(D113:OFFSET(D113,$AI$2-1,0))-1 -> 0.07053796092 | AK42: =GEOMEAN(E113:OFFSET(E113,$AI$2-1,0))-1 -> -0.1047791269 | AL42: =GEOMEAN(F113:OFFSET(F113,$AI$2-1,0))-1 -> -0.00809358852 | AM42: =GEOMEAN(G113:OFFSET(G113,$AI$2-1,0))-1 -> 0.02182329839 | AN42: =GEOMEAN(H113:OFFSET(H113,$AI$2-1,0))-1 -> 0.04947705595 | AO42: =GEOMEAN(I113:OFFSET(I113,$AI$2-1,0))-1 -> 0.2298305292 | AP42: =GEOMEAN(J113:OFFSET(J113,$AI$2-1,0))-1 -> 0.1943749501 | AQ42: =GEOMEAN(K113:OFFSET(K113,$AI$2-1,0))-1 -> 0.07594033943 | AR42: =GEOMEAN(L113:OFFSET(L113,$AI$2-1,0))-1 -> 0.06617355336 | AS42: =GEOMEAN(M113:OFFSET(M113,$AI$2-1,0))-1 -> 0.08213794704 | AT42: =GEOMEAN(N113:OFFSET(N113,$AI$2-1,0))-1 -> 0.07711909783 | AU42: =GEOMEAN(O113:OFFSET(O113,$AI$2-1,0))-1 -> 0.07448169686 | AV42: =GEOMEAN(P113:OFFSET(P113,$AI$2-1,0))-1 -> 0.06016983186 | AW42: =GEOMEAN(Q113:OFFSET(Q113,$AI$2-1,0))-1 -> 0.06870561083 | AY42: 29
B43: 1999 | C43: =VLOOKUP($B43,retdat,MATCH(C$13,Data!$A$3:$CC$3,0),0) -> 0.0991784873 | D43: =VLOOKUP($B43,retdat,MATCH(D$13,Data!$A$3:$CC$3,0),0) -> 0.07041666667 | E43: =VLOOKUP($B43,retdat,MATCH(E$13,Data!$A$3:$CC$3,0),0) -> 0.008476826125 | F43: =VLOOKUP($B43,retdat,MATCH(F$13,Data!$A$3:$CC$3,0),0) -> 0.03990952623 | G43: =VLOOKUP($B43,retdat,MATCH(G$13,Data!$A$3:$CC$3,0),0) -> 0.02649161545 | H43: =VLOOKUP($B43,retdat,MATCH(H$13,Data!$A$3:$CC$3,0),0) -> 0.04638333333 | I43: =VLOOKUP($B43,retdat,MATCH(I$13,Data!$A$3:$CC$3,0),0) -> 0.1783641094 | J43: =VLOOKUP($B43,retdat,MATCH(J$13,Data!$A$3:$CC$3,0),0) -> 0.2249118637 | K43: =VLOOKUP($B43,retdat,MATCH(K$13,Data!$A$3:$CC$3,0),0) -> -0.04730109056 | L43: =VLOOKUP($B43,retdat,MATCH(L$13,Data!$A$3:$CC$3,0),0) -> -0.06695151034 | M43: =VLOOKUP($B43,retdat,MATCH(M$13,Data!$A$3:$CC$3,0),0) -> 0.09317864562 | N43: =VLOOKUP($B43,retdat,MATCH(N$13,Data!$A$3:$CC$3,0),0) -> 0.07870833333 | O43: =VLOOKUP($B43,retdat,MATCH(O$13,Data!$A$3:$CC$3,0),0) -> 0.074285 | P43: =VLOOKUP($B43,retdat,MATCH(P$13,Data!$A$3:$CC$3,0),0) -> 0.05636666667 | Q43: =VLOOKUP($B43,retdat,MATCH(Q$13,Data!$A$3:$CC$3,0),0) -> 0.2252707639 | S43: 0.09221849627 | T43: 0.06945 | U43: -0.08024376694 | V43: -0.003373585303 | W43: 0.01978759733 | X43: 0.04825277778 | Y43: 0.2282858863 | Z43: 0.1927594332 | AA43: -0.01840404166 | AB43: -0.03423405624 | AC43: 0.08412522476 | AD43: 0.07651388889 | AE43: 0.07323527778 | AF43: 0.05751111111 | AG43: 0.1317042882 | AI43: =GEOMEAN(C114:OFFSET(C114,$AI$2-1,0))-1 -> 0.09220148716 | AJ43: =GEOMEAN(D114:OFFSET(D114,$AI$2-1,0))-1 -> 0.06944562541 | AK43: =GEOMEAN(E114:OFFSET(E114,$AI$2-1,0))-1 -> -0.08775029971 | AL43: =GEOMEAN(F114:OFFSET(F114,$AI$2-1,0))-1 -> -0.003854247158 | AM43: =GEOMEAN(G114:OFFSET(G114,$AI$2-1,0))-1 -> 0.01977653823 | AN43: =GEOMEAN(H114:OFFSET(H114,$AI$2-1,0))-1 -> 0.04825130299 | AO43: =GEOMEAN(I114:OFFSET(I114,$AI$2-1,0))-1 -> 0.2276976277 | AP43: =GEOMEAN(J114:OFFSET(J114,$AI$2-1,0))-1 -> 0.1923288746 | AQ43: =GEOMEAN(K114:OFFSET(K114,$AI$2-1,0))-1 -> -0.03047037379 | AR43: =GEOMEAN(L114:OFFSET(L114,$AI$2-1,0))-1 -> -0.04679846823 | AS43: =GEOMEAN(M114:OFFSET(M114,$AI$2-1,0))-1 -> 0.08410305446 | AT43: =GEOMEAN(N114:OFFSET(N114,$AI$2-1,0))-1 -> 0.07650957754 | AU43: =GEOMEAN(O114:OFFSET(O114,$AI$2-1,0))-1 -> 0.07323174243 | AV43: =GEOMEAN(P114:OFFSET(P114,$AI$2-1,0))-1 -> 0.0575014776 | AW43: =GEOMEAN(Q114:OFFSET(Q114,$AI$2-1,0))-1 -> 0.1276361722 | AY43: 30 | AZ43: 0.09220148716 | BA43: 0.06944562541 | BB43: -0.08775029971 | BC43: -0.003854247158 | BD43: 0.01977653823 | BE43: 0.04825130299 | BF43: 0.2276976277 | BG43: 0.1923288746 | BH43: -0.03047037379 | BI43: -0.04679846823 | BJ43: 0.08410305446 | BK43: 0.07650957754 | BL43: 0.07323174243 | BM43: 0.0575014776 | BN43: 0.1276361722
B44: 2000 | C44: =VLOOKUP($B44,retdat,MATCH(C$13,Data!$A$3:$CC$3,0),0) -> 0.09848204316 | D44: =VLOOKUP($B44,retdat,MATCH(D$13,Data!$A$3:$CC$3,0),0) -> 0.076225 | E44: =VLOOKUP($B44,retdat,MATCH(E$13,Data!$A$3:$CC$3,0),0) -> -0.05597352558 | F44: =VLOOKUP($B44,retdat,MATCH(F$13,Data!$A$3:$CC$3,0),0) -> 0.06365785177 | G44: =VLOOKUP($B44,retdat,MATCH(G$13,Data!$A$3:$CC$3,0),0) -> 0.03330719802 | H44: =VLOOKUP($B44,retdat,MATCH(H$13,Data!$A$3:$CC$3,0),0) -> 0.05816666667 | I44: =VLOOKUP($B44,retdat,MATCH(I$13,Data!$A$3:$CC$3,0),0) -> -0.1069082312 | J44: =VLOOKUP($B44,retdat,MATCH(J$13,Data!$A$3:$CC$3,0),0) -> -0.06366042438 | K44: =VLOOKUP($B44,retdat,MATCH(K$13,Data!$A$3:$CC$3,0),0) -> 0.2340073134 | L44: =VLOOKUP($B44,retdat,MATCH(L$13,Data!$A$3:$CC$3,0),0) -> 0.2302400099 | M44: =VLOOKUP($B44,retdat,MATCH(M$13,Data!$A$3:$CC$3,0),0) -> 0.09405203474 | N44: =VLOOKUP($B44,retdat,MATCH(N$13,Data!$A$3:$CC$3,0),0) -> 0.08364166667 | O44: =VLOOKUP($B44,retdat,MATCH(O$13,Data!$A$3:$CC$3,0),0) -> 0.08061625 | P44: =VLOOKUP($B44,retdat,MATCH(P$13,Data!$A$3:$CC$3,0),0) -> 0.06029166667 | Q44: =VLOOKUP($B44,retdat,MATCH(Q$13,Data!$A$3:$CC$3,0),0) -> -0.1649442731 | S44: 0.09693281611 | T44: 0.07065277778 | U44: -0.01860041515 | V44: 0.0238377839 | W44: 0.02526310469 | X44: 0.05077222222 | Y44: 0.1026199474 | Z44: 0.1035071881 | AA44: -0.001897427395 | AB44: -0.01508196632 | AC44: 0.09003408932 | AD44: 0.07818611111 | AE44: 0.07478805556 | AF44: 0.05643333333 | AG44: 0.07593093769 | AI44: =GEOMEAN(C115:OFFSET(C115,$AI$2-1,0))-1 -> 0.09692949343 | AJ44: =GEOMEAN(D115:OFFSET(D115,$AI$2-1,0))-1 -> 0.0706435051 | AK44: =GEOMEAN(E115:OFFSET(E115,$AI$2-1,0))-1 -> -0.018983889 | AL44: =GEOMEAN(F115:OFFSET(F115,$AI$2-1,0))-1 -> 0.02301705704 | AM44: =GEOMEAN(G115:OFFSET(G115,$AI$2-1,0))-1 -> 0.02523833377 | AN44: =GEOMEAN(H115:OFFSET(H115,$AI$2-1,0))-1 -> 0.05075909078 | AO44: =GEOMEAN(I115:OFFSET(I115,$AI$2-1,0))-1 -> 0.09172182847 | AP44: =GEOMEAN(J115:OFFSET(J115,$AI$2-1,0))-1 -> 0.0964448182 | AQ44: =GEOMEAN(K115:OFFSET(K115,$AI$2-1,0))-1 -> -0.01714336921 | AR44: =GEOMEAN(L115:OFFSET(L115,$AI$2-1,0))-1 -> -0.03147975797 | AS44: =GEOMEAN(M115:OFFSET(M115,$AI$2-1,0))-1 -> 0.09002223947 | AT44: =GEOMEAN(N115:OFFSET(N115,$AI$2-1,0))-1 -> 0.07817593942 | AU44: =GEOMEAN(O115:OFFSET(O115,$AI$2-1,0))-1 -> 0.07477835604 | AV44: =GEOMEAN(P115:OFFSET(P115,$AI$2-1,0))-1 -> 0.05642871619 | AW44: =GEOMEAN(Q115:OFFSET(Q115,$AI$2-1,0))-1 -> 0.06103724847 | AY44: 31
B45: 2001 | C45: =VLOOKUP($B45,retdat,MATCH(C$13,Data!$A$3:$CC$3,0),0) -> 0.09387817952 | D45: =VLOOKUP($B45,retdat,MATCH(D$13,Data!$A$3:$CC$3,0),0) -> 0.070825 | E45: =VLOOKUP($B45,retdat,MATCH(E$13,Data!$A$3:$CC$3,0),0) -> 0.007441725966 | F45: =VLOOKUP($B45,retdat,MATCH(F$13,Data!$A$3:$CC$3,0),0) -> -0.06131318481 | G45: =VLOOKUP($B45,retdat,MATCH(G$13,Data!$A$3:$CC$3,0),0) -> 0.01539808011 | H45: =VLOOKUP($B45,retdat,MATCH(H$13,Data!$A$3:$CC$3,0),0) -> 0.03388333333 | I45: =VLOOKUP($B45,retdat,MATCH(I$13,Data!$A$3:$CC$3,0),0) -> -0.1397528534 | J45: =VLOOKUP($B45,retdat,MATCH(J$13,Data!$A$3:$CC$3,0),0) -> -0.07369563312 | K45: =VLOOKUP($B45,retdat,MATCH(K$13,Data!$A$3:$CC$3,0),0) -> 0.1304395681 | L45: =VLOOKUP($B45,retdat,MATCH(L$13,Data!$A$3:$CC$3,0),0) -> 0.1441178489 | M45: =VLOOKUP($B45,retdat,MATCH(M$13,Data!$A$3:$CC$3,0),0) -> 0.09015643215 | N45: =VLOOKUP($B45,retdat,MATCH(N$13,Data!$A$3:$CC$3,0),0) -> 0.079475 | O45: =VLOOKUP($B45,retdat,MATCH(O$13,Data!$A$3:$CC$3,0),0) -> 0.06971041667 | P45: =VLOOKUP($B45,retdat,MATCH(P$13,Data!$A$3:$CC$3,0),0) -> 0.050175 | Q45: =VLOOKUP($B45,retdat,MATCH(Q$13,Data!$A$3:$CC$3,0),0) -> -0.2563265516 | S45: 0.09717957 | T45: 0.07248888889 | U45: -0.01335165783 | V45: 0.01408473106 | W45: 0.02506563119 | X45: 0.04614444444 | Y45: -0.0227656584 | Z45: 0.02918526875 | AA45: 0.1057152636 | AB45: 0.1024687828 | AC45: 0.09246237084 | AD45: 0.08060833333 | AE45: 0.07487055556 | AF45: 0.05561111111 | AG45: -0.0653333536 | AI45: =GEOMEAN(C116:OFFSET(C116,$AI$2-1,0))-1 -> 0.09717704732 | AJ45: =GEOMEAN(D116:OFFSET(D116,$AI$2-1,0))-1 -> 0.07248562589 | AK45: =GEOMEAN(E116:OFFSET(E116,$AI$2-1,0))-1 -> -0.01381889547 | AL45: =GEOMEAN(F116:OFFSET(F116,$AI$2-1,0))-1 -> 0.01260346292 | AM45: =GEOMEAN(G116:OFFSET(G116,$AI$2-1,0))-1 -> 0.02503902406 | AN45: =GEOMEAN(H116:OFFSET(H116,$AI$2-1,0))-1 -> 0.04609744547 | AO45: =GEOMEAN(I116:OFFSET(I116,$AI$2-1,0))-1 -> -0.03261441597 | AP45: =GEOMEAN(J116:OFFSET(J116,$AI$2-1,0))-1 -> 0.02038479253 | AQ45: =GEOMEAN(K116:OFFSET(K116,$AI$2-1,0))-1 -> 0.09944519107 | AR45: =GEOMEAN(L116:OFFSET(L116,$AI$2-1,0))-1 -> 0.09510292946 | AS45: =GEOMEAN(M116:OFFSET(M116,$AI$2-1,0))-1 -> 0.09246109509 | AT45: =GEOMEAN(N116:OFFSET(N116,$AI$2-1,0))-1 -> 0.08060616118 | AU45: =GEOMEAN(O116:OFFSET(O116,$AI$2-1,0))-1 -> 0.07486125969 | AV45: =GEOMEAN(P116:OFFSET(P116,$AI$2-1,0))-1 -> 0.0556028905 | AW45: =GEOMEAN(Q116:OFFSET(Q116,$AI$2-1,0))-1 -> -0.08705782911 | AY45: 32
B46: 2002 | C46: =VLOOKUP($B46,retdat,MATCH(C$13,Data!$A$3:$CC$3,0),0) -> 0.09102037088 | D46: =VLOOKUP($B46,retdat,MATCH(D$13,Data!$A$3:$CC$3,0),0) -> 0.06491666667 | E46: =VLOOKUP($B46,retdat,MATCH(E$13,Data!$A$3:$CC$3,0),0) -> 0.2276901618 | F46: =VLOOKUP($B46,retdat,MATCH(F$13,Data!$A$3:$CC$3,0),0) -> 0.03678575682 | G46: =VLOOKUP($B46,retdat,MATCH(G$13,Data!$A$3:$CC$3,0),0) -> 0.02349101308 | H46: =VLOOKUP($B46,retdat,MATCH(H$13,Data!$A$3:$CC$3,0),0) -> 0.01604166667 | I46: =VLOOKUP($B46,retdat,MATCH(I$13,Data!$A$3:$CC$3,0),0) -> -0.2661289198 | J46: =VLOOKUP($B46,retdat,MATCH(J$13,Data!$A$3:$CC$3,0),0) -> -0.1834801312 | K46: =VLOOKUP($B46,retdat,MATCH(K$13,Data!$A$3:$CC$3,0),0) -> 0.03749604559 | L46: =VLOOKUP($B46,retdat,MATCH(L$13,Data!$A$3:$CC$3,0),0) -> 0.0508411128 | M46: =VLOOKUP($B46,retdat,MATCH(M$13,Data!$A$3:$CC$3,0),0) -> 0.08792090132 | N46: =VLOOKUP($B46,retdat,MATCH(N$13,Data!$A$3:$CC$3,0),0) -> 0.07801666667 | O46: =VLOOKUP($B46,retdat,MATCH(O$13,Data!$A$3:$CC$3,0),0) -> 0.06536708333 | P46: =VLOOKUP($B46,retdat,MATCH(P$13,Data!$A$3:$CC$3,0),0) -> 0.04610833333 | Q46: =VLOOKUP($B46,retdat,MATCH(Q$13,Data!$A$3:$CC$3,0),0) -> -0.1925734154 | S46: 0.09446019786 | T46: 0.07065555556 | U46: 0.05971945407 | V46: 0.01304347459 | W46: 0.0240654304 | X46: 0.03603055556 | Y46: -0.1709300015 | Z46: -0.1069453962 | AA46: 0.1339809757 | AB46: 0.1417329905 | AC46: 0.09070978941 | AD46: 0.08037777778 | AE46: 0.07189791667 | AF46: 0.05219166667 | AG46: -0.2046147467 | AI46: =GEOMEAN(C117:OFFSET(C117,$AI$2-1,0))-1 -> 0.09445588343 | AJ46: =GEOMEAN(D117:OFFSET(D117,$AI$2-1,0))-1 -> 0.0706455939 | AK46: =GEOMEAN(E117:OFFSET(E117,$AI$2-1,0))-1 -> 0.05300628006 | AL46: =GEOMEAN(F117:OFFSET(F117,$AI$2-1,0))-1 -> 0.01158853095 | AM46: =GEOMEAN(G117:OFFSET(G117,$AI$2-1,0))-1 -> 0.02403926387 | AN46: =GEOMEAN(H117:OFFSET(H117,$AI$2-1,0))-1 -> 0.03588698463 | AO46: =GEOMEAN(I117:OFFSET(I117,$AI$2-1,0))-1 -> -0.1738738545 | AP46: =GEOMEAN(J117:OFFSET(J117,$AI$2-1,0))-1 -> -0.1086438141 | AQ46: =GEOMEAN(K117:OFFSET(K117,$AI$2-1,0))-1 -> 0.1311421295 | AR46: =GEOMEAN(L117:OFFSET(L117,$AI$2-1,0))-1 -> 0.1393729061 | AS46: =GEOMEAN(M117:OFFSET(M117,$AI$2-1,0))-1 -> 0.09070684861 | AT46: =GEOMEAN(N117:OFFSET(N117,$AI$2-1,0))-1 -> 0.08037515061 | AU46: =GEOMEAN(O117:OFFSET(O117,$AI$2-1,0))-1 -> 0.07187875811 | AV46: =GEOMEAN(P117:OFFSET(P117,$AI$2-1,0))-1 -> 0.05217479764 | AW46: =GEOMEAN(Q117:OFFSET(Q117,$AI$2-1,0))-1 -> -0.2055493468 | AY46: 33 | AZ46: 0.09445588343 | BA46: 0.0706455939 | BB46: 0.05300628006 | BC46: 0.01158853095 | BD46: 0.02403926387 | BE46: 0.03588698463 | BF46: -0.1738738545 | BG46: -0.1086438141 | BH46: 0.1311421295 | BI46: 0.1393729061 | BJ46: 0.09070684861 | BK46: 0.08037515061 | BL46: 0.07187875811 | BM46: 0.05217479764 | BN46: -0.2055493468
B47: 2003 | C47: =VLOOKUP($B47,retdat,MATCH(C$13,Data!$A$3:$CC$3,0),0) -> 0.08832315218 | D47: =VLOOKUP($B47,retdat,MATCH(D$13,Data!$A$3:$CC$3,0),0) -> 0.05666666667 | E47: =VLOOKUP($B47,retdat,MATCH(E$13,Data!$A$3:$CC$3,0),0) -> 0.1813850585 | F47: =VLOOKUP($B47,retdat,MATCH(F$13,Data!$A$3:$CC$3,0),0) -> 0.04846763554 | G47: =VLOOKUP($B47,retdat,MATCH(G$13,Data!$A$3:$CC$3,0),0) -> 0.01862047227 | H47: =VLOOKUP($B47,retdat,MATCH(H$13,Data!$A$3:$CC$3,0),0) -> 0.01010833333 | I47: =VLOOKUP($B47,retdat,MATCH(I$13,Data!$A$3:$CC$3,0),0) -> 0.2341261887 | J47: =VLOOKUP($B47,retdat,MATCH(J$13,Data!$A$3:$CC$3,0),0) -> 0.2257183868 | K47: =VLOOKUP($B47,retdat,MATCH(K$13,Data!$A$3:$CC$3,0),0) -> 0.3157862295 | L47: =VLOOKUP($B47,retdat,MATCH(L$13,Data!$A$3:$CC$3,0),0) -> 0.3254571111 | M47: =VLOOKUP($B47,retdat,MATCH(M$13,Data!$A$3:$CC$3,0),0) -> 0.0843883276 | N47: =VLOOKUP($B47,retdat,MATCH(N$13,Data!$A$3:$CC$3,0),0) -> 0.06765833333 | O47: =VLOOKUP($B47,retdat,MATCH(O$13,Data!$A$3:$CC$3,0),0) -> 0.05819541667 | P47: =VLOOKUP($B47,retdat,MATCH(P$13,Data!$A$3:$CC$3,0),0) -> 0.04015 | Q47: =VLOOKUP($B47,retdat,MATCH(Q$13,Data!$A$3:$CC$3,0),0) -> 0.3021959792 | S47: 0.09107390086 | T47: 0.06413611111 | U47: 0.1388389821 | V47: 0.007980069182 | W47: 0.01916985515 | X47: 0.02001111111 | Y47: -0.05725186151 | Z47: -0.01048579253 | AA47: 0.1612406144 | AB47: 0.1734720243 | AC47: 0.08748855369 | AD47: 0.07505 | AE47: 0.06442430556 | AF47: 0.04547777778 | AG47: -0.04890132927 | AI47: =GEOMEAN(C118:OFFSET(C118,$AI$2-1,0))-1 -> 0.09107154344 | AJ47: =GEOMEAN(D118:OFFSET(D118,$AI$2-1,0))-1 -> 0.0641202582 | AK47: =GEOMEAN(E118:OFFSET(E118,$AI$2-1,0))-1 -> 0.13474966 | AL47: =GEOMEAN(F118:OFFSET(F118,$AI$2-1,0))-1 -> 0.006749887435 | AM47: =GEOMEAN(G118:OFFSET(G118,$AI$2-1,0))-1 -> 0.01916442866 | AN47: =GEOMEAN(H118:OFFSET(H118,$AI$2-1,0))-1 -> 0.01996124143 | AO47: =GEOMEAN(I118:OFFSET(I118,$AI$2-1,0))-1 -> -0.07983114922 | AP47: =GEOMEAN(J118:OFFSET(J118,$AI$2-1,0))-1 -> -0.02492716705 | AQ47: =GEOMEAN(K118:OFFSET(K118,$AI$2-1,0))-1 -> 0.1555969293 | AR47: =GEOMEAN(L118:OFFSET(L118,$AI$2-1,0))-1 -> 0.168040313 | AS47: =GEOMEAN(M118:OFFSET(M118,$AI$2-1,0))-1 -> 0.08748596018 | AT47: =GEOMEAN(N118:OFFSET(N118,$AI$2-1,0))-1 -> 0.07503710138 | AU47: =GEOMEAN(O118:OFFSET(O118,$AI$2-1,0))-1 -> 0.06441370673 | AV47: =GEOMEAN(P118:OFFSET(P118,$AI$2-1,0))-1 -> 0.04546966708 | AW47: =GEOMEAN(Q118:OFFSET(Q118,$AI$2-1,0))-1 -> -0.07872937554 | AY47: 34
B48: 2004 | C48: =VLOOKUP($B48,retdat,MATCH(C$13,Data!$A$3:$CC$3,0),0) -> 0.09362816729 | D48: =VLOOKUP($B48,retdat,MATCH(D$13,Data!$A$3:$CC$3,0),0) -> 0.05628333333 | E48: =VLOOKUP($B48,retdat,MATCH(E$13,Data!$A$3:$CC$3,0),0) -> 0.04543834976 | F48: =VLOOKUP($B48,retdat,MATCH(F$13,Data!$A$3:$CC$3,0),0) -> 0.07390313807 | G48: =VLOOKUP($B48,retdat,MATCH(G$13,Data!$A$3:$CC$3,0),0) -> 0.03203690963 | H48: =VLOOKUP($B48,retdat,MATCH(H$13,Data!$A$3:$CC$3,0),0) -> 0.01371666667 | I48: =VLOOKUP($B48,retdat,MATCH(I$13,Data!$A$3:$CC$3,0),0) -> 0.08611762807 | J48: =VLOOKUP($B48,retdat,MATCH(J$13,Data!$A$3:$CC$3,0),0) -> 0.0309947196 | K48: =VLOOKUP($B48,retdat,MATCH(K$13,Data!$A$3:$CC$3,0),0) -> 0.274425818 | L48: =VLOOKUP($B48,retdat,MATCH(L$13,Data!$A$3:$CC$3,0),0) -> 0.265509358 | M48: =VLOOKUP($B48,retdat,MATCH(M$13,Data!$A$3:$CC$3,0),0) -> 0.1032886718 | N48: =VLOOKUP($B48,retdat,MATCH(N$13,Data!$A$3:$CC$3,0),0) -> 0.06393333333 | O48: =VLOOKUP($B48,retdat,MATCH(O$13,Data!$A$3:$CC$3,0),0) -> 0.058385 | P48: =VLOOKUP($B48,retdat,MATCH(P$13,Data!$A$3:$CC$3,0),0) -> 0.04274166667 | Q48: =VLOOKUP($B48,retdat,MATCH(Q$13,Data!$A$3:$CC$3,0),0) -> 0.1620439453 | S48: 0.09099056345 | T48: 0.05928888889 | U48: 0.1515045234 | V48: 0.05305217681 | W48: 0.02471613166 | X48: 0.01328888889 | Y48: 0.018038299 | Z48: 0.02441099171 | AA48: 0.209236031 | AB48: 0.2139358606 | AC48: 0.09186596691 | AD48: 0.06986944444 | AE48: 0.06064916667 | AF48: 0.043 | AG48: 0.09055550304 | AI48: =GEOMEAN(C119:OFFSET(C119,$AI$2-1,0))-1 -> 0.09098841352 | AJ48: =GEOMEAN(D119:OFFSET(D119,$AI$2-1,0))-1 -> 0.05928141565 | AK48: =GEOMEAN(E119:OFFSET(E119,$AI$2-1,0))-1 -> 0.148840028 | AL48: =GEOMEAN(F119:OFFSET(F119,$AI$2-1,0))-1 -> 0.05293861783 | AM48: =GEOMEAN(G119:OFFSET(G119,$AI$2-1,0))-1 -> 0.02470114435 | AN48: =GEOMEAN(H119:OFFSET(H119,$AI$2-1,0))-1 -> 0.01328594729 | AO48: =GEOMEAN(I119:OFFSET(I119,$AI$2-1,0))-1 -> -0.005468061061 | AP48: =GEOMEAN(J119:OFFSET(J119,$AI$2-1,0))-1 -> 0.01050383562 | AQ48: =GEOMEAN(K119:OFFSET(K119,$AI$2-1,0))-1 -> 0.2027133068 | AR48: =GEOMEAN(L119:OFFSET(L119,$AI$2-1,0))-1 -> 0.2079696755 | AS48: =GEOMEAN(M119:OFFSET(M119,$AI$2-1,0))-1 -> 0.09183523279 | AT48: =GEOMEAN(N119:OFFSET(N119,$AI$2-1,0))-1 -> 0.06985288395 | AU48: =GEOMEAN(O119:OFFSET(O119,$AI$2-1,0))-1 -> 0.06064392509 | AV48: =GEOMEAN(P119:OFFSET(P119,$AI$2-1,0))-1 -> 0.04299714819 | AW48: =GEOMEAN(Q119:OFFSET(Q119,$AI$2-1,0))-1 -> 0.06905647657 | AY48: 35
B49: 2005 | C49: =VLOOKUP($B49,retdat,MATCH(C$13,Data!$A$3:$CC$3,0),0) -> 0.1925291028 | D49: =VLOOKUP($B49,retdat,MATCH(D$13,Data!$A$3:$CC$3,0),0) -> 0.05235 | E49: =VLOOKUP($B49,retdat,MATCH(E$13,Data!$A$3:$CC$3,0),0) -> 0.1635514541 | F49: =VLOOKUP($B49,retdat,MATCH(F$13,Data!$A$3:$CC$3,0),0) -> 0.08178246148 | G49: =VLOOKUP($B49,retdat,MATCH(G$13,Data!$A$3:$CC$3,0),0) -> 0.03358621032 | H49: =VLOOKUP($B49,retdat,MATCH(H$13,Data!$A$3:$CC$3,0),0) -> 0.03146666667 | I49: =VLOOKUP($B49,retdat,MATCH(I$13,Data!$A$3:$CC$3,0),0) -> 0.02956873588 | J49: =VLOOKUP($B49,retdat,MATCH(J$13,Data!$A$3:$CC$3,0),0) -> -0.006093827795 | K49: =VLOOKUP($B49,retdat,MATCH(K$13,Data!$A$3:$CC$3,0),0) -> 0.1147815133 | L49: =VLOOKUP($B49,retdat,MATCH(L$13,Data!$A$3:$CC$3,0),0) -> 0.07962564873 | M49: =VLOOKUP($B49,retdat,MATCH(M$13,Data!$A$3:$CC$3,0),0) -> 0.1999038169 | N49: =VLOOKUP($B49,retdat,MATCH(N$13,Data!$A$3:$CC$3,0),0) -> 0.06064166667 | O49: =VLOOKUP($B49,retdat,MATCH(O$13,Data!$A$3:$CC$3,0),0) -> 0.05864875 | P49: =VLOOKUP($B49,retdat,MATCH(P$13,Data!$A$3:$CC$3,0),0) -> 0.0429 | Q49: =VLOOKUP($B49,retdat,MATCH(Q$13,Data!$A$3:$CC$3,0),0) -> 0.1031389509 | S49: 0.1248268074 | T49: 0.0551 | U49: 0.1301249541 | V49: 0.06805107836 | W49: 0.02808119741 | X49: 0.01843055556 | Y49: 0.1166041842 | Z49: 0.08353975952 | AA49: 0.2349978536 | AB49: 0.223530706 | AC49: 0.1291936054 | AD49: 0.06407777778 | AE49: 0.05840972222 | AF49: 0.04193055556 | AG49: 0.1891262918 | AI49: =GEOMEAN(C120:OFFSET(C120,$AI$2-1,0))-1 -> 0.1238254098 | AJ49: =GEOMEAN(D120:OFFSET(D120,$AI$2-1,0))-1 -> 0.05509819497 | AK49: =GEOMEAN(E120:OFFSET(E120,$AI$2-1,0))-1 -> 0.1284747121 | AL49: =GEOMEAN(F120:OFFSET(F120,$AI$2-1,0))-1 -> 0.06795599712 | AM49: =GEOMEAN(G120:OFFSET(G120,$AI$2-1,0))-1 -> 0.02805917226 | AN49: =GEOMEAN(H120:OFFSET(H120,$AI$2-1,0))-1 -> 0.01838793656 | AO49: =GEOMEAN(I120:OFFSET(I120,$AI$2-1,0))-1 -> 0.1133471259 | AP49: =GEOMEAN(J120:OFFSET(J120,$AI$2-1,0))-1 -> 0.07894053576 | AQ49: =GEOMEAN(K120:OFFSET(K120,$AI$2-1,0))-1 -> 0.2318652909 | AR49: =GEOMEAN(L120:OFFSET(L120,$AI$2-1,0))-1 -> 0.2189000027 | AS49: =GEOMEAN(M120:OFFSET(M120,$AI$2-1,0))-1 -> 0.1280806314 | AT49: =GEOMEAN(N120:OFFSET(N120,$AI$2-1,0))-1 -> 0.06407391765 | AU49: =GEOMEAN(O120:OFFSET(O120,$AI$2-1,0))-1 -> 0.0584097059 | AV49: =GEOMEAN(P120:OFFSET(P120,$AI$2-1,0))-1 -> 0.04192979242 | AW49: =GEOMEAN(Q120:OFFSET(Q120,$AI$2-1,0))-1 -> 0.1862504055 | AY49: 36 | AZ49: 0.1238254098 | BA49: 0.05509819497 | BB49: 0.1284747121 | BC49: 0.06795599712 | BD49: 0.02805917226 | BE49: 0.01838793656 | BF49: 0.1133471259 | BG49: 0.07894053576 | BH49: 0.2318652909 | BI49: 0.2189000027 | BJ49: 0.1280806314 | BK49: 0.06407391765 | BL49: 0.0584097059 | BM49: 0.04192979242 | BN49: 0.1862504055
B50: 2006 | C50: =VLOOKUP($B50,retdat,MATCH(C$13,Data!$A$3:$CC$3,0),0) -> 0.1412397789 | D50: =VLOOKUP($B50,retdat,MATCH(D$13,Data!$A$3:$CC$3,0),0) -> 0.055875 | E50: =VLOOKUP($B50,retdat,MATCH(E$13,Data!$A$3:$CC$3,0),0) -> 0.208613549 | F50: =VLOOKUP($B50,retdat,MATCH(F$13,Data!$A$3:$CC$3,0),0) -> 0.01582504114 | G50: =VLOOKUP($B50,retdat,MATCH(G$13,Data!$A$3:$CC$3,0),0) -> 0.0250891233 | H50: =VLOOKUP($B50,retdat,MATCH(H$13,Data!$A$3:$CC$3,0),0) -> 0.04726666667 | I50: =VLOOKUP($B50,retdat,MATCH(I$13,Data!$A$3:$CC$3,0),0) -> 0.1276843566 | J50: =VLOOKUP($B50,retdat,MATCH(J$13,Data!$A$3:$CC$3,0),0) -> 0.1508983709 | K50: =VLOOKUP($B50,retdat,MATCH(K$13,Data!$A$3:$CC$3,0),0) -> 0.3005539143 | L50: =VLOOKUP($B50,retdat,MATCH(L$13,Data!$A$3:$CC$3,0),0) -> 0.2928138216 | M50: =VLOOKUP($B50,retdat,MATCH(M$13,Data!$A$3:$CC$3,0),0) -> 0.1471383059 | N50: =VLOOKUP($B50,retdat,MATCH(N$13,Data!$A$3:$CC$3,0),0) -> 0.06479166667 | O50: =VLOOKUP($B50,retdat,MATCH(O$13,Data!$A$3:$CC$3,0),0) -> 0.06410833333 | P50: =VLOOKUP($B50,retdat,MATCH(P$13,Data!$A$3:$CC$3,0),0) -> 0.04791666667 | Q50: =VLOOKUP($B50,retdat,MATCH(Q$13,Data!$A$3:$CC$3,0),0) -> 0.2108393485 | S50: 0.142465683 | T50: 0.05483611111 | U50: 0.1392011176 | V50: 0.05717021356 | W50: 0.03023741441 | X50: 0.03081666667 | Y50: 0.08112357351 | Z50: 0.05859975424 | AA50: 0.2299204152 | AB50: 0.2126496095 | AC50: 0.1501102649 | AD50: 0.06312222222 | AE50: 0.06038069444 | AF50: 0.04451944444 | AG50: 0.1586740816 | AI50: =GEOMEAN(C121:OFFSET(C121,$AI$2-1,0))-1 -> 0.141752203 | AJ50: =GEOMEAN(D121:OFFSET(D121,$AI$2-1,0))-1 -> 0.05483463196 | AK50: =GEOMEAN(E121:OFFSET(E121,$AI$2-1,0))-1 -> 0.137078618 | AL50: =GEOMEAN(F121:OFFSET(F121,$AI$2-1,0))-1 -> 0.05675583374 | AM50: =GEOMEAN(G121:OFFSET(G121,$AI$2-1,0))-1 -> 0.03023077873 | AN50: =GEOMEAN(H121:OFFSET(H121,$AI$2-1,0))-1 -> 0.03072550277 | AO50: =GEOMEAN(I121:OFFSET(I121,$AI$2-1,0))-1 -> 0.08037183783 | AP50: =GEOMEAN(J121:OFFSET(J121,$AI$2-1,0))-1 -> 0.05652457015 | AQ50: =GEOMEAN(K121:OFFSET(K121,$AI$2-1,0))-1 -> 0.2270932295 | AR50: =GEOMEAN(L121:OFFSET(L121,$AI$2-1,0))-1 -> 0.2088103793 | AS50: =GEOMEAN(M121:OFFSET(M121,$AI$2-1,0))-1 -> 0.1494333455 | AT50: =GEOMEAN(N121:OFFSET(N121,$AI$2-1,0))-1 -> 0.06312071653 | AU50: =GEOMEAN(O121:OFFSET(O121,$AI$2-1,0))-1 -> 0.06037741677 | AV50: =GEOMEAN(P121:OFFSET(P121,$AI$2-1,0))-1 -> 0.04451668312 | AW50: =GEOMEAN(Q121:OFFSET(Q121,$AI$2-1,0))-1 -> 0.157834357 | AY50: 37
B51: 2007 | C51: =VLOOKUP($B51,retdat,MATCH(C$13,Data!$A$3:$CC$3,0),0) -> 0.1349366208 | D51: =VLOOKUP($B51,retdat,MATCH(D$13,Data!$A$3:$CC$3,0),0) -> 0.05555833333 | E51: =VLOOKUP($B51,retdat,MATCH(E$13,Data!$A$3:$CC$3,0),0) -> 0.2770442031 | F51: =VLOOKUP($B51,retdat,MATCH(F$13,Data!$A$3:$CC$3,0),0) -> 0.07557342649 | G51: =VLOOKUP($B51,retdat,MATCH(G$13,Data!$A$3:$CC$3,0),0) -> 0.04000183668 | H51: =VLOOKUP($B51,retdat,MATCH(H$13,Data!$A$3:$CC$3,0),0) -> 0.04353333333 | I51: =VLOOKUP($B51,retdat,MATCH(I$13,Data!$A$3:$CC$3,0),0) -> 0.03468716042 | J51: =VLOOKUP($B51,retdat,MATCH(J$13,Data!$A$3:$CC$3,0),0) -> 0.06233912756 | K51: =VLOOKUP($B51,retdat,MATCH(K$13,Data!$A$3:$CC$3,0),0) -> -0.1706903814 | L51: =VLOOKUP($B51,retdat,MATCH(L$13,Data!$A$3:$CC$3,0),0) -> -0.1964016502 | M51: =VLOOKUP($B51,retdat,MATCH(M$13,Data!$A$3:$CC$3,0),0) -> 0.1286289467 | N51: =VLOOKUP($B51,retdat,MATCH(N$13,Data!$A$3:$CC$3,0),0) -> 0.064825 | O51: =VLOOKUP($B51,retdat,MATCH(O$13,Data!$A$3:$CC$3,0),0) -> 0.06340458333 | P51: =VLOOKUP($B51,retdat,MATCH(P$13,Data!$A$3:$CC$3,0),0) -> 0.04629166667 | Q51: =VLOOKUP($B51,retdat,MATCH(Q$13,Data!$A$3:$CC$3,0),0) -> 0.08271191577 | S51: =AVERAGE(C49:C51) -> 0.1562351675 | T51: 0.05459444444 | U51: 0.2164030687 | V51: 0.05772697637 | W51: 0.0328923901 | X51: 0.04075555556 | Y51: 0.06398008429 | Z51: 0.06904789022 | AA51: 0.08154834873 | AB51: 0.05867927337 | AC51: 0.1585570232 | AD51: 0.06341944444 | AE51: 0.06205388889 | AF51: 0.04570277778 | AG51: 0.1322300717 | AI51: =GEOMEAN(C122:OFFSET(C122,$AI$2-1,0))-1 -> 0.1559503097 | AJ51: =GEOMEAN(D122:OFFSET(D122,$AI$2-1,0))-1 -> 0.0545932415 | AK51: =GEOMEAN(E122:OFFSET(E122,$AI$2-1,0))-1 -> 0.2155131472 | AL51: =GEOMEAN(F122:OFFSET(F122,$AI$2-1,0))-1 -> 0.05730342276 | AM51: =GEOMEAN(G122:OFFSET(G122,$AI$2-1,0))-1 -> 0.03287431899 | AN51: =GEOMEAN(H122:OFFSET(H122,$AI$2-1,0))-1 -> 0.04073366124 | AO51: =GEOMEAN(I122:OFFSET(I122,$AI$2-1,0))-1 -> 0.06304256415 | AP51: =GEOMEAN(J122:OFFSET(J122,$AI$2-1,0))-1 -> 0.06712471917 | AQ51: =GEOMEAN(K122:OFFSET(K122,$AI$2-1,0))-1 -> 0.06335499069 | AR51: =GEOMEAN(L122:OFFSET(L122,$AI$2-1,0))-1 -> 0.03900125494 | AS51: =GEOMEAN(M122:OFFSET(M122,$AI$2-1,0))-1 -> 0.1581668604 | AT51: =GEOMEAN(N122:OFFSET(N122,$AI$2-1,0))-1 -> 0.0634176288 | AU51: =GEOMEAN(O122:OFFSET(O122,$AI$2-1,0))-1 -> 0.06205111785 | AV51: =GEOMEAN(P122:OFFSET(P122,$AI$2-1,0))-1 -> 0.04570068817 | AW51: =GEOMEAN(Q122:OFFSET(Q122,$AI$2-1,0))-1 -> 0.1308627196 | AY51: 38
B52: 2008 | C52: =VLOOKUP($B52,retdat,MATCH(C$13,Data!$A$3:$CC$3,0),0) -> 0.09793195375 | D52: =VLOOKUP($B52,retdat,MATCH(D$13,Data!$A$3:$CC$3,0),0) -> 0.05631666667 | E52: =VLOOKUP($B52,retdat,MATCH(E$13,Data!$A$3:$CC$3,0),0) -> 0.0422722168 | F52: =VLOOKUP($B52,retdat,MATCH(F$13,Data!$A$3:$CC$3,0),0) -> -0.04407007832 | G52: =VLOOKUP($B52,retdat,MATCH(G$13,Data!$A$3:$CC$3,0),0) -> 0.000913711445 | H52: =VLOOKUP($B52,retdat,MATCH(H$13,Data!$A$3:$CC$3,0),0) -> 0.01365 | I52: =VLOOKUP($B52,retdat,MATCH(I$13,Data!$A$3:$CC$3,0),0) -> -0.4858909696 | J52: =VLOOKUP($B52,retdat,MATCH(J$13,Data!$A$3:$CC$3,0),0) -> -0.4130502566 | K52: =VLOOKUP($B52,retdat,MATCH(K$13,Data!$A$3:$CC$3,0),0) -> -0.4736524612 | L52: =VLOOKUP($B52,retdat,MATCH(L$13,Data!$A$3:$CC$3,0),0) -> -0.4754556675 | M52: =VLOOKUP($B52,retdat,MATCH(M$13,Data!$A$3:$CC$3,0),0) -> 0.08773847614 | N52: =VLOOKUP($B52,retdat,MATCH(N$13,Data!$A$3:$CC$3,0),0) -> 0.07446666667 | O52: =VLOOKUP($B52,retdat,MATCH(O$13,Data!$A$3:$CC$3,0),0) -> 0.06036125 | P52: =VLOOKUP($B52,retdat,MATCH(P$13,Data!$A$3:$CC$3,0),0) -> 0.03666666667 | Q52: =VLOOKUP($B52,retdat,MATCH(Q$13,Data!$A$3:$CC$3,0),0) -> -0.5993938687 | S52: 0.1247027845 | T52: 0.05591666667 | U52: 0.1759766563 | V52: 0.01577612977 | W52: 0.02200155714 | X52: 0.03481666667 | Y52: -0.1078398175 | Z52: -0.06660425271 | AA52: -0.1145963094 | AB52: -0.126347832 | AC52: 0.1211685763 | AD52: 0.06802777778 | AE52: 0.06262472222 | AF52: 0.043625 | AG52: -0.1019475348 | AI52: =GEOMEAN(C123:OFFSET(C123,$AI$2-1,0))-1 -> 0.1245393194 | AJ52: =GEOMEAN(D123:OFFSET(D123,$AI$2-1,0))-1 -> 0.05591662087 | AK52: =GEOMEAN(E123:OFFSET(E123,$AI$2-1,0))-1 -> 0.1717227169 | AL52: =GEOMEAN(F123:OFFSET(F123,$AI$2-1,0))-1 -> 0.01460035827 | AM52: =GEOMEAN(G123:OFFSET(G123,$AI$2-1,0))-1 -> 0.02187425284 | AN52: =GEOMEAN(H123:OFFSET(H123,$AI$2-1,0))-1 -> 0.03470657908 | AO52: =GEOMEAN(I123:OFFSET(I123,$AI$2-1,0))-1 -> -0.1566316811 | AP52: =GEOMEAN(J123:OFFSET(J123,$AI$2-1,0))-1 -> -0.1047032184 | AQ52: =GEOMEAN(K123:OFFSET(K123,$AI$2-1,0))-1 -> -0.1719830639 | AR52: =GEOMEAN(L123:OFFSET(L123,$AI$2-1,0))-1 -> -0.1831937091 | AS52: =GEOMEAN(M123:OFFSET(M123,$AI$2-1,0))-1 -> 0.1208921284 | AT52: =GEOMEAN(N123:OFFSET(N123,$AI$2-1,0))-1 -> 0.06801809247 | AU52: =GEOMEAN(O123:OFFSET(O123,$AI$2-1,0))-1 -> 0.06262347727 | AV52: =GEOMEAN(P123:OFFSET(P123,$AI$2-1,0))-1 -> 0.04361316603 | AW52: =GEOMEAN(Q123:OFFSET(Q123,$AI$2-1,0))-1 -> -0.193188008 | AY52: 39 | AZ52: 0.1245393194 | BA52: 0.05591662087 | BB52: 0.1717227169 | BC52: 0.01460035827 | BD52: 0.02187425284 | BE52: 0.03470657908 | BF52: -0.1566316811 | BG52: -0.1047032184 | BH52: -0.1719830639 | BI52: -0.1831937091 | BJ52: 0.1208921284 | BK52: 0.06801809247 | BL52: 0.06262347727 | BM52: 0.04361316603 | BN52: -0.193188008
B53: 2009 | C53: =VLOOKUP($B53,retdat,MATCH(C$13,Data!$A$3:$CC$3,0),0) -> -0.01204992466 | D53: =VLOOKUP($B53,retdat,MATCH(D$13,Data!$A$3:$CC$3,0),0) -> 0.05313333333 | E53: =VLOOKUP($B53,retdat,MATCH(E$13,Data!$A$3:$CC$3,0),0) -> 0.2234309489 | F53: =VLOOKUP($B53,retdat,MATCH(F$13,Data!$A$3:$CC$3,0),0) -> 0.04126660017 | G53: =VLOOKUP($B53,retdat,MATCH(G$13,Data!$A$3:$CC$3,0),0) -> 0.02684961265 | H53: =VLOOKUP($B53,retdat,MATCH(H$13,Data!$A$3:$CC$3,0),0) -> 0.0015 | I53: =VLOOKUP($B53,retdat,MATCH(I$13,Data!$A$3:$CC$3,0),0) -> 0.2106913288 | J53: =VLOOKUP($B53,retdat,MATCH(J$13,Data!$A$3:$CC$3,0),0) -> 0.1724341295 | K53: =VLOOKUP($B53,retdat,MATCH(K$13,Data!$A$3:$CC$3,0),0) -> 0.2467836276 | L53: =VLOOKUP($B53,retdat,MATCH(L$13,Data!$A$3:$CC$3,0),0) -> 0.2453035899 | M53: =VLOOKUP($B53,retdat,MATCH(M$13,Data!$A$3:$CC$3,0),0) -> -0.01961093742 | N53: =VLOOKUP($B53,retdat,MATCH(N$13,Data!$A$3:$CC$3,0),0) -> 0.07295833333 | O53: =VLOOKUP($B53,retdat,MATCH(O$13,Data!$A$3:$CC$3,0),0) -> 0.05041375 | P53: =VLOOKUP($B53,retdat,MATCH(P$13,Data!$A$3:$CC$3,0),0) -> 0.03256666667 | Q53: =VLOOKUP($B53,retdat,MATCH(Q$13,Data!$A$3:$CC$3,0),0) -> 0.2448835032 | S53: 0.07360621664 | T53: 0.05500277778 | U53: 0.1809157896 | V53: 0.02425664945 | W53: 0.02258838692 | X53: 0.01956111111 | Y53: -0.0801708268 | Z53: -0.05942566652 | AA53: -0.1325197383 | AB53: -0.1421845759 | AC53: 0.06558549516 | AD53: 0.07075 | AE53: 0.05805986111 | AF53: 0.03850833333 | AG53: -0.09059948326 | AI53: =GEOMEAN(C124:OFFSET(C124,$AI$2-1,0))-1 -> 0.07175128036 | AJ53: =GEOMEAN(D124:OFFSET(D124,$AI$2-1,0))-1 -> 0.05500190379 | AK53: =GEOMEAN(E124:OFFSET(E124,$AI$2-1,0))-1 -> 0.1764916557 | AL53: =GEOMEAN(F124:OFFSET(F124,$AI$2-1,0))-1 -> 0.0230009081 | AM53: =GEOMEAN(G124:OFFSET(G124,$AI$2-1,0))-1 -> 0.02245890765 | AN53: =GEOMEAN(H124:OFFSET(H124,$AI$2-1,0))-1 -> 0.01940893273 | AO53: =GEOMEAN(I124:OFFSET(I124,$AI$2-1,0))-1 -> -0.1364266303 | AP53: =GEOMEAN(J124:OFFSET(J124,$AI$2-1,0))-1 -> -0.09915338925 | AQ53: =GEOMEAN(K124:OFFSET(K124,$AI$2-1,0))-1 -> -0.1835552579 | AR53: =GEOMEAN(L124:OFFSET(L124,$AI$2-1,0))-1 -> -0.1933245777 | AS53: =GEOMEAN(M124:OFFSET(M124,$AI$2-1,0))-1 -> 0.06371359795 | AT53: =GEOMEAN(N124:OFFSET(N124,$AI$2-1,0))-1 -> 0.07074161223 | AU53: =GEOMEAN(O124:OFFSET(O124,$AI$2-1,0))-1 -> 0.05804528971 | AV53: =GEOMEAN(P124:OFFSET(P124,$AI$2-1,0))-1 -> 0.03849242704 | AW53: =GEOMEAN(Q124:OFFSET(Q124,$AI$2-1,0))-1 -> -0.1856963026 | AY53: 40
B54: 2010 | C54: =VLOOKUP($B54,retdat,MATCH(C$13,Data!$A$3:$CC$3,0),0) -> 0.04983252086 | D54: =VLOOKUP($B54,retdat,MATCH(D$13,Data!$A$3:$CC$3,0),0) -> 0.04943333333 | E54: =VLOOKUP($B54,retdat,MATCH(E$13,Data!$A$3:$CC$3,0),0) -> 0.2565116274 | F54: =VLOOKUP($B54,retdat,MATCH(F$13,Data!$A$3:$CC$3,0),0) -> 0.06309868665 | G54: =VLOOKUP($B54,retdat,MATCH(G$13,Data!$A$3:$CC$3,0),0) -> 0.01484647887 | H54: =VLOOKUP($B54,retdat,MATCH(H$13,Data!$A$3:$CC$3,0),0) -> 0.001366666667 | I54: =VLOOKUP($B54,retdat,MATCH(I$13,Data!$A$3:$CC$3,0),0) -> 0.1202904579 | J54: =VLOOKUP($B54,retdat,MATCH(J$13,Data!$A$3:$CC$3,0),0) -> 0.1045651323 | K54: =VLOOKUP($B54,retdat,MATCH(K$13,Data!$A$3:$CC$3,0),0) -> 0.2464456724 | L54: =VLOOKUP($B54,retdat,MATCH(L$13,Data!$A$3:$CC$3,0),0) -> 0.2434466506 | M54: =VLOOKUP($B54,retdat,MATCH(M$13,Data!$A$3:$CC$3,0),0) -> 0.03658558114 | N54: =VLOOKUP($B54,retdat,MATCH(N$13,Data!$A$3:$CC$3,0),0) -> 0.06038333333 | O54: =VLOOKUP($B54,retdat,MATCH(O$13,Data!$A$3:$CC$3,0),0) -> 0.04690583333 | P54: =VLOOKUP($B54,retdat,MATCH(P$13,Data!$A$3:$CC$3,0),0) -> 0.03214166667 | Q54: =VLOOKUP($B54,retdat,MATCH(Q$13,Data!$A$3:$CC$3,0),0) -> 0.04788091114 | S54: 0.04523818332 | T54: 0.05296111111 | U54: 0.1740715977 | V54: 0.02009840283 | W54: 0.01420326766 | X54: 0.005505555556 | Y54: -0.05163639431 | Z54: -0.04535033161 | AA54: 0.006525612947 | AB54: 0.004431524327 | AC54: 0.03490437329 | AD54: 0.06926944444 | AE54: 0.05256027778 | AF54: 0.03379166667 | AG54: -0.1022098181 | AI54: =GEOMEAN(C125:OFFSET(C125,$AI$2-1,0))-1 -> 0.04426362025 | AJ54: =GEOMEAN(D125:OFFSET(D125,$AI$2-1,0))-1 -> 0.05295735368 | AK54: =GEOMEAN(E125:OFFSET(E125,$AI$2-1,0))-1 -> 0.1701522675 | AL54: =GEOMEAN(F125:OFFSET(F125,$AI$2-1,0))-1 -> 0.01903052114 | AM54: =GEOMEAN(G125:OFFSET(G125,$AI$2-1,0))-1 -> 0.01414785673 | AN54: =GEOMEAN(H125:OFFSET(H125,$AI$2-1,0))-1 -> 0.005489106134 | AO54: =GEOMEAN(I125:OFFSET(I125,$AI$2-1,0))-1 -> -0.1132393078 | AP54: =GEOMEAN(J125:OFFSET(J125,$AI$2-1,0))-1 -> -0.08737246799 | AQ54: =GEOMEAN(K125:OFFSET(K125,$AI$2-1,0))-1 -> -0.06478309816 | AR54: =GEOMEAN(L125:OFFSET(L125,$AI$2-1,0))-1 -> -0.06697159554 | AS54: =GEOMEAN(M125:OFFSET(M125,$AI$2-1,0))-1 -> 0.03397341053 | AT54: =GEOMEAN(N125:OFFSET(N125,$AI$2-1,0))-1 -> 0.06925075524 | AU54: =GEOMEAN(O125:OFFSET(O125,$AI$2-1,0))-1 -> 0.05254487771 | AV54: =GEOMEAN(P125:OFFSET(P125,$AI$2-1,0))-1 -> 0.03378965505 | AW54: =GEOMEAN(Q125:OFFSET(Q125,$AI$2-1,0))-1 -> -0.1945237411 | AY54: 41
B55: 2011 | C55: =VLOOKUP($B55,retdat,MATCH(C$13,Data!$A$3:$CC$3,0),0) -> 0.08691062109 | D55: =VLOOKUP($B55,retdat,MATCH(D$13,Data!$A$3:$CC$3,0),0) -> 0.04639166667 | E55: =VLOOKUP($B55,retdat,MATCH(E$13,Data!$A$3:$CC$3,0),0) -> 0.08552800531 | F55: =VLOOKUP($B55,retdat,MATCH(F$13,Data!$A$3:$CC$3,0),0) -> 0.05187298927 | G55: =VLOOKUP($B55,retdat,MATCH(G$13,Data!$A$3:$CC$3,0),0) -> 0.02919387008 | H55: =VLOOKUP($B55,retdat,MATCH(H$13,Data!$A$3:$CC$3,0),0) -> 0.000525 | I55: =VLOOKUP($B55,retdat,MATCH(I$13,Data!$A$3:$CC$3,0),0) -> -3.180610996e-05 | J55: =VLOOKUP($B55,retdat,MATCH(J$13,Data!$A$3:$CC$3,0),0) -> 0.05380983802 | K55: =VLOOKUP($B55,retdat,MATCH(K$13,Data!$A$3:$CC$3,0),0) -> 0.07958461651 | L55: =VLOOKUP($B55,retdat,MATCH(L$13,Data!$A$3:$CC$3,0),0) -> 0.07050238837 | M55: =VLOOKUP($B55,retdat,MATCH(M$13,Data!$A$3:$CC$3,0),0) -> 0.0739394692 | N55: =VLOOKUP($B55,retdat,MATCH(N$13,Data!$A$3:$CC$3,0),0) -> 0.05664166667 | O55: =VLOOKUP($B55,retdat,MATCH(O$13,Data!$A$3:$CC$3,0),0) -> 0.04455833333 | P55: =VLOOKUP($B55,retdat,MATCH(P$13,Data!$A$3:$CC$3,0),0) -> 0.02785833333 | Q55: =VLOOKUP($B55,retdat,MATCH(Q$13,Data!$A$3:$CC$3,0),0) -> -0.1603963996 | S55: 0.04156440576 | T55: 0.04965277778 | U55: 0.1884901939 | V55: 0.05207942536 | W55: 0.0236299872 | X55: 0.001130555556 | Y55: 0.1103166602 | Z55: 0.1102696999 | AA55: 0.1909379722 | AB55: 0.1864175429 | AC55: 0.03030470431 | AD55: 0.06332777778 | AE55: 0.04729263889 | AF55: 0.03085555556 | AG55: 0.04412267158 | AI55: =GEOMEAN(C126:OFFSET(C126,$AI$2-1,0))-1 -> 0.04075766416 | AJ55: =GEOMEAN(D126:OFFSET(D126,$AI$2-1,0))-1 -> 0.04964915871 | AK55: =GEOMEAN(E126:OFFSET(E126,$AI$2-1,0))-1 -> 0.1861210195 | AL55: =GEOMEAN(F126:OFFSET(F126,$AI$2-1,0))-1 -> 0.05204166749 | AM55: =GEOMEAN(G126:OFFSET(G126,$AI$2-1,0))-1 -> 0.02361064713 | AN55: =GEOMEAN(H126:OFFSET(H126,$AI$2-1,0))-1 -> 0.001130462487 | AO55: =GEOMEAN(I126:OFFSET(I126,$AI$2-1,0))-1 -> 0.1069213187 | AP55: =GEOMEAN(J126:OFFSET(J126,$AI$2-1,0))-1 -> 0.1092105975 | AQ55: =GEOMEAN(K126:OFFSET(K126,$AI$2-1,0))-1 -> 0.1882478689 | AR55: =GEOMEAN(L126:OFFSET(L126,$AI$2-1,0))-1 -> 0.1834866022 | AS55: =GEOMEAN(M126:OFFSET(M126,$AI$2-1,0))-1 -> 0.02958247495 | AT55: =GEOMEAN(N126:OFFSET(N126,$AI$2-1,0))-1 -> 0.06330493002 | AU55: =GEOMEAN(O126:OFFSET(O126,$AI$2-1,0))-1 -> 0.04728987603 | AV55: =GEOMEAN(P126:OFFSET(P126,$AI$2-1,0))-1 -> 0.03085336027 | AW55: =GEOMEAN(Q126:OFFSET(Q126,$AI$2-1,0))-1 -> 0.03079343611 | AY55: 42 | AZ55: 0.04075766416 | BA55: 0.04964915871 | BB55: 0.1861210195 | BC55: 0.05204166749 | BD55: 0.02361064713 | BE55: 0.001130462487 | BF55: 0.1069213187 | BG55: 0.1092105975 | BH55: 0.1882478689 | BI55: 0.1834866022 | BJ55: 0.02958247495 | BK55: 0.06330493002 | BL55: 0.04728987603 | BM55: 0.03085336027 | BN55: 0.03079343611
B56: 2012 | C56: =VLOOKUP($B56,retdat,MATCH(C$13,Data!$A$3:$CC$3,0),0) -> 0.1091284425 | D56: =VLOOKUP($B56,retdat,MATCH(D$13,Data!$A$3:$CC$3,0),0) -> 0.03673333333 | E56: =VLOOKUP($B56,retdat,MATCH(E$13,Data!$A$3:$CC$3,0),0) -> 0.0793893264 | F56: =VLOOKUP($B56,retdat,MATCH(F$13,Data!$A$3:$CC$3,0),0) -> 0.008472515172 | G56: =VLOOKUP($B56,retdat,MATCH(G$13,Data!$A$3:$CC$3,0),0) -> 0.01726040219 | H56: =VLOOKUP($B56,retdat,MATCH(H$13,Data!$A$3:$CC$3,0),0) -> 0.0008583333333 | I56: =VLOOKUP($B56,retdat,MATCH(I$13,Data!$A$3:$CC$3,0),0) -> 0.1258014103 | J56: =VLOOKUP($B56,retdat,MATCH(J$13,Data!$A$3:$CC$3,0),0) -> 0.07005394968 | K56: =VLOOKUP($B56,retdat,MATCH(K$13,Data!$A$3:$CC$3,0),0) -> 0.1798251929 | L56: =VLOOKUP($B56,retdat,MATCH(L$13,Data!$A$3:$CC$3,0),0) -> 0.1800472884 | M56: =VLOOKUP($B56,retdat,MATCH(M$13,Data!$A$3:$CC$3,0),0) -> 0.09130877452 | N56: =VLOOKUP($B56,retdat,MATCH(N$13,Data!$A$3:$CC$3,0),0) -> 0.04935 | O56: =VLOOKUP($B56,retdat,MATCH(O$13,Data!$A$3:$CC$3,0),0) -> 0.03655916667 | P56: =VLOOKUP($B56,retdat,MATCH(P$13,Data!$A$3:$CC$3,0),0) -> 0.018025 | Q56: =VLOOKUP($B56,retdat,MATCH(Q$13,Data!$A$3:$CC$3,0),0) -> 0.1271101622 | S56: 0.08195719481 | T56: 0.04418611111 | U56: 0.1404763197 | V56: 0.0411480637 | W56: 0.02043358371 | X56: 0.0009166666667 | Y56: 0.08202002067 | Z56: 0.07614297332 | AA56: 0.1686184939 | AB56: 0.1646654425 | AC56: 0.06727794162 | AD56: 0.05545833333 | AE56: 0.04267444444 | AF56: 0.02600833333 | AG56: 0.004864891247 | AI56: =GEOMEAN(C127:OFFSET(C127,$AI$2-1,0))-1 -> 0.08167941686 | AJ56: =GEOMEAN(D127:OFFSET(D127,$AI$2-1,0))-1 -> 0.04417204783 | AK56: =GEOMEAN(E127:OFFSET(E127,$AI$2-1,0))-1 -> 0.1376147675 | AL56: =GEOMEAN(F127:OFFSET(F127,$AI$2-1,0))-1 -> 0.04087916887 | AM56: =GEOMEAN(G127:OFFSET(G127,$AI$2-1,0))-1 -> 0.02041435573 | AN56: =GEOMEAN(H127:OFFSET(H127,$AI$2-1,0))-1 -> 0.0009166068407 | AO56: =GEOMEAN(I127:OFFSET(I127,$AI$2-1,0))-1 -> 0.08042063597 | AP56: =GEOMEAN(J127:OFFSET(J127,$AI$2-1,0))-1 -> 0.0759359472 | AQ56: =GEOMEAN(K127:OFFSET(K127,$AI$2-1,0))-1 -> 0.1665836956 | AR56: =GEOMEAN(L127:OFFSET(L127,$AI$2-1,0))-1 -> 0.1624422942 | AS56: =GEOMEAN(M127:OFFSET(M127,$AI$2-1,0))-1 -> 0.0670322313 | AT56: =GEOMEAN(N127:OFFSET(N127,$AI$2-1,0))-1 -> 0.05544837941 | AU56: =GEOMEAN(O127:OFFSET(O127,$AI$2-1,0))-1 -> 0.04266502246 | AV56: =GEOMEAN(P127:OFFSET(P127,$AI$2-1,0))-1 -> 0.0259912847 | AW56: =GEOMEAN(Q127:OFFSET(Q127,$AI$2-1,0))-1 -> -0.002795578179 | AY56: 43
B57: 2013 | C57: =VLOOKUP($B57,retdat,MATCH(C$13,Data!$A$3:$CC$3,0),0) -> 0.09372438613 | D57: =VLOOKUP($B57,retdat,MATCH(D$13,Data!$A$3:$CC$3,0),0) -> 0.04235 | E57: =VLOOKUP($B57,retdat,MATCH(E$13,Data!$A$3:$CC$3,0),0) -> -0.3192459 | F57: =VLOOKUP($B57,retdat,MATCH(F$13,Data!$A$3:$CC$3,0),0) -> 0.002478316014 | G57: =VLOOKUP($B57,retdat,MATCH(G$13,Data!$A$3:$CC$3,0),0) -> 0.01490571205 | H57: =VLOOKUP($B57,retdat,MATCH(H$13,Data!$A$3:$CC$3,0),0) -> 0.0005833333333 | I57: =VLOOKUP($B57,retdat,MATCH(I$13,Data!$A$3:$CC$3,0),0) -> 0.2592922065 | J57: =VLOOKUP($B57,retdat,MATCH(J$13,Data!$A$3:$CC$3,0),0) -> 0.2350674711 | K57: =VLOOKUP($B57,retdat,MATCH(K$13,Data!$A$3:$CC$3,0),0) -> 0.02815719316 | L57: =VLOOKUP($B57,retdat,MATCH(L$13,Data!$A$3:$CC$3,0),0) -> 0.02313555626 | M57: =VLOOKUP($B57,retdat,MATCH(M$13,Data!$A$3:$CC$3,0),0) -> 0.08086146292 | N57: =VLOOKUP($B57,retdat,MATCH(N$13,Data!$A$3:$CC$3,0),0) -> 0.05101666667 | O57: =VLOOKUP($B57,retdat,MATCH(O$13,Data!$A$3:$CC$3,0),0) -> 0.03981916667 | P57: =VLOOKUP($B57,retdat,MATCH(P$13,Data!$A$3:$CC$3,0),0) -> 0.02350833333 | Q57: =VLOOKUP($B57,retdat,MATCH(Q$13,Data!$A$3:$CC$3,0),0) -> 0.1775241456 | S57: 0.09658781656 | T57: 0.041825 | U57: -0.0514428561 | V57: 0.02094127349 | W57: 0.02045332811 | X57: 0.0006555555556 | Y57: 0.1283539369 | Z57: 0.1196437529 | AA57: 0.09585566751 | AB57: 0.09122841101 | AC57: 0.08203656888 | AD57: 0.05233611111 | AE57: 0.04031222222 | AF57: 0.02313055556 | AG57: 0.04807930275 | AI57: =GEOMEAN(C128:OFFSET(C128,$AI$2-1,0))-1 -> 0.09654852953 | AJ57: =GEOMEAN(D128:OFFSET(D128,$AI$2-1,0))-1 -> 0.04181746852 | AK57: =GEOMEAN(E128:OFFSET(E128,$AI$2-1,0))-1 -> -0.07259420418 | AL57: =GEOMEAN(F128:OFFSET(F128,$AI$2-1,0))-1 -> 0.02070627734 | AM57: =GEOMEAN(G128:OFFSET(G128,$AI$2-1,0))-1 -> 0.02043420807 | AN57: =GEOMEAN(H128:OFFSET(H128,$AI$2-1,0))-1 -> 0.0006555449998 | AO57: =GEOMEAN(I128:OFFSET(I128,$AI$2-1,0))-1 -> 0.1233751952 | AP57: =GEOMEAN(J128:OFFSET(J128,$AI$2-1,0))-1 -> 0.1167420485 | AQ57: =GEOMEAN(K128:OFFSET(K128,$AI$2-1,0))-1 -> 0.09406877598 | AR57: =GEOMEAN(L128:OFFSET(L128,$AI$2-1,0))-1 -> 0.08928137137 | AS57: =GEOMEAN(M128:OFFSET(M128,$AI$2-1,0))-1 -> 0.08201303949 | AT57: =GEOMEAN(N128:OFFSET(N128,$AI$2-1,0))-1 -> 0.05233149226 | AU57: =GEOMEAN(O128:OFFSET(O128,$AI$2-1,0))-1 -> 0.0403070406 | AV57: =GEOMEAN(P128:OFFSET(P128,$AI$2-1,0))-1 -> 0.02312264202 | AW57: =GEOMEAN(Q128:OFFSET(Q128,$AI$2-1,0))-1 -> 0.03674072727 | AY57: 44 | AZ57: =IF(TRUNC($AY57/$AI$2)-$AY57/$AI$2 = 0,AI57,"") ->  | BA57: =IF(TRUNC($AY57/$AI$2)-$AY57/$AI$2 = 0,AJ57,"") ->  | BB57: =IF(TRUNC($AY57/$AI$2)-$AY57/$AI$2 = 0,AK57,"") ->  | BC57: =IF(TRUNC($AY57/$AI$2)-$AY57/$AI$2 = 0,AL57,"") ->  | BD57: =IF(TRUNC($AY57/$AI$2)-$AY57/$AI$2 = 0,AM57,"") ->  | BE57: =IF(TRUNC($AY57/$AI$2)-$AY57/$AI$2 = 0,AN57,"") ->  | BF57: =IF(TRUNC($AY57/$AI$2)-$AY57/$AI$2 = 0,AO57,"") ->  | BG57: =IF(TRUNC($AY57/$AI$2)-$AY57/$AI$2 = 0,AP57,"") ->  | BH57: =IF(TRUNC($AY57/$AI$2)-$AY57/$AI$2 = 0,AQ57,"") ->  | BI57: =IF(TRUNC($AY57/$AI$2)-$AY57/$AI$2 = 0,AR57,"") ->  | BJ57: =IF(TRUNC($AY57/$AI$2)-$AY57/$AI$2 = 0,AS57,"") ->  | BK57: =IF(TRUNC($AY57/$AI$2)-$AY57/$AI$2 = 0,AT57,"") ->  | BL57: =IF(TRUNC($AY57/$AI$2)-$AY57/$AI$2 = 0,AU57,"") ->  | BM57: =IF(TRUNC($AY57/$AI$2)-$AY57/$AI$2 = 0,AV57,"") ->  | BN57: =IF(TRUNC($AY57/$AI$2)-$AY57/$AI$2 = 0,AW57,"") -> 
B58: 2014 | C58: =VLOOKUP($B58,retdat,MATCH(C$13,Data!$A$3:$CC$3,0),0) -> 0.09676932791 | D58: =VLOOKUP($B58,retdat,MATCH(D$13,Data!$A$3:$CC$3,0),0) -> 0.041625 | E58: =VLOOKUP($B58,retdat,MATCH(E$13,Data!$A$3:$CC$3,0),0) -> 0.001244555232 | F58: =VLOOKUP($B58,retdat,MATCH(F$13,Data!$A$3:$CC$3,0),0) -> -0.02202291209 | G58: =VLOOKUP($B58,retdat,MATCH(G$13,Data!$A$3:$CC$3,0),0) -> 0.007536462089 | H58: =VLOOKUP($B58,retdat,MATCH(H$13,Data!$A$3:$CC$3,0),0) -> 0.000325 | I58: =VLOOKUP($B58,retdat,MATCH(I$13,Data!$A$3:$CC$3,0),0) -> 0.1078731002 | J58: =VLOOKUP($B58,retdat,MATCH(J$13,Data!$A$3:$CC$3,0),0) -> 0.07249800366 | K58: =VLOOKUP($B58,retdat,MATCH(K$13,Data!$A$3:$CC$3,0),0) -> 0.247075621 | L58: =VLOOKUP($B58,retdat,MATCH(L$13,Data!$A$3:$CC$3,0),0) -> 0.2408167829 | M58: =VLOOKUP($B58,retdat,MATCH(M$13,Data!$A$3:$CC$3,0),0) -> 0.08736575207 | N58: =VLOOKUP($B58,retdat,MATCH(N$13,Data!$A$3:$CC$3,0),0) -> 0.04854166667 | O58: =VLOOKUP($B58,retdat,MATCH(O$13,Data!$A$3:$CC$3,0),0) -> 0.04172833333 | P58: =VLOOKUP($B58,retdat,MATCH(P$13,Data!$A$3:$CC$3,0),0) -> 0.02540833333 | Q58: =VLOOKUP($B58,retdat,MATCH(Q$13,Data!$A$3:$CC$3,0),0) -> -0.07629244031 | S58: 0.09987405217 | T58: 0.04023611111 | U58: -0.07953733946 | V58: -0.003690693634 | W58: 0.01323419211 | X58: 0.0005888888889 | Y58: 0.164322239 | Z58: 0.1258731415 | AA58: 0.1516860023 | AB58: 0.1479998759 | AC58: 0.0865119965 | AD58: 0.04963611111 | AE58: 0.03936888889 | AF58: 0.02231388889 | AG58: 0.07611395584 | AI58: =GEOMEAN(C129:OFFSET(C129,$AI$2-1,0))-1 -> 0.0998539313 | AJ58: =GEOMEAN(D129:OFFSET(D129,$AI$2-1,0))-1 -> 0.04023311711 | AK58: =GEOMEAN(E129:OFFSET(E129,$AI$2-1,0))-1 -> -0.09724580043 | AL58: =GEOMEAN(F129:OFFSET(F129,$AI$2-1,0))-1 -> -0.003778497377 | AM58: =GEOMEAN(G129:OFFSET(G129,$AI$2-1,0))-1 -> 0.01322571355 | AN58: =GEOMEAN(H129:OFFSET(H129,$AI$2-1,0))-1 -> 0.0005888651916 | AO58: =GEOMEAN(I129:OFFSET(I129,$AI$2-1,0))-1 -> 0.1624102758 | AP58: =GEOMEAN(J129:OFFSET(J129,$AI$2-1,0))-1 -> 0.1233048055 | AQ58: =GEOMEAN(K129:OFFSET(K129,$AI$2-1,0))-1 -> 0.1479509303 | AR58: =GEOMEAN(L129:OFFSET(L129,$AI$2-1,0))-1 -> 0.1442302261 | AS58: =GEOMEAN(M129:OFFSET(M129,$AI$2-1,0))-1 -> 0.08650345088 | AT58: =GEOMEAN(N129:OFFSET(N129,$AI$2-1,0))-1 -> 0.04963560542 | AU58: =GEOMEAN(O129:OFFSET(O129,$AI$2-1,0))-1 -> 0.03936669685 | AV58: =GEOMEAN(P129:OFFSET(P129,$AI$2-1,0))-1 -> 0.02230909128 | AW58: =GEOMEAN(Q129:OFFSET(Q129,$AI$2-1,0))-1 -> 0.07026230138 | AY58: 45 | AZ58: 0.0998539313 | BA58: 0.04023311711 | BB58: -0.09724580043 | BC58: -0.003778497377 | BD58: 0.01322571355 | BE58: 0.0005888651916 | BF58: 0.1624102758 | BG58: 0.1233048055 | BH58: 0.1479509303 | BI58: 0.1442302261 | BJ58: 0.08650345088 | BK58: 0.04963560542 | BL58: 0.03936669685 | BM58: 0.02230909128 | BN58: 0.07026230138
B59: 2015 | C59: =VLOOKUP($B59,retdat,MATCH(C$13,Data!$A$3:$CC$3,0),0) -> 0.06062109729 | D59: =VLOOKUP($B59,retdat,MATCH(D$13,Data!$A$3:$CC$3,0),0) -> 0.03886666667 | E59: =VLOOKUP($B59,retdat,MATCH(E$13,Data!$A$3:$CC$3,0),0) -> -0.1290401902 | F59: =VLOOKUP($B59,retdat,MATCH(F$13,Data!$A$3:$CC$3,0),0) -> -0.07403011782 | G59: =VLOOKUP($B59,retdat,MATCH(G$13,Data!$A$3:$CC$3,0),0) -> 0.007268716617 | H59: =VLOOKUP($B59,retdat,MATCH(H$13,Data!$A$3:$CC$3,0),0) -> 0.000525 | I59: =VLOOKUP($B59,retdat,MATCH(I$13,Data!$A$3:$CC$3,0),0) -> -0.007292541897 | J59: =VLOOKUP($B59,retdat,MATCH(J$13,Data!$A$3:$CC$3,0),0) -> -0.02258604758 | K59: =VLOOKUP($B59,retdat,MATCH(K$13,Data!$A$3:$CC$3,0),0) -> 0.02786057406 | L59: =VLOOKUP($B59,retdat,MATCH(L$13,Data!$A$3:$CC$3,0),0) -> 0.02029836105 | M59: =VLOOKUP($B59,retdat,MATCH(M$13,Data!$A$3:$CC$3,0),0) -> 0.05468898431 | N59: =VLOOKUP($B59,retdat,MATCH(N$13,Data!$A$3:$CC$3,0),0) -> 0.04999166667 | O59: =VLOOKUP($B59,retdat,MATCH(O$13,Data!$A$3:$CC$3,0),0) -> 0.03849 | P59: =VLOOKUP($B59,retdat,MATCH(P$13,Data!$A$3:$CC$3,0),0) -> 0.02135833333 | Q59: =VLOOKUP($B59,retdat,MATCH(Q$13,Data!$A$3:$CC$3,0),0) -> -0.03357929126 | S59: =AVERAGE(C57:C59) -> 0.08370493711 | T59: =AVERAGE(D57:D59) -> 0.04094722222 | U59: =AVERAGE(E57:E59) -> -0.149013845 | V59: =AVERAGE(F57:F59) -> -0.0311915713 | W59: =AVERAGE(G57:G59) -> 0.009903630251 | X59: =AVERAGE(H57:H59) -> 0.0004777777778 | Y59: =AVERAGE(I57:I59) -> 0.1199575883 | Z59: =AVERAGE(J57:J59) -> 0.09499314238 | AA59: =AVERAGE(K57:K59) -> 0.1010311294 | AB59: =AVERAGE(L57:L59) -> 0.0947502334 | AC59: =AVERAGE(M57:M59) -> 0.07430539977 | AD59: =AVERAGE(N57:N59) -> 0.04985 | AE59: =AVERAGE(O57:O59) -> 0.0400125 | AF59: =AVERAGE(P57:P59) -> 0.023425 | AG59: =AVERAGE(Q57:Q59) -> 0.02255080469 | AI59: =GEOMEAN(C130:OFFSET(C130,$AI$2-1,0))-1 -> 0.08358042585 | AJ59: =GEOMEAN(D130:OFFSET(D130,$AI$2-1,0))-1 -> 0.04094613992 | AK59: =GEOMEAN(E130:OFFSET(E130,$AI$2-1,0))-1 -> -0.1595545777 | AL59: =GEOMEAN(F130:OFFSET(F130,$AI$2-1,0))-1 -> -0.0317217507 | AM59: =GEOMEAN(G130:OFFSET(G130,$AI$2-1,0))-1 -> 0.009897440631 | AN59: =GEOMEAN(H130:OFFSET(H130,$AI$2-1,0))-1 -> 0.0004777716616 | AO59: =GEOMEAN(I130:OFFSET(I130,$AI$2-1,0))-1 -> 0.1146690414 | AP59: =GEOMEAN(J130:OFFSET(J130,$AI$2-1,0))-1 -> 0.0899048121 | AQ59: =GEOMEAN(K130:OFFSET(K130,$AI$2-1,0))-1 -> 0.09638269432 | AR59: =GEOMEAN(L130:OFFSET(L130,$AI$2-1,0))-1 -> 0.09007406876 | AS59: =GEOMEAN(M130:OFFSET(M130,$AI$2-1,0))-1 -> 0.07421207781 | AT59: =GEOMEAN(N130:OFFSET(N130,$AI$2-1,0))-1 -> 0.04984950893 | AU59: =GEOMEAN(O130:OFFSET(O130,$AI$2-1,0))-1 -> 0.04001165089 | AV59: =GEOMEAN(P130:OFFSET(P130,$AI$2-1,0))-1 -> 0.0234236626 | AW59: =GEOMEAN(Q130:OFFSET(Q130,$AI$2-1,0))-1 -> 0.01677185378 | AY59: 46
B60: 2016 | C60: =VLOOKUP($B60,retdat,MATCH(C$13,Data!$A$3:$CC$3,0),0) -> 0.03001401758 | D60: =VLOOKUP($B60,retdat,MATCH(D$13,Data!$A$3:$CC$3,0),0) -> 0.03665833333 | E60: =VLOOKUP($B60,retdat,MATCH(E$13,Data!$A$3:$CC$3,0),0) -> 0.07792144633 | F60: =VLOOKUP($B60,retdat,MATCH(F$13,Data!$A$3:$CC$3,0),0) -> 0.02529055966 | G60: =VLOOKUP($B60,retdat,MATCH(G$13,Data!$A$3:$CC$3,0),0) -> 0.02053394935 | H60: =VLOOKUP($B60,retdat,MATCH(H$13,Data!$A$3:$CC$3,0),0) -> 0.003175 | I60: =VLOOKUP($B60,retdat,MATCH(I$13,Data!$A$3:$CC$3,0),0) -> 0.09107409028 | J60: =VLOOKUP($B60,retdat,MATCH(J$13,Data!$A$3:$CC$3,0),0) -> 0.1258836246 | K60: =VLOOKUP($B60,retdat,MATCH(K$13,Data!$A$3:$CC$3,0),0) -> 0.08277028418 | L60: =VLOOKUP($B60,retdat,MATCH(L$13,Data!$A$3:$CC$3,0),0) -> 0.08961122226 | M60: =VLOOKUP($B60,retdat,MATCH(M$13,Data!$A$3:$CC$3,0),0) -> 0.0303996836 | N60: =VLOOKUP($B60,retdat,MATCH(N$13,Data!$A$3:$CC$3,0),0) -> 0.047175 | O60: =VLOOKUP($B60,retdat,MATCH(O$13,Data!$A$3:$CC$3,0),0) -> 0.03647708333 | P60: =VLOOKUP($B60,retdat,MATCH(P$13,Data!$A$3:$CC$3,0),0) -> 0.01841666667 | Q60: =VLOOKUP($B60,retdat,MATCH(Q$13,Data!$A$3:$CC$3,0),0) -> -0.0189872421 | S60: 0.06246814759 | T60: 0.03905 | U60: -0.01662472954 | V60: -0.02358749008 | W60: 0.01177970935 | X60: 0.001341666667 | Y60: 0.06388488285 | Z60: 0.05859852691 | AA60: 0.1192354931 | AB60: 0.1169087887 | AC60: 0.05748480666 | AD60: 0.04856944444 | AE60: 0.03889847222 | AF60: 0.02172777778 | AG60: -0.04295299122 | AI60: =GEOMEAN(C131:OFFSET(C131,$AI$2-1,0))-1 -> 0.06211831486 | AJ60: =GEOMEAN(D131:OFFSET(D131,$AI$2-1,0))-1 -> 0.03904801387 | AK60: =GEOMEAN(E131:OFFSET(E131,$AI$2-1,0))-1 -> -0.02041573964 | AL60: =GEOMEAN(F131:OFFSET(F131,$AI$2-1,0))-1 -> -0.02443210421 | AM60: =GEOMEAN(G131:OFFSET(G131,$AI$2-1,0))-1 -> 0.01176082154 | AN60: =GEOMEAN(H131:OFFSET(H131,$AI$2-1,0))-1 -> 0.001340824691 | AO60: =GEOMEAN(I131:OFFSET(I131,$AI$2-1,0))-1 -> 0.06264576314 | AP60: =GEOMEAN(J131:OFFSET(J131,$AI$2-1,0))-1 -> 0.05679198245 | AQ60: =GEOMEAN(K131:OFFSET(K131,$AI$2-1,0))-1 -> 0.1154611318 | AR60: =GEOMEAN(L131:OFFSET(L131,$AI$2-1,0))-1 -> 0.1131887411 | AS60: =GEOMEAN(M131:OFFSET(M131,$AI$2-1,0))-1 -> 0.05722784346 | AT60: =GEOMEAN(N131:OFFSET(N131,$AI$2-1,0))-1 -> 0.04856881377 | AU60: =GEOMEAN(O131:OFFSET(O131,$AI$2-1,0))-1 -> 0.038896221 | AV60: =GEOMEAN(P131:OFFSET(P131,$AI$2-1,0))-1 -> 0.02172375881 | AW60: =GEOMEAN(Q131:OFFSET(Q131,$AI$2-1,0))-1 -> -0.04326470993 | AY60: 47 | AZ60: =IF(TRUNC($AY60/$AI$2)-$AY60/$AI$2 = 0,AI60,"") ->  | BA60: =IF(TRUNC($AY60/$AI$2)-$AY60/$AI$2 = 0,AJ60,"") ->  | BB60: =IF(TRUNC($AY60/$AI$2)-$AY60/$AI$2 = 0,AK60,"") ->  | BC60: =IF(TRUNC($AY60/$AI$2)-$AY60/$AI$2 = 0,AL60,"") ->  | BD60: =IF(TRUNC($AY60/$AI$2)-$AY60/$AI$2 = 0,AM60,"") ->  | BE60: =IF(TRUNC($AY60/$AI$2)-$AY60/$AI$2 = 0,AN60,"") ->  | BF60: =IF(TRUNC($AY60/$AI$2)-$AY60/$AI$2 = 0,AO60,"") ->  | BG60: =IF(TRUNC($AY60/$AI$2)-$AY60/$AI$2 = 0,AP60,"") ->  | BH60: =IF(TRUNC($AY60/$AI$2)-$AY60/$AI$2 = 0,AQ60,"") ->  | BI60: =IF(TRUNC($AY60/$AI$2)-$AY60/$AI$2 = 0,AR60,"") ->  | BJ60: =IF(TRUNC($AY60/$AI$2)-$AY60/$AI$2 = 0,AS60,"") ->  | BK60: =IF(TRUNC($AY60/$AI$2)-$AY60/$AI$2 = 0,AT60,"") ->  | BL60: =IF(TRUNC($AY60/$AI$2)-$AY60/$AI$2 = 0,AU60,"") ->  | BM60: =IF(TRUNC($AY60/$AI$2)-$AY60/$AI$2 = 0,AV60,"") ->  | BN60: =IF(TRUNC($AY60/$AI$2)-$AY60/$AI$2 = 0,AW60,"") -> 
B61: 2017 | C61: =VLOOKUP($B61,retdat,MATCH(C$13,Data!$A$3:$CC$3,0),0) -> 0.04736658687 | D61: =VLOOKUP($B61,retdat,MATCH(D$13,Data!$A$3:$CC$3,0),0) -> 0.03743333333 | E61: =VLOOKUP($B61,retdat,MATCH(E$13,Data!$A$3:$CC$3,0),0) -> 0.1192267574 | F61: =VLOOKUP($B61,retdat,MATCH(F$13,Data!$A$3:$CC$3,0),0) -> 0.04213887413 | G61: =VLOOKUP($B61,retdat,MATCH(G$13,Data!$A$3:$CC$3,0),0) -> 0.02087149188 | H61: =VLOOKUP($B61,retdat,MATCH(H$13,Data!$A$3:$CC$3,0),0) -> 0.009308333333 | I61: =VLOOKUP($B61,retdat,MATCH(I$13,Data!$A$3:$CC$3,0),0) -> 0.1774762111 | J61: =VLOOKUP($B61,retdat,MATCH(J$13,Data!$A$3:$CC$3,0),0) -> 0.2237898445 | K61: =VLOOKUP($B61,retdat,MATCH(K$13,Data!$A$3:$CC$3,0),0) -> 0.08318153528 | L61: =VLOOKUP($B61,retdat,MATCH(L$13,Data!$A$3:$CC$3,0),0) -> 0.08887130053 | M61: =VLOOKUP($B61,retdat,MATCH(M$13,Data!$A$3:$CC$3,0),0) -> 0.04541973953 | N61: =VLOOKUP($B61,retdat,MATCH(N$13,Data!$A$3:$CC$3,0),0) -> 0.0444 | O61: =VLOOKUP($B61,retdat,MATCH(O$13,Data!$A$3:$CC$3,0),0) -> 0.03991 | P61: =VLOOKUP($B61,retdat,MATCH(P$13,Data!$A$3:$CC$3,0),0) -> 0.0233 | Q61: =VLOOKUP($B61,retdat,MATCH(Q$13,Data!$A$3:$CC$3,0),0) -> 0.1970531689 | S61: =AVERAGE(C59:C61) -> 0.04600056725 | T61: =AVERAGE(D59:D61) -> 0.03765277778 | U61: =AVERAGE(E59:E61) -> 0.02270267119 | V61: =AVERAGE(F59:F61) -> -0.00220022801 | W61: =AVERAGE(G59:G61) -> 0.01622471928 | X61: =AVERAGE(H59:H61) -> 0.004336111111 | Y61: =AVERAGE(I59:I61) -> 0.08708591984 | Z61: =AVERAGE(J59:J61) -> 0.1090291405 | AA61: =AVERAGE(K59:K61) -> 0.06460413117 | AB61: =AVERAGE(L59:L61) -> 0.06626029461 | AC61: =AVERAGE(M59:M61) -> 0.04350280248 | AD61: =AVERAGE(N59:N61) -> 0.04718888889 | AE61: =AVERAGE(O59:O61) -> 0.03829236111 | AF61: =AVERAGE(P59:P61) -> 0.021025 | AG61: =AVERAGE(Q59:Q61) -> 0.04816221186 | AI61: =GEOMEAN(C132:OFFSET(C132,$AI$2-1,0))-1 -> 0.04592538563 | AJ61: =GEOMEAN(D132:OFFSET(D132,$AI$2-1,0))-1 -> 0.03765237461 | AK61: =GEOMEAN(E132:OFFSET(E132,$AI$2-1,0))-1 -> 0.01664135201 | AL61: =GEOMEAN(F132:OFFSET(F132,$AI$2-1,0))-1 -> -0.003547796075 | AM61: =GEOMEAN(G132:OFFSET(G132,$AI$2-1,0))-1 -> 0.01620491933 | AN61: =GEOMEAN(H132:OFFSET(H132,$AI$2-1,0))-1 -> 0.004329381592 | AO61: =GEOMEAN(I132:OFFSET(I132,$AI$2-1,0))-1 -> 0.08444922581 | AP61: =GEOMEAN(J132:OFFSET(J132,$AI$2-1,0))-1 -> 0.1043149728 | AQ61: =GEOMEAN(K132:OFFSET(K132,$AI$2-1,0))-1 -> 0.06428333417 | AR61: =GEOMEAN(L132:OFFSET(L132,$AI$2-1,0))-1 -> 0.06575759413 | AS61: =GEOMEAN(M132:OFFSET(M132,$AI$2-1,0))-1 -> 0.04345471933 | AT61: =GEOMEAN(N132:OFFSET(N132,$AI$2-1,0))-1 -> 0.04718640072 | AU61: =GEOMEAN(O132:OFFSET(O132,$AI$2-1,0))-1 -> 0.03829140567 | AV61: =GEOMEAN(P132:OFFSET(P132,$AI$2-1,0))-1 -> 0.02102302583 | AW61: =GEOMEAN(Q132:OFFSET(Q132,$AI$2-1,0))-1 -> 0.04308117576 | AY61: 48 | AZ61: =IF(TRUNC($AY61/$AI$2)-$AY61/$AI$2 = 0,AI61,"") -> 0.04592538563 | BA61: =IF(TRUNC($AY61/$AI$2)-$AY61/$AI$2 = 0,AJ61,"") -> 0.03765237461 | BB61: =IF(TRUNC($AY61/$AI$2)-$AY61/$AI$2 = 0,AK61,"") -> 0.01664135201 | BC61: =IF(TRUNC($AY61/$AI$2)-$AY61/$AI$2 = 0,AL61,"") -> -0.003547796075 | BD61: =IF(TRUNC($AY61/$AI$2)-$AY61/$AI$2 = 0,AM61,"") -> 0.01620491933 | BE61: =IF(TRUNC($AY61/$AI$2)-$AY61/$AI$2 = 0,AN61,"") -> 0.004329381592 | BF61: =IF(TRUNC($AY61/$AI$2)-$AY61/$AI$2 = 0,AO61,"") -> 0.08444922581 | BG61: =IF(TRUNC($AY61/$AI$2)-$AY61/$AI$2 = 0,AP61,"") -> 0.1043149728 | BH61: =IF(TRUNC($AY61/$AI$2)-$AY61/$AI$2 = 0,AQ61,"") -> 0.06428333417 | BI61: =IF(TRUNC($AY61/$AI$2)-$AY61/$AI$2 = 0,AR61,"") -> 0.06575759413 | BJ61: =IF(TRUNC($AY61/$AI$2)-$AY61/$AI$2 = 0,AS61,"") -> 0.04345471933 | BK61: =IF(TRUNC($AY61/$AI$2)-$AY61/$AI$2 = 0,AT61,"") -> 0.04718640072 | BL61: =IF(TRUNC($AY61/$AI$2)-$AY61/$AI$2 = 0,AU61,"") -> 0.03829140567 | BM61: =IF(TRUNC($AY61/$AI$2)-$AY61/$AI$2 = 0,AV61,"") -> 0.02102302583 | BN61: =IF(TRUNC($AY61/$AI$2)-$AY61/$AI$2 = 0,AW61,"") -> 0.04308117576
B62: 2018 | C62: =VLOOKUP($B62,retdat,MATCH(C$13,Data!$A$3:$CC$3,0),0) -> 0.04270353678 | D62: =VLOOKUP($B62,retdat,MATCH(D$13,Data!$A$3:$CC$3,0),0) -> 0.0393 | E62: =VLOOKUP($B62,retdat,MATCH(E$13,Data!$A$3:$CC$3,0),0) -> -0.009338589268 | F62: =VLOOKUP($B62,retdat,MATCH(F$13,Data!$A$3:$CC$3,0),0) -> 0.02366080678 | G62: =VLOOKUP($B62,retdat,MATCH(G$13,Data!$A$3:$CC$3,0),0) -> 0.01892144357 | H62: =VLOOKUP($B62,retdat,MATCH(H$13,Data!$A$3:$CC$3,0),0) -> 0.01939166667 | I62: =VLOOKUP($B62,retdat,MATCH(I$13,Data!$A$3:$CC$3,0),0) -> -0.06440259512 | J62: =VLOOKUP($B62,retdat,MATCH(J$13,Data!$A$3:$CC$3,0),0) -> -0.05794985951 | K62: =VLOOKUP($B62,retdat,MATCH(K$13,Data!$A$3:$CC$3,0),0) -> -0.04128608075 | L62: =VLOOKUP($B62,retdat,MATCH(L$13,Data!$A$3:$CC$3,0),0) -> -0.04014593766 | M62: =VLOOKUP($B62,retdat,MATCH(M$13,Data!$A$3:$CC$3,0),0) -> 0.04048988404 | N62: =VLOOKUP($B62,retdat,MATCH(N$13,Data!$A$3:$CC$3,0),0) -> 0.048 | O62: =VLOOKUP($B62,retdat,MATCH(O$13,Data!$A$3:$CC$3,0),0) -> 0.04539041667 | P62: =VLOOKUP($B62,retdat,MATCH(P$13,Data!$A$3:$CC$3,0),0) -> 0.0291 | Q62: =VLOOKUP($B62,retdat,MATCH(Q$13,Data!$A$3:$CC$3,0),0) -> -0.1759705638 | S62: 0.04002804708 | T62: 0.03779722222 | U62: 0.06260320482 | V62: 0.03036341352 | W62: 0.0201089616 | X62: 0.010625 | Y62: 0.06804923544 | Z62: 0.09724120322 | AA62: 0.04155524624 | AB62: 0.04611219504 | AC62: 0.03876976906 | AD62: 0.046525 | AE62: 0.0405925 | AF62: 0.02360555556 | AG62: 0.0006984543438 | AI62: =GEOMEAN(C133:OFFSET(C133,$AI$2-1,0))-1 -> 0.04000213827 | AJ62: =GEOMEAN(D133:OFFSET(D133,$AI$2-1,0))-1 -> 0.03779663016 | AK62: =GEOMEAN(E133:OFFSET(E133,$AI$2-1,0))-1 -> 0.06123153742 | AL62: =GEOMEAN(F133:OFFSET(F133,$AI$2-1,0))-1 -> 0.03032967948 | AM62: =GEOMEAN(G133:OFFSET(G133,$AI$2-1,0))-1 -> 0.02010860657 | AN62: =GEOMEAN(H133:OFFSET(H133,$AI$2-1,0))-1 -> 0.01060291411 | AO62: =GEOMEAN(I133:OFFSET(I133,$AI$2-1,0))-1 -> 0.06324120177 | AP62: =GEOMEAN(J133:OFFSET(J133,$AI$2-1,0))-1 -> 0.09083263398 | AQ62: =GEOMEAN(K133:OFFSET(K133,$AI$2-1,0))-1 -> 0.03986158933 | AR62: =GEOMEAN(L133:OFFSET(L133,$AI$2-1,0))-1 -> 0.04428195933 | AS62: =GEOMEAN(M133:OFFSET(M133,$AI$2-1,0))-1 -> 0.03875092855 | AT62: =GEOMEAN(N133:OFFSET(N133,$AI$2-1,0))-1 -> 0.04652386646 | AU62: =GEOMEAN(O133:OFFSET(O133,$AI$2-1,0))-1 -> 0.04058602984 | AV62: =GEOMEAN(P133:OFFSET(P133,$AI$2-1,0))-1 -> 0.02359624364 | AW62: =GEOMEAN(Q133:OFFSET(Q133,$AI$2-1,0))-1 -> -0.01089224407 | AY62: 49 | AZ62: =IF(TRUNC($AY62/$AI$2)-$AY62/$AI$2 = 0,AI62,"") ->  | BA62: =IF(TRUNC($AY62/$AI$2)-$AY62/$AI$2 = 0,AJ62,"") ->  | BB62: =IF(TRUNC($AY62/$AI$2)-$AY62/$AI$2 = 0,AK62,"") ->  | BC62: =IF(TRUNC($AY62/$AI$2)-$AY62/$AI$2 = 0,AL62,"") ->  | BD62: =IF(TRUNC($AY62/$AI$2)-$AY62/$AI$2 = 0,AM62,"") ->  | BE62: =IF(TRUNC($AY62/$AI$2)-$AY62/$AI$2 = 0,AN62,"") ->  | BF62: =IF(TRUNC($AY62/$AI$2)-$AY62/$AI$2 = 0,AO62,"") ->  | BG62: =IF(TRUNC($AY62/$AI$2)-$AY62/$AI$2 = 0,AP62,"") ->  | BH62: =IF(TRUNC($AY62/$AI$2)-$AY62/$AI$2 = 0,AQ62,"") ->  | BI62: =IF(TRUNC($AY62/$AI$2)-$AY62/$AI$2 = 0,AR62,"") ->  | BJ62: =IF(TRUNC($AY62/$AI$2)-$AY62/$AI$2 = 0,AS62,"") ->  | BK62: =IF(TRUNC($AY62/$AI$2)-$AY62/$AI$2 = 0,AT62,"") ->  | BL62: =IF(TRUNC($AY62/$AI$2)-$AY62/$AI$2 = 0,AU62,"") ->  | BM62: =IF(TRUNC($AY62/$AI$2)-$AY62/$AI$2 = 0,AV62,"") ->  | BN62: =IF(TRUNC($AY62/$AI$2)-$AY62/$AI$2 = 0,AW62,"") -> 
B63: 2019 | C63: =VLOOKUP($B63,retdat,MATCH(C$13,Data!$A$3:$CC$3,0),0) -> 0.04434696988 | D63: =VLOOKUP($B63,retdat,MATCH(D$13,Data!$A$3:$CC$3,0),0) -> 0.033875 | E63: =VLOOKUP($B63,retdat,MATCH(E$13,Data!$A$3:$CC$3,0),0) -> 0.1691718862 | F63: =VLOOKUP($B63,retdat,MATCH(F$13,Data!$A$3:$CC$3,0),0) -> -0.01000008333 | G63: =VLOOKUP($B63,retdat,MATCH(G$13,Data!$A$3:$CC$3,0),0) -> 0.02259411707 | H63: =VLOOKUP($B63,retdat,MATCH(H$13,Data!$A$3:$CC$3,0),0) -> 0.02060833333 | I63: =VLOOKUP($B63,retdat,MATCH(I$13,Data!$A$3:$CC$3,0),0) -> 0.2536965791 | J63: =VLOOKUP($B63,retdat,MATCH(J$13,Data!$A$3:$CC$3,0),0) -> 0.2016206836 | K63: =VLOOKUP($B63,retdat,MATCH(K$13,Data!$A$3:$CC$3,0),0) -> 0.252025406 | L63: =VLOOKUP($B63,retdat,MATCH(L$13,Data!$A$3:$CC$3,0),0) -> 0.2484814029 | M63: =VLOOKUP($B63,retdat,MATCH(M$13,Data!$A$3:$CC$3,0),0) -> 0.04388369422 | N63: =VLOOKUP($B63,retdat,MATCH(N$13,Data!$A$3:$CC$3,0),0) -> 0.04375 | O63: =VLOOKUP($B63,retdat,MATCH(O$13,Data!$A$3:$CC$3,0),0) -> 0.0393375 | P63: =VLOOKUP($B63,retdat,MATCH(P$13,Data!$A$3:$CC$3,0),0) -> 0.02144166667 | Q63: =VLOOKUP($B63,retdat,MATCH(Q$13,Data!$A$3:$CC$3,0),0) -> -0.1759705638 | S63: =AVERAGE(C61:C63) -> 0.04480569784 | T63: =AVERAGE(D61:D63) -> 0.03686944444 | U63: =AVERAGE(E61:E63) -> 0.09302001813 | V63: =AVERAGE(F61:F63) -> 0.01859986586 | W63: =AVERAGE(G61:G63) -> 0.02079568417 | X63: =AVERAGE(H61:H63) -> 0.01643611111 | Y63: =AVERAGE(I61:I63) -> 0.1222567317 | Z63: =AVERAGE(J61:J63) -> 0.1224868896 | AA63: =AVERAGE(K61:K63) -> 0.09797362019 | AB63: =AVERAGE(L61:L63) -> 0.09906892192 | AC63: =AVERAGE(M61:M63) -> 0.04326443926 | AD63: =AVERAGE(N61:N63) -> 0.04538333333 | AE63: 0.04154597222 | AF63: =AVERAGE(P61:P63) -> 0.02461388889 | AG63: =AVERAGE(Q61:Q63) -> -0.05162931956 | AI63: =GEOMEAN(C134:OFFSET(C134,$AI$2-1,0))-1 -> 0.04480391395 | AJ63: =GEOMEAN(D134:OFFSET(D134,$AI$2-1,0))-1 -> 0.03686700116 | AK63: =GEOMEAN(E134:OFFSET(E134,$AI$2-1,0))-1 -> 0.09037001038 | AL63: =GEOMEAN(F134:OFFSET(F134,$AI$2-1,0))-1 -> 0.01837003046 | AM63: =GEOMEAN(G134:OFFSET(G134,$AI$2-1,0))-1 -> 0.02079458154 | AN63: =GEOMEAN(H134:OFFSET(H134,$AI$2-1,0))-1 -> 0.01642346531 | AO63: =GEOMEAN(I134:OFFSET(I134,$AI$2-1,0))-1 -> 0.1136392531 | AP63: =GEOMEAN(J134:OFFSET(J134,$AI$2-1,0))-1 -> 0.1147635321 | AQ63: =GEOMEAN(K134:OFFSET(K134,$AI$2-1,0))-1 -> 0.09144320355 | AR63: =GEOMEAN(L134:OFFSET(L134,$AI$2-1,0))-1 -> 0.09275116631 | AS63: =GEOMEAN(M134:OFFSET(M134,$AI$2-1,0))-1 -> 0.04326240493 | AT63: =GEOMEAN(N134:OFFSET(N134,$AI$2-1,0))-1 -> 0.04538166351 | AU63: =GEOMEAN(O134:OFFSET(O134,$AI$2-1,0))-1 -> 0.0415424027 | AV63: =GEOMEAN(P134:OFFSET(P134,$AI$2-1,0))-1 -> 0.0246087035 | AW63: =GEOMEAN(Q134:OFFSET(Q134,$AI$2-1,0))-1 -> -0.06674649244 | AY63: 50
B64: 2020 | C64: =VLOOKUP($B64,retdat,MATCH(C$13,Data!$A$3:$CC$3,0),0) -> 0.02883864333 | D64: =VLOOKUP($B64,retdat,MATCH(D$13,Data!$A$3:$CC$3,0),0) -> 0.02476666667 | E64: =VLOOKUP($B64,retdat,MATCH(E$13,Data!$A$3:$CC$3,0),0) -> 0.220055772 | F64: =VLOOKUP($B64,retdat,MATCH(F$13,Data!$A$3:$CC$3,0),0) -> -0.004028202829 | G64: =VLOOKUP($B64,retdat,MATCH(G$13,Data!$A$3:$CC$3,0),0) -> 0.01258710013 | H64: =VLOOKUP($B64,retdat,MATCH(H$13,Data!$A$3:$CC$3,0),0) -> 0.00365 | I64: =VLOOKUP($B64,retdat,MATCH(I$13,Data!$A$3:$CC$3,0),0) -> 0.150649613 | J64: =VLOOKUP($B64,retdat,MATCH(J$13,Data!$A$3:$CC$3,0),0) -> 0.06995983531 | K64: =VLOOKUP($B64,retdat,MATCH(K$13,Data!$A$3:$CC$3,0),0) -> -0.05257379013 | L64: =VLOOKUP($B64,retdat,MATCH(L$13,Data!$A$3:$CC$3,0),0) -> -0.06161633032 | M64: =VLOOKUP($B64,retdat,MATCH(M$13,Data!$A$3:$CC$3,0),0) -> 0.02883507993 | N64: =VLOOKUP($B64,retdat,MATCH(N$13,Data!$A$3:$CC$3,0),0) -> 0.036025 | O64: =VLOOKUP($B64,retdat,MATCH(O$13,Data!$A$3:$CC$3,0),0) -> 0.03113666667 | P64: =VLOOKUP($B64,retdat,MATCH(P$13,Data!$A$3:$CC$3,0),0) -> 0.008941666667 | Q64: =VLOOKUP($B64,retdat,MATCH(Q$13,Data!$A$3:$CC$3,0),0) -> 0.1691946517 | S64: =AVERAGE(C62:C64) -> 0.03862971666 | T64: =AVERAGE(D62:D64) -> 0.03264722222 | U64: =AVERAGE(E62:E64) -> 0.1266296897 | V64: =AVERAGE(F62:F64) -> 0.003210840204 | W64: =AVERAGE(G62:G64) -> 0.01803422026 | X64: =AVERAGE(H62:H64) -> 0.01455 | Y64: =AVERAGE(I62:I64) -> 0.1133145323 | Z64: =AVERAGE(J62:J64) -> 0.07121021981 | AA64: =AVERAGE(K62:K64) -> 0.05272184505 | AB64: =AVERAGE(L62:L64) -> 0.0489063783 | AC64: =AVERAGE(M62:M64) -> 0.0377362194 | AD64: =AVERAGE(N62:N64) -> 0.04259166667 | AE64: 0.03862152778 | AF64: =AVERAGE(P62:P64) -> 0.01982777778 | AG64: =AVERAGE(Q62:Q64) -> -0.06091549198 | AI64: =GEOMEAN(C135:OFFSET(C135,$AI$2-1,0))-1 -> 0.03860635407 | AJ64: =GEOMEAN(D135:OFFSET(D135,$AI$2-1,0))-1 -> 0.03262979185 | AK64: =GEOMEAN(E135:OFFSET(E135,$AI$2-1,0))-1 -> 0.1221763147 | AL64: =GEOMEAN(F135:OFFSET(F135,$AI$2-1,0))-1 -> 0.003104298533 | AM64: =GEOMEAN(G135:OFFSET(G135,$AI$2-1,0))-1 -> 0.01802582259 | AN64: =GEOMEAN(H135:OFFSET(H135,$AI$2-1,0))-1 -> 0.01452049749 | AO64: =GEOMEAN(I135:OFFSET(I135,$AI$2-1,0))-1 -> 0.1051168015 | AP64: =GEOMEAN(J135:OFFSET(J135,$AI$2-1,0))-1 -> 0.06594868066 | AQ64: =GEOMEAN(K135:OFFSET(K135,$AI$2-1,0))-1 -> 0.04379654858 | AR64: =GEOMEAN(L135:OFFSET(L135,$AI$2-1,0))-1 -> 0.0398944062 | AS64: =GEOMEAN(M135:OFFSET(M135,$AI$2-1,0))-1 -> 0.03771616016 | AT64: =GEOMEAN(N135:OFFSET(N135,$AI$2-1,0))-1 -> 0.04257987032 | AU64: =GEOMEAN(O135:OFFSET(O135,$AI$2-1,0))-1 -> 0.03860509172 | AV64: =GEOMEAN(P135:OFFSET(P135,$AI$2-1,0))-1 -> 0.01979388112 | AW64: =GEOMEAN(Q135:OFFSET(Q135,$AI$2-1,0))-1 -> -0.0740431319 | AY64: 51 | AZ64: =IF(TRUNC($AY64/$AI$2)-$AY64/$AI$2 = 0,AI64,"") -> 0.03860635407 | BA64: =IF(TRUNC($AY64/$AI$2)-$AY64/$AI$2 = 0,AJ64,"") -> 0.03262979185 | BB64: =IF(TRUNC($AY64/$AI$2)-$AY64/$AI$2 = 0,AK64,"") -> 0.1221763147 | BC64: =IF(TRUNC($AY64/$AI$2)-$AY64/$AI$2 = 0,AL64,"") -> 0.003104298533 | BD64: =IF(TRUNC($AY64/$AI$2)-$AY64/$AI$2 = 0,AM64,"") -> 0.01802582259 | BE64: =IF(TRUNC($AY64/$AI$2)-$AY64/$AI$2 = 0,AN64,"") -> 0.01452049749 | BF64: =IF(TRUNC($AY64/$AI$2)-$AY64/$AI$2 = 0,AO64,"") -> 0.1051168015 | BG64: =IF(TRUNC($AY64/$AI$2)-$AY64/$AI$2 = 0,AP64,"") -> 0.06594868066 | BH64: =IF(TRUNC($AY64/$AI$2)-$AY64/$AI$2 = 0,AQ64,"") -> 0.04379654858 | BI64: =IF(TRUNC($AY64/$AI$2)-$AY64/$AI$2 = 0,AR64,"") -> 0.0398944062 | BJ64: =IF(TRUNC($AY64/$AI$2)-$AY64/$AI$2 = 0,AS64,"") -> 0.03771616016 | BK64: =IF(TRUNC($AY64/$AI$2)-$AY64/$AI$2 = 0,AT64,"") -> 0.04257987032 | BL64: =IF(TRUNC($AY64/$AI$2)-$AY64/$AI$2 = 0,AU64,"") -> 0.03860509172 | BM64: =IF(TRUNC($AY64/$AI$2)-$AY64/$AI$2 = 0,AV64,"") -> 0.01979388112 | BN64: =IF(TRUNC($AY64/$AI$2)-$AY64/$AI$2 = 0,AW64,"") -> -0.0740431319
C66: =C13 -> US Ag 32 States | D66: AAA | E66: Gold | F66: PPI | G66: CPI | H66: TBSM3M | I66: S&P500 | J66: Dow Jones | K66: Equity REITS | L66: Composite REITS | M66: US Ave Farm (all) | N66: BAA | O66: Mort30F | P66: TCM10Y | Q66: EAFE | S66: =S13 -> US Ag 32 States | T66: AAA | U66: Gold | V66: PPI | W66: CPI | X66: TBSM3M | Y66: S&P500 | Z66: Dow Jones | AA66: Equity REITS | AB66: Composite REITS | AC66: US Ave Farm (all) | AD66: BAA | AE66: Mort30F | AF66: TCM10Y | AG66: EAFE | AI66: ="Rolling overlap " &AI2&" year holding periods" -> Rolling overlap 3 year holding periods | AZ66: =AZ12 -> Nonoverlapping 3 year holding periods
B67: =TRANSPOSE(C66:Q66) -> US Ag 32 States | C67: =CORREL($C$14:$C$64,C14:C64) -> 1 | D67: =CORREL($C$14:$C$64,D14:D64) -> 0.1512856522 | E67: =CORREL($C$14:$C$64,E14:E64) -> 0.2485935531 | F67: =CORREL($C$14:$C$64,F14:F64) -> 0.6085373208 | G67: =CORREL($C$14:$C$64,G14:G64) -> 0.6627441123 | H67: =CORREL($C$14:$C$64,H14:H64) -> 0.3276275476 | I67: =CORREL($C$14:$C$64,I14:I64) -> -0.2684549331 | J67: =CORREL($C$14:$C$64,J14:J64) -> -0.3418469751 | K67: =CORREL($C$14:$C$64,K14:K64) -> -0.06822848089 | L67: =CORREL($C$14:$C$64,L14:L64) -> -0.1211429816 | M67: =CORREL($C$14:$C$64,M14:M64) -> 0.9934071528 | N67: =CORREL($C$14:$C$64,N14:N64) -> 0.1214457154 | O67: =CORREL($C$14:$C$64,O14:O64) -> 0.1427914475 | P67: =CORREL($C$14:$C$64,P14:P64) -> 0.2031931378 | Q67: =CORREL($C$14:$C$64,Q14:Q64) -> -0.2114944822 | R67: =TRANSPOSE(S66:AG66) -> US Ag 32 States | S67: =CORREL($S$14:$S$64,S14:S64) -> 1 | T67: =CORREL($S$14:$S$64,T14:T64) -> 0.1299256052 | U67: =CORREL($S$14:$S$64,U14:U64) -> 0.441737482 | V67: =CORREL($S$14:$S$64,V14:V64) -> 0.762570566 | W67: =CORREL($S$14:$S$64,W14:W64) -> 0.7179724904 | X67: =CORREL($S$14:$S$64,X14:X64) -> 0.2935757362 | Y67: =CORREL($S$14:$S$64,Y14:Y64) -> -0.2828856139 | Z67: =CORREL($S$14:$S$64,Z14:Z64) -> -0.4284401267 | AA67: =CORREL($S$14:$S$64,AA14:AA64) -> 0.01163979847 | AB67: =CORREL($S$14:$S$64,AB14:AB64) -> -0.05106283078 | AC67: =CORREL($S$14:$S$64,AC14:AC64) -> 0.9954129323 | AD67: =CORREL($S$14:$S$64,AD14:AD64) -> 0.1107906848 | AE67: =CORREL($S$14:$S$64,AE14:AE64) -> 0.1272261996 | AF67: =CORREL($S$14:$S$64,AF14:AF64) -> 0.1798902239 | AG67: =CORREL($S$14:$S$64,AG14:AG64) -> -0.1717039293 | AI67: =AI13 -> US Ag 32 States | AJ67: AAA | AK67: Gold | AL67: PPI | AM67: CPI | AN67: TBSM3M | AO67: S&P500 | AP67: Dow Jones | AQ67: Equity REITS | AR67: Composite REITS | AS67: US Ave Farm (all) | AT67: BAA | AU67: Mort30F | AV67: TCM10Y | AW67: EAFE | AZ67: =AZ13 -> US Ag 32 States | BA67: =BA13 -> AAA | BB67: Gold | BC67: PPI | BD67: CPI | BE67: TBSM3M | BF67: S&P500 | BG67: Dow Jones | BH67: Equity REITS | BI67: Composite REITS | BJ67: US Ave Farm (all) | BK67: BAA | BL67: Mort30F | BM67: TCM10Y | BN67: EAFE
B68: AAA | D68: =CORREL($D$14:$D$64,D14:D64) -> 1 | E68: =CORREL($D$14:$D$64,E14:E64) -> -0.1505580811 | F68: =CORREL($D$14:$D$64,F14:F64) -> 0.2170962844 | G68: =CORREL($D$14:$D$64,G14:G64) -> 0.556286035 | H68: =CORREL($D$14:$D$64,H14:H64) -> 0.9193896903 | I68: =CORREL($D$14:$D$64,I14:I64) -> -0.01388667766 | J68: =CORREL($D$14:$D$64,J14:J64) -> 0.002831434215 | K68: =CORREL($D$14:$D$64,K14:K64) -> 0.1381197944 | L68: =CORREL($D$14:$D$64,L14:L64) -> 0.08843529363 | M68: =CORREL($D$14:$D$64,M14:M64) -> 0.1664131287 | N68: =CORREL($D$14:$D$64,N14:N64) -> 0.9932481489 | O68: =CORREL($D$14:$D$64,O14:O64) -> 0.9264729883 | P68: =CORREL($D$14:$D$64,P14:P64) -> 0.9932202643 | Q68: =CORREL($D$14:$D$64,Q14:Q64) -> 0.1185069562 | R68: AAA | T68: =CORREL($T$14:$T$64,T14:T64) -> 1 | U68: =CORREL($T$14:$T$64,U14:U64) -> -0.101805914 | V68: =CORREL($T$14:$T$64,V14:V64) -> 0.266557775 | W68: =CORREL($T$14:$T$64,W14:W64) -> 0.6165270669 | X68: =CORREL($T$14:$T$64,X14:X64) -> 0.9471421246 | Y68: =CORREL($T$14:$T$64,Y14:Y64) -> 0.07378367637 | Z68: =CORREL($T$14:$T$64,Z14:Z64) -> 0.07078251649 | AA68: =CORREL($T$14:$T$64,AA14:AA64) -> 0.2587335153 | AB68: =CORREL($T$14:$T$64,AB14:AB64) -> 0.1611586523 | AC68: =CORREL($T$14:$T$64,AC14:AC64) -> 0.1507781636 | AD68: =CORREL($T$14:$T$64,AD14:AD64) -> 0.995431768 | AE68: =CORREL($T$14:$T$64,AE14:AE64) -> 0.9851606243 | AF68: =CORREL($T$14:$T$64,AF14:AF64) -> 0.9951899537 | AG68: =CORREL($T$14:$T$64,AG14:AG64) -> 0.3367386554 | AH68: =TRANSPOSE(AI67:AW67) -> US Ag 32 States | AI68: =CORREL($AI$14:$AI$64,AI14:AI64) -> 1 | AJ68: =CORREL($AI$14:$AI$64,AJ14:AJ64) -> 0.125556404 | AK68: =CORREL($AI$14:$AI$64,AK14:AK64) -> 0.3797075987 | AL68: =CORREL($AI$14:$AI$64,AL14:AL64) -> 0.7580859288 | AM68: =CORREL($AI$14:$AI$64,AM14:AM64) -> 0.7148816254 | AN68: =CORREL($AI$14:$AI$64,AN14:AN64) -> 0.2894178114 | AO68: =CORREL($AI$14:$AI$64,AO14:AO64) -> -0.2820718227 | AP68: =CORREL($AI$14:$AI$64,AP14:AP64) -> -0.4295342289 | AQ68: =CORREL($AI$14:$AI$64,AQ14:AQ64) -> 0.003070708688 | AR68: =CORREL($AI$14:$AI$64,AR14:AR64) -> -0.1080388058 | AS68: =CORREL($AI$14:$AI$64,AS14:AS64) -> 0.9954434022 | AT68: =CORREL($AI$14:$AI$64,AT14:AT64) -> 0.1058840296 | AU68: =CORREL($AI$14:$AI$64,AU14:AU64) -> 0.122475465 | AV68: =CORREL($AI$14:$AI$64,AV14:AV64) -> 0.175861324 | AW68: =CORREL($AI$14:$AI$64,AW14:AW64) -> -0.1540619784 | AZ68: =CORREL($AZ$14:$AZ$64,AZ14:AZ64) -> 1 | BA68: =CORREL($AZ$14:$AZ$64,BA14:BA64) -> 0.1932414604 | BB68: =CORREL($AZ$14:$AZ$64,BB14:BB64) -> 0.178998441 | BC68: =CORREL($AZ$14:$AZ$64,BC14:BC64) -> 0.7415567118 | BD68: =CORREL($AZ$14:$AZ$64,BD14:BD64) -> 0.7119624463 | BE68: =CORREL($AZ$14:$AZ$64,BE14:BE64) -> 0.3569535922 | BF68: =CORREL($AZ$14:$AZ$64,BF14:BF64) -> -0.4021007493 | BG68: =CORREL($AZ$14:$AZ$64,BG14:BG64) -> -0.5543942139 | BH68: =CORREL($AZ$14:$AZ$64,BH14:BH64) -> -0.1035890731 | BI68: =CORREL($AZ$14:$AZ$64,BI14:BI64) -> -0.1897318172 | BJ68: =CORREL($AZ$14:$AZ$64,BJ14:BJ64) -> 0.9964564965 | BK68: =CORREL($AZ$14:$AZ$64,BK14:BK64) -> 0.1732821754 | BL68: =CORREL($AZ$14:$AZ$64,BL14:BL64) -> 0.1738328632 | BM68: =CORREL($AZ$14:$AZ$64,BM14:BM64) -> 0.2403665817 | BN68: =CORREL($AZ$14:$AZ$64,BN14:BN64) -> -0.3185194862
B69: Gold | E69: =CORREL($E$14:$E$64,E14:E64) -> 1 | F69: =CORREL($E$14:$E$64,F14:F64) -> 0.5593460901 | G69: =CORREL($E$14:$E$64,G14:G64) -> 0.3878420904 | H69: =CORREL($E$14:$E$64,H14:H64) -> -0.01233528197 | I69: =CORREL($E$14:$E$64,I14:I64) -> -0.2110737399 | J69: =CORREL($E$14:$E$64,J14:J64) -> -0.2548594901 | K69: =CORREL($E$14:$E$64,K14:K64) -> -0.09327243115 | L69: =CORREL($E$14:$E$64,L14:L64) -> -0.2021771689 | M69: =CORREL($E$14:$E$64,M14:M64) -> 0.2737983013 | N69: =CORREL($E$14:$E$64,N14:N64) -> -0.1538745923 | O69: =CORREL($E$14:$E$64,O14:O64) -> -0.1097840158 | P69: =CORREL($E$14:$E$64,P14:P64) -> -0.1204614639 | Q69: =CORREL($E$14:$E$64,Q14:Q64) -> -0.00984658208 | R69: Gold | U69: =CORREL($U$14:$U$64,U14:U64) -> 1 | V69: =CORREL($U$14:$U$64,V14:V64) -> 0.7249007739 | W69: =CORREL($U$14:$U$64,W14:W64) -> 0.4811004662 | X69: =CORREL($U$14:$U$64,X14:X64) -> 0.02516158588 | Y69: =CORREL($U$14:$U$64,Y14:Y64) -> -0.5237827801 | Z69: =CORREL($U$14:$U$64,Z14:Z64) -> -0.646066566 | AA69: =CORREL($U$14:$U$64,AA14:AA64) -> -0.2297202722 | AB69: =CORREL($U$14:$U$64,AB14:AB64) -> -0.3287086932 | AC69: =CORREL($U$14:$U$64,AC14:AC64) -> 0.4605930866 | AD69: =CORREL($U$14:$U$64,AD14:AD64) -> -0.09442990908 | AE69: =CORREL($U$14:$U$64,AE14:AE64) -> -0.09777523985 | AF69: =CORREL($U$14:$U$64,AF14:AF64) -> -0.06469269437 | AG69: =CORREL($U$14:$U$64,AG14:AG64) -> -0.004599107945 | AH69: AAA | AJ69: =CORREL($AJ$14:$AJ$64,AJ14:AJ64) -> 1 | AK69: =CORREL($AJ$14:$AJ$64,AK14:AK64) -> -0.1646974525 | AL69: =CORREL($AJ$14:$AJ$64,AL14:AL64) -> 0.26835898 | AM69: =CORREL($AJ$14:$AJ$64,AM14:AM64) -> 0.6163077327 | AN69: =CORREL($AJ$14:$AJ$64,AN14:AN64) -> 0.9471284933 | AO69: =CORREL($AJ$14:$AJ$64,AO14:AO64) -> 0.08241444542 | AP69: =CORREL($AJ$14:$AJ$64,AP14:AP64) -> 0.06989131419 | AQ69: =CORREL($AJ$14:$AJ$64,AQ14:AQ64) -> 0.2619287736 | AR69: =CORREL($AJ$14:$AJ$64,AR14:AR64) -> 0.1512375327 | AS69: =CORREL($AJ$14:$AJ$64,AS14:AS64) -> 0.1466614483 | AT69: =CORREL($AJ$14:$AJ$64,AT14:AT64) -> 0.9954386527 | AU69: =CORREL($AJ$14:$AJ$64,AU14:AU64) -> 0.9847729079 | AV69: =CORREL($AJ$14:$AJ$64,AV14:AV64) -> 0.9951803374 | AW69: =CORREL($AJ$14:$AJ$64,AW14:AW64) -> 0.3386555247 | BA69: =CORREL($BA$14:$BA$64,BA14:BA64) -> 1 | BB69: =CORREL($BA$14:$BA$64,BB14:BB64) -> -0.1602586457 | BC69: =CORREL($BA$14:$BA$64,BC14:BC64) -> 0.3418004615 | BD69: =CORREL($BA$14:$BA$64,BD14:BD64) -> 0.6303164015 | BE69: =CORREL($BA$14:$BA$64,BE14:BE64) -> 0.9437120793 | BF69: =CORREL($BA$14:$BA$64,BF14:BF64) -> -0.01713380795 | BG69: =CORREL($BA$14:$BA$64,BG14:BG64) -> -0.01035010924 | BH69: =CORREL($BA$14:$BA$64,BH14:BH64) -> 0.2220751138 | BI69: =CORREL($BA$14:$BA$64,BI14:BI64) -> 0.1224643249 | BJ69: =CORREL($BA$14:$BA$64,BJ14:BJ64) -> 0.215584116 | BK69: =CORREL($BA$14:$BA$64,BK14:BK64) -> 0.996581926 | BL69: =CORREL($BA$14:$BA$64,BL14:BL64) -> 0.9654923429 | BM69: =CORREL($BA$14:$BA$64,BM14:BM64) -> 0.9957041241 | BN69: =CORREL($BA$14:$BA$64,BN14:BN64) -> 0.2367486792
B70: PPI | F70: =CORREL($F$14:$F$64,F14:F64) -> 1 | G70: =CORREL($F$14:$F$64,G14:G64) -> 0.785420593 | H70: =CORREL($F$14:$F$64,H14:H64) -> 0.3617466651 | I70: =CORREL($F$14:$F$64,I14:I64) -> -0.192383419 | J70: =CORREL($F$14:$F$64,J14:J64) -> -0.2385562795 | K70: =CORREL($F$14:$F$64,K14:K64) -> -0.04723397459 | L70: =CORREL($F$14:$F$64,L14:L64) -> -0.1822679265 | M70: =CORREL($F$14:$F$64,M14:M64) -> 0.6204368558 | N70: =CORREL($F$14:$F$64,N14:N64) -> 0.1965280487 | O70: =CORREL($F$14:$F$64,O14:O64) -> 0.2297227068 | P70: =CORREL($F$14:$F$64,P14:P64) -> 0.2610870308 | Q70: =CORREL($F$14:$F$64,Q14:Q64) -> -0.01138661821 | R70: PPI | V70: =CORREL($V$14:$V$64,V14:V64) -> 1 | W70: =CORREL($V$14:$V$64,W14:W64) -> 0.8301614838 | X70: =CORREL($V$14:$V$64,X14:X64) -> 0.4075470876 | Y70: =CORREL($V$14:$V$64,Y14:Y64) -> -0.3522210941 | Z70: =CORREL($V$14:$V$64,Z14:Z64) -> -0.483477768 | AA70: =CORREL($V$14:$V$64,AA14:AA64) -> -0.04251549928 | AB70: =CORREL($V$14:$V$64,AB14:AB64) -> -0.1714902737 | AC70: =CORREL($V$14:$V$64,AC14:AC64) -> 0.7735832104 | AD70: =CORREL($V$14:$V$64,AD14:AD64) -> 0.2674576341 | AE70: =CORREL($V$14:$V$64,AE14:AE64) -> 0.273592024 | AF70: =CORREL($V$14:$V$64,AF14:AF64) -> 0.3102085845 | AG70: =CORREL($V$14:$V$64,AG14:AG64) -> -0.002148466428 | AH70: Gold | AK70: =CORREL($AK$14:$AK$64,AK14:AK64) -> 1 | AL70: =CORREL($AK$14:$AK$64,AL14:AL64) -> 0.6629965316 | AM70: =CORREL($AK$14:$AK$64,AM14:AM64) -> 0.3856332151 | AN70: =CORREL($AK$14:$AK$64,AN14:AN64) -> -0.0492806208 | AO70: =CORREL($AK$14:$AK$64,AO14:AO64) -> -0.5152043095 | AP70: =CORREL($AK$14:$AK$64,AP14:AP64) -> -0.614499657 | AQ70: =CORREL($AK$14:$AK$64,AQ14:AQ64) -> -0.2516116102 | AR70: =CORREL($AK$14:$AK$64,AR14:AR64) -> -0.3523884885 | AS70: =CORREL($AK$14:$AK$64,AS14:AS64) -> 0.4000189337 | AT70: =CORREL($AK$14:$AK$64,AT14:AT64) -> -0.1600177698 | AU70: =CORREL($AK$14:$AK$64,AU14:AU64) -> -0.1644172172 | AV70: =CORREL($AK$14:$AK$64,AV14:AV64) -> -0.1291787601 | AW70: =CORREL($AK$14:$AK$64,AW14:AW64) -> -0.05178469018 | BB70: =CORREL($BB$14:$BB$64,BB14:BB64) -> 1 | BC70: =CORREL($BB$14:$BB$64,BC14:BC64) -> 0.4835210033 | BD70: =CORREL($BB$14:$BB$64,BD14:BD64) -> 0.2714368164 | BE70: =CORREL($BB$14:$BB$64,BE14:BE64) -> -0.09264691747 | BF70: =CORREL($BB$14:$BB$64,BF14:BF64) -> -0.4689315429 | BG70: =CORREL($BB$14:$BB$64,BG14:BG64) -> -0.5007005312 | BH70: =CORREL($BB$14:$BB$64,BH14:BH64) -> -0.1976807474 | BI70: =CORREL($BB$14:$BB$64,BI14:BI64) -> -0.2536854234 | BJ70: =CORREL($BB$14:$BB$64,BJ14:BJ64) -> 0.2014797682 | BK70: =CORREL($BB$14:$BB$64,BK14:BK64) -> -0.1299760619 | BL70: =CORREL($BB$14:$BB$64,BL14:BL64) -> -0.210930925 | BM70: =CORREL($BB$14:$BB$64,BM14:BM64) -> -0.1379843857 | BN70: =CORREL($BB$14:$BB$64,BN14:BN64) -> -0.05461301782
B71: CPI | G71: =CORREL($G$14:$G$64,G14:G64) -> 1 | H71: =CORREL($G$14:$G$64,H14:H64) -> 0.7140108782 | I71: =CORREL($G$14:$G$64,I14:I64) -> -0.1691129466 | J71: =CORREL($G$14:$G$64,J14:J64) -> -0.2385669845 | K71: =CORREL($G$14:$G$64,K14:K64) -> -0.01058704842 | L71: =CORREL($G$14:$G$64,L14:L64) -> -0.1305492346 | M71: =CORREL($G$14:$G$64,M14:M64) -> 0.6704039261 | N71: =CORREL($G$14:$G$64,N14:N64) -> 0.5410966593 | O71: =CORREL($G$14:$G$64,O14:O64) -> 0.5171065734 | P71: =CORREL($G$14:$G$64,P14:P64) -> 0.6024963271 | Q71: =CORREL($G$14:$G$64,Q14:Q64) -> -0.04292743702 | R71: CPI | W71: =CORREL($W$14:$W$64,W14:W64) -> 1 | X71: =CORREL($W$14:$W$64,X14:X64) -> 0.7452514651 | Y71: =CORREL($W$14:$W$64,Y14:Y64) -> -0.1811336033 | Z71: =CORREL($W$14:$W$64,Z14:Z64) -> -0.333961561 | AA71: =CORREL($W$14:$W$64,AA14:AA64) -> 0.1025319636 | AB71: =CORREL($W$14:$W$64,AB14:AB64) -> -0.03021798135 | AC71: =CORREL($W$14:$W$64,AC14:AC64) -> 0.7260307962 | AD71: =CORREL($W$14:$W$64,AD14:AD64) -> 0.6141438113 | AE71: =CORREL($W$14:$W$64,AE14:AE64) -> 0.6284106146 | AF71: =CORREL($W$14:$W$64,AF14:AF64) -> 0.6589886032 | AG71: =CORREL($W$14:$W$64,AG14:AG64) -> 0.08429481084 | AH71: PPI | AL71: =CORREL($AL$14:$AL$64,AL14:AL64) -> 1 | AM71: =CORREL($AL$14:$AL$64,AM14:AM64) -> 0.8299469457 | AN71: =CORREL($AL$14:$AL$64,AN14:AN64) -> 0.408716438 | AO71: =CORREL($AL$14:$AL$64,AO14:AO64) -> -0.3424667188 | AP71: =CORREL($AL$14:$AL$64,AP14:AP64) -> -0.4755145016 | AQ71: =CORREL($AL$14:$AL$64,AQ14:AQ64) -> -0.03183159978 | AR71: =CORREL($AL$14:$AL$64,AR14:AR64) -> -0.2081135902 | AS71: =CORREL($AL$14:$AL$64,AS14:AS64) -> 0.7694445048 | AT71: =CORREL($AL$14:$AL$64,AT14:AT64) -> 0.2688331013 | AU71: =CORREL($AL$14:$AL$64,AU14:AU64) -> 0.2751555976 | AV71: =CORREL($AL$14:$AL$64,AV14:AV64) -> 0.3126585912 | AW71: =CORREL($AL$14:$AL$64,AW14:AW64) -> 0.0004675237573 | BC71: =CORREL($BC$14:$BC$64,BC14:BC64) -> 1 | BD71: =CORREL($BC$14:$BC$64,BD14:BD64) -> 0.85353049 | BE71: =CORREL($BC$14:$BC$64,BE14:BE64) -> 0.4504133522 | BF71: =CORREL($BC$14:$BC$64,BF14:BF64) -> -0.3215684969 | BG71: =CORREL($BC$14:$BC$64,BG14:BG64) -> -0.4422850858 | BH71: =CORREL($BC$14:$BC$64,BH14:BH64) -> 0.02727027448 | BI71: =CORREL($BC$14:$BC$64,BI14:BI64) -> -0.136788798 | BJ71: =CORREL($BC$14:$BC$64,BJ14:BJ64) -> 0.7495695315 | BK71: =CORREL($BC$14:$BC$64,BK14:BK64) -> 0.3510485523 | BL71: =CORREL($BC$14:$BC$64,BL14:BL64) -> 0.3240625033 | BM71: =CORREL($BC$14:$BC$64,BM14:BM64) -> 0.3756602942 | BN71: =CORREL($BC$14:$BC$64,BN14:BN64) -> -0.08924671221
B72: TBSM3M | H72: =CORREL($H$14:$H$64,H14:H64) -> 1 | I72: =CORREL($H$14:$H$64,I14:I64) -> -0.0259696859 | J72: =CORREL($H$14:$H$64,J14:J64) -> -0.03946806663 | K72: =CORREL($H$14:$H$64,K14:K64) -> 0.04206657126 | L72: =CORREL($H$14:$H$64,L14:L64) -> -0.02420741233 | M72: =CORREL($H$14:$H$64,M14:M64) -> 0.343877707 | N72: =CORREL($H$14:$H$64,N14:N64) -> 0.8995727663 | O72: =CORREL($H$14:$H$64,O14:O64) -> 0.8640383568 | P72: =CORREL($H$14:$H$64,P14:P64) -> 0.9443589125 | Q72: =CORREL($H$14:$H$64,Q14:Q64) -> 0.05538907093 | R72: TBSM3M | X72: =CORREL($X$14:$X$64,X14:X64) -> 1 | Y72: =CORREL($X$14:$X$64,Y14:Y64) -> 0.0682691798 | Z72: =CORREL($X$14:$X$64,Z14:Z64) -> 0.02222050893 | AA72: =CORREL($X$14:$X$64,AA14:AA64) -> 0.1470696198 | AB72: =CORREL($X$14:$X$64,AB14:AB64) -> 0.04893351466 | AC72: =CORREL($X$14:$X$64,AC14:AC64) -> 0.3165334067 | AD72: =CORREL($X$14:$X$64,AD14:AD64) -> 0.9349886568 | AE72: =CORREL($X$14:$X$64,AE14:AE64) -> 0.9511552017 | AF72: =CORREL($X$14:$X$64,AF14:AF64) -> 0.965498975 | AG72: =CORREL($X$14:$X$64,AG14:AG64) -> 0.2739024207 | AH72: CPI | AM72: =CORREL($AM$14:$AM$64,AM14:AM64) -> 1 | AN72: =CORREL($AM$14:$AM$64,AN14:AN64) -> 0.7449989639 | AO72: =CORREL($AM$14:$AM$64,AO14:AO64) -> -0.1749907493 | AP72: =CORREL($AM$14:$AM$64,AP14:AP64) -> -0.329858153 | AQ72: =CORREL($AM$14:$AM$64,AQ14:AQ64) -> 0.1083441138 | AR72: =CORREL($AM$14:$AM$64,AR14:AR64) -> -0.06743112916 | AS72: =CORREL($AM$14:$AM$64,AS14:AS64) -> 0.7232514266 | AT72: =CORREL($AM$14:$AM$64,AT14:AT64) -> 0.6136864037 | AU72: =CORREL($AM$14:$AM$64,AU14:AU64) -> 0.6278675792 | AV72: =CORREL($AM$14:$AM$64,AV14:AV64) -> 0.6590106156 | AW72: =CORREL($AM$14:$AM$64,AW14:AW64) -> 0.09718429325 | BD72: =CORREL($BD$14:$BD$64,BD14:BD64) -> 1 | BE72: =CORREL($BD$14:$BD$64,BE14:BE64) -> 0.7621768363 | BF72: =CORREL($BD$14:$BD$64,BF14:BF64) -> -0.2675459909 | BG72: =CORREL($BD$14:$BD$64,BG14:BG64) -> -0.3950825124 | BH72: =CORREL($BD$14:$BD$64,BH14:BH64) -> 0.03408558081 | BI72: =CORREL($BD$14:$BD$64,BI14:BI64) -> -0.1167889496 | BJ72: =CORREL($BD$14:$BD$64,BJ14:BJ64) -> 0.722337992 | BK72: =CORREL($BD$14:$BD$64,BK14:BK64) -> 0.6348393577 | BL72: =CORREL($BD$14:$BD$64,BL14:BL64) -> 0.6280281469 | BM72: =CORREL($BD$14:$BD$64,BM14:BM64) -> 0.6669364325 | BN72: =CORREL($BD$14:$BD$64,BN14:BN64) -> -0.03625929388
B73: S&P500 | I73: =CORREL($I$14:$I$64,I14:I64) -> 1 | J73: =CORREL($I$14:$I$64,J14:J64) -> 0.9600818199 | K73: =CORREL($I$14:$I$64,K14:K64) -> 0.5828782859 | L73: =CORREL($I$14:$I$64,L14:L64) -> 0.6113572503 | M73: =CORREL($I$14:$I$64,M14:M64) -> -0.263294051 | N73: =CORREL($I$14:$I$64,N14:N64) -> -0.02033080497 | O73: =CORREL($I$14:$I$64,O14:O64) -> 0.00703247043 | P73: =CORREL($I$14:$I$64,P14:P64) -> 0.002327907722 | Q73: =CORREL($I$14:$I$64,Q14:Q64) -> 0.68918666 | R73: S&P500 | Y73: =CORREL($Y$14:$Y$64,Y14:Y64) -> 1 | Z73: =CORREL($Y$14:$Y$64,Z14:Z64) -> 0.9467276543 | AA73: =CORREL($Y$14:$Y$64,AA14:AA64) -> 0.407535633 | AB73: =CORREL($Y$14:$Y$64,AB14:AB64) -> 0.4186800357 | AC73: =CORREL($Y$14:$Y$64,AC14:AC64) -> -0.2850630202 | AD73: =CORREL($Y$14:$Y$64,AD14:AD64) -> 0.04554339585 | AE73: =CORREL($Y$14:$Y$64,AE14:AE64) -> 0.07837116005 | AF73: =CORREL($Y$14:$Y$64,AF14:AF64) -> 0.09388997701 | AG73: =CORREL($Y$14:$Y$64,AG14:AG64) -> 0.5284204744 | AH73: TBSM3M | AN73: =CORREL($AN$14:$AN$64,AN14:AN64) -> 1 | AO73: =CORREL($AN$14:$AN$64,AO14:AO64) -> 0.07789272443 | AP73: =CORREL($AN$14:$AN$64,AP14:AP64) -> 0.02474470873 | AQ73: =CORREL($AN$14:$AN$64,AQ14:AQ64) -> 0.1563205802 | AR73: =CORREL($AN$14:$AN$64,AR14:AR64) -> 0.04166976137 | AS73: =CORREL($AN$14:$AN$64,AS14:AS64) -> 0.3125993127 | AT73: =CORREL($AN$14:$AN$64,AT14:AT64) -> 0.934930535 | AU73: =CORREL($AN$14:$AN$64,AU14:AU64) -> 0.9507407277 | AV73: =CORREL($AN$14:$AN$64,AV14:AV64) -> 0.9655331042 | AW73: =CORREL($AN$14:$AN$64,AW14:AW64) -> 0.2846390971 | BE73: =CORREL($BE$14:$BE$64,BE14:BE64) -> 1 | BF73: =CORREL($BE$14:$BE$64,BF14:BF64) -> -0.08911196012 | BG73: =CORREL($BE$14:$BE$64,BG14:BG64) -> -0.1237094827 | BH73: =CORREL($BE$14:$BE$64,BH14:BH64) -> 0.02971987878 | BI73: =CORREL($BE$14:$BE$64,BI14:BI64) -> -0.05609403497 | BJ73: =CORREL($BE$14:$BE$64,BJ14:BJ64) -> 0.3812706378 | BK73: =CORREL($BE$14:$BE$64,BK14:BK64) -> 0.9386213614 | BL73: =CORREL($BE$14:$BE$64,BL14:BL64) -> 0.9302665921 | BM73: =CORREL($BE$14:$BE$64,BM14:BM64) -> 0.9613114753 | BN73: =CORREL($BE$14:$BE$64,BN14:BN64) -> 0.104642189
B74: Dow Jones | J74: =CORREL($J$14:$J$64,J14:J64) -> 1 | K74: =CORREL($J$14:$J$64,K14:K64) -> 0.556074259 | L74: =CORREL($J$14:$J$64,L14:L64) -> 0.6038414333 | M74: =CORREL($J$14:$J$64,M14:M64) -> -0.3360426964 | N74: =CORREL($J$14:$J$64,N14:N64) -> -0.002150576062 | O74: =CORREL($J$14:$J$64,O14:O64) -> 0.000926009638 | P74: =CORREL($J$14:$J$64,P14:P64) -> 0.00616149302 | Q74: =CORREL($J$14:$J$64,Q14:Q64) -> 0.6674331604 | R74: Dow Jones | Z74: =CORREL($Z$14:$Z$64,Z14:Z64) -> 1 | AA74: =CORREL($Z$14:$Z$64,AA14:AA64) -> 0.3456957554 | AB74: =CORREL($Z$14:$Z$64,AB14:AB64) -> 0.3785832778 | AC74: =CORREL($Z$14:$Z$64,AC14:AC64) -> -0.4251247358 | AD74: =CORREL($Z$14:$Z$64,AD14:AD64) -> 0.04153015471 | AE74: =CORREL($Z$14:$Z$64,AE14:AE64) -> 0.0629276564 | AF74: =CORREL($Z$14:$Z$64,AF14:AF64) -> 0.07438497203 | AG74: =CORREL($Z$14:$Z$64,AG14:AG64) -> 0.4933556052 | AH74: S&P500 | AO74: =CORREL($AO$14:$AO$64,AO14:AO64) -> 1 | AP74: =CORREL($AO$14:$AO$64,AP14:AP64) -> 0.9552503172 | AQ74: =CORREL($AO$14:$AO$64,AQ14:AQ64) -> 0.4764161157 | AR74: =CORREL($AO$14:$AO$64,AR14:AR64) -> 0.4958113884 | AS74: =CORREL($AO$14:$AO$64,AS14:AS64) -> -0.2812704424 | AT74: =CORREL($AO$14:$AO$64,AT14:AT64) -> 0.05007016496 | AU74: =CORREL($AO$14:$AO$64,AU14:AU64) -> 0.08548585053 | AV74: =CORREL($AO$14:$AO$64,AV14:AV64) -> 0.1025757653 | AW74: =CORREL($AO$14:$AO$64,AW14:AW64) -> 0.6089231796 | BF74: =CORREL($BF$14:$BF$64,BF14:BF64) -> 1 | BG74: =CORREL($BF$14:$BF$64,BG14:BG64) -> 0.9573679522 | BH74: =CORREL($BF$14:$BF$64,BH14:BH64) -> 0.3961004351 | BI74: =CORREL($BF$14:$BF$64,BI14:BI64) -> 0.4329785673 | BJ74: =CORREL($BF$14:$BF$64,BJ14:BJ64) -> -0.4071447574 | BK74: =CORREL($BF$14:$BF$64,BK14:BK64) -> -0.03509498335 | BL74: =CORREL($BF$14:$BF$64,BL14:BL64) -> -0.02441607248 | BM74: =CORREL($BF$14:$BF$64,BM14:BM64) -> -0.01003321156 | BN74: =CORREL($BF$14:$BF$64,BN14:BN64) -> 0.7084962127
B75: Equity REITS | K75: =CORREL($K$14:$K$64,K14:K64) -> 1 | L75: =CORREL($K$14:$K$64,L14:L64) -> 0.9572555637 | M75: =CORREL($K$14:$K$64,M14:M64) -> -0.05678470493 | N75: =CORREL($K$14:$K$64,N14:N64) -> 0.1332893566 | O75: =CORREL($K$14:$K$64,O14:O64) -> 0.1495357401 | P75: =CORREL($K$14:$K$64,P14:P64) -> 0.1403055528 | Q75: =CORREL($K$14:$K$64,Q14:Q64) -> 0.4293738063 | R75: Equity REITS | AA75: =CORREL($AA$14:$AA$64,AA14:AA64) -> 1 | AB75: =CORREL($AA$14:$AA$64,AB14:AB64) -> 0.9594128727 | AC75: =CORREL($AA$14:$AA$64,AC14:AC64) -> 0.01956289138 | AD75: =CORREL($AA$14:$AA$64,AD14:AD64) -> 0.2515318363 | AE75: =CORREL($AA$14:$AA$64,AE14:AE64) -> 0.2705849591 | AF75: =CORREL($AA$14:$AA$64,AF14:AF64) -> 0.2566746109 | AG75: =CORREL($AA$14:$AA$64,AG14:AG64) -> 0.3782020201 | AH75: Dow Jones | AP75: =CORREL($AP$14:$AP$64,AP14:AP64) -> 1 | AQ75: =CORREL($AP$14:$AP$64,AQ14:AQ64) -> 0.4141227158 | AR75: =CORREL($AP$14:$AP$64,AR14:AR64) -> 0.4582366035 | AS75: =CORREL($AP$14:$AP$64,AS14:AS64) -> -0.4241659545 | AT75: =CORREL($AP$14:$AP$64,AT14:AT64) -> 0.03712926995 | AU75: =CORREL($AP$14:$AP$64,AU14:AU64) -> 0.06170799783 | AV75: =CORREL($AP$14:$AP$64,AV14:AV64) -> 0.07382012118 | AW75: =CORREL($AP$14:$AP$64,AW14:AW64) -> 0.5632219525 | BG75: =CORREL($BG$14:$BG$64,BG14:BG64) -> 1 | BH75: =CORREL($BG$14:$BG$64,BH14:BH64) -> 0.3253794574 | BI75: =CORREL($BG$14:$BG$64,BI14:BI64) -> 0.3738233619 | BJ75: =CORREL($BG$14:$BG$64,BJ14:BJ64) -> -0.5547032548 | BK75: =CORREL($BG$14:$BG$64,BK14:BK64) -> -0.03154729757 | BL75: =CORREL($BG$14:$BG$64,BL14:BL64) -> -0.03311245424 | BM75: =CORREL($BG$14:$BG$64,BM14:BM64) -> -0.01771529835 | BN75: =CORREL($BG$14:$BG$64,BN14:BN64) -> 0.6877948326
B76: Composite REITS | L76: =CORREL($L$14:$L$64,L14:L64) -> 1 | M76: =CORREL($L$14:$L$64,M14:M64) -> -0.1162985239 | N76: =CORREL($L$14:$L$64,N14:N64) -> 0.09806099386 | O76: =CORREL($L$14:$L$64,O14:O64) -> 0.09494445124 | P76: =CORREL($L$14:$L$64,P14:P64) -> 0.08289895415 | Q76: =CORREL($L$14:$L$64,Q14:Q64) -> 0.4075774617 | R76: Composite REITS | AB76: =CORREL($AB$14:$AB$64,AB14:AB64) -> 1 | AC76: =CORREL($AB$14:$AB$64,AC14:AC64) -> -0.04996299844 | AD76: =CORREL($AB$14:$AB$64,AD14:AD64) -> 0.1624997457 | AE76: =CORREL($AB$14:$AB$64,AE14:AE64) -> 0.1719769584 | AF76: =CORREL($AB$14:$AB$64,AF14:AF64) -> 0.1511982466 | AG76: =CORREL($AB$14:$AB$64,AG14:AG64) -> 0.2644306265 | AH76: Equity REITS | AQ76: =CORREL($AQ$14:$AQ$64,AQ14:AQ64) -> 1 | AR76: =CORREL($AQ$14:$AQ$64,AR14:AR64) -> 0.9458980175 | AS76: =CORREL($AQ$14:$AQ$64,AS14:AS64) -> 0.01302102463 | AT76: =CORREL($AQ$14:$AQ$64,AT14:AT64) -> 0.2502990806 | AU76: =CORREL($AQ$14:$AQ$64,AU14:AU64) -> 0.2706618577 | AV76: =CORREL($AQ$14:$AQ$64,AV14:AV64) -> 0.2609709804 | AW76: =CORREL($AQ$14:$AQ$64,AW14:AW64) -> 0.487571528 | BH76: =CORREL($BH$14:$BH$64,BH14:BH64) -> 1 | BI76: =CORREL($BH$14:$BH$64,BI14:BI64) -> 0.9588245131 | BJ76: =CORREL($BH$14:$BH$64,BJ14:BJ64) -> -0.1006603873 | BK76: =CORREL($BH$14:$BH$64,BK14:BK64) -> 0.2218709873 | BL76: =CORREL($BH$14:$BH$64,BL14:BL64) -> 0.2334869472 | BM76: =CORREL($BH$14:$BH$64,BM14:BM64) -> 0.198717187 | BN76: =CORREL($BH$14:$BH$64,BN14:BN64) -> 0.430615745
B77: US Ave Farm (all) | M77: =CORREL($M$14:$M$64,M14:M64) -> 1 | N77: =CORREL($M$14:$M$64,N14:N64) -> 0.1336229255 | O77: =CORREL($M$14:$M$64,O14:O64) -> 0.1584134132 | P77: =CORREL($M$14:$M$64,P14:P64) -> 0.2210129798 | Q77: =CORREL($M$14:$M$64,Q14:Q64) -> -0.1895698511 | R77: US Ave Farm (all) | AC77: =CORREL($AC$14:$AC$64,AC14:AC64) -> 1 | AD77: =CORREL($AC$14:$AC$64,AD14:AD64) -> 0.1283898772 | AE77: =CORREL($AC$14:$AC$64,AE14:AE64) -> 0.1485025506 | AF77: =CORREL($AC$14:$AC$64,AF14:AF64) -> 0.2032982493 | AG77: =CORREL($AC$14:$AC$64,AG14:AG64) -> -0.1333344405 | AH77: Composite REITS | AR77: =CORREL($AR$14:$AR$64,AR14:AR64) -> 1 | AS77: =CORREL($AR$14:$AR$64,AS14:AS64) -> -0.1046750051 | AT77: =CORREL($AR$14:$AR$64,AT14:AT64) -> 0.1481915843 | AU77: =CORREL($AR$14:$AR$64,AU14:AU64) -> 0.1609347585 | AV77: =CORREL($AR$14:$AR$64,AV14:AV64) -> 0.1411629766 | AW77: =CORREL($AR$14:$AR$64,AW14:AW64) -> 0.3789194598 | BI77: =CORREL($BI$14:$BI$64,BI14:BI64) -> 1 | BJ77: =CORREL($BI$14:$BI$64,BJ14:BJ64) -> -0.1874799511 | BK77: =CORREL($BI$14:$BI$64,BK14:BK64) -> 0.1238180602 | BL77: =CORREL($BI$14:$BI$64,BL14:BL64) -> 0.1263426977 | BM77: =CORREL($BI$14:$BI$64,BM14:BM64) -> 0.09620459447 | BN77: =CORREL($BI$14:$BI$64,BN14:BN64) -> 0.3568310761
B78: BAA | N78: =CORREL($N$14:$N$64,N14:N64) -> 1 | O78: =CORREL($N$14:$N$64,O14:O64) -> 0.9235577492 | P78: =CORREL($N$14:$N$64,P14:P64) -> 0.9808084188 | Q78: =CORREL($N$14:$N$64,Q14:Q64) -> 0.1113246354 | R78: BAA | AD78: =CORREL($AD$14:$AD$64,AD14:AD64) -> 1 | AE78: =CORREL($AD$14:$AD$64,AE14:AE64) -> 0.9833963838 | AF78: =CORREL($AD$14:$AD$64,AF14:AF64) -> 0.9872673345 | AG78: =CORREL($AD$14:$AD$64,AG14:AG64) -> 0.316487823 | AH78: US Ave Farm (all) | AS78: =CORREL($AS$14:$AS$64,AS14:AS64) -> 1 | AT78: =CORREL($AS$14:$AS$64,AT14:AT64) -> 0.123740625 | AU78: =CORREL($AS$14:$AS$64,AU14:AU64) -> 0.1439538116 | AV78: =CORREL($AS$14:$AS$64,AV14:AV64) -> 0.1995175684 | AW78: =CORREL($AS$14:$AS$64,AW14:AW64) -> -0.1157212049 | BJ78: =CORREL($BJ$14:$BJ$64,BJ14:BJ64) -> 1 | BK78: =CORREL($BJ$14:$BJ$64,BK14:BK64) -> 0.193719474 | BL78: =CORREL($BJ$14:$BJ$64,BL14:BL64) -> 0.1947968028 | BM78: =CORREL($BJ$14:$BJ$64,BM14:BM64) -> 0.2644337844 | BN78: =CORREL($BJ$14:$BJ$64,BN14:BN64) -> -0.2954825392
B79: Mort30F | O79: =CORREL($O$14:$O$64,O14:O64) -> 1 | P79: =CORREL($O$14:$O$64,P14:P64) -> 0.9200529707 | Q79: =CORREL($O$14:$O$64,Q14:Q64) -> 0.154314966 | R79: Mort30F | AE79: =CORREL($AE$14:$AE$64,AE14:AE64) -> 1 | AF79: =CORREL($AE$14:$AE$64,AF14:AF64) -> 0.9840133713 | AG79: =CORREL($AE$14:$AE$64,AG14:AG64) -> 0.3224052592 | AH79: BAA | AT79: =CORREL($AT$14:$AT$64,AT14:AT64) -> 1 | AU79: =CORREL($AT$14:$AT$64,AU14:AU64) -> 0.9830011021 | AV79: =CORREL($AT$14:$AT$64,AV14:AV64) -> 0.987252482 | AW79: =CORREL($AT$14:$AT$64,AW14:AW64) -> 0.3124344222 | BK79: =CORREL($BK$14:$BK$64,BK14:BK64) -> 1 | BL79: =CORREL($BK$14:$BK$64,BL14:BL64) -> 0.9660494578 | BM79: =CORREL($BK$14:$BK$64,BM14:BM64) -> 0.9907229504 | BN79: =CORREL($BK$14:$BK$64,BN14:BN64) -> 0.2223379755
B80: TCM10Y | P80: =CORREL($P$14:$P$64,P14:P64) -> 1 | Q80: =CORREL($P$14:$P$64,Q14:Q64) -> 0.1294585424 | R80: TCM10Y | AF80: =CORREL($AF$14:$AF$64,AF14:AF64) -> 1 | AG80: =CORREL($AF$14:$AF$64,AG14:AG64) -> 0.3539636655 | AH80: Mort30F | AU80: =CORREL($AU$14:$AU$64,AU14:AU64) -> 1 | AV80: =CORREL($AU$14:$AU$64,AV14:AV64) -> 0.9836038844 | AW80: =CORREL($AU$14:$AU$64,AW14:AW64) -> 0.3259524517 | BL80: =CORREL($BL$14:$BL$64,BL14:BL64) -> 1 | BM80: =CORREL($BL$14:$BL$64,BM14:BM64) -> 0.9637685619 | BN80: =CORREL($BL$14:$BL$64,BN14:BN64) -> 0.1931777381
B81: EAFE | Q81: =CORREL($Q$14:$Q$64,Q14:Q64) -> 1 | R81: EAFE | AG81: =CORREL($AG$14:$AG$64,AG14:AG64) -> 1 | AH81: TCM10Y | AV81: =CORREL($AV$14:$AV$64,AV14:AV64) -> 1 | AW81: =CORREL($AV$14:$AV$64,AW14:AW64) -> 0.3576163925 | BM81: =CORREL($BM$14:$BM$64,BM14:BM64) -> 1 | BN81: =CORREL($BM$14:$BM$64,BN14:BN64) -> 0.2399127231
AH82: EAFE | AW82: =CORREL($AW$14:$AW$64,AW14:AW64) -> 1 | BN82: =CORREL($BN$14:$BN$64,BN14:BN64) -> 1
AZ86: Difference
B87: 1970 | C87: =1+C14 -> 1.10974883 | D87: 1.0804 | E87: 1.062546205 | F87: 1.021799228 | G87: 1.054206818 | H87: 1.063916667 | I87: 1.000977146 | J87: 1.046979907 | K87: 1 | L87: 1 | M87: 1.106052136 | N87: 1.09105 | O87: 1 | P87: 1.073483333 | Q87: 0.8615604439 | BA87: =BA68-AJ68 -> 0.06768505643 | BB87: -0.2007091577 | BC87: -0.01652921703 | BD87: -0.002919179131 | BE87: 0.06753578075 | BF87: -0.1200289267 | BG87: -0.124859985 | BH87: -0.1066597818 | BI87: -0.08169301137 | BJ87: 0.001013094287 | BK87: 0.0673981458 | BL87: 0.05135739812 | BM87: 0.06450525771 | BN87: -0.1644575078
B88: 1971 | C88: =1+C15 -> 1.109158112 | D88: 1.073866667 | E88: 1.149561411 | F88: 1.039635307 | G88: 1.032141209 | H88: 1.043325 | I88: 1.102437093 | J88: 1.059354647 | K88: 1 | L88: 1 | M88: 1.108787748 | N88: 1.085633333 | O88: 1.075457778 | P88: 1.061591667 | Q88: 1.232255284 | BB88: =BB69-AK69 -> 0.004438806752 | BC88: 0.07344148151 | BD88: 0.01400866875 | BE88: -0.003416413965 | BF88: -0.09954825337 | BG88: -0.08024142343 | BH88: -0.03985365981 | BI88: -0.02877320783 | BJ88: 0.06892266765 | BK88: 0.0011432733 | BL88: -0.019280565 | BM88: 0.0005237867133 | BN88: -0.1019068455
B89: 1972 | C89: =1+C16 -> 1.138760137 | D89: 1.072133333 | E89: 1.385174781 | F89: 1.062755845 | G89: 1.033495954 | H89: 1.040725 | I89: 1.145253486 | J89: 1.13611175 | K89: 1.077056056 | L89: 1.106092404 | M89: 1.137048651 | N89: 1.08155 | O89: 1.073832917 | P89: 1.0621 | Q89: 1.287289639 | BC89: =BC70-AL70 -> -0.1794755284 | BD89: -0.1141963987 | BE89: -0.04336629668 | BF89: 0.04627276664 | BG89: 0.1137991258 | BH89: 0.05393086282 | BI89: 0.09870306504 | BJ89: -0.1985391654 | BK89: 0.0300417079 | BL89: -0.0465137078 | BM89: -0.008805625621 | BN89: -0.002828327639
B90: 1973 | C90: =1+C17 -> 1.179631292 | D90: 1.074408333 | E90: 1.512986256 | F90: 1.142614107 | G90: 1.083475722 | H90: 1.070316667 | I90: 0.8092568035 | J90: 0.8187367066 | K90: 0.8313546342 | L90: 0.682316893 | M90: 1.170687113 | N90: 1.082408333 | O90: 1.080429167 | P90: 1.068425 | Q90: 0.815862013 | BD90: =BD71-AM71 -> 0.0235835443 | BE90: 0.04169691422 | BF90: 0.02089822184 | BG90: 0.03322941584 | BH90: 0.05910187426 | BI90: 0.0713247922 | BJ90: -0.01987497329 | BK90: 0.08221545094 | BL90: 0.04890690568 | BM90: 0.063001703 | BN90: -0.08971423597
B91: 1974 | C91: =1+C18 -> 1.270351893 | D91: 1.085658333 | E91: 1.542970415 | F91: 1.189678395 | G91: 1.116338992 | H91: 1.0783 | I91: 0.6473442072 | J91: 0.6772769733 | K91: 0.7591629969 | L91: 0.4512708878 | M91: 1.262767922 | N91: 1.094966667 | O91: 1.091870417 | P91: 1.075575 | Q91: 0.7043197799 | BE91: =BE72-AN72 -> 0.01717787237 | BF91: -0.09255524158 | BG91: -0.06522435939 | BH91: -0.07425853295 | BI91: -0.04935782043 | BJ91: -0.0009134346224 | BK91: 0.02115295397 | BL91: 0.0001605677868 | BM91: 0.007925816904 | BN91: -0.1334435871
B92: 1975 | C92: =1+C19 -> 1.187062356 | D92: 1.088258333 | E92: 0.7233012636 | F92: 1.041031397 | G92: 1.067064231 | H92: 1.05775 | I92: 1.274209282 | J92: 1.324484314 | K92: 1.176466884 | L92: 1.309957168 | M92: 1.174222048 | N92: 1.1061 | O92: 1.090405417 | P92: 1.079875 | Q92: 1.271576575 | BF92: =BF73-AO73 -> -0.1670046846 | BG92: -0.1484541914 | BH92: -0.1266007014 | BI92: -0.09776379634 | BJ92: 0.06867132509 | BK92: 0.003690826431 | BL92: -0.02047413561 | BM92: -0.004221628936 | BN92: -0.1799969081
B93: 1976 | C93: =1+C20 -> 1.211128684 | D93: 1.084341667 | E93: 0.9607328176 | F93: 1.045834536 | G93: 1.047502334 | H93: 1.049741667 | I93: 1.175200129 | J93: 1.164388368 | K93: 1.38925884 | L93: 1.398599825 | M93: 1.20489603 | N93: 1.097466667 | O93: 1.088643333 | P93: 1.076116667 | Q93: 0.9964108661 | BG93: =BG74-AP74 -> 0.002117634949 | BH93: -0.08031568054 | BI93: -0.06283282111 | BJ93: -0.125874315 | BK93: -0.08516514831 | BL93: -0.109901923 | BM93: -0.1126089769 | BN93: 0.09957303309
B94: 1977 | C94: =1+C21 -> 1.226833816 | D94: 1.080241667 | E94: 1.179762398 | F94: 1.057513906 | G94: 1.064860634 | H94: 1.052691667 | I94: 0.8778102843 | J94: 0.8104261713 | K94: 1.202322139 | L94: 1.174595834 | M94: 1.207387779 | N94: 1.089691667 | O94: 1.088416667 | P94: 1.074191667 | Q94: 1.136395193 | BH94: =BH75-AQ75 -> -0.08874325836 | BI94: -0.08441324155 | BJ94: -0.1305373003 | BK94: -0.06867656752 | BL94: -0.09482045207 | BM94: -0.09153541953 | BN94: 0.1245728802
B95: 1978 | C95: =1+C22 -> 1.175896898 | D95: 1.08725 | E95: 1.258845676 | F95: 1.093660922 | G95: 1.086340191 | H95: 1.071883333 | I95: 1.010564399 | J95: 0.9679718376 | K95: 1.098355758 | L95: 0.9834587048 | M95: 1.164093669 | N95: 1.094883333 | O95: 1.096324583 | P95: 1.0841 | Q95: 1.253974963 | BI95: =BI76-AR76 -> 0.01292649557 | BJ95: =BJ76-AS76 -> -0.113681412 | BK95: =BK76-AT76 -> -0.02842809325 | BL95: =BL76-AU76 -> -0.03717491052 | BM95: =BM76-AV76 -> -0.06225379333 | BN95: =BN76-AW76 -> -0.05695578303
B96: 1979 | C96: =1+C23 -> 1.215619057 | D96: 1.096291667 | E96: 1.902249955 | F96: 1.137306925 | G96: 1.124815528 | H96: 1.100691667 | I96: 1.116082148 | J96: 1.041010797 | K96: 1.306436764 | L96: 1.266402558 | M96: 1.215069339 | N96: 1.1069 | O96: 1.1119175 | P96: 1.094425 | Q96: 1.01797298 | BJ96: -0.082804946 | BK96: -0.02437352413 | BL96: -0.03459206084 | BM96: -0.04495838215 | BN96: -0.02208838372
B97: 1980 | C97: =1+C24 -> 1.203564699 | D97: 1.119383333 | E97: 1.141374093 | F97: 1.117516547 | G97: 1.11792789 | H97: 1.114341667 | I97: 1.229313104 | J97: 1.139238221 | K97: 1.218083788 | L97: 1.247012076 | M97: 1.205100711 | N97: 1.136683333 | O97: 1.137695 | P97: 1.1146 | Q97: 1.174064249 | BK97: 0.06997884904 | BL97: 0.05084299118 | BM97: 0.06491621598 | BN97: -0.1797613343
B98: 1981 | C98: =1+C25 -> 1.156350966 | D98: 1.141708333 | E98: 0.6054962158 | F98: 1.051932749 | G98: 1.085465184 | H98: 1.14025 | I98: 0.897630489 | J98: 0.9031325917 | K98: 1.058276545 | L98: 1.082276839 | M98: 1.141653153 | N98: 1.160441667 | O98: 1.16634625 | P98: 1.139108333 | Q98: 0.950298504 | BL98: -0.01695164427 | BM98: 0.003470468399 | BN98: -0.09009644666
B99: 1982 | C99: =1+C26 -> 1.051932825 | D99: 1.137875 | E99: 1.139269614 | F99: 1.017060123 | G99: 1.037582711 | H99: 1.106141667 | I99: 1.137684324 | J99: 1.178982656 | K99: 1.195574198 | L99: 1.27493086 | M99: 1.049093687 | N99: 1.161133333 | O99: 1.160902083 | P99: 1.130016667 | Q99: 0.9526109343 | BM99: -0.01983532251 | BN99: -0.1327747136
B100: 1983 | C100: =1+C27 -> 1.013626367 | D100: 1.120416667 | E100: 0.8220026326 | F100: 1.017751945 | G100: 1.037208918 | H100: 1.086108333 | I100: 1.159317708 | J100: 1.184548729 | K100: 1.267246556 | L100: 1.226887472 | M100: 1.007602777 | N100: 1.135541667 | O100: 1.13226875 | P100: 1.11105 | Q100: 1.189906795 | BN100: -0.1177036694
B101: 1984 | C101: =1+C28 -> 1.075850531 | D101: 1.127091667 | E101: 0.7846061537 | F101: 1.01166194 | G101: 1.038727008 | H101: 1.095225 | I101: 1.013908765 | J101: 0.9619418081 | K101: 1.190019152 | L101: 1.138154735 | M101: 1.074409677 | N101: 1.1419 | O101: 1.13869375 | P101: 1.124383333 | Q101: 1.048983137
B102: 1985 | C102: =1+C29 -> 0.9415236358 | D102: 1.113733333 | E102: 1.058275028 | F102: 1.000965717 | G102: 1.037282976 | H102: 1.074791667 | I102: 1.233754362 | J102: 1.244181829 | K102: 1.174762671 | L102: 1.05751321 | M102: 0.9493617954 | N102: 1.12715 | O102: 1.1242325 | P102: 1.106233333 | Q102: 1.425065119
B103: 1986 | C103: =1+C30 -> 0.9692939338 | D103: 1.090208333 | E103: 1.173588101 | F103: 0.9616283471 | G103: 1.010919126 | H103: 1.059783333 | I103: 1.136455691 | J103: 1.203622775 | K103: 1.175277856 | L103: 1.175429939 | M103: 0.9755419649 | N103: 1.103908333 | O103: 1.101778333 | P103: 1.076825 | Q103: 1.511622832
B104: 1987 | C104: =1+C31 -> 1.001830745 | D104: 1.093758333 | E104: 1.219355033 | F104: 1.044146452 | G104: 1.043388833 | H104: 1.05775 | I104: 1.020072212 | J104: 1.022322821 | K104: 0.9629227079 | L104: 0.8871833461 | M104: 1.0147466 | N104: 1.105758333 | O104: 1.101944167 | P104: 1.083841667 | Q104: 1.208514139
B105: 1988 | C105: =1+C32 -> 1.115909579 | D105: 1.0971 | E105: 0.834475233 | F105: 1.045035753 | G105: 1.043245399 | H105: 1.066675 | I105: 1.116901241 | J105: 1.112012573 | K105: 1.12650426 | L105: 1.107556811 | M105: 1.109400154 | N105: 1.1083 | O105: 1.1033425 | P105: 1.088458333 | Q105: 1.23635056
B106: 1989 | C106: =1+C33 -> 1.121761969 | D106: 1.092575 | E106: 0.9711916778 | F106: 1.036039936 | G106: 1.04542549 | H106: 1.081116667 | I106: 1.240987148 | J106: 1.238682073 | K106: 1.084729129 | L106: 0.9816978483 | M106: 1.121654335 | N106: 1.101775 | O106: 1.103231667 | P106: 1.084983333 | Q106: 1.088197179
B107: 1990 | C107: =1+C34 -> 1.093184031 | D107: 1.093216667 | E107: 0.9683969622 | F107: 1.049211483 | G107: 1.059270905 | H107: 1.074933333 | I107: 0.9321585391 | J107: 0.9556258301 | K107: 0.8333344621 | L107: 0.8095043222 | M107: 1.084346229 | N107: 1.10355 | O107: 1.101288333 | P107: 1.0855 | Q107: 0.7162357038
B108: 1991 | C108: =1+C35 -> 1.086832391 | D108: 1.087691667 | E108: 0.9105375259 | F108: 0.9761284487 | G108: 1.030182637 | H108: 1.05375 | I108: 1.233542927 | J108: 1.184963266 | K108: 1.305248353 | L108: 1.30512217 | M108: 1.089996675 | N108: 1.098016667 | O108: 1.0924775 | P108: 1.078583333 | Q108: 1.097004834
B109: 1992 | C109: =1+C36 -> 1.07586861 | D109: 1.0814 | E109: 0.9409492487 | F109: 1.014561285 | G109: 1.028593799 | H109: 1.034316667 | I109: 1.043674859 | J109: 1.040902779 | K109: 1.136187005 | L109: 1.114893601 | M109: 1.076472992 | N109: 1.089766667 | O109: 1.083990417 | P109: 1.0701 | Q109: 0.8504857057
B110: 1993 | C110: =1+C37 -> 1.101464021 | D110: 1.072191667 | E110: 1.162781737 | F110: 1.008467451 | G110: 1.027113235 | H110: 1.029975 | I110: 1.068173949 | J110: 1.12859283 | K110: 1.179438486 | L110: 1.17014066 | M110: 1.097623686 | N110: 1.0793 | O110: 1.073265833 | P110: 1.058733333 | Q110: 1.266152781
B111: 1994 | C111: =1+C38 -> 1.116170062 | D111: 1.079625 | E111: 0.9780636365 | F111: 1.02744455 | G111: 1.026397472 | H111: 1.042466667 | I111: 0.984487439 | J111: 1.021164393 | K111: 1.031214862 | L111: 1.008023157 | M111: 1.136051773 | N111: 1.086225 | O111: 1.083548333 | P111: 1.0708 | Q111: 1.060531887
B112: 1995 | C112: =1+C39 -> 1.110437462 | D112: 1.0759 | E112: 1.009737175 | F112: 1.030697079 | G112: 1.025067276 | H112: 1.0549 | I112: 1.293495048 | J112: 1.288574903 | K112: 1.142079979 | L112: 1.168129625 | M112: 1.099907346 | N112: 1.082008333 | O112: 1.079528333 | P112: 1.0658 | Q112: 1.090026662
B113: 1996 | C113: =1+C40 -> 1.097209752 | D113: 1.0737 | E113: 0.9530492284 | F113: 1.026689182 | G113: 1.032684742 | H113: 1.050058333 | I113: 1.184516366 | J113: 1.231228658 | K113: 1.302077955 | L113: 1.305670934 | M113: 1.08724474 | N113: 1.080541667 | O113: 1.078042917 | P113: 1.064383333 | Q113: 1.043036109
B114: 1997 | C114: =1+C41 -> 1.084339084 | D114: 1.072616667 | E114: 0.759096419 | F114: 0.9820237442 | G114: 1.016880676 | H114: 1.050608333 | I114: 1.270089586 | J114: 1.204096311 | K114: 1.184487471 | L114: 1.17278374 | M114: 1.076325441 | N114: 1.078625 | O114: 1.075957917 | P114: 1.063525 | Q114: 1.002375778
B115: 1998 | C115: =1+C42 -> 1.093137918 | D115: 1.065316667 | E115: 0.991695454 | F115: 0.9679459737 | G115: 1.015990501 | H115: 1.047766667 | I115: 1.236403964 | J115: 1.149270125 | K115: 0.807601495 | L115: 0.7914656015 | M115: 1.082871588 | N115: 1.072208333 | O115: 1.069462917 | P115: 1.052641667 | Q115: 1.167466322
B116: 1999 | C116: =1+C43 -> 1.099178487 | D116: 1.070416667 | E116: 1.008476826 | F116: 1.039909526 | G116: 1.026491615 | H116: 1.046383333 | I116: 1.178364109 | J116: 1.224911864 | K116: 0.9526989094 | L116: 0.9330484897 | M116: 1.093178646 | N116: 1.078708333 | O116: 1.074285 | P116: 1.056366667 | Q116: 1.225270764
B117: 2000 | C117: =1+C44 -> 1.098482043 | D117: 1.076225 | E117: 0.9440264744 | F117: 1.063657852 | G117: 1.033307198 | H117: 1.058166667 | I117: 0.8930917688 | J117: 0.9363395756 | K117: 1.234007313 | L117: 1.23024001 | M117: 1.094052035 | N117: 1.083641667 | O117: 1.08061625 | P117: 1.060291667 | Q117: 0.8350557269
B118: 2001 | C118: =1+C45 -> 1.09387818 | D118: 1.070825 | E118: 1.007441726 | F118: 0.9386868152 | G118: 1.01539808 | H118: 1.033883333 | I118: 0.8602471466 | J118: 0.9263043669 | K118: 1.130439568 | L118: 1.144117849 | M118: 1.090156432 | N118: 1.079475 | O118: 1.069710417 | P118: 1.050175 | Q118: 0.7436734484
B119: 2002 | C119: =1+C46 -> 1.091020371 | D119: 1.064916667 | E119: 1.227690162 | F119: 1.036785757 | G119: 1.023491013 | H119: 1.016041667 | I119: 0.7338710802 | J119: 0.8165198688 | K119: 1.037496046 | L119: 1.050841113 | M119: 1.087920901 | N119: 1.078016667 | O119: 1.065367083 | P119: 1.046108333 | Q119: 0.8074265846
B120: 2003 | C120: =1+C47 -> 1.088323152 | D120: 1.056666667 | E120: 1.181385059 | F120: 1.048467636 | G120: 1.018620472 | H120: 1.010108333 | I120: 1.234126189 | J120: 1.225718387 | K120: 1.315786229 | L120: 1.325457111 | M120: 1.084388328 | N120: 1.067658333 | O120: 1.058195417 | P120: 1.04015 | Q120: 1.302195979
B121: 2004 | C121: =1+C48 -> 1.093628167 | D121: 1.056283333 | E121: 1.04543835 | F121: 1.073903138 | G121: 1.03203691 | H121: 1.013716667 | I121: 1.086117628 | J121: 1.03099472 | K121: 1.274425818 | L121: 1.265509358 | M121: 1.103288672 | N121: 1.063933333 | O121: 1.058385 | P121: 1.042741667 | Q121: 1.162043945
B122: 2005 | C122: =1+C49 -> 1.192529103 | D122: 1.05235 | E122: 1.163551454 | F122: 1.081782461 | G122: 1.03358621 | H122: 1.031466667 | I122: 1.029568736 | J122: 0.9939061722 | K122: 1.114781513 | L122: 1.079625649 | M122: 1.199903817 | N122: 1.060641667 | O122: 1.05864875 | P122: 1.0429 | Q122: 1.103138951
B123: 2006 | C123: =1+C50 -> 1.141239779 | D123: 1.055875 | E123: 1.208613549 | F123: 1.015825041 | G123: 1.025089123 | H123: 1.047266667 | I123: 1.127684357 | J123: 1.150898371 | K123: 1.300553914 | L123: 1.292813822 | M123: 1.147138306 | N123: 1.064791667 | O123: 1.064108333 | P123: 1.047916667 | Q123: 1.210839348
B124: 2007 | C124: =1+C51 -> 1.134936621 | D124: 1.055558333 | E124: 1.277044203 | F124: 1.075573426 | G124: 1.040001837 | H124: 1.043533333 | I124: 1.03468716 | J124: 1.062339128 | K124: 0.8293096186 | L124: 0.8035983498 | M124: 1.128628947 | N124: 1.064825 | O124: 1.063404583 | P124: 1.046291667 | Q124: 1.082711916
B125: 2008 | C125: =1+C52 -> 1.097931954 | D125: 1.056316667 | E125: 1.042272217 | F125: 0.9559299217 | G125: 1.000913711 | H125: 1.01365 | I125: 0.5141090304 | J125: 0.5869497434 | K125: 0.5263475388 | L125: 0.5245443325 | M125: 1.087738476 | N125: 1.074466667 | O125: 1.06036125 | P125: 1.036666667 | Q125: 0.4006061313
B126: 2009 | C126: =1+C53 -> 0.9879500753 | D126: 1.053133333 | E126: 1.223430949 | F126: 1.0412666 | G126: 1.026849613 | H126: 1.0015 | I126: 1.210691329 | J126: 1.172434129 | K126: 1.246783628 | L126: 1.24530359 | M126: 0.9803890626 | N126: 1.072958333 | O126: 1.05041375 | P126: 1.032566667 | Q126: 1.244883503
B127: 2010 | C127: =1+C54 -> 1.049832521 | D127: 1.049433333 | E127: 1.256511627 | F127: 1.063098687 | G127: 1.014846479 | H127: 1.001366667 | I127: 1.120290458 | J127: 1.104565132 | K127: 1.246445672 | L127: 1.243446651 | M127: 1.036585581 | N127: 1.060383333 | O127: 1.046905833 | P127: 1.032141667 | Q127: 1.047880911
B128: 2011 | C128: =1+C55 -> 1.086910621 | D128: 1.046391667 | E128: 1.085528005 | F128: 1.051872989 | G128: 1.02919387 | H128: 1.000525 | I128: 0.9999681939 | J128: 1.053809838 | K128: 1.079584617 | L128: 1.070502388 | M128: 1.073939469 | N128: 1.056641667 | O128: 1.044558333 | P128: 1.027858333 | Q128: 0.8396036004
B129: 2012 | C129: =1+C56 -> 1.109128442 | D129: 1.036733333 | E129: 1.079389326 | F129: 1.008472515 | G129: 1.017260402 | H129: 1.000858333 | I129: 1.12580141 | J129: 1.07005395 | K129: 1.179825193 | L129: 1.180047288 | M129: 1.091308775 | N129: 1.04935 | O129: 1.036559167 | P129: 1.018025 | Q129: 1.127110162
B130: 2013 | C130: 1.093724386 | D130: 1.04235 | E130: 0.6807541 | F130: 1.002478316 | G130: 1.014905712 | H130: 1.000583333 | I130: 1.259292206 | J130: 1.235067471 | K130: 1.028157193 | L130: 1.023135556 | M130: 1.080861463 | N130: 1.051016667 | O130: 1.039819167 | P130: 1.023508333 | Q130: 1.177524146
B131: 2014 | C131: 1.096769328 | D131: 1.041625 | E131: 1.001244555 | F131: 0.9779770879 | G131: 1.007536462 | H131: 1.000325 | I131: 1.1078731 | J131: 1.072498004 | K131: 1.247075621 | L131: 1.240816783 | M131: 1.087365752 | N131: 1.048541667 | O131: 1.041728333 | P131: 1.025408333 | Q131: 0.9237075597
B132: 2015 | C132: =1+C59 -> 1.060621097 | D132: 1.038866667 | E132: 0.8709598098 | F132: 0.9259698822 | G132: 1.007268717 | H132: 1.000525 | I132: 0.9927074581 | J132: 0.9774139524 | K132: 1.027860574 | L132: 1.020298361 | M132: 1.054688984 | N132: 1.049991667 | O132: 1.03849 | P132: 1.021358333 | Q132: 0.9664207087
B133: 2016 | C133: =1+C60 -> 1.030014018 | D133: 1.036658333 | E133: 1.077921446 | F133: 1.02529056 | G133: 1.020533949 | H133: 1.003175 | I133: 1.09107409 | J133: 1.125883625 | K133: 1.082770284 | L133: 1.089611222 | M133: 1.030399684 | N133: 1.047175 | O133: 1.036477083 | P133: 1.018416667 | Q133: 0.9810127579
B134: 2017 | C134: =1+C61 -> 1.047366587 | D134: 1.037433333 | E134: 1.119226757 | F134: 1.042138874 | G134: 1.020871492 | H134: 1.009308333 | I134: 1.177476211 | J134: 1.223789845 | K134: 1.083181535 | L134: 1.088871301 | M134: 1.04541974 | N134: 1.0444 | O134: 1.03991 | P134: 1.0233 | Q134: 1.197053169
B135: 2018 | C135: 1.042703537 | D135: 1.0393 | E135: 0.9906614107 | F135: 1.023660807 | G135: 1.018921444 | H135: 1.019391667 | I135: 0.9355974049 | J135: 0.9420501405 | K135: 0.9587139193 | L135: 0.9598540623 | M135: 1.040489884 | N135: 1.048 | O135: 1.045390417 | P135: 1.0291 | Q135: 0.8240294362
B136: 2019 | C136: 1.04434697 | D136: 1.033875 | E136: 1.169171886 | F136: 0.9899999167 | G136: 1.022594117 | H136: 1.020608333 | I136: 1.253696579 | J136: 1.201620684 | K136: 1.252025406 | L136: 1.248481403 | M136: 1.043883694 | N136: 1.04375 | O136: 1.0393375 | P136: 1.021441667 | Q136: 0.8240294362
B137: 2020 | C137: 1.028838643 | D137: 1.024766667 | E137: 1.220055772 | F137: 0.9959717972 | G137: 1.0125871 | H137: 1.00365 | I137: 1.150649613 | J137: 1.069959835 | K137: 0.9474262099 | L137: 0.9383836697 | M137: 1.02883508 | N137: 1.036025 | O137: 1.031136667 | P137: 1.008941667 | Q137: 1.169194652
